Workbook

Sheet Read Me
A1: Taal/Language: | B1: Nederlands
D3: =+Config!B124 -> Voorwoord
D4: =+Config!B125 -> Het kostprijsmodel “TCO-ZET-Vracht” is in opdracht van Topsector Logistiek en het Ministerie van I&W door Panteia gebouwd en wordt door haar vervolgens onderhouden. Bij de ontwikkeling van dit TCO-model is gekozen voor een open en transparante opzet. Dit betekent dat helder is welke rekenregels zijn toegepast en welke waarde van de default data als uitgangswaarde is gehanteerd. Het TCO-model wordt mede onderschreven door RAI, evofenedex en TLN.
D6: =+Config!B126 -> Nieuw in TCO-ZET-Vracht versie 5.0 (d.d. 19-5-2023):
D7: =+Config!B127 -> De belangrijkste wijziging ten opzichte van versie 4 betreft een verlegging van het basisjaar van 2022 naar 2023. Gemeld moet worden dat het uitdagend is gebleken om voldoende onderbouwde veranderingen vast te stellen daar de (prijs-) ontwikkelingen in de energie- en transportmarkt aan sterke fluctuaties onderhevig zijn. De doorgevoerde verhoging van belangrijke posten is als volgt: - Catalogusprijs van dieselvoertuigen: + 14%. - Catalogusprijs van BEV en FCEV: + 8%. - Rentepercentage 4,23% (2022: 3,93%). - Verzekeringspercentage 3,40% (2022: 3,22%). - Dieselprijs (default): 1,55 euro/liter (incl. verlaagde accijns, excl. btw). - Elektriciteitsprijs (default): 0,12 euro/kWh (Zone 3, excl. btw). - Waarde van een HBE: 12 euro
D8: =+Config!B128 -> Overige aanpassingen: - Bij FCEV wordt uitsluitend de waarde van HBE's berekend in geval van groene elektrolyse. - Ten behoeve van de berekening van de subsidiebedragen is een vraag over de bedrijfsgrootte toegevoegd. - TCO-vracht is nu beschikbaar in het Nederlands en het Engels. Om van taal te switchen kan linksboven in de readme een keuze gemaakt worden.
D9: - 0 - 0 - 0 - 0 -
D10: =+Config!B129 -> Het gebruik
D11: =+Config!B130 -> De opzet van het TCO-Vracht is zo eenvoudig als mogelijk gehouden. Dit houdt in dat het TCO-Vracht op basis van een beperkte input reeds onderbouwde rekenresultaten produceert. Wel moet het veld “Enable Content” (soms) worden aangeklikt om gebruik te kunnen maken van voor de berekeningen noodzakelijke “Macros”.
D12: =+Config!B131 -> Defaultwaarden
D13: =+Config!B132 -> Bij een groot aantal (input-) gegevens is in het TCO-Vracht reeds een defaultwaarde ingevuld. Deze defaultwaarde (=standaardwaarde) is gebaseerd op gegevens uit de transportwereld. Veel van deze gegevens kunnen naar eigen inzicht veranderd worden met een eigen getal door gebruik te maken van een aantal “knoppen”. Bij deze knoppen is telkens de gebruikte defaultwaarde weergegeven. Overigens, met de resetknop: “Start nieuwe berekening”, wordt teruggegaan naar de oorspronkelijke (default-) waarden.
D14: =+Config!B133 -> Resultaten
D15: =+Config!B134 -> De rekenresultaten worden kolomsgewijs getoond voor telkens een elektrische, een brandstofcel en een dieselvariant van een voertuig met vergelijkbare transportkarakteristieken. De verwachte jaarkilometrage van het geselecteerde voertuig is een bepalend getal. Op basis hiervan worden niet alleen de kosten en emissies berekend maar wordt bijvoorbeeld ook een advies gegeven over optimale capaciteit van de batterij en het vermogen van het oplaadsysteem.
D17: =+Config!B135 -> Emissies
D18: =+Config!B136 -> Hoewel het een kostprijsmodel betreft, worden tevens de emissies (WtW) van een aantal vervuilende stoffen van het geselecteerde voertuig berekend. Het betreft daarbij CO2, NOx en PMx. Het ligt voor de hand dat er met (batterij of brandstofcel) elektrische voertuigen op groene stroom c.q. groene waterstof gereden wordt. Wanneer dit om een of andere reden niet mogelijk is, kan bijvoorbeeld “grijze elektriciteit” worden geselecteerd. Er wordt in dat geval gerekend met (de uitstoot van) de Nederlandse elektriciteitsmix.
D19: =+Config!B137 -> Nieuwe versies
D20: =+Config!B138 -> De ontwikkelingen met betrekking tot de energietransitie volgen elkaar in een hoog tempo op. Niet alleen verandert de defaultwaarde van de inputgegevens bijvoorbeeld in de vorm van prijsdalingen, ook komen er regelmatig nieuwe voertuigklassen beschikbaar. Om te zorgen dat het TCO-Vracht zo actueel mogelijk blijft, worden er daarom periodiek updates gemaakt. Deze nieuwe versies van het model worden vervolgens gratis ter beschikking gesteld.
D21: =+Config!B139 -> Disclaimer
D22: =+Config!B140 -> Veel zorg is besteed aan de correctheid van de rekenregels en de gebruikte inputdata c.q. defaultwaarden. Panteia of de Topsector Logistiek zijn echter niet aansprakelijk te houden voor de juistheid van de rekenresultaten. Deze kunnen ofwel lager dan wel hoger zijn.
D23: =+Config!B141 -> Contact
D24: =+Config!B142 -> Indien u vragen hebt dan kunt u deze bij voorkeur verzenden naar: TCO-Vracht@panteia.nl

Sheet Input-Output Module
C4: Disclaimer:
C5: =Config!B123 -> De in het TCO-Vracht gebruikte default- c.q. standaardwaarden zijn met de grootste zorg verzameld. Het betreft echter gemiddelde cijfers, de werkelijke cijfers kunnen ofwel hoger dan wel lager zijn. Hoewel veel zorg is besteed aan de correctheid van de rekenregels en de gebruikte inputdata, is Panteia of de Topsector Logistiek niet aansprakelijk te houden voor de juistheid van de rekenresultaten.
A10: Input-output module | C10: TCO-ZET-Vracht | F10: =+Config!B10 -> Naam dataset | G10: zware trekker 2023
C11: =+Config!B156 -> versie 5.0 | D11: 45065
A12: =+Config!B11 -> BASIS INVOERGEGEVENS | D12: =+Config!B12 -> INZETGEGEVENS VOERTUIG SYSTEM
E13: =+Config!B13 -> Dieselvoertuig | F13: =+Config!B14 -> Elektrisch voertuig | G13: =+Config!B15 -> Waterstof voertuig
A14: =+Config!B16 -> Voertuigtype | B14: Kleine bakwagen (lvm ca. 6 ton) | C14: =IF(voertuigtype_input="","*","") ->  | D14: =+Config!B24 -> Economische levensduur [jaren] | E14: 7 | F14: 7 | G14: 7
A15: =+Config!B17 -> Koelmachine (J/N) | B15: niet gekoeld | C15: =IF(koelmachine="","*","") ->  | D15: =+Config!B25 -> Restwaarde | E15: =Calculatie!B37 -> 18935.88459 | F15: =Calculatie!C37 -> 32263.21149 | G15: =Calculatie!D37 -> 59600.62753
A16: =+Config!B18 -> Verwacht jaarkilometrage | B16: =Calculatie!$C$5 -> 35000 | C16: =+Config!B146 -> [km/jaar] | D16: =+Config!B26 -> Productieve uren per jaar | E16: 2600 | F16: =Calculatie!C17 -> 2600 | G16: =Calculatie!D17 -> 2600
A17: =+Config!B19 -> Grijze/groene elektriciciteit | B17: Groen | C17: =IF(Electricity_type="","*","") ->  | D17: =+Config!B27 -> Kosten van reparaties | E17: =Calculatie!B105 -> 500 | F17: =Calculatie!C105 -> 500 | G17: =Calculatie!D105 -> 1500
A18: =+Config!B20 -> Grijze/groene waterstof | B18: Electrolyse (hernieuwbare energie) | C18: =IF(H2_type="","*","") ->  | D18: =+Config!B28 -> Stilstand [dagen per jaar]
A19: =+Config!B21 -> Rechtsvorm en belastingpercentage | B19: BV of NV met 19% belasting | C19: =IF(B19="","*","") -> 
A20: =+Config!B22 -> Basisjaar prognose | B20: 2023
A21: =+Config!B23 -> Grootte van bedrijf | B21: Groot | C21: =IF(bedrijftype_input="","*","") ->  | D21: =+Config!B29 -> Vermogen eigen oplaadsysteem (kW) | F21: ='M1-PowerSupply'!B35 -> 22
D22: =+Config!B30 -> Capaciteit vrachtwagenbatterij (kWh) | F22: =Calculatie!C25 -> 120 | G22: =Calculatie!D25 -> 70
B23: =IF(COUNTIF($B$14:$B$21,"")>0,Config!$B$197,"") ->  | D23: =+Config!B31 -> Waterstof opslag tank (kg) | F23: =IF(ISERROR(MATCH(batt_cap_input,'M1-PowerSupply'!$B$24:$B$27,0)),Config!$B$249,"") ->  | G23: =Calculatie!D30 -> 15
A25: =+Config!B149 -> BASIS UITGANGSPUNTEN
C27: =+Config!B14 -> Elektrisch voertuig | D27: =+Config!B15 -> Waterstof voertuig
A28: =+Config!B32 -> AANKOOPPRIJS | B28: =+Config!B16 -> Voertuigtype | C28: =Calculatie!C28 -> Kleine bakwagen 120 kWh | D28: =Calculatie!D28 -> Kleine bakwagen 30 kW | F28: =+Config!B43 -> Kale brandstofprijs | G28: 1.08 | H28: =+Config!B151 -> excl. BTW en accijns
B29: =+Config!B33 -> Bruto aankoopprijs | C29: =Calculatie!C34 -> 139606.2 | D29: =Calculatie!D34 -> 257897.9817 | F29: =+Config!B44 -> Dieselaccijns | G29: 0.4669
B30: =+Config!B34 -> AanZET-subsidie | C30: N | D30: N | E30: =+Config!B55 -> subsidie toepassen (J/N) | F30: =+Config!B45 -> Totale brandstofprijs | G30: =fuel_price_input+G29 -> 1.5469 | H30: =+Config!B152 -> excl. BTW
B31: =+Config!B35 -> MIA-subsidie | C31: N | D31: N | E31: =+Config!B55 -> subsidie toepassen (J/N)
B32: =+Config!B36 -> Netto aankoopprijs | C32: =Calculatie!C50 -> 139606.2 | D32: =Calculatie!D50 -> 257897.9817
G33: =+Config!B59 -> Dieselvoertuigbelastingen | H33: =+Config!B60 -> Meenemen
F34: =+Config!B46 -> Meerprijs tolheffing | G34: =Calculatie!B80 -> 0 | H34: N | I34: €/km
B35: =+Config!B37 -> Bruto kosten inkoopoplaadsysteem | C35: =Calculatie!C40 -> 2315.25 | F35: =+Config!B47 -> Aandeel snelweg kilometers | G35: =Calculatie!B83 -> 0.75
B36: =+Config!B38 -> Bruto kosten aanleg oplaadsysteem | C36: =Calculatie!C43 -> 1323.81
B37: =+Config!B35 -> MIA-subsidie | C37: N | F37: =+Config!B48 -> Vaste ZE-Voertuigheffing | H37: N | I37: =+Config!B61 -> €/jaar
B38: =+Config!B39 -> Netto kosten inkoop & aanleg oplaadsysteem | C38: =Calculatie!C51 -> 3639.06
F39: =+Config!B49 -> CO2 prijs | H39: N | I39: €/ton
G41: =+Config!B62 -> Hernieuwbare Brandstof-Eenheden (HBE's)
G42: =+Config!B153 -> Elektrisch voertuig (BEV) | H42: =+Config!B154 -> Waterstof voertuig (FCEV)
A43: =+Config!B40 -> INKOOPPRIJS ENERGIE | C43: =+Config!B56 -> Elektriciteit: euro/kWh | D43: =+Config!B57 -> Waterstof: euro/kg | E43: =+Config!B58 -> Dieselprijs: euro/l | F43: =+Config!B50 -> HBE Toepassen (J/N) | G43: N | H43: N
B44: =+Config!B41 -> Basisprijs energie | C44: =Calculatie!C70 -> 0.1220728926 | D44: =Calculatie!D70 -> 10 | E44: =G30 -> 1.5469 | F44: =+Config!B51 -> Aantal HBE's | G44: =Calculatie!C96 -> 242 | H44: =Calculatie!D96 -> 334
B45: =+Config!B42 -> Energiesubsidie | F45: =+Config!B52 -> Forfait | G45: =Calculatie!C92 -> 1 | H45: =Calculatie!D92 -> 1
B46: =+Config!B150 -> Netto inkooprijs | C46: =Calculatie!C74 -> 0.1220728926 | D46: =Calculatie!D74 -> 10 | F46: =+Config!B53 -> Waarde per HBE | G46: =Parameters!$B$55 -> 12 | H46: =Parameters!$B$55 -> 12
F47: =+Config!B54 -> Totale waarde HBE's | G47: =IF((G44*G46)-Parameters!$B$57<0,0,(G44*G46)-Parameters!$B$57) -> 904 | H47: =IF((H44*H46)-Parameters!$B$57<0,0,(H44*H46)-Parameters!$B$57) -> 2008
A49: =+Config!B63 -> RESULTATEN
A50: =+Config!B64 -> Scenario | C50: Diesel | D50: =+Config!B196 -> EV Optimale mix | E50: =+Config!B15 -> Waterstof voertuig
A51: =+Config!B65 -> Scenario technisch mogelijk (valide)/niet mogelijk | C51: n.v.t. | D51: =IF(AND('M1-PowerSupply'!B55="Valide",'M1-PowerSupply'!B56="Valide",'M1-PowerSupply'!B57="Valide"),"Scenario valide","Vehicle technology insufficient") -> Scenario valide | E51: n.v.t.
A53: =+Config!B16 -> Voertuigtype | C53: =voertuigtype_input -> Kleine bakwagen (lvm ca. 6 ton) | D53: =Calculatie!C28 -> Kleine bakwagen 120 kWh | E53: =Calculatie!D28 -> Kleine bakwagen 30 kW
A54: =+Config!B66 -> Eigen oplaadsysteem | C54: n.v.t. | D54: ='M1-PowerSupply'!B38 -> AC22 | E54: n.v.t.
A55: =+Config!B67 -> Openbaar oplaadsysteem | C55: n.v.t. | D55: ='M1-PowerSupply'!B49 -> AC10 | E55: n.v.t.
A57: =+Config!B68 -> Percentage eigen oplaadsysteem | C57: n.v.t. | D57: ='M1-PowerSupply'!B41/'M1-PowerSupply'!C14 -> 1 | E57: n.v.t.
A58: =+Config!B69 -> Percentage extern (openbaar) oplaadsysteem | C58: n.v.t. | D58: ='M1-PowerSupply'!B51/'M1-PowerSupply'!C14 -> 0 | E58: n.v.t.
A60: =+Config!B70 -> Totale kosten per jaar | C60: =SUM(C112,C120) -> 129888.0979 | D60: =SUM(D112,D120) -> 137944.5102 | E60: 173331.7523
A61: =+Config!B71 -> Totale kosten per km | C61: =C60/Calculatie!$B$5 -> 3.711088511 | D61: =D60/Calculatie!$B$5 -> 3.941271721 | E61: =E60/Calculatie!$B$5 -> 4.952335781
A62: =+Config!B72 -> Totale kosten per uur | C62: =C60/Calculatie!B17 -> 49.95696073 | D62: =D60/Calculatie!C17 -> 53.05558086 | E62: =E60/Calculatie!D17 -> 66.66605859
A64: =+Config!B73 -> Emissies (totaal per jaar voor het geselecteerde voertuig)
A65: =+Config!B74 -> CO2 emissies (ton per jaar, WtW) | C65: =Calculatie!B60 -> 11.60094302 | D65: =Calculatie!C60 -> 0 | E65: =Calculatie!D60 -> 0
A66: =+Config!B75 -> PM totaal (kg per jaar, TtW) | C66: =Calculatie!B61+Calculatie!B62 -> 2.987431151 | D66: =Calculatie!C61+Calculatie!C62 -> 2.842240824 | E66: =Calculatie!D61+Calculatie!D62 -> 2.842240824
A67: =+Config!B76 -> NOx (kg per jaar, TtW) | C67: =Calculatie!B65 -> 16.47472605 | D67: n.v.t. | E67: n.v.t.
A70: =+Config!B77 -> ONDERBOUWING KOSTENBEREKENING
A71: =+Config!B78 -> Vaste kosten per jaar
A72: =+Config!B79 -> Wegenbelasting | C72: =INDEX(VehicleCatalogus[[#All],[Road tax]],MATCH(Calculatie!B28,VehicleCatalogus[[#All],[Name]],0)) -> 315.9 | D72: =INDEX(VehicleCatalogus[[#All],[Road tax]],MATCH(Calculatie!C28,VehicleCatalogus[[#All],[Name]],0)) -> 0 | E72: =INDEX(VehicleCatalogus[[#All],[Road tax]],MATCH(Calculatie!D28,VehicleCatalogus[[#All],[Name]],0)) -> 0
A73: =+Config!B80 -> Eurovignet | C73: =INDEX(Misc_Ops_Parameters[[#All],[Eurovignet]],MATCH(Calculatie!$B$2,Misc_Ops_Parameters[[#All],[Vehicle type]],0)) -> 750 | D73: =INDEX(Misc_Ops_Parameters[[#All],[Eurovignet]],MATCH(Calculatie!$B$2,Misc_Ops_Parameters[[#All],[Vehicle type]],0)) -> 750 | E73: =INDEX(Misc_Ops_Parameters[[#All],[Eurovignet]],MATCH(Calculatie!$B$2,Misc_Ops_Parameters[[#All],[Vehicle type]],0)) -> 750
A74: =+Config!B81 -> Rente | C74: =AVERAGE(Calculatie!B50,Calculatie!B39)*Parameters!$B$22 -> 2131.445286 | D74: =AVERAGE(Calculatie!C50,Calculatie!C39)*Parameters!$B$22 -> 3631.584767 | E74: =AVERAGE(Calculatie!D50,Calculatie!D39)*Parameters!$B$22 -> 6708.716244
A75: =+Config!B82 -> Verzekering | C75: =Calculatie!B36*Parameters!$B$23 -> 2784.841719 | D75: =Calculatie!C36*Parameters!$B$23 -> 4744.850282 | E75: =Calculatie!D36*Parameters!$B$23 -> 8765.27913
A76: =+Config!B83 -> Voertuigheffing | C76: =IF(OR(H37="J",H37="Y"),voertuigheffing_input,0) -> 0 | D76: 0 | E76: 0
A77: =+Config!B84 -> Diverse overige voertuigkosten | C77: =INDEX(Misc_Ops_Parameters[[#All],[Misc. vehicle cost]],MATCH(Calculatie!$B$2,Misc_Ops_Parameters[[#All],[Vehicle type]],0)) -> 73.79136 | D77: =INDEX(Misc_Ops_Parameters[[#All],[Misc. vehicle cost]],MATCH(Calculatie!$B$2,Misc_Ops_Parameters[[#All],[Vehicle type]],0)) -> 73.79136 | E77: =INDEX(Misc_Ops_Parameters[[#All],[Misc. vehicle cost]],MATCH(Calculatie!$B$2,Misc_Ops_Parameters[[#All],[Vehicle type]],0)) -> 73.79136
A78: =+Config!B85 -> a: Totale vaste voertuigkosten per jaar | C78: =SUM(C72:C77) -> 6055.978365 | D78: =SUM(D72:D77) -> 9200.226409 | E78: =SUM(E72:E77) -> 16297.78673
A79: Fixed transport costs
A80: =+Config!B87 -> Variabele kosten per jaar
A81: =+Config!B88 -> Afschrijving voertuig | C81: =(Calculatie!B50-Calculatie!B39)/Calculatie!B14 -> 9000.230773 | D81: =(Calculatie!C50-Calculatie!C39)/Calculatie!C14 -> 15334.71264 | E81: =(Calculatie!D50-Calculatie!D39)/Calculatie!D14 -> 28328.19345
A82: =+Config!B89 -> Brandstofverbruik voertuig | C82: =Calculatie!B75 -> 5709.16672 | D82: 0 | E82: 0
A83: =+Config!B90 -> Brandstofverbruik koeling | C83: =Calculatie!B76 -> 0 | D83: 0 | E83: 0
A84: =+Config!B91 -> Elektriciteitsverbruik | C84: 0 | D84: =Calculatie!C77 -> 2120.170499 | E84: 0
A85: =+Config!B92 -> H2 verbruik | C85: 0 | D85: 0 | E85: =Calculatie!D77 -> 11146.78551
A86: =+Config!B93 -> Adblue verbruik | C86: =Calculatie!B67 -> 75.8852861 | D86: 0 | E86: 0
A87: =+Config!B94 -> Banden | C87: =INDEX(Misc_Ops_Parameters[[#All],[Tires cost (€/km)]],MATCH(Calculatie!$B$2,Misc_Ops_Parameters[[#All],[Vehicle type]],0))*Calculatie!$B$5 -> 809.247075 | D87: =INDEX(Misc_Ops_Parameters[[#All],[Tires cost (€/km)]],MATCH(Calculatie!$B$2,Misc_Ops_Parameters[[#All],[Vehicle type]],0))*Calculatie!$B$5 -> 809.247075 | E87: =INDEX(Misc_Ops_Parameters[[#All],[Tires cost (€/km)]],MATCH(Calculatie!$B$2,Misc_Ops_Parameters[[#All],[Vehicle type]],0))*Calculatie!$B$5 -> 809.247075
A88: =+Config!B95 -> Onderhoud | C88: =INDEX(VehicleCatalogus[[#All],[Maintenance costs]],MATCH(Calculatie!$B$29,VehicleCatalogus[[#All],[ID]],0))*Calculatie!$B$5 -> 1832.7575 | D88: =INDEX(VehicleCatalogus[[#All],[Maintenance costs]],MATCH(Calculatie!$C$29,VehicleCatalogus[[#All],[ID]],0))*Calculatie!$B$5 -> 916.37875 | E88: =INDEX(VehicleCatalogus[[#All],[Maintenance costs]],MATCH(Calculatie!$D$29,VehicleCatalogus[[#All],[ID]],0))*Calculatie!$B$5 -> 2749.13625
A89: =+Config!B96 -> Reparatie | C89: =Calculatie!B107 -> 500 | D89: =Calculatie!C107 -> 500 | E89: =Calculatie!D107 -> 1500
A90: =+Config!B97 -> Reparatie/onderhoud koelunit | C90: =INDEX(Misc_Ops_Parameters[[#All],[Refrigeration maintenance cost]],MATCH(Calculatie!$B$2,Misc_Ops_Parameters[[#All],[Vehicle type]],0))*IF(Calculatie!$B$4="gekoeld",Calculatie!B17,0) -> 0 | D90: =INDEX(Misc_Ops_Parameters[[#All],[Refrigeration maintenance cost]],MATCH(Calculatie!$B$2,Misc_Ops_Parameters[[#All],[Vehicle type]],0))*IF(Calculatie!$B$4="gekoeld",Calculatie!C17,0) -> 0 | E90: =INDEX(Misc_Ops_Parameters[[#All],[Refrigeration maintenance cost]],MATCH(Calculatie!$B$2,Misc_Ops_Parameters[[#All],[Vehicle type]],0))*IF(Calculatie!$B$4="gekoeld",Calculatie!D17,0) -> 0
A91: =+Config!B98 -> Verschil Tolheffing (km-tarief) | C91: =Calculatie!B87 -> 0 | D91: 0 | E91: 0
A92: =+Config!B155 -> CO2-prijs | C92: =IF(OR($H$39="J",$H$39="Y"),co2_price*C$65,0) -> 0 | D92: =IF(OR($H$39="J",$H$39="Y"),co2_price*D$65,0) -> 0 | E92: =IF(OR($H$39="J",$H$39="Y"),co2_price*E$65,0) -> 0
A93: =+Config!B62 -> Hernieuwbare Brandstof-Eenheden (HBE's) | C93: 0 | D93: =IF(OR($G$43="J",$G$43="Y"),$G$47*-1,0) -> 0 | E93: =IF(OR($G$43="J",$G$43="Y"),$H$47*-1,0) -> 0
A94: =+Config!B100 -> Specifieke vervoerskosten | C94: =INDEX(Misc_Ops_Parameters[[#All],[Special transport costs]],MATCH(Calculatie!$B$2,Misc_Ops_Parameters[[#All],[Vehicle type]],0)) -> 410.75625 | D94: =INDEX(Misc_Ops_Parameters[[#All],[Special transport costs]],MATCH(Calculatie!$B$2,Misc_Ops_Parameters[[#All],[Vehicle type]],0)) -> 410.75625 | E94: =INDEX(Misc_Ops_Parameters[[#All],[Special transport costs]],MATCH(Calculatie!$B$2,Misc_Ops_Parameters[[#All],[Vehicle type]],0)) -> 410.75625
A95: =+Config!B101 -> b: Totale variabele voertuigkosten per jaar | C95: =SUM(C81:C94) -> 18338.0436 | D95: =SUM(D81:D94) -> 20091.26522 | E95: =SUM(E81:E94) -> 44944.11854
A96: Repair, maintenance & tires
A97: =+Config!B103 -> Kosten oplaadsysteem per jaar
A98: =+Config!B104 -> Aankoop en installatie | C98: 0 | D98: =C38/Parameters!$B$21 -> 363.906 | E98: 0
A99: =+Config!B105 -> Operationele kosten | C99: 0 | D99: =INDEX(Laadinfra[[#All],[Operational costs annual (€)]],MATCH('M1-PowerSupply'!$B$38,Laadinfra[[#All],[Charging type]],0)) -> 1571.883312 | E99: 0
A100: =+Config!B106 -> c: Totale kosten oplaadsysteem per jaar | C100: =SUM(C98:C99) -> 0 | D100: =SUM(D98:D99) -> 1935.789312 | E100: =SUM(E98:E99) -> 0
A102: =+Config!B107 -> Totale voertuig en oplaadsysteemkosten per jaar (a+b+c) | C102: =SUM(C78,C95,C100) -> 24394.02197 | D102: =SUM(D78,D95,D100) -> 31227.28094 | E102: =SUM(E78,E95,E100) -> 61241.90528
A103: =+Config!B108 -> Totale voertuig en oplaadsysteemkosten per km: (a+b+c)/kms per jaar | C103: =C$102/Calculatie!$B$5 -> 0.6969720562 | D103: =D$102/Calculatie!$B$5 -> 0.8922080268 | E103: =E$102/Calculatie!$B$5 -> 1.749768722
A104: =+Config!B109 -> Totale voertuig en oplaadsysteemkosten per uur (a+b+c)/uren per jaar | C104: =C$102/Calculatie!B17 -> 9.382316142 | D104: =D$102/Calculatie!C17 -> 12.01049267 | E104: =E$102/Calculatie!D17 -> 23.55457895
A106: =+Config!B110 -> Chauffeurskosten
A107: =+Config!B111 -> Uurloon incl. sociale lasten | B107: =Parameters!B40 -> 31.48 | C107: =$B107*Calculatie!$B$17 -> 81848 | D107: =$B107*(Calculatie!$C$17+(Calculatie!$C$16*'M1-PowerSupply'!$B$52)) -> 81848 | E107: =$B107*Calculatie!$D$17 -> 81848
A108: =+Config!B112 -> Verblijfkostenvergoeding | B108: =Parameters!B41 -> 0.97 | C108: =$B108*Calculatie!$B$17 -> 2522 | D108: =$B108*(Calculatie!$C$17+(Calculatie!$C$16*'M1-PowerSupply'!$B$52)) -> 2522 | E108: =$B108*Calculatie!$D$17 -> 2522
A109: =+Config!B113 -> Overige kosten | B109: =Parameters!B42 -> 0.54 | C109: =$B109*Calculatie!$B$17 -> 1404 | D109: =$B109*(Calculatie!$C$17+(Calculatie!$C$16*'M1-PowerSupply'!$B$52)) -> 1404 | E109: =$B109*Calculatie!$D$17 -> 1404
A110: =+Config!B114 -> d: Totale chauffeurskosten per jaar | C110: =SUM(C107:C109) -> 85774 | D110: =SUM(D107:D109) -> 85774 | E110: =SUM(E107:E109) -> 85774
A112: =+Config!B115 -> Totale directe kosten per jaar (a+b+c+d) | C112: =SUM(C102,C110) -> 110168.022 | D112: =SUM(D102,D110) -> 117001.2809 | E112: =SUM(E102,E110) -> 147015.9053
A113: =+Config!B116 -> Totale directe kosten per km: (a+b+c+d)/kms per jaar | C113: =C$112/Calculatie!$B$5 -> 3.147657771 | D113: =D$112/Calculatie!$B$5 -> 3.342893741 | E113: =E$112/Calculatie!$B$5 -> 4.200454436
A114: =+Config!B117 -> Totale directe kosten per uur (a+b+c+d)/uren per jaar | C114: =C$112/Calculatie!B17 -> 42.37231614 | D114: =D$112/Calculatie!C17 -> 45.00049267 | E114: =E$112/Calculatie!D17 -> 56.54457895
A116: =+Config!B118 -> Algemene kosten (overhead)
A117: =+Config!B119 -> Loon incl. sociale lasten | B117: =Parameters!B44 -> 0.094 | C117: =$B117*C$112 -> 10355.79407 | D117: =$B117*D$112 -> 10998.12041 | E117: 13819.4951
A118: =+Config!B120 -> Huisvesting | B118: =Parameters!B45 -> 0.029 | C118: =$B118*C$112 -> 3194.872637 | D118: 3393.037147 | E118: 4263.461253
A119: =+Config!B121 -> Overig | B119: =Parameters!B46 -> 0.056 | C119: =$B119*C$112 -> 6169.40923 | D119: 6552.071733 | E119: 8232.890696
A120: =+Config!B122 -> e: Totale overhead per jaar | C120: =SUM(C117:C119) -> 19720.07593 | D120: =SUM(D117:D119) -> 20943.22929 | E120: =SUM(E117:E119) -> 26315.84704

Sheet Vergelijking Data
I1: Datasetnaam
I2: kleine bakwagen 2023
C3: =+Config!$B$198 -> Vergelijking Data | I3: medium bakwagen 2023
I4: grote bakwagen 2023
C5: =+Config!$B$199 -> Selecteer DataSet | D5: zware trekker 2023 | E5: zware trekker 2023 | F5: zware trekker 2023 | I5: lichte trekker 2023
C6: =+Config!$B$200 -> Voertuigscenario | D6: Diesel | E6: Elektrisch | F6: Waterstof | I6: zware trekker 2023
C7: =+Config!$B$204 -> Creatiedatum | D7: =INDEX(Database!$A:$CZ,MATCH('Vergelijking Data'!D$5,Database!$A:$A,0)+IF(OR(D$6="Elektrisch",D$6="Electric"),1,IF(OR(D$6="Waterstof",D$6="Hydrogen"),2,0)),MATCH($C7,Database!$A$1:$CZ$1,0)) -> 45048 | E7: =INDEX(Database!$A:$CZ,MATCH('Vergelijking Data'!E$5,Database!$A:$A,0)+IF(OR(E$6="Elektrisch",E$6="Electric"),1,IF(OR(E$6="Waterstof",E$6="Hydrogen"),2,0)),MATCH($C7,Database!$A$1:$CZ$1,0)) -> 45048 | F7: =INDEX(Database!$A:$CZ,MATCH('Vergelijking Data'!F$5,Database!$A:$A,0)+IF(OR(F$6="Elektrisch",F$6="Electric"),1,IF(OR(F$6="Waterstof",F$6="Hydrogen"),2,0)),MATCH($C7,Database!$A$1:$CZ$1,0)) -> 45048
C8: =+Config!$B$205 -> Voertuigtype | D8: =INDEX(Database!$A:$CZ,MATCH('Vergelijking Data'!D$5,Database!$A:$A,0)+IF(OR(D$6="Elektrisch",D$6="Electric"),1,IF(OR(D$6="Waterstof",D$6="Hydrogen"),2,0)),MATCH($C8,Database!$A$1:$CZ$1,0)) -> Zware trekker z/opl (GVW >40 ton) | E8: =INDEX(Database!$A:$CZ,MATCH('Vergelijking Data'!E$5,Database!$A:$A,0)+IF(OR(E$6="Elektrisch",E$6="Electric"),1,IF(OR(E$6="Waterstof",E$6="Hydrogen"),2,0)),MATCH($C8,Database!$A$1:$CZ$1,0)) -> Zware trekker z/opl (GVW >40 ton) | F8: =INDEX(Database!$A:$CZ,MATCH('Vergelijking Data'!F$5,Database!$A:$A,0)+IF(OR(F$6="Elektrisch",F$6="Electric"),1,IF(OR(F$6="Waterstof",F$6="Hydrogen"),2,0)),MATCH($C8,Database!$A$1:$CZ$1,0)) -> Zware trekker z/opl (GVW >40 ton)
C9: =+Config!$B$206 -> Koelmachine (J/N) | D9: =INDEX(Database!$A:$CZ,MATCH('Vergelijking Data'!D$5,Database!$A:$A,0)+IF(OR(D$6="Elektrisch",D$6="Electric"),1,IF(OR(D$6="Waterstof",D$6="Hydrogen"),2,0)),MATCH($C9,Database!$A$1:$CZ$1,0)) -> niet gekoeld | E9: =INDEX(Database!$A:$CZ,MATCH('Vergelijking Data'!E$5,Database!$A:$A,0)+IF(OR(E$6="Elektrisch",E$6="Electric"),1,IF(OR(E$6="Waterstof",E$6="Hydrogen"),2,0)),MATCH($C9,Database!$A$1:$CZ$1,0)) -> niet gekoeld | F9: =INDEX(Database!$A:$CZ,MATCH('Vergelijking Data'!F$5,Database!$A:$A,0)+IF(OR(F$6="Elektrisch",F$6="Electric"),1,IF(OR(F$6="Waterstof",F$6="Hydrogen"),2,0)),MATCH($C9,Database!$A$1:$CZ$1,0)) -> niet gekoeld
C10: =+Config!$B$207 -> Verwacht jaarkilometrage | D10: =INDEX(Database!$A:$CZ,MATCH('Vergelijking Data'!D$5,Database!$A:$A,0)+IF(OR(D$6="Elektrisch",D$6="Electric"),1,IF(OR(D$6="Waterstof",D$6="Hydrogen"),2,0)),MATCH($C10,Database!$A$1:$CZ$1,0)) -> 100000 | E10: =INDEX(Database!$A:$CZ,MATCH('Vergelijking Data'!E$5,Database!$A:$A,0)+IF(OR(E$6="Elektrisch",E$6="Electric"),1,IF(OR(E$6="Waterstof",E$6="Hydrogen"),2,0)),MATCH($C10,Database!$A$1:$CZ$1,0)) -> 100000 | F10: =INDEX(Database!$A:$CZ,MATCH('Vergelijking Data'!F$5,Database!$A:$A,0)+IF(OR(F$6="Elektrisch",F$6="Electric"),1,IF(OR(F$6="Waterstof",F$6="Hydrogen"),2,0)),MATCH($C10,Database!$A$1:$CZ$1,0)) -> 100000
C11: =+Config!$B$208 -> Grijze/groene elektriciciteit | D11: =INDEX(Database!$A:$CZ,MATCH('Vergelijking Data'!D$5,Database!$A:$A,0)+IF(OR(D$6="Elektrisch",D$6="Electric"),1,IF(OR(D$6="Waterstof",D$6="Hydrogen"),2,0)),MATCH($C11,Database!$A$1:$CZ$1,0)) -> Groen | E11: =INDEX(Database!$A:$CZ,MATCH('Vergelijking Data'!E$5,Database!$A:$A,0)+IF(OR(E$6="Elektrisch",E$6="Electric"),1,IF(OR(E$6="Waterstof",E$6="Hydrogen"),2,0)),MATCH($C11,Database!$A$1:$CZ$1,0)) -> Groen | F11: =INDEX(Database!$A:$CZ,MATCH('Vergelijking Data'!F$5,Database!$A:$A,0)+IF(OR(F$6="Elektrisch",F$6="Electric"),1,IF(OR(F$6="Waterstof",F$6="Hydrogen"),2,0)),MATCH($C11,Database!$A$1:$CZ$1,0)) -> Groen
C12: =+Config!$B$209 -> Grijze/groene waterstof | D12: =INDEX(Database!$A:$CZ,MATCH('Vergelijking Data'!D$5,Database!$A:$A,0)+IF(OR(D$6="Elektrisch",D$6="Electric"),1,IF(OR(D$6="Waterstof",D$6="Hydrogen"),2,0)),MATCH($C12,Database!$A$1:$CZ$1,0)) -> Electrolyse (hernieuwbare energie) | E12: =INDEX(Database!$A:$CZ,MATCH('Vergelijking Data'!E$5,Database!$A:$A,0)+IF(OR(E$6="Elektrisch",E$6="Electric"),1,IF(OR(E$6="Waterstof",E$6="Hydrogen"),2,0)),MATCH($C12,Database!$A$1:$CZ$1,0)) -> Electrolyse (hernieuwbare energie) | F12: =INDEX(Database!$A:$CZ,MATCH('Vergelijking Data'!F$5,Database!$A:$A,0)+IF(OR(F$6="Elektrisch",F$6="Electric"),1,IF(OR(F$6="Waterstof",F$6="Hydrogen"),2,0)),MATCH($C12,Database!$A$1:$CZ$1,0)) -> Electrolyse (hernieuwbare energie)
C13: =+Config!$B$210 -> Rechtsvorm en belastingpercentage | D13: =INDEX(Database!$A:$CZ,MATCH('Vergelijking Data'!D$5,Database!$A:$A,0)+IF(OR(D$6="Elektrisch",D$6="Electric"),1,IF(OR(D$6="Waterstof",D$6="Hydrogen"),2,0)),MATCH($C13,Database!$A$1:$CZ$1,0)) -> BV of NV met 19% belasting | E13: =INDEX(Database!$A:$CZ,MATCH('Vergelijking Data'!E$5,Database!$A:$A,0)+IF(OR(E$6="Elektrisch",E$6="Electric"),1,IF(OR(E$6="Waterstof",E$6="Hydrogen"),2,0)),MATCH($C13,Database!$A$1:$CZ$1,0)) -> BV of NV met 19% belasting | F13: =INDEX(Database!$A:$CZ,MATCH('Vergelijking Data'!F$5,Database!$A:$A,0)+IF(OR(F$6="Elektrisch",F$6="Electric"),1,IF(OR(F$6="Waterstof",F$6="Hydrogen"),2,0)),MATCH($C13,Database!$A$1:$CZ$1,0)) -> BV of NV met 19% belasting
C14: =+Config!$B$211 -> Jaar prognose | D14: =INDEX(Database!$A:$CZ,MATCH('Vergelijking Data'!D$5,Database!$A:$A,0)+IF(OR(D$6="Elektrisch",D$6="Electric"),1,IF(OR(D$6="Waterstof",D$6="Hydrogen"),2,0)),MATCH($C14,Database!$A$1:$CZ$1,0)) -> 2023 | E14: =INDEX(Database!$A:$CZ,MATCH('Vergelijking Data'!E$5,Database!$A:$A,0)+IF(OR(E$6="Elektrisch",E$6="Electric"),1,IF(OR(E$6="Waterstof",E$6="Hydrogen"),2,0)),MATCH($C14,Database!$A$1:$CZ$1,0)) -> 2023 | F14: =INDEX(Database!$A:$CZ,MATCH('Vergelijking Data'!F$5,Database!$A:$A,0)+IF(OR(F$6="Elektrisch",F$6="Electric"),1,IF(OR(F$6="Waterstof",F$6="Hydrogen"),2,0)),MATCH($C14,Database!$A$1:$CZ$1,0)) -> 2023
C15: =+Config!$B$212 -> Economische levensduur | D15: =INDEX(Database!$A:$CZ,MATCH('Vergelijking Data'!D$5,Database!$A:$A,0)+IF(OR(D$6="Elektrisch",D$6="Electric"),1,IF(OR(D$6="Waterstof",D$6="Hydrogen"),2,0)),MATCH($C15,Database!$A$1:$CZ$1,0)) -> 7 | E15: =INDEX(Database!$A:$CZ,MATCH('Vergelijking Data'!E$5,Database!$A:$A,0)+IF(OR(E$6="Elektrisch",E$6="Electric"),1,IF(OR(E$6="Waterstof",E$6="Hydrogen"),2,0)),MATCH($C15,Database!$A$1:$CZ$1,0)) -> 7 | F15: =INDEX(Database!$A:$CZ,MATCH('Vergelijking Data'!F$5,Database!$A:$A,0)+IF(OR(F$6="Elektrisch",F$6="Electric"),1,IF(OR(F$6="Waterstof",F$6="Hydrogen"),2,0)),MATCH($C15,Database!$A$1:$CZ$1,0)) -> 7
C16: =+Config!$B$213 -> Restwaarde | D16: =INDEX(Database!$A:$CZ,MATCH('Vergelijking Data'!D$5,Database!$A:$A,0)+IF(OR(D$6="Elektrisch",D$6="Electric"),1,IF(OR(D$6="Waterstof",D$6="Hydrogen"),2,0)),MATCH($C16,Database!$A$1:$CZ$1,0)) -> 33327.16 | E16: =INDEX(Database!$A:$CZ,MATCH('Vergelijking Data'!E$5,Database!$A:$A,0)+IF(OR(E$6="Elektrisch",E$6="Electric"),1,IF(OR(E$6="Waterstof",E$6="Hydrogen"),2,0)),MATCH($C16,Database!$A$1:$CZ$1,0)) -> 94844.08 | F16: =INDEX(Database!$A:$CZ,MATCH('Vergelijking Data'!F$5,Database!$A:$A,0)+IF(OR(F$6="Elektrisch",F$6="Electric"),1,IF(OR(F$6="Waterstof",F$6="Hydrogen"),2,0)),MATCH($C16,Database!$A$1:$CZ$1,0)) -> 149189.85
C17: =+Config!$B$214 -> Productieve uren per jaar | D17: =INDEX(Database!$A:$CZ,MATCH('Vergelijking Data'!D$5,Database!$A:$A,0)+IF(OR(D$6="Elektrisch",D$6="Electric"),1,IF(OR(D$6="Waterstof",D$6="Hydrogen"),2,0)),MATCH($C17,Database!$A$1:$CZ$1,0)) -> 2600 | E17: =INDEX(Database!$A:$CZ,MATCH('Vergelijking Data'!E$5,Database!$A:$A,0)+IF(OR(E$6="Elektrisch",E$6="Electric"),1,IF(OR(E$6="Waterstof",E$6="Hydrogen"),2,0)),MATCH($C17,Database!$A$1:$CZ$1,0)) -> 2600 | F17: =INDEX(Database!$A:$CZ,MATCH('Vergelijking Data'!F$5,Database!$A:$A,0)+IF(OR(F$6="Elektrisch",F$6="Electric"),1,IF(OR(F$6="Waterstof",F$6="Hydrogen"),2,0)),MATCH($C17,Database!$A$1:$CZ$1,0)) -> 2600
C18: =+Config!$B$215 -> Kosten van reparaties | D18: =INDEX(Database!$A:$CZ,MATCH('Vergelijking Data'!D$5,Database!$A:$A,0)+IF(OR(D$6="Elektrisch",D$6="Electric"),1,IF(OR(D$6="Waterstof",D$6="Hydrogen"),2,0)),MATCH($C18,Database!$A$1:$CZ$1,0)) -> 1500 | E18: =INDEX(Database!$A:$CZ,MATCH('Vergelijking Data'!E$5,Database!$A:$A,0)+IF(OR(E$6="Elektrisch",E$6="Electric"),1,IF(OR(E$6="Waterstof",E$6="Hydrogen"),2,0)),MATCH($C18,Database!$A$1:$CZ$1,0)) -> 1500 | F18: =INDEX(Database!$A:$CZ,MATCH('Vergelijking Data'!F$5,Database!$A:$A,0)+IF(OR(F$6="Elektrisch",F$6="Electric"),1,IF(OR(F$6="Waterstof",F$6="Hydrogen"),2,0)),MATCH($C18,Database!$A$1:$CZ$1,0)) -> 5000
C19: =+Config!$B$216 -> Stilstand dagen per jaar | D19: =INDEX(Database!$A:$CZ,MATCH('Vergelijking Data'!D$5,Database!$A:$A,0)+IF(OR(D$6="Elektrisch",D$6="Electric"),1,IF(OR(D$6="Waterstof",D$6="Hydrogen"),2,0)),MATCH($C19,Database!$A$1:$CZ$1,0)) -> 0 | E19: =INDEX(Database!$A:$CZ,MATCH('Vergelijking Data'!E$5,Database!$A:$A,0)+IF(OR(E$6="Elektrisch",E$6="Electric"),1,IF(OR(E$6="Waterstof",E$6="Hydrogen"),2,0)),MATCH($C19,Database!$A$1:$CZ$1,0)) -> 0 | F19: =INDEX(Database!$A:$CZ,MATCH('Vergelijking Data'!F$5,Database!$A:$A,0)+IF(OR(F$6="Elektrisch",F$6="Electric"),1,IF(OR(F$6="Waterstof",F$6="Hydrogen"),2,0)),MATCH($C19,Database!$A$1:$CZ$1,0)) -> 0
C20: =+Config!$B$217 -> Vermogen eigen oplaadsysteem (kW) | D20: =INDEX(Database!$A:$CZ,MATCH('Vergelijking Data'!D$5,Database!$A:$A,0)+IF(OR(D$6="Elektrisch",D$6="Electric"),1,IF(OR(D$6="Waterstof",D$6="Hydrogen"),2,0)),MATCH($C20,Database!$A$1:$CZ$1,0)) -> nvt | E20: =INDEX(Database!$A:$CZ,MATCH('Vergelijking Data'!E$5,Database!$A:$A,0)+IF(OR(E$6="Elektrisch",E$6="Electric"),1,IF(OR(E$6="Waterstof",E$6="Hydrogen"),2,0)),MATCH($C20,Database!$A$1:$CZ$1,0)) -> 50 | F20: =INDEX(Database!$A:$CZ,MATCH('Vergelijking Data'!F$5,Database!$A:$A,0)+IF(OR(F$6="Elektrisch",F$6="Electric"),1,IF(OR(F$6="Waterstof",F$6="Hydrogen"),2,0)),MATCH($C20,Database!$A$1:$CZ$1,0)) -> nvt
C21: =+Config!$B$218 -> Capaciteit vrachtwagenbatterij (kWh) | D21: =INDEX(Database!$A:$CZ,MATCH('Vergelijking Data'!D$5,Database!$A:$A,0)+IF(OR(D$6="Elektrisch",D$6="Electric"),1,IF(OR(D$6="Waterstof",D$6="Hydrogen"),2,0)),MATCH($C21,Database!$A$1:$CZ$1,0)) -> nvt | E21: =INDEX(Database!$A:$CZ,MATCH('Vergelijking Data'!E$5,Database!$A:$A,0)+IF(OR(E$6="Elektrisch",E$6="Electric"),1,IF(OR(E$6="Waterstof",E$6="Hydrogen"),2,0)),MATCH($C21,Database!$A$1:$CZ$1,0)) -> 490 | F21: =INDEX(Database!$A:$CZ,MATCH('Vergelijking Data'!F$5,Database!$A:$A,0)+IF(OR(F$6="Elektrisch",F$6="Electric"),1,IF(OR(F$6="Waterstof",F$6="Hydrogen"),2,0)),MATCH($C21,Database!$A$1:$CZ$1,0)) -> 200
C22: =+Config!$B$219 -> Waterstof opslag tank (kg) | D22: =INDEX(Database!$A:$CZ,MATCH('Vergelijking Data'!D$5,Database!$A:$A,0)+IF(OR(D$6="Elektrisch",D$6="Electric"),1,IF(OR(D$6="Waterstof",D$6="Hydrogen"),2,0)),MATCH($C22,Database!$A$1:$CZ$1,0)) -> nvt | E22: =INDEX(Database!$A:$CZ,MATCH('Vergelijking Data'!E$5,Database!$A:$A,0)+IF(OR(E$6="Elektrisch",E$6="Electric"),1,IF(OR(E$6="Waterstof",E$6="Hydrogen"),2,0)),MATCH($C22,Database!$A$1:$CZ$1,0)) -> nvt | F22: =INDEX(Database!$A:$CZ,MATCH('Vergelijking Data'!F$5,Database!$A:$A,0)+IF(OR(F$6="Elektrisch",F$6="Electric"),1,IF(OR(F$6="Waterstof",F$6="Hydrogen"),2,0)),MATCH($C22,Database!$A$1:$CZ$1,0)) -> 50
C24: =+Config!$B$220 -> Bruto aankoopprijs | D24: =INDEX(Database!$A:$CZ,MATCH('Vergelijking Data'!D$5,Database!$A:$A,0)+IF(OR(D$6="Elektrisch",D$6="Electric"),1,IF(OR(D$6="Waterstof",D$6="Hydrogen"),2,0)),MATCH($C24,Database!$A$1:$CZ$1,0)) -> 144210 | E24: =INDEX(Database!$A:$CZ,MATCH('Vergelijking Data'!E$5,Database!$A:$A,0)+IF(OR(E$6="Elektrisch",E$6="Electric"),1,IF(OR(E$6="Waterstof",E$6="Hydrogen"),2,0)),MATCH($C24,Database!$A$1:$CZ$1,0)) -> 410400 | F24: =INDEX(Database!$A:$CZ,MATCH('Vergelijking Data'!F$5,Database!$A:$A,0)+IF(OR(F$6="Elektrisch",F$6="Electric"),1,IF(OR(F$6="Waterstof",F$6="Hydrogen"),2,0)),MATCH($C24,Database!$A$1:$CZ$1,0)) -> 645559.65
C25: =+Config!$B$221 -> Subsidies | D25: =INDEX(Database!$A:$CZ,MATCH('Vergelijking Data'!D$5,Database!$A:$A,0)+IF(OR(D$6="Elektrisch",D$6="Electric"),1,IF(OR(D$6="Waterstof",D$6="Hydrogen"),2,0)),MATCH($C25,Database!$A$1:$CZ$1,0)) -> 0 | E25: =INDEX(Database!$A:$CZ,MATCH('Vergelijking Data'!E$5,Database!$A:$A,0)+IF(OR(E$6="Elektrisch",E$6="Electric"),1,IF(OR(E$6="Waterstof",E$6="Hydrogen"),2,0)),MATCH($C25,Database!$A$1:$CZ$1,0)) -> 0 | F25: =INDEX(Database!$A:$CZ,MATCH('Vergelijking Data'!F$5,Database!$A:$A,0)+IF(OR(F$6="Elektrisch",F$6="Electric"),1,IF(OR(F$6="Waterstof",F$6="Hydrogen"),2,0)),MATCH($C25,Database!$A$1:$CZ$1,0)) -> 0
C26: =+Config!$B$222 -> Netto aankoopprijs | D26: =INDEX(Database!$A:$CZ,MATCH('Vergelijking Data'!D$5,Database!$A:$A,0)+IF(OR(D$6="Elektrisch",D$6="Electric"),1,IF(OR(D$6="Waterstof",D$6="Hydrogen"),2,0)),MATCH($C26,Database!$A$1:$CZ$1,0)) -> 144210 | E26: =INDEX(Database!$A:$CZ,MATCH('Vergelijking Data'!E$5,Database!$A:$A,0)+IF(OR(E$6="Elektrisch",E$6="Electric"),1,IF(OR(E$6="Waterstof",E$6="Hydrogen"),2,0)),MATCH($C26,Database!$A$1:$CZ$1,0)) -> 410400 | F26: =INDEX(Database!$A:$CZ,MATCH('Vergelijking Data'!F$5,Database!$A:$A,0)+IF(OR(F$6="Elektrisch",F$6="Electric"),1,IF(OR(F$6="Waterstof",F$6="Hydrogen"),2,0)),MATCH($C26,Database!$A$1:$CZ$1,0)) -> 645559.65
C27: =+Config!$B$223 -> Netto kosten inkoop & aanleg oplaadsysteem | D27: =INDEX(Database!$A:$CZ,MATCH('Vergelijking Data'!D$5,Database!$A:$A,0)+IF(OR(D$6="Elektrisch",D$6="Electric"),1,IF(OR(D$6="Waterstof",D$6="Hydrogen"),2,0)),MATCH($C27,Database!$A$1:$CZ$1,0)) -> nvt | E27: =INDEX(Database!$A:$CZ,MATCH('Vergelijking Data'!E$5,Database!$A:$A,0)+IF(OR(E$6="Elektrisch",E$6="Electric"),1,IF(OR(E$6="Waterstof",E$6="Hydrogen"),2,0)),MATCH($C27,Database!$A$1:$CZ$1,0)) -> 32104.04 | F27: =INDEX(Database!$A:$CZ,MATCH('Vergelijking Data'!F$5,Database!$A:$A,0)+IF(OR(F$6="Elektrisch",F$6="Electric"),1,IF(OR(F$6="Waterstof",F$6="Hydrogen"),2,0)),MATCH($C27,Database!$A$1:$CZ$1,0)) -> nvt
C28: =+Config!$B$224 -> Basisprijs energie | D28: =INDEX(Database!$A:$CZ,MATCH('Vergelijking Data'!D$5,Database!$A:$A,0)+IF(OR(D$6="Elektrisch",D$6="Electric"),1,IF(OR(D$6="Waterstof",D$6="Hydrogen"),2,0)),MATCH($C28,Database!$A$1:$CZ$1,0)) -> 1.55 | E28: =INDEX(Database!$A:$CZ,MATCH('Vergelijking Data'!E$5,Database!$A:$A,0)+IF(OR(E$6="Elektrisch",E$6="Electric"),1,IF(OR(E$6="Waterstof",E$6="Hydrogen"),2,0)),MATCH($C28,Database!$A$1:$CZ$1,0)) -> 0.12 | F28: =INDEX(Database!$A:$CZ,MATCH('Vergelijking Data'!F$5,Database!$A:$A,0)+IF(OR(F$6="Elektrisch",F$6="Electric"),1,IF(OR(F$6="Waterstof",F$6="Hydrogen"),2,0)),MATCH($C28,Database!$A$1:$CZ$1,0)) -> 10
C30: =+Config!$B$225 -> Outputs
C31: =+Config!$B$226 -> Scenario | D31: =INDEX(Database!$A:$CZ,MATCH('Vergelijking Data'!D$5,Database!$A:$A,0)+IF(OR(D$6="Elektrisch",D$6="Electric"),1,IF(OR(D$6="Waterstof",D$6="Hydrogen"),2,0)),MATCH($C31,Database!$A$1:$CZ$1,0)) -> Diesel | E31: =INDEX(Database!$A:$CZ,MATCH('Vergelijking Data'!E$5,Database!$A:$A,0)+IF(OR(E$6="Elektrisch",E$6="Electric"),1,IF(OR(E$6="Waterstof",E$6="Hydrogen"),2,0)),MATCH($C31,Database!$A$1:$CZ$1,0)) -> EV Optimale mix | F31: =INDEX(Database!$A:$CZ,MATCH('Vergelijking Data'!F$5,Database!$A:$A,0)+IF(OR(F$6="Elektrisch",F$6="Electric"),1,IF(OR(F$6="Waterstof",F$6="Hydrogen"),2,0)),MATCH($C31,Database!$A$1:$CZ$1,0)) -> Waterstof voertuig
C32: =+Config!$B$227 -> Scenario validiteit | D32: =INDEX(Database!$A:$CZ,MATCH('Vergelijking Data'!D$5,Database!$A:$A,0)+IF(OR(D$6="Elektrisch",D$6="Electric"),1,IF(OR(D$6="Waterstof",D$6="Hydrogen"),2,0)),MATCH($C32,Database!$A$1:$CZ$1,0)) -> n.v.t. | E32: =INDEX(Database!$A:$CZ,MATCH('Vergelijking Data'!E$5,Database!$A:$A,0)+IF(OR(E$6="Elektrisch",E$6="Electric"),1,IF(OR(E$6="Waterstof",E$6="Hydrogen"),2,0)),MATCH($C32,Database!$A$1:$CZ$1,0)) -> Vehicle technology insufficient | F32: =INDEX(Database!$A:$CZ,MATCH('Vergelijking Data'!F$5,Database!$A:$A,0)+IF(OR(F$6="Elektrisch",F$6="Electric"),1,IF(OR(F$6="Waterstof",F$6="Hydrogen"),2,0)),MATCH($C32,Database!$A$1:$CZ$1,0)) -> n.v.t.
C33: =+Config!$B$228 -> Voertuig | D33: =INDEX(Database!$A:$CZ,MATCH('Vergelijking Data'!D$5,Database!$A:$A,0)+IF(OR(D$6="Elektrisch",D$6="Electric"),1,IF(OR(D$6="Waterstof",D$6="Hydrogen"),2,0)),MATCH($C33,Database!$A$1:$CZ$1,0)) -> Zware trekker z/opl (GVW >40 ton) | E33: =INDEX(Database!$A:$CZ,MATCH('Vergelijking Data'!E$5,Database!$A:$A,0)+IF(OR(E$6="Elektrisch",E$6="Electric"),1,IF(OR(E$6="Waterstof",E$6="Hydrogen"),2,0)),MATCH($C33,Database!$A$1:$CZ$1,0)) -> Zware trekker z/opl 490 kWh | F33: =INDEX(Database!$A:$CZ,MATCH('Vergelijking Data'!F$5,Database!$A:$A,0)+IF(OR(F$6="Elektrisch",F$6="Electric"),1,IF(OR(F$6="Waterstof",F$6="Hydrogen"),2,0)),MATCH($C33,Database!$A$1:$CZ$1,0)) -> Zware trekker z/opl 80 kW
C34: =+Config!$B$229 -> Eigen oplaadsysteem | D34: =INDEX(Database!$A:$CZ,MATCH('Vergelijking Data'!D$5,Database!$A:$A,0)+IF(OR(D$6="Elektrisch",D$6="Electric"),1,IF(OR(D$6="Waterstof",D$6="Hydrogen"),2,0)),MATCH($C34,Database!$A$1:$CZ$1,0)) -> n.v.t. | E34: =INDEX(Database!$A:$CZ,MATCH('Vergelijking Data'!E$5,Database!$A:$A,0)+IF(OR(E$6="Elektrisch",E$6="Electric"),1,IF(OR(E$6="Waterstof",E$6="Hydrogen"),2,0)),MATCH($C34,Database!$A$1:$CZ$1,0)) -> FC50 | F34: =INDEX(Database!$A:$CZ,MATCH('Vergelijking Data'!F$5,Database!$A:$A,0)+IF(OR(F$6="Elektrisch",F$6="Electric"),1,IF(OR(F$6="Waterstof",F$6="Hydrogen"),2,0)),MATCH($C34,Database!$A$1:$CZ$1,0)) -> n.v.t.
C35: =+Config!$B$230 -> Openbaar oplaadsysteem | D35: =INDEX(Database!$A:$CZ,MATCH('Vergelijking Data'!D$5,Database!$A:$A,0)+IF(OR(D$6="Elektrisch",D$6="Electric"),1,IF(OR(D$6="Waterstof",D$6="Hydrogen"),2,0)),MATCH($C35,Database!$A$1:$CZ$1,0)) -> n.v.t. | E35: =INDEX(Database!$A:$CZ,MATCH('Vergelijking Data'!E$5,Database!$A:$A,0)+IF(OR(E$6="Elektrisch",E$6="Electric"),1,IF(OR(E$6="Waterstof",E$6="Hydrogen"),2,0)),MATCH($C35,Database!$A$1:$CZ$1,0)) -> HPC350 | F35: =INDEX(Database!$A:$CZ,MATCH('Vergelijking Data'!F$5,Database!$A:$A,0)+IF(OR(F$6="Elektrisch",F$6="Electric"),1,IF(OR(F$6="Waterstof",F$6="Hydrogen"),2,0)),MATCH($C35,Database!$A$1:$CZ$1,0)) -> n.v.t.
C36: =+Config!$B$231 -> Percentage eigen oplaadsysteem | D36: =INDEX(Database!$A:$CZ,MATCH('Vergelijking Data'!D$5,Database!$A:$A,0)+IF(OR(D$6="Elektrisch",D$6="Electric"),1,IF(OR(D$6="Waterstof",D$6="Hydrogen"),2,0)),MATCH($C36,Database!$A$1:$CZ$1,0)) -> n.v.t. | E36: =INDEX(Database!$A:$CZ,MATCH('Vergelijking Data'!E$5,Database!$A:$A,0)+IF(OR(E$6="Elektrisch",E$6="Electric"),1,IF(OR(E$6="Waterstof",E$6="Hydrogen"),2,0)),MATCH($C36,Database!$A$1:$CZ$1,0)) -> 0.4275478403 | F36: =INDEX(Database!$A:$CZ,MATCH('Vergelijking Data'!F$5,Database!$A:$A,0)+IF(OR(F$6="Elektrisch",F$6="Electric"),1,IF(OR(F$6="Waterstof",F$6="Hydrogen"),2,0)),MATCH($C36,Database!$A$1:$CZ$1,0)) -> n.v.t.
C37: =+Config!$B$232 -> Percentage extern (openbaar) Oplaadsysteem | D37: =INDEX(Database!$A:$CZ,MATCH('Vergelijking Data'!D$5,Database!$A:$A,0)+IF(OR(D$6="Elektrisch",D$6="Electric"),1,IF(OR(D$6="Waterstof",D$6="Hydrogen"),2,0)),MATCH($C37,Database!$A$1:$CZ$1,0)) -> n.v.t. | E37: =INDEX(Database!$A:$CZ,MATCH('Vergelijking Data'!E$5,Database!$A:$A,0)+IF(OR(E$6="Elektrisch",E$6="Electric"),1,IF(OR(E$6="Waterstof",E$6="Hydrogen"),2,0)),MATCH($C37,Database!$A$1:$CZ$1,0)) -> 0.4275478403 | F37: =INDEX(Database!$A:$CZ,MATCH('Vergelijking Data'!F$5,Database!$A:$A,0)+IF(OR(F$6="Elektrisch",F$6="Electric"),1,IF(OR(F$6="Waterstof",F$6="Hydrogen"),2,0)),MATCH($C37,Database!$A$1:$CZ$1,0)) -> n.v.t.
C38: =+Config!$B$233 -> Totale kosten per jaar | D38: =INDEX(Database!$A:$CZ,MATCH('Vergelijking Data'!D$5,Database!$A:$A,0)+IF(OR(D$6="Elektrisch",D$6="Electric"),1,IF(OR(D$6="Waterstof",D$6="Hydrogen"),2,0)),MATCH($C38,Database!$A$1:$CZ$1,0)) -> 234960.5057 | E38: =INDEX(Database!$A:$CZ,MATCH('Vergelijking Data'!E$5,Database!$A:$A,0)+IF(OR(E$6="Elektrisch",E$6="Electric"),1,IF(OR(E$6="Waterstof",E$6="Hydrogen"),2,0)),MATCH($C38,Database!$A$1:$CZ$1,0)) -> 306197.562 | F38: =INDEX(Database!$A:$CZ,MATCH('Vergelijking Data'!F$5,Database!$A:$A,0)+IF(OR(F$6="Elektrisch",F$6="Electric"),1,IF(OR(F$6="Waterstof",F$6="Hydrogen"),2,0)),MATCH($C38,Database!$A$1:$CZ$1,0)) -> 421968.0289
C39: =+Config!$B$234 -> Totale kosten per km | D39: =INDEX(Database!$A:$CZ,MATCH('Vergelijking Data'!D$5,Database!$A:$A,0)+IF(OR(D$6="Elektrisch",D$6="Electric"),1,IF(OR(D$6="Waterstof",D$6="Hydrogen"),2,0)),MATCH($C39,Database!$A$1:$CZ$1,0)) -> 2.349605057 | E39: =INDEX(Database!$A:$CZ,MATCH('Vergelijking Data'!E$5,Database!$A:$A,0)+IF(OR(E$6="Elektrisch",E$6="Electric"),1,IF(OR(E$6="Waterstof",E$6="Hydrogen"),2,0)),MATCH($C39,Database!$A$1:$CZ$1,0)) -> 3.06197562 | F39: =INDEX(Database!$A:$CZ,MATCH('Vergelijking Data'!F$5,Database!$A:$A,0)+IF(OR(F$6="Elektrisch",F$6="Electric"),1,IF(OR(F$6="Waterstof",F$6="Hydrogen"),2,0)),MATCH($C39,Database!$A$1:$CZ$1,0)) -> 4.219680289
C40: =+Config!$B$235 -> Totale kosten per uur | D40: =INDEX(Database!$A:$CZ,MATCH('Vergelijking Data'!D$5,Database!$A:$A,0)+IF(OR(D$6="Elektrisch",D$6="Electric"),1,IF(OR(D$6="Waterstof",D$6="Hydrogen"),2,0)),MATCH($C40,Database!$A$1:$CZ$1,0)) -> 90.36942527 | E40: =INDEX(Database!$A:$CZ,MATCH('Vergelijking Data'!E$5,Database!$A:$A,0)+IF(OR(E$6="Elektrisch",E$6="Electric"),1,IF(OR(E$6="Waterstof",E$6="Hydrogen"),2,0)),MATCH($C40,Database!$A$1:$CZ$1,0)) -> 117.7682931 | F40: =INDEX(Database!$A:$CZ,MATCH('Vergelijking Data'!F$5,Database!$A:$A,0)+IF(OR(F$6="Elektrisch",F$6="Electric"),1,IF(OR(F$6="Waterstof",F$6="Hydrogen"),2,0)),MATCH($C40,Database!$A$1:$CZ$1,0)) -> 162.2953957
C41: =+Config!$B$236 -> HBE Toepassen (J/N) | D41: =INDEX(Database!$A:$CZ,MATCH('Vergelijking Data'!D$5,Database!$A:$A,0)+IF(OR(D$6="Elektrisch",D$6="Electric"),1,IF(OR(D$6="Waterstof",D$6="Hydrogen"),2,0)),MATCH($C41,Database!$A$1:$CZ$1,0)) -> nvt | E41: =INDEX(Database!$A:$CZ,MATCH('Vergelijking Data'!E$5,Database!$A:$A,0)+IF(OR(E$6="Elektrisch",E$6="Electric"),1,IF(OR(E$6="Waterstof",E$6="Hydrogen"),2,0)),MATCH($C41,Database!$A$1:$CZ$1,0)) -> N | F41: =INDEX(Database!$A:$CZ,MATCH('Vergelijking Data'!F$5,Database!$A:$A,0)+IF(OR(F$6="Elektrisch",F$6="Electric"),1,IF(OR(F$6="Waterstof",F$6="Hydrogen"),2,0)),MATCH($C41,Database!$A$1:$CZ$1,0)) -> N
C42: =+Config!$B$237 -> Aantal HBE's | D42: =INDEX(Database!$A:$CZ,MATCH('Vergelijking Data'!D$5,Database!$A:$A,0)+IF(OR(D$6="Elektrisch",D$6="Electric"),1,IF(OR(D$6="Waterstof",D$6="Hydrogen"),2,0)),MATCH($C42,Database!$A$1:$CZ$1,0)) -> 0 | E42: =INDEX(Database!$A:$CZ,MATCH('Vergelijking Data'!E$5,Database!$A:$A,0)+IF(OR(E$6="Elektrisch",E$6="Electric"),1,IF(OR(E$6="Waterstof",E$6="Hydrogen"),2,0)),MATCH($C42,Database!$A$1:$CZ$1,0)) -> 3003 | F42: =INDEX(Database!$A:$CZ,MATCH('Vergelijking Data'!F$5,Database!$A:$A,0)+IF(OR(F$6="Elektrisch",F$6="Electric"),1,IF(OR(F$6="Waterstof",F$6="Hydrogen"),2,0)),MATCH($C42,Database!$A$1:$CZ$1,0)) -> 4142
C43: =+Config!$B$238 -> Totale waarde HBE's | D43: =INDEX(Database!$A:$CZ,MATCH('Vergelijking Data'!D$5,Database!$A:$A,0)+IF(OR(D$6="Elektrisch",D$6="Electric"),1,IF(OR(D$6="Waterstof",D$6="Hydrogen"),2,0)),MATCH($C43,Database!$A$1:$CZ$1,0)) -> 0 | E43: =INDEX(Database!$A:$CZ,MATCH('Vergelijking Data'!E$5,Database!$A:$A,0)+IF(OR(E$6="Elektrisch",E$6="Electric"),1,IF(OR(E$6="Waterstof",E$6="Hydrogen"),2,0)),MATCH($C43,Database!$A$1:$CZ$1,0)) -> 34036 | F43: =INDEX(Database!$A:$CZ,MATCH('Vergelijking Data'!F$5,Database!$A:$A,0)+IF(OR(F$6="Elektrisch",F$6="Electric"),1,IF(OR(F$6="Waterstof",F$6="Hydrogen"),2,0)),MATCH($C43,Database!$A$1:$CZ$1,0)) -> 47704
C44: =+Config!$B$239 -> Emissies (totaal per jaar voor het geselecteerde voertuig) | D44: =INDEX(Database!$A:$CZ,MATCH('Vergelijking Data'!D$5,Database!$A:$A,0)+IF(OR(D$6="Elektrisch",D$6="Electric"),1,IF(OR(D$6="Waterstof",D$6="Hydrogen"),2,0)),MATCH($C44,Database!$A$1:$CZ$1,0)) -> 0 | E44: =INDEX(Database!$A:$CZ,MATCH('Vergelijking Data'!E$5,Database!$A:$A,0)+IF(OR(E$6="Elektrisch",E$6="Electric"),1,IF(OR(E$6="Waterstof",E$6="Hydrogen"),2,0)),MATCH($C44,Database!$A$1:$CZ$1,0)) -> 0 | F44: =INDEX(Database!$A:$CZ,MATCH('Vergelijking Data'!F$5,Database!$A:$A,0)+IF(OR(F$6="Elektrisch",F$6="Electric"),1,IF(OR(F$6="Waterstof",F$6="Hydrogen"),2,0)),MATCH($C44,Database!$A$1:$CZ$1,0)) -> 0
C45: =+Config!$B$240 -> CO2 emissies (ton per jaar, WtW) | D45: =INDEX(Database!$A:$CZ,MATCH('Vergelijking Data'!D$5,Database!$A:$A,0)+IF(OR(D$6="Elektrisch",D$6="Electric"),1,IF(OR(D$6="Waterstof",D$6="Hydrogen"),2,0)),MATCH($C45,Database!$A$1:$CZ$1,0)) -> 143.5736062 | E45: =INDEX(Database!$A:$CZ,MATCH('Vergelijking Data'!E$5,Database!$A:$A,0)+IF(OR(E$6="Elektrisch",E$6="Electric"),1,IF(OR(E$6="Waterstof",E$6="Hydrogen"),2,0)),MATCH($C45,Database!$A$1:$CZ$1,0)) -> 0 | F45: =INDEX(Database!$A:$CZ,MATCH('Vergelijking Data'!F$5,Database!$A:$A,0)+IF(OR(F$6="Elektrisch",F$6="Electric"),1,IF(OR(F$6="Waterstof",F$6="Hydrogen"),2,0)),MATCH($C45,Database!$A$1:$CZ$1,0)) -> 0
C46: =+Config!$B$241 -> PM totaal (kg per jaar, TtW) | D46: =INDEX(Database!$A:$CZ,MATCH('Vergelijking Data'!D$5,Database!$A:$A,0)+IF(OR(D$6="Elektrisch",D$6="Electric"),1,IF(OR(D$6="Waterstof",D$6="Hydrogen"),2,0)),MATCH($C46,Database!$A$1:$CZ$1,0)) -> 8.098874967 | E46: =INDEX(Database!$A:$CZ,MATCH('Vergelijking Data'!E$5,Database!$A:$A,0)+IF(OR(E$6="Elektrisch",E$6="Electric"),1,IF(OR(E$6="Waterstof",E$6="Hydrogen"),2,0)),MATCH($C46,Database!$A$1:$CZ$1,0)) -> 6.823328198 | F46: =INDEX(Database!$A:$CZ,MATCH('Vergelijking Data'!F$5,Database!$A:$A,0)+IF(OR(F$6="Elektrisch",F$6="Electric"),1,IF(OR(F$6="Waterstof",F$6="Hydrogen"),2,0)),MATCH($C46,Database!$A$1:$CZ$1,0)) -> 6.823328198
C47: =+Config!$B$242 -> NOx (kg per jaar, TtW) | D47: =INDEX(Database!$A:$CZ,MATCH('Vergelijking Data'!D$5,Database!$A:$A,0)+IF(OR(D$6="Elektrisch",D$6="Electric"),1,IF(OR(D$6="Waterstof",D$6="Hydrogen"),2,0)),MATCH($C47,Database!$A$1:$CZ$1,0)) -> 203.891686 | E47: =INDEX(Database!$A:$CZ,MATCH('Vergelijking Data'!E$5,Database!$A:$A,0)+IF(OR(E$6="Elektrisch",E$6="Electric"),1,IF(OR(E$6="Waterstof",E$6="Hydrogen"),2,0)),MATCH($C47,Database!$A$1:$CZ$1,0)) -> n.v.t. | F47: =INDEX(Database!$A:$CZ,MATCH('Vergelijking Data'!F$5,Database!$A:$A,0)+IF(OR(F$6="Elektrisch",F$6="Electric"),1,IF(OR(F$6="Waterstof",F$6="Hydrogen"),2,0)),MATCH($C47,Database!$A$1:$CZ$1,0)) -> n.v.t.

Sheet Invoervelden
A1: Optie | B1: Voertuigtype | C1: Koelmachine (J/N) | D1: Verwacht jaarkilometrage | E1: Grijze/groene elektriciciteit | F1: Grijze/groene waterstof | G1: Rechtsvorm en belastingpercentage | H1: Basisjaar prognose | I1: Grootte van bedrijf
A2: =+Config!B157 -> Defaultwaarde | C2: =+Config!B178 -> niet gekoeld | E2: =+Config!B186 -> Groen | F2: =F6 -> Electrolyse (hernieuwbare energie) | G2: =+Config!B187 -> BV of NV met 19% belasting | H2: 2022 | I2: =+Config!B188 -> Groot
A3: =+Config!B158 -> keuze 1 | B3: =+Config!B173 -> Kleine bakwagen (lvm ca. 6 ton) | C3: =IFERROR(IF(Calculatie!$B$3>=4,Config!$B$178,Config!$B$179),Config!$B$179) -> gekoeld | D3: 35000 | E3: =+Config!B6 -> Grijs | F3: =Config!B6 -> Grijs | G3: =+Config!B187 -> BV of NV met 19% belasting | I3: =+Config!B188 -> Groot
A4: =+Config!B159 -> keuze 2 | B4: =+Config!B174 -> Medium bakwagen (lvm ca. 9 ton) | C4: =IFERROR(IF(Calculatie!$B$3>=4,"",Config!$B$178),Config!$B$178) -> niet gekoeld | D4: 70000 | E4: =+Config!B186 -> Groen | F4: =Config!B7 -> Blauw | G4: =+Config!B180 -> BV of NV met 25,8% belasting | I4: =+Config!B183 -> Middelgroot
A5: =+Config!B160 -> keuze 3 | B5: =+Config!B175 -> Grote bakwagen (lvm > 16 ton) | D5: 70000 | F5: =Config!B8 -> Electrolyse (netstroom) | G5: =+Config!B181 -> Eenmanszaak met 36,93% belasting | I5: =+Config!B184 -> Klein
A6: =+Config!B161 -> keuze 4 | B6: =+Config!B176 -> Lichte trekker z/opl (GVW <40 ton) | D6: 100000 | F6: =Config!B9 -> Electrolyse (hernieuwbare energie) | G6: =+Config!B182 -> Eenmanszaak met 49,5% belasting
A7: =+Config!B162 -> keuze 5 | B7: =+Config!B177 -> Zware trekker z/opl (GVW >40 ton) | D7: 100000
A8: =+Config!B163 -> keuze 6
A9: =+Config!B164 -> keuze 7
A10: =+Config!B165 -> keuze 8
A11: =+Config!B166 -> keuze 9
A12: =+Config!B167 -> keuze 10
A13: =+Config!B168 -> keuze 11
A14: =+Config!B169 -> keuze 12
A15: =+Config!B170 -> keuze 13
A16: =+Config!B171 -> keuze 14
A17: =+Config!B172 -> keuze 15
B19: onderstaande waarden tevens defaultwaarden
A20: Attribuut | B20: Dieselvoertuig | C20: Elektrisch voertuig | D20: Waterstof voertuig
A21: =+Config!B24 -> Economische levensduur [jaren] | B21: 7 | C21: 7 | D21: 7
A22: =+Config!B26 -> Productieve uren per jaar | B22: 2600 | C22: 2600 | D22: 2600
A23: =+Config!B28 -> Stilstand [dagen per jaar] | B23: 0 | C23: 0 | D23: 0

Sheet Catalogus
A1: Onderstaande tabel bevat alle voertuigvarianten en kenmerken
A2: ID | B2: Veh. Type | C2: Veh. Type ID | D2: Fuel | E2: Variant ID | F2: Name | G2: Energy unit | H2: Veh. Price | I2: Energy/fuel consumption L; kWh; kg H2 | J2: Refrigeration energy/fuel consumption L; kWh; kg H2 | K2: Maintenance costs | L2: Road tax | M2: Tolheffing | N2: Battery size | O2: FC power | P2: H2 Storage tanks | Q2: Jaarlijkse reparaties | R2: Koeling
A3: 1 | B3: =Config!B190 -> Kleine bakwagen | C3: 1 | D3: DV | E3: 1 | F3: =+VehicleCatalogus[[#This Row],[Veh. Type]] -> Kleine bakwagen | G3: L | H3: =VLOOKUP(VehicleCatalogus[[#This Row],[Name]],Indexatie!$C:$D,2,FALSE) -> 81937.5 | I3: 0.102327491 | J3: 1 | K3: 0.0523645 | L3: 315.9 | M3: 0 | Q3: 500 | R3: =IFERROR(INDEX(Indexatie!$E:$E,MATCH(CONCATENATE(Config!$B$245," ",VehicleCatalogus[[#This Row],[Veh. Type]]),Indexatie!$C:$C,0)),0) -> 17500
A4: 2 | B4: =+Config!B191 -> Medium bakwagen | C4: 2 | D4: DV | E4: 1 | F4: =+VehicleCatalogus[[#This Row],[Veh. Type]] -> Medium bakwagen | G4: L | H4: =VLOOKUP(VehicleCatalogus[[#This Row],[Name]],Indexatie!$C:$D,2,FALSE) -> 116351.25 | I4: 0.2013626294 | J4: 1.5 | K4: 0.05759915 | L4: 315.9 | M4: 0 | Q4: 500 | R4: =IFERROR(INDEX(Indexatie!$E:$E,MATCH(CONCATENATE(Config!$B$245," ",VehicleCatalogus[[#This Row],[Veh. Type]]),Indexatie!$C:$C,0)),0) -> 20000
A5: 3 | B5: =Config!B192 -> Grote bakwagen | C5: 3 | D5: DV | E5: 1 | F5: =+VehicleCatalogus[[#This Row],[Veh. Type]] -> Grote bakwagen | G5: L | H5: =VLOOKUP(VehicleCatalogus[[#This Row],[Name]],Indexatie!$C:$D,2,FALSE) -> 150765 | I5: 0.2854179116 | J5: 2.5 | K5: 0.0628338 | L5: 315.9 | M5: 0 | Q5: 1000 | R5: =IFERROR(INDEX(Indexatie!$E:$E,MATCH(CONCATENATE(Config!$B$245," ",VehicleCatalogus[[#This Row],[Veh. Type]]),Indexatie!$C:$C,0)),0) -> 22500
A6: 4 | B6: =+Config!B193 -> Lichte trekker z/opl | C6: 4 | D6: DV | E6: 1 | F6: =+VehicleCatalogus[[#This Row],[Veh. Type]] -> Lichte trekker z/opl | G6: L | H6: =VLOOKUP(VehicleCatalogus[[#This Row],[Name]],Indexatie!$C:$D,2,FALSE) -> 124872.75 | I6: 0.2956650564 | J6: 0 | K6: 0.0732957 | L6: 851.6088 | M6: 0 | Q6: 1500 | R6: =IFERROR(INDEX(Indexatie!$E:$E,MATCH(CONCATENATE(Config!$B$245," ",VehicleCatalogus[[#This Row],[Veh. Type]]),Indexatie!$C:$C,0)),0) -> 0
A7: 5 | B7: =Config!B194 -> Zware trekker z/opl | C7: 5 | D7: DV | E7: 1 | F7: =+VehicleCatalogus[[#This Row],[Veh. Type]] -> Zware trekker z/opl | G7: L | H7: =VLOOKUP(VehicleCatalogus[[#This Row],[Name]],Indexatie!$C:$D,2,FALSE) -> 144210 | I7: 0.4432427956 | J7: 0 | K7: 0.0837576 | L7: 851.6088 | M7: 0 | Q7: 1500 | R7: =IFERROR(INDEX(Indexatie!$E:$E,MATCH(CONCATENATE(Config!$B$245," ",VehicleCatalogus[[#This Row],[Veh. Type]]),Indexatie!$C:$C,0)),0) -> 0
A8: 6 | B8: =+B3 -> Kleine bakwagen | C8: 1 | D8: EV | E8: 1 | F8: =+CONCATENATE(VehicleCatalogus[[#This Row],[Veh. Type]]," ",VehicleCatalogus[[#This Row],[Battery size]]," kWh") -> Kleine bakwagen 80 kWh | G8: kWh | H8: =VLOOKUP(VehicleCatalogus[[#This Row],[Name]],Indexatie!$C:$D,2,FALSE) -> 116245.8 | I8: 0.4815411342 | J8: 3.92 | K8: 0.02618225 | L8: 0 | M8: 0 | N8: 80 | Q8: 500 | R8: =IFERROR(INDEX(Indexatie!$E:$E,MATCH(CONCATENATE(Config!$B$245," ",VehicleCatalogus[[#This Row],[Veh. Type]]),Indexatie!$C:$C,0)),0) -> 17500
A9: 7 | B9: =+B8 -> Kleine bakwagen | C9: 1 | D9: EV | E9: 2 | F9: =+CONCATENATE(VehicleCatalogus[[#This Row],[Veh. Type]]," ",VehicleCatalogus[[#This Row],[Battery size]]," kWh") -> Kleine bakwagen 120 kWh | G9: kWh | H9: =VLOOKUP(VehicleCatalogus[[#This Row],[Name]],Indexatie!$C:$D,2,FALSE) -> 139606.2 | I9: 0.4815411342 | J9: 3.92 | K9: 0.02618225 | L9: 0 | M9: 0 | N9: 120 | Q9: 500 | R9: =IFERROR(INDEX(Indexatie!$E:$E,MATCH(CONCATENATE(Config!$B$245," ",VehicleCatalogus[[#This Row],[Veh. Type]]),Indexatie!$C:$C,0)),0) -> 17500
A10: 8 | B10: =+B9 -> Kleine bakwagen | C10: 1 | D10: EV | E10: 3 | F10: =+CONCATENATE(VehicleCatalogus[[#This Row],[Veh. Type]]," ",VehicleCatalogus[[#This Row],[Battery size]]," kWh") -> Kleine bakwagen 160 kWh | G10: kWh | H10: =VLOOKUP(VehicleCatalogus[[#This Row],[Name]],Indexatie!$C:$D,2,FALSE) -> 162966.6 | I10: 0.4815411342 | J10: 3.92 | K10: 0.02618225 | L10: 0 | M10: 0 | N10: 160 | Q10: 500 | R10: =IFERROR(INDEX(Indexatie!$E:$E,MATCH(CONCATENATE(Config!$B$245," ",VehicleCatalogus[[#This Row],[Veh. Type]]),Indexatie!$C:$C,0)),0) -> 17500
A11: 9 | B11: =+B10 -> Kleine bakwagen | C11: 1 | D11: EV | E11: 4 | F11: =+CONCATENATE(VehicleCatalogus[[#This Row],[Veh. Type]]," ",VehicleCatalogus[[#This Row],[Battery size]]," kWh") -> Kleine bakwagen 200 kWh | G11: kWh | H11: =VLOOKUP(VehicleCatalogus[[#This Row],[Name]],Indexatie!$C:$D,2,FALSE) -> 194400 | I11: 0.4815411342 | J11: 3.92 | K11: 0.02618225 | L11: 0 | M11: 0 | N11: 200 | Q11: 500 | R11: =IFERROR(INDEX(Indexatie!$E:$E,MATCH(CONCATENATE(Config!$B$245," ",VehicleCatalogus[[#This Row],[Veh. Type]]),Indexatie!$C:$C,0)),0) -> 17500
A12: 10 | B12: =+B4 -> Medium bakwagen | C12: 2 | D12: EV | E12: 1 | F12: =+CONCATENATE(VehicleCatalogus[[#This Row],[Veh. Type]]," ",VehicleCatalogus[[#This Row],[Battery size]]," kWh") -> Medium bakwagen 120 kWh | G12: kWh | H12: =VLOOKUP(VehicleCatalogus[[#This Row],[Name]],Indexatie!$C:$D,2,FALSE) -> 168806.7 | I12: 0.9475888443 | J12: 5.88 | K12: 0.028799575 | L12: 0 | M12: 0 | N12: 120 | Q12: 500 | R12: =IFERROR(INDEX(Indexatie!$E:$E,MATCH(CONCATENATE(Config!$B$245," ",VehicleCatalogus[[#This Row],[Veh. Type]]),Indexatie!$C:$C,0)),0) -> 20000
A13: 11 | B13: =+B12 -> Medium bakwagen | C13: 2 | D13: EV | E13: 2 | F13: =+CONCATENATE(VehicleCatalogus[[#This Row],[Veh. Type]]," ",VehicleCatalogus[[#This Row],[Battery size]]," kWh") -> Medium bakwagen 160 kWh | G13: kWh | H13: =VLOOKUP(VehicleCatalogus[[#This Row],[Name]],Indexatie!$C:$D,2,FALSE) -> 192167.1 | I13: 0.9475888443 | J13: 5.88 | K13: 0.028799575 | L13: 0 | M13: 0 | N13: 160 | Q13: 500 | R13: =IFERROR(INDEX(Indexatie!$E:$E,MATCH(CONCATENATE(Config!$B$245," ",VehicleCatalogus[[#This Row],[Veh. Type]]),Indexatie!$C:$C,0)),0) -> 20000
A14: 12 | B14: =+B13 -> Medium bakwagen | C14: 2 | D14: EV | E14: 3 | F14: =+CONCATENATE(VehicleCatalogus[[#This Row],[Veh. Type]]," ",VehicleCatalogus[[#This Row],[Battery size]]," kWh") -> Medium bakwagen 180 kWh | G14: kWh | H14: =VLOOKUP(VehicleCatalogus[[#This Row],[Name]],Indexatie!$C:$D,2,FALSE) -> 203847.3 | I14: 0.9475888443 | J14: 5.88 | K14: 0.028799575 | L14: 0 | M14: 0 | N14: 180 | Q14: 500 | R14: =IFERROR(INDEX(Indexatie!$E:$E,MATCH(CONCATENATE(Config!$B$245," ",VehicleCatalogus[[#This Row],[Veh. Type]]),Indexatie!$C:$C,0)),0) -> 20000
A15: 13 | B15: =+B14 -> Medium bakwagen | C15: 2 | D15: EV | E15: 4 | F15: =+CONCATENATE(VehicleCatalogus[[#This Row],[Veh. Type]]," ",VehicleCatalogus[[#This Row],[Battery size]]," kWh") -> Medium bakwagen 240 kWh | G15: kWh | H15: =VLOOKUP(VehicleCatalogus[[#This Row],[Name]],Indexatie!$C:$D,2,FALSE) -> 232200 | I15: 0.9475888443 | J15: 5.88 | K15: 0.028799575 | L15: 0 | M15: 0 | N15: 240 | Q15: 500 | R15: =IFERROR(INDEX(Indexatie!$E:$E,MATCH(CONCATENATE(Config!$B$245," ",VehicleCatalogus[[#This Row],[Veh. Type]]),Indexatie!$C:$C,0)),0) -> 20000
A16: 14 | B16: =+B5 -> Grote bakwagen | C16: 3 | D16: EV | E16: 1 | F16: =+CONCATENATE(VehicleCatalogus[[#This Row],[Veh. Type]]," ",VehicleCatalogus[[#This Row],[Battery size]]," kWh") -> Grote bakwagen 160 kWh | G16: kWh | H16: =VLOOKUP(VehicleCatalogus[[#This Row],[Name]],Indexatie!$C:$D,2,FALSE) -> 221367.6 | I16: 1.343143114 | J16: 9.8 | K16: 0.0314169 | L16: 0 | M16: 0 | N16: 160 | Q16: 1000 | R16: =IFERROR(INDEX(Indexatie!$E:$E,MATCH(CONCATENATE(Config!$B$245," ",VehicleCatalogus[[#This Row],[Veh. Type]]),Indexatie!$C:$C,0)),0) -> 22500
A17: 15 | B17: =+B16 -> Grote bakwagen | C17: 3 | D17: EV | E17: 2 | F17: =+CONCATENATE(VehicleCatalogus[[#This Row],[Veh. Type]]," ",VehicleCatalogus[[#This Row],[Battery size]]," kWh") -> Grote bakwagen 180 kWh | G17: kWh | H17: =VLOOKUP(VehicleCatalogus[[#This Row],[Name]],Indexatie!$C:$D,2,FALSE) -> 233047.8 | I17: 1.343143114 | J17: 9.8 | K17: 0.0314169 | L17: 0 | M17: 0 | N17: 180 | Q17: 1000 | R17: =IFERROR(INDEX(Indexatie!$E:$E,MATCH(CONCATENATE(Config!$B$245," ",VehicleCatalogus[[#This Row],[Veh. Type]]),Indexatie!$C:$C,0)),0) -> 22500
A18: 16 | B18: =+B17 -> Grote bakwagen | C18: 3 | D18: EV | E18: 3 | F18: =+CONCATENATE(VehicleCatalogus[[#This Row],[Veh. Type]]," ",VehicleCatalogus[[#This Row],[Battery size]]," kWh") -> Grote bakwagen 200 kWh | G18: kWh | H18: =VLOOKUP(VehicleCatalogus[[#This Row],[Name]],Indexatie!$C:$D,2,FALSE) -> 244728 | I18: 1.343143114 | J18: 9.8 | K18: 0.0314169 | L18: 0 | M18: 0 | N18: 200 | Q18: 1000 | R18: =IFERROR(INDEX(Indexatie!$E:$E,MATCH(CONCATENATE(Config!$B$245," ",VehicleCatalogus[[#This Row],[Veh. Type]]),Indexatie!$C:$C,0)),0) -> 22500
A19: 17 | B19: =+B18 -> Grote bakwagen | C19: 3 | D19: EV | E19: 4 | F19: =+CONCATENATE(VehicleCatalogus[[#This Row],[Veh. Type]]," ",VehicleCatalogus[[#This Row],[Battery size]]," kWh") -> Grote bakwagen 260 kWh | G19: kWh | H19: =VLOOKUP(VehicleCatalogus[[#This Row],[Name]],Indexatie!$C:$D,2,FALSE) -> 270000 | I19: 1.343143114 | J19: 9.8 | K19: 0.0314169 | L19: 0 | M19: 0 | N19: 260 | Q19: 1000 | R19: =IFERROR(INDEX(Indexatie!$E:$E,MATCH(CONCATENATE(Config!$B$245," ",VehicleCatalogus[[#This Row],[Veh. Type]]),Indexatie!$C:$C,0)),0) -> 22500
A20: 18 | B20: =+B6 -> Lichte trekker z/opl | C20: 4 | D20: EV | E20: 1 | F20: =+CONCATENATE(VehicleCatalogus[[#This Row],[Veh. Type]]," ",VehicleCatalogus[[#This Row],[Battery size]]," kWh") -> Lichte trekker z/opl 180 kWh | G20: kWh | H20: =VLOOKUP(VehicleCatalogus[[#This Row],[Name]],Indexatie!$C:$D,2,FALSE) -> 211077.9 | I20: 1.391364971 | J20: 0 | K20: 0.03664785 | L20: 0 | M20: 0 | N20: 180 | Q20: 1500 | R20: =IFERROR(INDEX(Indexatie!$E:$E,MATCH(CONCATENATE(Config!$B$245," ",VehicleCatalogus[[#This Row],[Veh. Type]]),Indexatie!$C:$C,0)),0) -> 0
A21: 19 | B21: =+B20 -> Lichte trekker z/opl | C21: 4 | D21: EV | E21: 2 | F21: =+CONCATENATE(VehicleCatalogus[[#This Row],[Veh. Type]]," ",VehicleCatalogus[[#This Row],[Battery size]]," kWh") -> Lichte trekker z/opl 220 kWh | G21: kWh | H21: =VLOOKUP(VehicleCatalogus[[#This Row],[Name]],Indexatie!$C:$D,2,FALSE) -> 234438.3 | I21: 1.391364971 | J21: 0 | K21: 0.03664785 | L21: 0 | M21: 0 | N21: 220 | Q21: 1500 | R21: =IFERROR(INDEX(Indexatie!$E:$E,MATCH(CONCATENATE(Config!$B$245," ",VehicleCatalogus[[#This Row],[Veh. Type]]),Indexatie!$C:$C,0)),0) -> 0
A22: 20 | B22: =+B21 -> Lichte trekker z/opl | C22: 4 | D22: EV | E22: 3 | F22: =+CONCATENATE(VehicleCatalogus[[#This Row],[Veh. Type]]," ",VehicleCatalogus[[#This Row],[Battery size]]," kWh") -> Lichte trekker z/opl 260 kWh | G22: kWh | H22: =VLOOKUP(VehicleCatalogus[[#This Row],[Name]],Indexatie!$C:$D,2,FALSE) -> 257798.7 | I22: 1.391364971 | J22: 0 | K22: 0.03664785 | L22: 0 | M22: 0 | N22: 260 | Q22: 1500 | R22: =IFERROR(INDEX(Indexatie!$E:$E,MATCH(CONCATENATE(Config!$B$245," ",VehicleCatalogus[[#This Row],[Veh. Type]]),Indexatie!$C:$C,0)),0) -> 0
A23: 21 | B23: =+B22 -> Lichte trekker z/opl | C23: 4 | D23: EV | E23: 4 | F23: =+CONCATENATE(VehicleCatalogus[[#This Row],[Veh. Type]]," ",VehicleCatalogus[[#This Row],[Battery size]]," kWh") -> Lichte trekker z/opl 340 kWh | G23: kWh | H23: =VLOOKUP(VehicleCatalogus[[#This Row],[Name]],Indexatie!$C:$D,2,FALSE) -> 259200 | I23: 1.391364971 | J23: 0 | K23: 0.03664785 | L23: 0 | M23: 0 | N23: 340 | Q23: 1500 | R23: =IFERROR(INDEX(Indexatie!$E:$E,MATCH(CONCATENATE(Config!$B$245," ",VehicleCatalogus[[#This Row],[Veh. Type]]),Indexatie!$C:$C,0)),0) -> 0
A24: 22 | B24: =+B7 -> Zware trekker z/opl | C24: 5 | D24: EV | E24: 1 | F24: =+CONCATENATE(VehicleCatalogus[[#This Row],[Veh. Type]]," ",VehicleCatalogus[[#This Row],[Battery size]]," kWh") -> Zware trekker z/opl 300 kWh | G24: kWh | H24: =VLOOKUP(VehicleCatalogus[[#This Row],[Name]],Indexatie!$C:$D,2,FALSE) -> 297567 | I24: 2.08584845 | J24: 0 | K24: 0.0418788 | L24: 0 | M24: 0 | N24: 300 | Q24: 1500 | R24: =IFERROR(INDEX(Indexatie!$E:$E,MATCH(CONCATENATE(Config!$B$245," ",VehicleCatalogus[[#This Row],[Veh. Type]]),Indexatie!$C:$C,0)),0) -> 0
A25: 23 | B25: =+B24 -> Zware trekker z/opl | C25: 5 | D25: EV | E25: 2 | F25: =+CONCATENATE(VehicleCatalogus[[#This Row],[Veh. Type]]," ",VehicleCatalogus[[#This Row],[Battery size]]," kWh") -> Zware trekker z/opl 400 kWh | G25: kWh | H25: =VLOOKUP(VehicleCatalogus[[#This Row],[Name]],Indexatie!$C:$D,2,FALSE) -> 355968 | I25: 2.08584845 | J25: 0 | K25: 0.0418788 | L25: 0 | M25: 0 | N25: 400 | Q25: 1500 | R25: =IFERROR(INDEX(Indexatie!$E:$E,MATCH(CONCATENATE(Config!$B$245," ",VehicleCatalogus[[#This Row],[Veh. Type]]),Indexatie!$C:$C,0)),0) -> 0
A26: 24 | B26: =+B25 -> Zware trekker z/opl | C26: 5 | D26: EV | E26: 3 | F26: =+CONCATENATE(VehicleCatalogus[[#This Row],[Veh. Type]]," ",VehicleCatalogus[[#This Row],[Battery size]]," kWh") -> Zware trekker z/opl 440 kWh | G26: kWh | H26: =VLOOKUP(VehicleCatalogus[[#This Row],[Name]],Indexatie!$C:$D,2,FALSE) -> 379328.4 | I26: 2.08584845 | J26: 0 | K26: 0.0418788 | L26: 0 | M26: 0 | N26: 440 | Q26: 1500 | R26: =IFERROR(INDEX(Indexatie!$E:$E,MATCH(CONCATENATE(Config!$B$245," ",VehicleCatalogus[[#This Row],[Veh. Type]]),Indexatie!$C:$C,0)),0) -> 0
A27: 25 | B27: =+B26 -> Zware trekker z/opl | C27: 5 | D27: EV | E27: 4 | F27: =+CONCATENATE(VehicleCatalogus[[#This Row],[Veh. Type]]," ",VehicleCatalogus[[#This Row],[Battery size]]," kWh") -> Zware trekker z/opl 490 kWh | G27: kWh | H27: =VLOOKUP(VehicleCatalogus[[#This Row],[Name]],Indexatie!$C:$D,2,FALSE) -> 410400 | I27: 2.08584845 | J27: 0 | K27: 0.0418788 | L27: 0 | M27: 0 | N27: 490 | Q27: 1500 | R27: =IFERROR(INDEX(Indexatie!$E:$E,MATCH(CONCATENATE(Config!$B$245," ",VehicleCatalogus[[#This Row],[Veh. Type]]),Indexatie!$C:$C,0)),0) -> 0
A28: 26 | B28: =+B9 -> Kleine bakwagen | C28: 1 | D28: FC | E28: 1 | F28: =+CONCATENATE(VehicleCatalogus[[#This Row],[Veh. Type]]," ",VehicleCatalogus[[#This Row],[FC power]]," kW") -> Kleine bakwagen 30 kW | G28: kg H2 | H28: =VLOOKUP(VehicleCatalogus[[#This Row],[Name]],Indexatie!$C:$D,2,FALSE) -> 257897.9817 | I28: 0.03184795861 | J28: 0.2592592593 | K28: 0.07854675 | L28: 0 | M28: 0 | N28: 70 | O28: 30 | P28: 15 | Q28: 1500 | R28: =IFERROR(INDEX(Indexatie!$E:$E,MATCH(CONCATENATE(Config!$B$245," ",VehicleCatalogus[[#This Row],[Veh. Type]]),Indexatie!$C:$C,0)),0) -> 17500
A29: 27 | B29: =+B13 -> Medium bakwagen | C29: 2 | D29: FC | E29: 1 | F29: =+CONCATENATE(VehicleCatalogus[[#This Row],[Veh. Type]]," ",VehicleCatalogus[[#This Row],[FC power]]," kW") -> Medium bakwagen 40 kW | G29: kg H2 | H29: =VLOOKUP(VehicleCatalogus[[#This Row],[Name]],Indexatie!$C:$D,2,FALSE) -> 389023.2441 | I29: 0.06267121986 | J29: 0.3888888889 | K29: 0.086398725 | L29: 0 | M29: 0 | N29: 150 | O29: 40 | P29: 15 | Q29: 1500 | R29: =IFERROR(INDEX(Indexatie!$E:$E,MATCH(CONCATENATE(Config!$B$245," ",VehicleCatalogus[[#This Row],[Veh. Type]]),Indexatie!$C:$C,0)),0) -> 20000 | S29: Meerprijs afwijkende FC voertuigen
A30: 28 | B30: =+B17 -> Grote bakwagen | C30: 3 | D30: FC | E30: 1 | F30: =+CONCATENATE(VehicleCatalogus[[#This Row],[Veh. Type]]," ",VehicleCatalogus[[#This Row],[FC power]]," kW") -> Grote bakwagen 45 kW | G30: kg H2 | H30: =VLOOKUP(VehicleCatalogus[[#This Row],[Name]],Indexatie!$C:$D,2,FALSE) -> 443998.6083 | I30: 0.08883221651 | J30: 0.6481481481 | K30: 0.0942507 | L30: 0 | M30: 0 | N30: 140 | O30: 45 | P30: 20 | Q30: 3000 | R30: =IFERROR(INDEX(Indexatie!$E:$E,MATCH(CONCATENATE(Config!$B$245," ",VehicleCatalogus[[#This Row],[Veh. Type]]),Indexatie!$C:$C,0)),0) -> 22500 | S30: Attribuut | T30: Unit | U30: meerpijs/unit
A31: 29 | B31: =B21 -> Lichte trekker z/opl | C31: 4 | D31: FC | E31: 1 | F31: =+CONCATENATE(VehicleCatalogus[[#This Row],[Veh. Type]]," ",VehicleCatalogus[[#This Row],[FC power]]," kW") -> Lichte trekker z/opl 60 kW | G31: kg H2 | H31: =VLOOKUP(VehicleCatalogus[[#This Row],[Name]],Indexatie!$C:$D,2,FALSE) -> 523246.2624 | I31: 0.0920214928 | J31: 0 | K31: 0.10994355 | L31: 0 | M31: 0 | N31: 140 | O31: 60 | P31: 30 | Q31: 5000 | R31: =IFERROR(INDEX(Indexatie!$E:$E,MATCH(CONCATENATE(Config!$B$245," ",VehicleCatalogus[[#This Row],[Veh. Type]]),Indexatie!$C:$C,0)),0) -> 0 | S31: Batterij | T31: kWh | U31: 400
A32: 30 | B32: =+B26 -> Zware trekker z/opl | C32: 5 | D32: FC | E32: 1 | F32: =+CONCATENATE(VehicleCatalogus[[#This Row],[Veh. Type]]," ",VehicleCatalogus[[#This Row],[FC power]]," kW") -> Zware trekker z/opl 80 kW | G32: kg H2 | H32: =VLOOKUP(VehicleCatalogus[[#This Row],[Name]],Indexatie!$C:$D,2,FALSE) -> 645559.6482 | I32: 0.1379529398 | J32: 0 | K32: 0.1256364 | L32: 0 | M32: 0 | N32: 200 | O32: 80 | P32: 50 | Q32: 5000 | R32: =IFERROR(INDEX(Indexatie!$E:$E,MATCH(CONCATENATE(Config!$B$245," ",VehicleCatalogus[[#This Row],[Veh. Type]]),Indexatie!$C:$C,0)),0) -> 0 | S32: Tank | T32: Liter | U32: 908
A35: Keuze en eigenschappen private laadinfra
A36: Index | B36: Charging type | C36: Power | D36: Land type | E36: Power (kW) | F36: Depth of discharge (%) | G36: Efficiency (%) | H36: Purchase & installation (€) | I36: Purchase (€) | J36: Installation costs (€) | K36: Operational costs annual (€) | L36: Own energy costs (€)
A37: 5 | B37: HPC350 | C37: 350 kW | D37: Privaat | E37: 350 | F37: 0.7 | G37: 0.887 | H37: =INDEX(Laadpleinkosten!$C$29:$H$29,1,MATCH(Laadinfra[[#This Row],[Power]],Laadpleinkosten!$C$21:$H$21,0)) -> 208481.67 | I37: =INDEX(Laadpleinkosten!$C$24:$H$24,1,MATCH(Laadinfra[[#This Row],[Power]],Laadpleinkosten!$C$21:$H$21,0)) -> 135056.25 | J37: =Laadinfra[[#This Row],[Purchase & installation (€) ]]-Laadinfra[[#This Row],[Purchase (€)]] -> 73425.42 | K37: =INDEX(Laadpleinkosten!$C$39:$H$39,1,MATCH(Laadinfra[[#This Row],[Power]],Laadpleinkosten!$C$21:$H$21,0)) -> 18564.71321 | L37: =INDEX(Laadpleinkosten!$C$44:$H$44,1,MATCH(Laadinfra[[#This Row],[Power]],Laadpleinkosten!$C$21:$H$21,0)) -> 0.1220728926
A38: 4 | B38: HPC150 | C38: 150 kW | D38: Privaat | E38: 150 | F38: 0.7 | G38: 0.887 | H38: =INDEX(Laadpleinkosten!$C$29:$H$29,1,MATCH(Laadinfra[[#This Row],[Power]],Laadpleinkosten!$C$21:$H$21,0)) -> 93217.77 | I38: =INDEX(Laadpleinkosten!$C$24:$H$24,1,MATCH(Laadinfra[[#This Row],[Power]],Laadpleinkosten!$C$21:$H$21,0)) -> 57881.25 | J38: =Laadinfra[[#This Row],[Purchase & installation (€) ]]-Laadinfra[[#This Row],[Purchase (€)]] -> 35336.52 | K38: =INDEX(Laadpleinkosten!$C$39:$H$39,1,MATCH(Laadinfra[[#This Row],[Power]],Laadpleinkosten!$C$21:$H$21,0)) -> 8506.852804 | L38: =INDEX(Laadpleinkosten!$C$44:$H$44,1,MATCH(Laadinfra[[#This Row],[Power]],Laadpleinkosten!$C$21:$H$21,0)) -> 0.1220728926
A39: 3 | B39: FC50 | C39: 50 kW | D39: Privaat | E39: 50 | F39: 0.7 | G39: 0.887 | H39: =INDEX(Laadpleinkosten!$C$29:$H$29,1,MATCH(Laadinfra[[#This Row],[Power]],Laadpleinkosten!$C$21:$H$21,0)) -> 32104.035 | I39: =INDEX(Laadpleinkosten!$C$24:$H$24,1,MATCH(Laadinfra[[#This Row],[Power]],Laadpleinkosten!$C$21:$H$21,0)) -> 19293.75 | J39: =Laadinfra[[#This Row],[Purchase & installation (€) ]]-Laadinfra[[#This Row],[Purchase (€)]] -> 12810.285 | K39: =INDEX(Laadpleinkosten!$C$39:$H$39,1,MATCH(Laadinfra[[#This Row],[Power]],Laadpleinkosten!$C$21:$H$21,0)) -> 4367.797601 | L39: =INDEX(Laadpleinkosten!$C$44:$H$44,1,MATCH(Laadinfra[[#This Row],[Power]],Laadpleinkosten!$C$21:$H$21,0)) -> 0.1220728926
A40: 2 | B40: AC22 | C40: 22 kW | D40: Privaat | E40: 22 | F40: 0.8 | G40: 0.902 | H40: =INDEX(Laadpleinkosten!$C$29:$H$29,1,MATCH(Laadinfra[[#This Row],[Power]],Laadpleinkosten!$C$21:$H$21,0)) -> 3639.06 | I40: =INDEX(Laadpleinkosten!$C$24:$H$24,1,MATCH(Laadinfra[[#This Row],[Power]],Laadpleinkosten!$C$21:$H$21,0)) -> 2315.25 | J40: =Laadinfra[[#This Row],[Purchase & installation (€) ]]-Laadinfra[[#This Row],[Purchase (€)]] -> 1323.81 | K40: =INDEX(Laadpleinkosten!$C$39:$H$39,1,MATCH(Laadinfra[[#This Row],[Power]],Laadpleinkosten!$C$21:$H$21,0)) -> 1571.883312 | L40: =INDEX(Laadpleinkosten!$C$44:$H$44,1,MATCH(Laadinfra[[#This Row],[Power]],Laadpleinkosten!$C$21:$H$21,0)) -> 0.1220728926
A41: 1 | B41: AC3,7 | C41: 3,7 kW | D41: Privaat | E41: 3.7 | F41: 0.8 | G41: 0.858 | H41: =INDEX(Laadpleinkosten!$C$29:$H$29,1,MATCH(Laadinfra[[#This Row],[Power]],Laadpleinkosten!$C$21:$H$21,0)) -> 1880.748 | I41: =INDEX(Laadpleinkosten!$C$24:$H$24,1,MATCH(Laadinfra[[#This Row],[Power]],Laadpleinkosten!$C$21:$H$21,0)) -> 771.75 | J41: =Laadinfra[[#This Row],[Purchase & installation (€) ]]-Laadinfra[[#This Row],[Purchase (€)]] -> 1108.998 | K41: =INDEX(Laadpleinkosten!$C$39:$H$39,1,MATCH(Laadinfra[[#This Row],[Power]],Laadpleinkosten!$C$21:$H$21,0)) -> 137.2911041 | L41: =INDEX(Laadpleinkosten!$C$44:$H$44,1,MATCH(Laadinfra[[#This Row],[Power]],Laadpleinkosten!$C$21:$H$21,0)) -> 0.1220728926
A43: Keuze en eigenschappen publieke laadinfra
A44: Index | B44: Charging type | C44: Power | D44: Land type | E44: Power (kW) | F44: Depth of discharge (%) | G44: Efficiency (%) | H44: Purchase & installation (€) | I44: Purchase (€) | J44: Installation costs (€) | K44: Operational costs annual (€) | L44: External energy costs (€)
A45: 5 | B45: HPC350 | C45: 350 kW | D45: Publiek | E45: 350 | F45: 0.7 | G45: 0.887 | L45: 0.5
A46: 4 | B46: HPC150 | C46: 150 kW | D46: Publiek | E46: 150 | F46: 0.7 | G46: 0.887 | L46: 0.45
A47: 3 | B47: FC50 | C47: 50 kW | D47: Publiek | E47: 50 | F47: 0.7 | G47: 0.887 | L47: 0.35
A48: 2 | B48: AC20 | C48: 20 kW | D48: Publiek | E48: 20 | F48: 0.8 | G48: 0.902 | L48: 0.3
A49: 1 | B49: AC10 | C49: 10 kW | D49: Publiek | E49: 10 | F49: 0.8 | G49: 0.902 | L49: 0.3
A51: Misc. Operational Parameters
A52: Veh. Type ID | B52: Vehicle type | C52: PM_wear from tires | D52: Tires cost (€/km) | E52: Misc. vehicle cost | F52: Special transport costs | G52: Refrigeration maintenance cost | H52: Eurovignet
A53: 1 | B53: =+Config!B190 -> Kleine bakwagen | C53: 0.08120688069 | D53: 0.023121345 | E53: 73.79136 | F53: 410.75625 | G53: 0.3392824745 | H53: 750
A54: 2 | B54: =+Config!B191 -> Medium bakwagen | C54: 0.08120688069 | D54: 0.0227691285 | E54: 73.79136 | F54: 399.10125 | G54: 0.393976411 | H54: 750
A55: 3 | B55: =+Config!B192 -> Grote bakwagen | C55: 0.08120688069 | D55: 0.022416912 | E55: 73.79136 | F55: 399.10125 | G55: 0.4486703475 | H55: 750
A56: 4 | B56: =+Config!B193 -> Lichte trekker z/opl | C56: 0.07472008133 | D56: 0.03444994 | E56: 73.79136 | F56: 996.8222 | G56: 0.5650192117 | H56: 1250
A57: 5 | B57: =+Config!B194 -> Zware trekker z/opl | C57: 0.06823328198 | D57: 0.046482968 | E57: 73.79136 | F57: 996.8222 | G57: 0.681368076 | H57: 1250

Sheet Calculatie
A1: BASIS INVOERGEGEVENS
A2: Voertuigtype | B2: =LEFT(C2,FIND("(",C2)-2) -> Kleine bakwagen | C2: =voertuigtype_input -> Kleine bakwagen (lvm ca. 6 ton) | F2: test | G2: Dit is een overgenomen veld
A3: Voertuig type ID | B3: =INDEX(VehicleCatalogus[#All],MATCH($B$2,VehicleCatalogus[[#All],[Veh. Type]],0),3) -> 1 | F3: test | G3: Dit is een berekening
A4: Koelmachine (J/N) | B4: =koelmachine -> niet gekoeld
A5: Verwacht jaarkilometrage | B5: =DV_mileage -> 35000 | C5: =IFERROR(INDEX(Invoervelden!$D$3:$D$17,MATCH(Calculatie!$C$2,Invoervelden!$B$3:$B$7,0)),30000) -> 35000
A6: Grijze/groene elektriciciteit | B6: =Electricity_type -> Groen
A7: Grijze/groene waterstof | B7: =H2_type -> Electrolyse (hernieuwbare energie)
A8: Rechtsvorm en belastingpercentage | B8: ='Input-Output Module'!B19 -> BV of NV met 19% belasting
A9: Basisjaar prognose | B9: ='Input-Output Module'!B20 -> 2023
A10: Grootte van bedrijf | B10: =bedrijftype_input -> Groot
B12: DV | C12: EV | D12: FC
A13: INZETGEGEVENS VOERTUIG SYSTEM | B13: Dieselvoertuig | C13: Elektrisch voertuig | D13: Waterstof voertuig
A14: Economische levensduur [jaren] | B14: =DV_age -> 7 | C14: =EV_age -> 7 | D14: =FC_age -> 7
A15: Kosten van reparaties | B15: =DV_reparaties -> 500 | C15: =EV_reparaties -> 500 | D15: =FC_reparaties -> 1500
A16: Productieve dagen per jaar | B16: =Parameters!$B$2 -> 260 | C16: =Parameters!$B$2-'Input-Output Module'!F18 -> 260 | D16: =Parameters!$B$2-'Input-Output Module'!G18 -> 260
A17: Productieve uren per jaar | B17: =DV_productivehours -> 2600 | C17: =C16*B18 -> 2600 | D17: =D16*B18 -> 2600
A18: Productieve uren per dag | B18: =B17/B16 -> 10 | C18: =C17/C16 -> 10 | D18: =D17/D16 -> 10
A19: kilometers per dag | B19: =B5/B16 -> 134.6153846 | C19: =B19 -> 134.6153846 | D19: =B19 -> 134.6153846
A20: Uren om 's nachts op te laden | C20: =MIN(8,24-C18) -> 8
A21: Opgegeven batterijcapaciteit [gebruiker] | C21: =batt_cap_input -> 120 | D21: ='Input-Output Module'!G22 -> 70
A22: Opgegeven laadsysteem [gebruiker] | C22: =charge_power_input -> 22
A24: OPGEZOCHTE VOERTUIGGEGEVENS
A25: Berekende batterijcapaciteit [voorstel] | C25: ='M1-PowerSupply'!C17 -> 120 | D25: ='M1-PowerSupply'!E24 -> 70
A26: Batterijcapaciteit [kWh] | C26: =C21 -> 120 | D26: =D21 -> 70 | E26: Als er geen gebruiker input is, wordt berekende waarde overgenomen. Anders gebruikersinput
A27: Voertuig variant | B27: 1 | C27: =INDEX('M1-PowerSupply'!$A$24:$A$27,MATCH(C26,'M1-PowerSupply'!$B$24:$B$27,0)) -> 2 | D27: 1
A28: Voertuig model | B28: =INDEX(VehicleCatalogus[#All],MATCH(B29,VehicleCatalogus[[#All],[ID]],0),6) -> Kleine bakwagen | C28: =INDEX(VehicleCatalogus[#All],MATCH(C29,VehicleCatalogus[[#All],[ID]],0),6) -> Kleine bakwagen 120 kWh | D28: =INDEX(VehicleCatalogus[#All],MATCH(D29,VehicleCatalogus[[#All],[ID]],0),6) -> Kleine bakwagen 30 kW
A29: Voertuig model ID | B29: =SUMIFS(VehicleCatalogus[[#All],[ID]],VehicleCatalogus[[#All],[Fuel]],B$12,VehicleCatalogus[[#All],[Veh. Type ID]],$B$3,VehicleCatalogus[[#All],[Variant ID]],B$27) -> 1 | C29: =SUMIFS(VehicleCatalogus[[#All],[ID]],VehicleCatalogus[[#All],[Fuel]],C$12,VehicleCatalogus[[#All],[Veh. Type ID]],$B$3,VehicleCatalogus[[#All],[Variant ID]],C$27) -> 7 | D29: =SUMIFS(VehicleCatalogus[[#All],[ID]],VehicleCatalogus[[#All],[Fuel]],D$12,VehicleCatalogus[[#All],[Veh. Type ID]],$B$3,VehicleCatalogus[[#All],[Variant ID]],D$27) -> 26
A30: Waterstof opslag tank [voorstel] | D30: ='M1-PowerSupply'!F24 -> 15
A31: Waterstof opslag tank [gebruiker] | D31: ='Input-Output Module'!G23 -> 15
A32: Waterstof opslag tank [L] | D32: =D31 -> 15 | E32: Als er geen gebruiker input is, wordt berekende waarde overgenomen. Anders gebruikersinput
A33: Meerprijs afwijkende FC voertuigen | D33: =((D26-D25)*Catalogus!U31)+((D32-D30)*Catalogus!U32) -> 0
A34: Bruto aankoopprijs [voorstel] | B34: =INDEX(VehicleCatalogus[[#All],[Veh. Price]],MATCH(Calculatie!$B29,VehicleCatalogus[[#All],[ID]],0))+IF($B$4=Config!$B$179,INDEX(VehicleCatalogus[[#All],[Koeling]],MATCH(Calculatie!$B29,VehicleCatalogus[[#All],[ID]],0)),0) -> 81937.5 | C34: =INDEX(VehicleCatalogus[[#All],[Veh. Price]],MATCH(Calculatie!$C29,VehicleCatalogus[[#All],[ID]],0))+IF($B$4=Config!$B$179,INDEX(VehicleCatalogus[[#All],[Koeling]],MATCH(Calculatie!$C29,VehicleCatalogus[[#All],[ID]],0)),0) -> 139606.2 | D34: =INDEX(VehicleCatalogus[[#All],[Veh. Price]],MATCH(Calculatie!$D29,VehicleCatalogus[[#All],[ID]],0))+D33+IF($B$4=Config!$B$179,INDEX(VehicleCatalogus[[#All],[Koeling]],MATCH(Calculatie!$D29,VehicleCatalogus[[#All],[ID]],0)),0) -> 257897.9817
A35: Bruto aankoopprijs [gebruiker] | C35: ='Input-Output Module'!C29 -> 139606.2 | D35: ='Input-Output Module'!D29 -> 257897.9817
A36: Bruto aankoopprijs | B36: =IF(B35<>0,B35,B34) -> 81937.5 | C36: =C35 -> 139606.2 | D36: =D35 -> 257897.9817 | E36: Als er geen gebruiker input is, wordt berekende waarde overgenomen. Anders gebruikersinput
A37: Restwaarde voertuig [voorstel] | B37: =VLOOKUP(IF(B14>10,">10",B14),Deprciation[#All],2,FALSE)*B36 -> 18935.88459 | C37: =VLOOKUP(IF(C14>10,">10",C14),Deprciation[#All],2,FALSE)*C36 -> 32263.21149 | D37: =VLOOKUP(IF(D14>10,">10",D14),Deprciation[#All],2,FALSE)*D36 -> 59600.62753
A38: Restwaarde voertuig [gebruiker] | B38: =DV_rest_input -> 18935.88459 | C38: =EV_rest_input -> 32263.21149 | D38: =FC_rest_input -> 59600.62753
A39: Restwaarde voertuig | B39: =IF(B38<>"",B38,B37) -> 18935.88459 | C39: =IF(C38<>"",C38,C37) -> 32263.21149 | D39: 59600.62753 | E39: Als er geen gebruiker input is, wordt berekende waarde overgenomen. Anders gebruikersinput
A40: Aanschafprijs oplaadsysteem [voorstel] | C40: =INDEX(Laadinfra[Purchase (€)],MATCH('M1-PowerSupply'!B38,Laadinfra[Charging type],0)) -> 2315.25
A41: Aanschafprijs oplaadsysteem [gebruiker] | C41: ='Input-Output Module'!C35 -> 2315.25
A42: Aanschafprijs oplaadsysteem | C42: =C41 -> 2315.25
A43: Aanlegprijs oplaadsysteem [voorstel] | C43: =INDEX(Laadinfra[Installation costs (€)],MATCH('M1-PowerSupply'!B38,Laadinfra[Charging type],0)) -> 1323.81
A44: Aanlegprijs oplaadsysteem [gebruiker] | C44: ='Input-Output Module'!C36 -> 1323.81
A45: Aanlegprijs oplaadsysteem | C45: =C44 -> 1323.81
A46: AanZET | C46: ='M2-Subsidie'!$B$54 -> 0 | D46: ='M2-Subsidie'!$C$54 -> 0
A47: MIA | C47: ='M2-Subsidie'!$B$55 -> 0 | D47: ='M2-Subsidie'!$C$55 -> 0
A48: MIA Laadpaal | C48: ='M2-Subsidie'!$B$56 -> 0
A49: Totaal | C49: ='M2-Subsidie'!$B$57 -> 0 | D49: ='M2-Subsidie'!$C$57 -> 0
A50: Netto aankoopprijs voertuig | B50: =B36 -> 81937.5 | C50: =C36-C46-C47 -> 139606.2 | D50: =D36-D46-D47 -> 257897.9817
A51: Netto kosten inkoop & aanleg oplaadsysteem | C51: =C42+C45-C48 -> 3639.06
A53: ENERGIEVERBRUIK | B53: L | C53: kWh | D53: kg
A54: Energie voor transport / jaar | B54: =$B$5*'M1-PowerSupply'!B10 -> 3581.462186 | C54: =$B$5*'M1-PowerSupply'!C10 -> 16853.9397 | D54: =$B$5*'M1-PowerSupply'!D10 -> 1114.678551
A55: Energie voor koeling / jaar | B55: =B17*Parameters!$B$19*'M1-PowerSupply'!B11 -> 0 | C55: =C17*Parameters!$B$19*'M1-PowerSupply'!C11 -> 0 | D55: =D17*Parameters!$B$19*'M1-PowerSupply'!D11 -> 0
A56: Omzettingsverlies | C56: =1-Parameters!B9 -> 0.045
A57: Totaal energiegebruik per jaar | B57: =SUM(B54:B55) -> 3581.462186 | C57: =SUM(C54:C55)/(1-C56) -> 17648.1044 | D57: =SUM(D54:D55) -> 1114.678551
A59: EMISSIES
A60: WTW CO2-eq (tonnes) | B60: =($B$57*SUMIFS(Fuel_Emission_factors[[#All],[CO2-eq (kg per unit)]],Fuel_Emission_factors[[#All],[Fuel category ID]],$B$12,Fuel_Emission_factors[[#All],[Fuel type / Vehicle type]],$B$2))/1000 -> 11.60094302 | C60: =($C$57*SUMIFS(Fuel_Emission_factors[[#All],[CO2-eq (kg per unit)]],Fuel_Emission_factors[[#All],[Fuel category ID]],$C$12,Fuel_Emission_factors[[#All],[Fuel type / Vehicle type]],$B$6))/1000 -> 0 | D60: =($D$57*SUMIFS(Fuel_Emission_factors[[#All],[CO2-eq (kg per unit)]],Fuel_Emission_factors[[#All],[Fuel category ID]],$D$12,Fuel_Emission_factors[[#All],[Fuel type / Vehicle type]],$B$7))/1000 -> 0
A61: PMc (kg) | B61: =($B$57*SUMIFS(Fuel_Emission_factors[[#All],[PM10 combustion (g per unit)]],Fuel_Emission_factors[[#All],[Fuel category ID]],$B$12,Fuel_Emission_factors[[#All],[Fuel type / Vehicle type]],$B$2))/1000 -> 0.1451903273 | C61: =($C$57*SUMIFS(Fuel_Emission_factors[[#All],[PM10 combustion (g per unit)]],Fuel_Emission_factors[[#All],[Fuel category ID]],$C$12,Fuel_Emission_factors[[#All],[Fuel type / Vehicle type]],$B$6))/1000 -> 0 | D61: =($D$57*SUMIFS(Fuel_Emission_factors[[#All],[PM10 combustion (g per unit)]],Fuel_Emission_factors[[#All],[Fuel category ID]],$D$12,Fuel_Emission_factors[[#All],[Fuel type / Vehicle type]],$B$7))/1000 -> 0
A62: PM_tire (kg) | B62: =INDEX(Misc_Ops_Parameters[[#All],[PM_wear from tires]],MATCH(Calculatie!B2,Misc_Ops_Parameters[[#All],[Vehicle type]],0))*$B$5/1000 -> 2.842240824 | C62: =INDEX(Misc_Ops_Parameters[[#All],[PM_wear from tires]],MATCH(Calculatie!B2,Misc_Ops_Parameters[[#All],[Vehicle type]],0))*$B$5/1000 -> 2.842240824 | D62: =INDEX(Misc_Ops_Parameters[[#All],[PM_wear from tires]],MATCH(Calculatie!B2,Misc_Ops_Parameters[[#All],[Vehicle type]],0))*$B$5/1000 -> 2.842240824
A63: NOx (kg) | B63: =($B$57*SUMIFS(Fuel_Emission_factors[[#All],[NOx (g per unit)]],Fuel_Emission_factors[[#All],[Fuel category ID]],$B$12,Fuel_Emission_factors[[#All],[Fuel type / Vehicle type]],$B$2))/1000 -> 137.0235049 | C63: =($C$57*SUMIFS(Fuel_Emission_factors[[#All],[NOx (g per unit)]],Fuel_Emission_factors[[#All],[Fuel category ID]],$C$12,Fuel_Emission_factors[[#All],[Fuel type / Vehicle type]],$B$6))/1000 -> 0 | D63: =($D$57*SUMIFS(Fuel_Emission_factors[[#All],[NOx (g per unit)]],Fuel_Emission_factors[[#All],[Fuel category ID]],$D$12,Fuel_Emission_factors[[#All],[Fuel type / Vehicle type]],$B$7))/1000 -> 0
A65: Allowed NOx (kg) | B65: =(Parameters!B13*Parameters!B14)/1000*Calculatie!$B$5 -> 16.47472605
A66: Reduction of NOx by Adblue (kg) | B66: =IF(B63>B65,B63-B65,0) -> 120.5487788
A67: Adblue cost | B67: =B66*Parameters!B10*Parameters!B11*1000 -> 75.8852861
A69: ENERGIEKOSTEN | B69: Dieselprijs: euro/l | C69: Elektriciteit: euro/kWh | D69: Waterstof: euro/kg
A70: Inkoopprijs energie [voorstel] | B70: ='Input-Output Module'!E44 -> 1.5469 | C70: =INDEX(Laadinfra[Own energy costs (€)],MATCH('M1-PowerSupply'!B38,Laadinfra[Charging type],0)) -> 0.1220728926 | D70: =INDEX(H2_Fuel_Price[Fuel costs (€/kg)],MATCH(B7,H2_Fuel_Price[Type],0)) -> 10
A71: Inkoopprijs energie [gebruiker] | C71: =elec_price_input -> 0.1220728926 | D71: =h2_price_input -> 10
A72: Inkoopprijs energie | B72: =B70 -> 1.5469 | C72: =C71 -> 0.1220728926 | D72: =D71 -> 10 | E72: Als er geen gebruiker input is, wordt berekende waarde overgenomen. Anders gebruikersinput
A73: Energiesubsidie | C73: ='Input-Output Module'!C45 -> 0 | D73: ='Input-Output Module'!D45 -> 0
A74: Netto inkoopprijs energie | B74: =B72-B73 -> 1.5469 | C74: =C72-C73 -> 0.1220728926 | D74: =D72-D73 -> 10
A75: Transport fuel cost | B75: =B54*B74*(1-(1+Parameters!B25)^B14)/(1-(1+Parameters!B25))/B14 -> 5709.16672
A76: Refrigeration fuel costs | B76: =B55*B74*(1-(1+Parameters!B25)^B14)/(1-(1+Parameters!B25))/B14 -> 0
A77: Combined energy costs | C77: ='M1-PowerSupply'!B41*Calculatie!C16*Calculatie!C74*(IF('M1-PowerSupply'!A37=1,(1-(1+Parameters!B28)^C14)/(1-(1+Parameters!B28))/C14,(1-(1+Parameters!B29)^C14)/(1-(1+Parameters!B29))/C14))+(Calculatie!C54+Calculatie!C55-Calculatie!C16*'M1-PowerSupply'!B41)*INDEX(Laadinfra8[[#All],[External energy costs (€)]],MATCH('M1-PowerSupply'!B49,Laadinfra8[[#All],[Charging type]],0))*(1-(1+Parameters!B30)^C14)/(1-(1+Parameters!B30))/C14 -> 2120.170499 | D77: =SUM(D54:D55)*D74 -> 11146.78551
A79: TOLHEFFING | E79: Tolheffing gaat over de meerprijs tol voor dieselvoertuigen. Vandaar dat dit alleen voor DV is uitgevoerd.
A80: Tolheffing [voorstel] | B80: =INDEX(VehicleCatalogus[[#All],[Tolheffing]],MATCH(Calculatie!B$29,VehicleCatalogus[[#All],[ID]],0)) -> 0
A81: Tolheffing [gebruiker] | B81: =IF(ISNUMBER('Input-Output Module'!$G$34),'Input-Output Module'!$G$34,"") -> 0
A82: Tolheffing | B82: =B81 -> 0 | E82: Als er geen gebruiker input is, wordt berekende waarde overgenomen. Anders gebruikersinput
A83: Percentage snelweg [voorstel] | B83: =Parameters!B49 -> 0.75
A84: Percentage snelweg [gebruiker] | B84: =IF(ISNUMBER('Input-Output Module'!$G$35),'Input-Output Module'!$G$35,"") -> 0.75
A85: Percentage snelweg | B85: =B84 -> 0.75 | E85: Als er geen gebruiker input is, wordt berekende waarde overgenomen. Anders gebruikersinput
A86: Tol toepassen? | B86: ='Input-Output Module'!$H$34 -> N
A87: Tol | B87: =IF(OR(B86="J",B86="Y"),$B$5*B85*B82,0) -> 0
A89: HERNIEUWBARE ENERGIE-EENHEDEN
A90: Gebruikte energie | C90: =Calculatie!C54+C55 -> 16853.9397 | D90: =D54+D55 -> 1114.678551
A91: Omrekenen naar GJ | C91: =C90*0.0036 -> 60.67418291 | D91: =(D90*Parameters!$B$56)/1000 -> 133.872894 | E91: Want 1 HBE = 1GJ
A92: Forfait | C92: =IF(OR($B$6="Groen",$B$6="Green"),1,Parameters!$B$54) -> 1 | D92: =IF(OR($B$7="Electrolysis (renewable energy)",$B$7="Electrolyse (hernieuwbare energie)"),1,0) -> 1 | E92: Als voor EV geen 100% groene stroom wordt gebruikt, dan mag niet alles worden meegenomen
A93: Hoeveelheid hernieuwbare energie | C93: =C92*C91 -> 60.67418291 | D93: =D92*D91 -> 133.872894
A94: Multiplier | C94: =Parameters!B52 -> 4 | D94: =Parameters!B53 -> 2.5
A95: HBE's (onafgerond) | C95: =C93*C94 -> 242.6967317 | D95: =D93*D94 -> 334.6822351
A96: HBE's | C96: =ROUNDDOWN(C95,0) -> 242 | D96: =ROUNDDOWN(D95,0) -> 334 | E96: HBE's moeten altijd naar beneden worden afgerond
A98: EIGEN LAAD INFRA
A99: Laadcapaciteit syteem [aanbevolen] | C99: ='M1-PowerSupply'!B35 -> 22
A100: Laadcapaciteit syteem [gebruiker] | C100: =IF(ISNUMBER(charge_power_input),charge_power_input,"") -> 22
A101: Laadcapaciteit syteem | C101: =IF(C100<>"",C100,C99) -> 22
A104: ONDERHOUD
A105: Reparaties [voorstel] | B105: =INDEX(VehicleCatalogus[[#All],[Jaarlijkse reparaties]],MATCH(Calculatie!$B$28,VehicleCatalogus[[#All],[Name]],0)) -> 500 | C105: =INDEX(VehicleCatalogus[[#All],[Jaarlijkse reparaties]],MATCH(Calculatie!$C$28,VehicleCatalogus[[#All],[Name]],0)) -> 500 | D105: =INDEX(VehicleCatalogus[[#All],[Jaarlijkse reparaties]],MATCH(Calculatie!$D$28,VehicleCatalogus[[#All],[Name]],0)) -> 1500
A106: Reparaties [gebruiker] | B106: =DV_reparaties -> 500 | C106: =EV_reparaties -> 500 | D106: =FC_reparaties -> 1500
A107: Reparaties | B107: =IF(B106<>"",B106,B105) -> 500 | C107: =IF(C106<>"",C106,C105) -> 500 | D107: 1500

Sheet M1-PowerSupply
A1: Berekening benodigde hoeveelheid energie per aandrijfvorm en bepalen aangeraden voertuigvariant
A2: Gekozen voertuigtype | B2: =Calculatie!B2 -> Kleine bakwagen
A3: Voertuig type ID | B3: =INDEX(VehicleCatalogus[#All],MATCH('M1-PowerSupply'!$B$2,VehicleCatalogus[[#All],[Veh. Type]],0),3) -> 1
A4: Koelmachine (J/N) | B4: =Calculatie!B4 -> niet gekoeld
A5: Kilometers / dag | B5: =Calculatie!B19 -> 134.6153846 | H5: De benodigde hoeveelheid energie is berekend per type aandrijving
A6: Productieve uren per dag | B6: =Calculatie!B18 -> 10 | H6: Per type aandrijving is een coefficient bekend (zie voertuigcatalogus) voor de benodige hoeveelheid energie per km en per uur (voor koeleenheid)
H7: Dit levert een totale hoeveelheid benodigde energie per dag op
B8: Dieselvoertuig | C8: Elektrisch voertuig | D8: Waterstof voertuig | H8: Voor EV voertuigen is de aanbevolen batterijcapaciteit berekend door uit te gaan van een gewenste (dagelijkse) restcapaciteit
B9: DV | C9: EV | D9: FC | H9: De batterij is gekozen door binnen de beschikbare varianten degene met minimaal voldoende capaciteit te kiezen
A10: Energieverbruik/km | B10: =SUMIFS(VehicleCatalogus[[#All],[Energy/fuel consumption L; kWh; kg H2]],VehicleCatalogus[[#All],[Veh. Type ID]],'M1-PowerSupply'!$B$3,VehicleCatalogus[[#All],[Fuel]],'M1-PowerSupply'!$B$9,VehicleCatalogus[[#All],[Variant ID]],1) -> 0.102327491 | C10: =SUMIFS(VehicleCatalogus[[#All],[Energy/fuel consumption L; kWh; kg H2]],VehicleCatalogus[[#All],[Veh. Type ID]],'M1-PowerSupply'!$B$3,VehicleCatalogus[[#All],[Fuel]],'M1-PowerSupply'!$C$9,VehicleCatalogus[[#All],[Variant ID]],1) -> 0.4815411342 | D10: =SUMIFS(VehicleCatalogus[[#All],[Energy/fuel consumption L; kWh; kg H2]],VehicleCatalogus[[#All],[Veh. Type ID]],'M1-PowerSupply'!$B$3,VehicleCatalogus[[#All],[Fuel]],'M1-PowerSupply'!$D$9,VehicleCatalogus[[#All],[Variant ID]],1) -> 0.03184795861
A11: Energieverbruik koeleenheid/uur | B11: =IF(B4="gekoeld",SUMIFS(VehicleCatalogus[[#All],[Refrigeration energy/fuel consumption L; kWh; kg H2]],VehicleCatalogus[[#All],[Veh. Type ID]],'M1-PowerSupply'!$B$3,VehicleCatalogus[[#All],[Fuel]],'M1-PowerSupply'!$B$9,VehicleCatalogus[[#All],[Variant ID]],1),0) -> 0 | C11: =IF(B4="gekoeld",SUMIFS(VehicleCatalogus[[#All],[Refrigeration energy/fuel consumption L; kWh; kg H2]],VehicleCatalogus[[#All],[Veh. Type ID]],'M1-PowerSupply'!$B$3,VehicleCatalogus[[#All],[Fuel]],'M1-PowerSupply'!$C$9,VehicleCatalogus[[#All],[Variant ID]],1),0) -> 0 | D11: =IF(B4="gekoeld",SUMIFS(VehicleCatalogus[[#All],[Refrigeration energy/fuel consumption L; kWh; kg H2]],VehicleCatalogus[[#All],[Veh. Type ID]],'M1-PowerSupply'!$B$3,VehicleCatalogus[[#All],[Fuel]],'M1-PowerSupply'!$D$9,VehicleCatalogus[[#All],[Variant ID]],1),0) -> 0
A12: [unit] | B12: [liters] | C12: [kWh] | D12: [kg H2]
A14: Energieverbruik voertuig / dag | B14: =(B10*$B$5)+(B11*$B$6*Parameters!$B$19) -> 13.77485456 | C14: =(C10*$B$5)+(C11*$B$6*Parameters!$B$19) -> 64.82284499 | D14: =(D10*$B$5)+(D11*$B$6*Parameters!$B$19) -> 4.287225198
A16: Gewenste restcapaciteit batterij | B16: N/A | C16: =Parameters!$B$18 -> 0.2 | D16: N/A
A17: Aanbevolen batterijcapaciteit | B17: N/A | C17: =IF(C14/(1-C16)>$B$24,$B$24,INDEX($B$24:$B$27,MATCH(C14/(1-C16),$B$24:$B$27,-1))) -> 120 | D17: N/A
A18: Voertuig variant | B18: 1 | C18: =INDEX(A24:A26,MATCH(C17,B24:B26,0)) -> 2 | D18: 1
A19: Voertuig model ID | B19: =SUMIFS(VehicleCatalogus[[#All],[ID]],VehicleCatalogus[[#All],[Fuel]],B$9,VehicleCatalogus[[#All],[Veh. Type ID]],$B$3,VehicleCatalogus[[#All],[Variant ID]],B$18) -> 1 | C19: =SUMIFS(VehicleCatalogus[[#All],[ID]],VehicleCatalogus[[#All],[Fuel]],C$9,VehicleCatalogus[[#All],[Veh. Type ID]],$B$3,VehicleCatalogus[[#All],[Variant ID]],C$18) -> 7 | D19: =SUMIFS(VehicleCatalogus[[#All],[ID]],VehicleCatalogus[[#All],[Fuel]],D$9,VehicleCatalogus[[#All],[Veh. Type ID]],$B$3,VehicleCatalogus[[#All],[Variant ID]],D$18) -> 26
A20: Voertuig model | B20: =INDEX(VehicleCatalogus[#All],MATCH(B19,VehicleCatalogus[[#All],[ID]],0),6) -> Kleine bakwagen | C20: =INDEX(VehicleCatalogus[#All],MATCH(C19,VehicleCatalogus[[#All],[ID]],0),6) -> Kleine bakwagen 120 kWh | D20: =INDEX(VehicleCatalogus[#All],MATCH(D19,VehicleCatalogus[[#All],[ID]],0),6) -> Kleine bakwagen 30 kW
E22: 0 | F22: 0
A23: Batterij opties per variant [EV] | D23: FCEV variants
A24: 4 | B24: =SUMIFS(VehicleCatalogus[[#All],[Battery size]],VehicleCatalogus[[#All],[Fuel]],"EV",VehicleCatalogus[[#All],[Veh. Type ID]],$B$3,VehicleCatalogus[[#All],[Variant ID]],$A24) -> 200 | D24: 1 | E24: =INDEX(VehicleCatalogus[#All],MATCH(D19,VehicleCatalogus[[#All],[ID]],0),14) -> 70 | F24: =INDEX(VehicleCatalogus[#All],MATCH(D19,VehicleCatalogus[[#All],[ID]],0),16) -> 15
A25: 3 | B25: =SUMIFS(VehicleCatalogus[[#All],[Battery size]],VehicleCatalogus[[#All],[Fuel]],"EV",VehicleCatalogus[[#All],[Veh. Type ID]],$B$3,VehicleCatalogus[[#All],[Variant ID]],$A25) -> 160 | D25: 1.25 | E25: =ROUNDUP(E$24*$D25,E$22) -> 88 | F25: =ROUNDUP(F$24*$D25,F$22) -> 19
A26: 2 | B26: =SUMIFS(VehicleCatalogus[[#All],[Battery size]],VehicleCatalogus[[#All],[Fuel]],"EV",VehicleCatalogus[[#All],[Veh. Type ID]],$B$3,VehicleCatalogus[[#All],[Variant ID]],$A26) -> 120 | D26: 1.5 | E26: =ROUNDUP(E$24*$D26,E$22) -> 105 | F26: =ROUNDUP(F$24*$D26,F$22) -> 23
A27: 1 | B27: =SUMIFS(VehicleCatalogus[[#All],[Battery size]],VehicleCatalogus[[#All],[Fuel]],"EV",VehicleCatalogus[[#All],[Veh. Type ID]],$B$3,VehicleCatalogus[[#All],[Variant ID]],$A27) -> 80
A29: Berekening benodigde eigen laadinfra voor EV voertuig
A30: Tijd om 's nachts op te laden [uur] | B30: =Calculatie!C20 -> 8
A31: Grenswaarde opladen batterij | B31: 0.8 | C31: voor een lange levensduur van een batterij te hebben is het noodzaak deze nooit 100% op te laden (of te ontladen)
A32: Gebruikte batterijcapaciteit | B32: =Calculatie!C26 -> 120 | C32: Als er geen gebruiker input is, wordt berekende waarde overgenomen. Anders gebruikersinput
A33: Benodigde energie | B33: =B32*'M1-PowerSupply'!B31 -> 96
A34: Benodigde laadcapaciteit [kW/u] | B34: =B33/B30 -> 12
A35: Aanbevolen systeem | B35: =IF(B34>=MAX(Laadinfra[Power (kW)]),MAX(Laadinfra[Power (kW)]),INDEX(Laadinfra[Power (kW)],MATCH('M1-PowerSupply'!B34,Laadinfra[Power (kW)],-1))) -> 22
A36: Gebruikt systeem [kW] | B36: =Calculatie!C22 -> 22 | C36: Als er geen gebruiker input is, wordt berekende waarde overgenomen. Anders gebruikersinput
A37: Gebruikt systeem [ID] | B37: =INDEX(Laadinfra[Index],MATCH('M1-PowerSupply'!B36,Laadinfra[Power (kW)],0)) -> 2
A38: Gebruikt systeem [Naam] | B38: =INDEX(Laadinfra[Charging type],MATCH('M1-PowerSupply'!B36,Laadinfra[Power (kW)],0)) -> AC22
A40: Maximale hoeveelheid energie | B40: =MIN(B33,INDEX(Laadinfra[[#All],[Depth of discharge (%)]],MATCH('M1-PowerSupply'!B36,Laadinfra[[#All],[Power (kW)]],0))*B32) -> 96
A41: Hoeveelheid opgeladen energie | B41: =MIN(B40,C14) -> 64.82284499
A43: Berekening benodigde externe laadinfra voor EV voertuig
A44: Benodigde externe energie | B44: =C14-B41 -> 0
A45: Tijd voor opladen | B45: =Parameters!$B$3 -> 1
A46: max aantal sessies | B46: =Parameters!$B$4 -> 1
A47: Benodigde laadcapaciteit [kW/u] | B47: =B44/(B45*B46) -> 0
A48: Aanbevolen systeem [kW] | B48: =IF(B47>=MAX(Laadinfra8[[#All],[Power (kW)]]),MAX(Laadinfra8[[#All],[Power (kW)]]),INDEX(Laadinfra8[[#All],[Power (kW)]],MATCH('M1-PowerSupply'!B47,Laadinfra8[[#All],[Power (kW)]],-1))) -> 10
A49: Aanbevolen systeem [Naam] | B49: =INDEX(Laadinfra8[[#All],[Charging type]],MATCH('M1-PowerSupply'!B48,Laadinfra8[[#All],[Power (kW)]],0)) -> AC10
A50: Aanbevolen systeem [ID] | B50: =INDEX(Laadinfra8[[#All],[Index]],MATCH('M1-PowerSupply'!B48,Laadinfra8[[#All],[Power (kW)]],0)) -> 1
A51: Maximale hoeveelheid energie extern op te laden | B51: =MIN(INDEX(Laadinfra8[[#All],[Depth of discharge (%)]],MATCH('M1-PowerSupply'!B49,Laadinfra8[[#All],[Charging type]],0))*B32*B46,B44,B48*B45) -> 0
A52: Benodigd aantal uren voor laden | B52: =B44/B48 -> 0
A54: Check validiteit
A55: Zelf opladen nacht | B55: =IF(B33/B36>B30,"Invalide","Valide") -> Valide | C55: Kan met de eigen laadinfra benodigde energie binnen nachtperiode geleverd worden?
A56: Extern opladen duur | B56: =IF(B44/B48>B45,"Invalide","Valide") -> Valide | C56: Kan met de externe laadinfra benodigde energie binnen max tijd voor opladen geleverd worden?
A57: Extern opladen capaciteit | B57: =IF(B44<=INDEX(Laadinfra8[[#All],[Depth of discharge (%)]],MATCH('M1-PowerSupply'!B49,Laadinfra8[[#All],[Charging type]],0))*B32*B46,"Valide","Invalide") -> Valide | C57: Kan met batterijcapaciteit het aantal dagelijkse kms gereden worden met max aantal oplaadsessies per dag?

Sheet M2-Subsidie
A1: Parameters
A2: Maximale steun op grond van EU-staatssteunkalender
A3: Omvang bedrijf | B3: Maximale steun (% van meerprijs) | C3: Toelichting | H3: Maximale steun per categorie
A4: =+Config!B188 -> Groot | B4: 0.4 | C4: >250 fte, >€50 mil omzet | H4: AanZET categorie | I4: Omvang bedrijf | J4: Max. steun [%] | K4: Max. steun [€]
A5: =+Config!B183 -> Middelgroot | B5: 0.5 | C5: <250 fte, <€50 mil omzet | H5: N2 | I5: =+Config!B188 -> Groot | J5: 0.125 | K5: 17800
A6: =+Config!B184 -> Klein | B6: 0.6 | C6: <50 fte, <€10 mil omzet | H6: N3 Bakwagen (lvm <= 18t) | I6: =+Config!B188 -> Groot | J6: 0.15 | K6: 43600
H7: N3 Bakwagen (lvm > 18t) | I7: =+Config!B188 -> Groot | J7: 0.169 | K7: 56700
A8: AanZET categorie verdeling | H8: N3 Trekker | I8: Groot | J8: 0.2 | K8: 72700
A9: Voertuigtype | B9: AanZET categorie | D9: Jaartal | E9: MIA % | F9: Min. Investering | H9: N2 | I9: Middelgroot | J9: 0.19 | K9: 26800
A10: =+Config!B190 -> Kleine bakwagen | B10: N2 | D10: 2021 | E10: 0.36 | F10: 2500 | H10: N3 Bakwagen (lvm <= 18t) | I10: Middelgroot | J10: 0.215 | K10: 63700
A11: =+Config!B191 -> Medium bakwagen | B11: N3 Bakwagen (lvm <= 18t) | D11: 2022 | E11: 0.45 | F11: 2500 | H11: N3 Bakwagen (lvm > 18t) | I11: Middelgroot | J11: 0.243 | K11: 81500
A12: =+Config!B192 -> Grote bakwagen | B12: N3 Bakwagen (lvm > 18t) | D12: 2023 | E12: 0.45 | F12: 2500 | H12: N3 Trekker | I12: Middelgroot | J12: 0.285 | K12: 102300
A13: =+Config!B193 -> Lichte trekker z/opl | B13: N3 Trekker | H13: N2 | I13: Klein | J13: 0.25 | K13: 35700
A14: =+Config!B194 -> Zware trekker z/opl | B14: N3 Trekker | H14: N3 Bakwagen (lvm <= 18t) | I14: Klein | J14: 0.285 | K14: 84000
H15: N3 Bakwagen (lvm > 18t) | I15: Klein | J15: 0.317 | K15: 106300
A16: Belastingsklasse | B16: Procent | C16: Bovengrens Fiscale winst | D16: Gebruikte fiscale winst voor berekening | H16: N3 Trekker | I16: Klein | J16: 0.37 | K16: 131900
A17: =+Config!B187 -> BV of NV met 19% belasting | B17: 0.19 | C17: 200000 | D17: =Table13[[#This Row],[Bovengrens Fiscale winst]] -> 200000
A18: =+Config!B180 -> BV of NV met 25,8% belasting | B18: 0.258 | D18: =D17*2 -> 400000
A19: =+Config!B181 -> Eenmanszaak met 36,93% belasting | B19: 0.3693 | C19: 73031 | D19: =Table13[[#This Row],[Bovengrens Fiscale winst]] -> 73031
A20: =+Config!B182 -> Eenmanszaak met 49,5% belasting | B20: 0.495 | D20: =D19*2 -> 146062
A22: Benodigde gegevens
A23: Voertuigtype | B23: =Calculatie!B2 -> Kleine bakwagen
A24: Voertuig categorie | B24: =INDEX(Table9[AanZET categorie],MATCH(B23,Table9[Voertuigtype],0)) -> N2
A25: Rechtsvorm en belastingpercentage | B25: =Calculatie!B8 -> BV of NV met 19% belasting
A26: Basisjaar prognose | B26: =Calculatie!B9 -> 2023
A27: Grootte van bedrijf | B27: =Calculatie!B10 -> Groot
A28: Minimale investering | B28: =IFERROR(INDEX(Table14[[#All],[Min. Investering]],MATCH(B26,Table14[[#All],[Jaartal]],0)),INDEX(Table14[[#All],[Min. Investering]],MATCH(MAX(Table14[[#All],[Jaartal]]),Table14[[#All],[Jaartal]],0))) -> 2500
A30: Algemene subsidie gegevens | B30: EV | C30: FC
A31: Investering voertuig | B31: =Calculatie!C36 -> 139606.2 | C31: =Calculatie!D36 -> 257897.9817
A32: Meerprijs t.o.v. Dieselvoertuig | B32: =IF(Calculatie!C36-Calculatie!B36<0,0,Calculatie!C36-Calculatie!B36) -> 57668.7 | C32: =IF(Calculatie!D36-Calculatie!B36<0,0,Calculatie!D36-Calculatie!B36) -> 175960.4817
A33: Maximale steun op grond van EU-staatssteunkalender | B33: =B$32*INDEX(Table8[Maximale steun (% van meerprijs)],MATCH(B27,Table8[Omvang bedrijf],0)) -> 23067.48 | C33: =C$32*INDEX(Table8[Maximale steun (% van meerprijs)],MATCH(B27,Table8[Omvang bedrijf],0)) -> 70384.19268
A34: AanZET-subsidie | B34: ='Input-Output Module'!C30 -> N | C34: ='Input-Output Module'!D30 -> N
A35: MIA-subsidie | B35: ='Input-Output Module'!C31 -> N | C35: ='Input-Output Module'!D31 -> N
A36: MIA-subsidie laadpaal | B36: ='Input-Output Module'!C37 -> N
A38: AanZET subsidie
A39: Maximale steun | B39: =IF(OR(B34="J",B34="Y"),MIN(B$31*SUMIFS(Table15[Max. steun '[%']],Table15[AanZET categorie],$B$24,Table15[Omvang bedrijf],$B$27),SUMIFS(Table15[Max. steun '[€']],Table15[AanZET categorie],$B$24,Table15[Omvang bedrijf],$B$27),B$33),0) -> 0 | C39: =IF(OR(C34="J",C34="Y"),MIN(C$31*SUMIFS(Table15[Max. steun '[%']],Table15[AanZET categorie],$B$24,Table15[Omvang bedrijf],$B$27),SUMIFS(Table15[Max. steun '[€']],Table15[AanZET categorie],$B$24,Table15[Omvang bedrijf],$B$27),C$33),0) -> 0
A41: MIA (Milieu Investerings Aftrek)
A42: Belastingpercentage | B42: =INDEX(Table13[Procent],MATCH($B$25,Table13[Belastingsklasse],0)) -> 0.19 | C42: =INDEX(Table13[Procent],MATCH($B$25,Table13[Belastingsklasse],0)) -> 0.19
A43: MIA percentage | B43: =IF(OR(B35="J",B35="Y"),IFERROR(INDEX(Table14[[#All],[MIA %]],MATCH(B26,Table14[[#All],[Jaartal]],0)),INDEX(Table14[[#All],[MIA %]],MATCH(MAX(Table14[[#All],[Jaartal]]),Table14[[#All],[Jaartal]],0))),0) -> 0 | C43: =IF(OR(C35="J",C35="Y"),IFERROR(INDEX(Table14[[#All],[MIA %]],MATCH(B26,Table14[[#All],[Jaartal]],0)),INDEX(Table14[[#All],[MIA %]],MATCH(MAX(Table14[[#All],[Jaartal]]),Table14[[#All],[Jaartal]],0))),0) -> 0
A44: Fictieve fiscale winst | B44: =INDEX(Table13[Gebruikte fiscale winst voor berekening],MATCH($B$25,Table13[Belastingsklasse],0)) -> 200000 | C44: =INDEX(Table13[Gebruikte fiscale winst voor berekening],MATCH($B$25,Table13[Belastingsklasse],0)) -> 200000
A45: Aftrekpost | B45: =IF(B31>=$B$28,(B31-B39)*B43,0) -> 0 | C45: =IF(C31>=$B$28,(C31-C39)*C43,0) -> 0
A46: Fiscaal voordeel MIA | B46: =(B44*B42)-((B44-B45)*B42) -> 0 | C46: =(C44*C42)-((C44-C45)*C42) -> 0
A47: MIA (Milieu Investerings Aftrek) Laadpaal
A48: Investering Laadpaal | B48: =Calculatie!C42+Calculatie!C45 -> 3639.06
A49: MIA percentage | B49: =IF(OR(B36="J",B36="Y"),IFERROR(INDEX(Table14[[#All],[MIA %]],MATCH(B26,Table14[[#All],[Jaartal]],0)),INDEX(Table14[[#All],[MIA %]],MATCH(MAX(Table14[[#All],[Jaartal]]),Table14[[#All],[Jaartal]],0))),0) -> 0
A50: Aftrekpost | B50: =IF(B48>=$B$28,B48*B49,0) -> 0
A51: Fiscaal voordeel MIA | B51: =(B44*B42)-((B44-B50)*B42) -> 0
A53: Uiteindelijke subsidie | D53: Als de totale hoeveelheid aan subsidies kleiner is dat de maximale steun gebeurt hier niks nieuws
A54: AanZET | B54: =IF(B39<=B33,B39,B33) -> 0 | C54: =IF(C39<=C33,C39,C33) -> 0 | D54: Als dat wel het geval is, wordt eerst de maximale subsidie aan AanZET toegekend, dan MIA en dan MIA laadpaal
A55: MIA | B55: =IF(B46<=(B33-B54),B46,IF(B33-B54<=0,0,B33-B54)) -> 0 | C55: =IF(C46<=(C33-C54),C46,IF(C33-C54<=0,0,C33-C54)) -> 0
A56: MIA Laadpaal | B56: =B51 -> 0 | D56: De aanname is hier gemaakt dat de aanschaf van een Laadpaal los ingediend wordt en dus meetelt niet voor het maximum per project zoals genoemd op regel 33
A57: Totaal | B57: =SUM(B54:B56) -> 0 | C57: =SUM(C54:C56) -> 0

Sheet Indexatie
A1: GEÏNDEXEERDE COËFFICIËNTEN | E1: Indices
A2: Categorie | B2: Subcategorie | C2: Coëfficiënt | D2: Gebruikte waarde | E2: grondvoet | F2: 2022 | G2: 2023 | H2: 2024 | I2: 2025 | J2: 2026 | K2: 2027 | L2: 2028 | M2: 2029 | N2: 2030 | O2: Toelichting
A3: Basisjaar | B3: Basisjaar | C3: Basisjaar | D3: ='Input-Output Module'!B20 -> 2023 | F3: =IF($D$3>=F2,1,0) -> 1 | G3: 1 | H3: 0 | I3: 0 | J3: 0 | K3: 0 | L3: 0 | M3: 0 | N3: 0
A4: Energieprijs | B4: Diesel | C4: =+Config!B195 -> Dieselprijs (ex btw en accijns) | D4: =E4*IF(F4*F$3>0,F4,1)*IF(G4*G$3>0,G4,1)*IF(H4*H$3>0,H4,1)*IF(I4*I$3>0,I4,1)*IF(J4*J$3>0,J4,1)*IF(K4*K$3>0,K4,1)*IF(L4*L$3>0,L4,1)*IF(M4*M$3>0,M4,1)*IF(N4*N$3>0,N4,1) -> 1.08 | E4: 1.5 | F4: 1 | G4: 0.72
A5: Energieprijs | B5: Diesel | C5: =+Config!B44 -> Dieselaccijns | D5: 0.4669 | E5: 0.42 | F5: 1 | G5: 1.111666667
A6: Energieprijs | B6: Waterstof | C6: =Config!B6 -> Grijs | D6: 7.56 | E6: 7.56 | F6: 1 | G6: 1
A7: Energieprijs | B7: Waterstof | C7: =Config!B7 -> Blauw | D7: 8.06 | E7: 8.06 | F7: 1 | G7: 1
A8: Energieprijs | B8: Waterstof | C8: =Config!B8 -> Electrolyse (netstroom) | D8: 10 | E8: 10 | F8: 1 | G8: 1
A9: Energieprijs | B9: Waterstof | C9: =Config!B9 -> Electrolyse (hernieuwbare energie) | D9: 10 | E9: 10 | F9: 1 | G9: 1
A10: FINANCIËLE PARAMETERS | B10: FINANCIËLE PARAMETERS | C10: =+Config!B81 -> Rente | D10: 0.042259815 | E10: 0.0265 | F10: 1.48161 | G10: 1.076335878
A11: FINANCIËLE PARAMETERS | B11: FINANCIËLE PARAMETERS | C11: =+Config!B82 -> Verzekering | D11: 0.0339873894 | E11: 0.03 | F11: 1.07487 | G11: 1.054
A12: ENERGIE EN EMISSIE GEGEVENS VOERTUIGEN | B12: Emissie | C12: AdBlue | D12: 0.9711 | E12: 0.9215 | F12: 1 | G12: 1.053825285
A13: Catalogus | B13: DV | C13: =+Catalogus!F3 -> Kleine bakwagen | D13: 81937.5 | E13: 62500 | F13: 1.15 | G13: 1.14
A14: Catalogus | B14: DV | C14: =+Catalogus!F4 -> Medium bakwagen | D14: 116351.25 | E14: 88750 | F14: 1.15 | G14: 1.14
A15: Catalogus | B15: DV | C15: =+Catalogus!F5 -> Grote bakwagen | D15: 150765 | E15: 115000 | F15: 1.15 | G15: 1.14
A16: Catalogus | B16: DV | C16: =+Catalogus!F6 -> Lichte trekker z/opl | D16: 124872.75 | E16: 95250 | F16: 1.15 | G16: 1.14
A17: Catalogus | B17: DV | C17: =+Catalogus!F7 -> Zware trekker z/opl | D17: 144210 | E17: 110000 | F17: 1.15 | G17: 1.14
A18: Catalogus | B18: EV | C18: =+Catalogus!F8 -> Kleine bakwagen 80 kWh | D18: 116245.8 | E18: 104500 | F18: 1.03 | G18: 1.08
A19: Catalogus | B19: EV | C19: =+Catalogus!F9 -> Kleine bakwagen 120 kWh | D19: 139606.2 | E19: 125500 | F19: 1.03 | G19: 1.08
A20: Catalogus | B20: EV | C20: =+Catalogus!F10 -> Kleine bakwagen 160 kWh | D20: 162966.6 | E20: 146500 | F20: 1.03 | G20: 1.08
A21: Catalogus | B21: EV | C21: =+Catalogus!F11 -> Kleine bakwagen 200 kWh | D21: 194400 | E21: 180000 | F21: 1 | G21: 1.08
A22: Catalogus | B22: EV | C22: =+Catalogus!F12 -> Medium bakwagen 120 kWh | D22: 168806.7 | E22: 151750 | F22: 1.03 | G22: 1.08
A23: Catalogus | B23: EV | C23: =+Catalogus!F13 -> Medium bakwagen 160 kWh | D23: 192167.1 | E23: 172750 | F23: 1.03 | G23: 1.08
A24: Catalogus | B24: EV | C24: =+Catalogus!F14 -> Medium bakwagen 180 kWh | D24: 203847.3 | E24: 183250 | F24: 1.03 | G24: 1.08
A25: Catalogus | B25: EV | C25: =+Catalogus!F15 -> Medium bakwagen 240 kWh | D25: 232200 | E25: 215000 | F25: 1 | G25: 1.08
A26: Catalogus | B26: EV | C26: =+Catalogus!F16 -> Grote bakwagen 160 kWh | D26: 221367.6 | E26: 199000 | F26: 1.03 | G26: 1.08
A27: Catalogus | B27: EV | C27: =+Catalogus!F17 -> Grote bakwagen 180 kWh | D27: 233047.8 | E27: 209500 | F27: 1.03 | G27: 1.08
A28: Catalogus | B28: EV | C28: =+Catalogus!F18 -> Grote bakwagen 200 kWh | D28: 244728 | E28: 220000 | F28: 1.03 | G28: 1.08
A29: Catalogus | B29: EV | C29: =+Catalogus!F19 -> Grote bakwagen 260 kWh | D29: 270000 | E29: 250000 | F29: 1 | G29: 1.08
A30: Catalogus | B30: EV | C30: =+Catalogus!F20 -> Lichte trekker z/opl 180 kWh | D30: 211077.9 | E30: 189750 | F30: 1.03 | G30: 1.08
A31: Catalogus | B31: EV | C31: =+Catalogus!F21 -> Lichte trekker z/opl 220 kWh | D31: 234438.3 | E31: 210750 | F31: 1.03 | G31: 1.08
A32: Catalogus | B32: EV | C32: =+Catalogus!F22 -> Lichte trekker z/opl 260 kWh | D32: 257798.7 | E32: 231750 | F32: 1.03 | G32: 1.08
A33: Catalogus | B33: EV | C33: =+Catalogus!F23 -> Lichte trekker z/opl 340 kWh | D33: 259200 | E33: 240000 | F33: 1 | G33: 1.08
A34: Catalogus | B34: EV | C34: =+Catalogus!F24 -> Zware trekker z/opl 300 kWh | D34: 297567 | E34: 267500 | F34: 1.03 | G34: 1.08
A35: Catalogus | B35: EV | C35: =+Catalogus!F25 -> Zware trekker z/opl 400 kWh | D35: 355968 | E35: 320000 | F35: 1.03 | G35: 1.08
A36: Catalogus | B36: EV | C36: =+Catalogus!F26 -> Zware trekker z/opl 440 kWh | D36: 379328.4 | E36: 341000 | F36: 1.03 | G36: 1.08
A37: Catalogus | B37: EV | C37: =+Catalogus!F27 -> Zware trekker z/opl 490 kWh | D37: 410400 | E37: 380000 | F37: 1 | G37: 1.08
A38: Catalogus | B38: FC | C38: =+Catalogus!F28 -> Kleine bakwagen 30 kW | D38: 257897.9817 | E38: 231839.25 | F38: 1.03 | G38: 1.08
A39: Catalogus | B39: FC | C39: =+Catalogus!F29 -> Medium bakwagen 40 kW | D39: 389023.2441 | E39: 349715.25 | F39: 1.03 | G39: 1.08
A40: Catalogus | B40: FC | C40: =+Catalogus!F30 -> Grote bakwagen 45 kW | D40: 443998.6083 | E40: 399135.75 | F40: 1.03 | G40: 1.08
A41: Catalogus | B41: FC | C41: =+Catalogus!F31 -> Lichte trekker z/opl 60 kW | D41: 523246.2624 | E41: 470376 | F41: 1.03 | G41: 1.08
A42: Catalogus | B42: FC | C42: =+Catalogus!F32 -> Zware trekker z/opl 80 kW | D42: 645559.6482 | E42: 580330.5 | F42: 1.03 | G42: 1.08
A43: Overige kosten | B43: Chauffeurskosten | C43: Uurloon incl. sociale lasten | D43: 31.48 | E43: 29.09 | F43: 1 | G43: 1.082158817
A44: Overige kosten | B44: Chauffeurskosten | C44: Verblijfkostenvergoeding | D44: 0.97 | E44: 0.9 | F44: 1 | G44: 1.077777778
A45: Overige kosten | B45: Chauffeurskosten | C45: Overige kosten | D45: 0.54 | E45: 0.49 | F45: 1 | G45: 1.102040816
A46: Overige kosten | B46: Overhead | C46: Loon incl. sociale lasten | D46: 0.094 | E46: 0.094 | F46: 1 | G46: 1
A47: Overige kosten | B47: Overhead | C47: Huisvesting | D47: 0.029 | E47: 0.029 | F47: 1 | G47: 1
A48: Overige kosten | B48: Overhead | C48: Overig | D48: 0.056 | E48: 0.056 | F48: 1 | G48: 1
A49: Catalogus | B49: Koeling | C49: =Config!$B$246 -> Koel unit Kleine bakwagen | D49: 19250 | E49: 17500 | F49: 1 | G49: 1.1
A50: Catalogus | B50: Koeling | C50: =Config!$B$247 -> Koel unit Medium bakwagen | D50: 22000 | E50: 20000 | F50: 1 | G50: 1.1
A51: Catalogus | B51: Koeling | C51: =Config!$B$248 -> Koel unit Grote bakwagen | D51: 24750 | E51: 22500 | F51: 1 | G51: 1.1

Sheet Parameters
A1: INZETGEGEVENS VOERTUIG SYSTEM | B1: 2023
A2: Productieve dagen per jaar | B2: 260
A3: Max. tijd per dag opladen extern | B3: 1
A4: Max. aantal sessies per dag opladen extern | B4: 1
A6: ENERGIE EN EMISSIE GEGEVENS VOERTUIGEN
A7: Kale dieselprijs | B7: =Indexatie!D4 -> 1.08
A8: Accijns | B8: =Indexatie!D5 -> 0.4669
A9: Efficiëntie van transmissie overdracht | B9: 0.955 | D9: Transmission power efficiency EV (%)
A10: Adblue gebruik | B10: 0.0008324498656 | C10: benodigd aantal L per g NOx reductie
A11: Kosten Adblue | B11: 0.7562 | C11: per L
A12: Energie Diesel [kWh / L] | B12: 10
A13: Energieverbruik | B13: =INDEX(VehicleCatalogus[[#All],[Energy/fuel consumption L; kWh; kg H2]],MATCH(Calculatie!$B$28,VehicleCatalogus[[#All],[Name]],0))*B12 -> 1.02327491 | C13: kWh/km
A14: NOx standaard (Euro VI) | B14: 0.46 | C14: g/kWh
A15: Batterijkosten (€/kWh) | B15: 525
A16: FC kosten (€/kWh) | B16: 1535
A17: H2 tank kosten (per L) | B17: 1275
A18: Gewenste restcapaciteit batterij | B18: 0.2
A19: Aandeel koelunit actief t.o.v. productieve uren [%] | B19: 0.5
A20: FINANCIËLE PARAMETERS
A21: Afschrijvingstermijn laadinfra [jaar] | B21: =INDEX(Laadpleinkosten!$C$30:$H$30,1,MATCH(_xlfn.CONCAT(charge_power_input," kW"),Laadpleinkosten!$C$21:$H$21,0)) -> 10
A22: Rente | B22: =Indexatie!$D$10 -> 0.042259815
A23: Verzekering | B23: =Indexatie!$D$11 -> 0.0339873894
A24: JAARLIJKSE VERANDERINGEN
A25: Dieselprijs | B25: 0.01
A26: Aanschaf en installatie laadpaal | B26: 0.016
A27: Operationele kosten laadpaal | B27: 0.016
A28: Energiekosten laadpaal AC3,7 | B28: 0.01
A29: Energiekosten overige laadpalen | B29: 0.01
A30: Energiekosten extern opladen | B30: 0.01
A31: Batterij prijzen (EV) | B31: 0.94
A32: Fuel Cell prijzen (2020-2030) (FC) | B32: 0.96
A33: Fuel Cell prijzen (2030-2040) (FC) | B33: 0.97
A34: H2 tank kosten (2020-2030) | B34: 0.96
A35: H2 tank kosten (2030-2040) | B35: 0.97
A36: FC productiekosten tov DV | B36: 1.41
A37: Jaarlijkse afname FC productiekosten | B37: =(B36-1)/(B38-2021) -> 0.02157894737
A38: Jaartal FC kosten = 100% | B38: 2040
A39: CHAUFFEURSKOSTEN
A40: Uurloon incl. sociale lasten | B40: =Indexatie!$D$43 -> 31.48
A41: Verblijfkostenvergoeding | B41: =Indexatie!$D$44 -> 0.97
A42: Overige kosten | B42: =Indexatie!$D$45 -> 0.54
A43: OVERHEAD
A44: Loon incl. sociale lasten | B44: =Indexatie!$D$46 -> 0.094
A45: Huisvesting | B45: =Indexatie!$D$47 -> 0.029
A46: Overig | B46: =Indexatie!$D$48 -> 0.056
A48: TOLHEFFING
A49: Aandeel snelweg | B49: 0.75
A51: HERNIEUWBARE ENERGIE-EENHEDEN
A52: Multiplier EV | B52: 4
A53: Multiplier FC | B53: 2.5
A54: Aandeel groene energie 'grijze' stroom | B54: 0.264
A55: Waarde HBE | B55: 12
A56: Energiewaarde (MJ) per kg H2 | B56: 120.1
A57: Vaste kosten registratie (per jaar) | B57: 2000
A59: H2 Fuel Costs
A60: Type | B60: Fuel costs (€/kg)
A61: =Config!B6 -> Grijs | B61: =INDEX(Indexatie!$D:$D,MATCH(H2_Fuel_Price[[#This Row],[Type]],Indexatie!$C:$C,0)) -> 7.56
A62: =Config!B7 -> Blauw | B62: =INDEX(Indexatie!$D:$D,MATCH(H2_Fuel_Price[[#This Row],[Type]],Indexatie!$C:$C,0)) -> 8.06
A63: =Config!B8 -> Electrolyse (netstroom) | B63: =INDEX(Indexatie!$D:$D,MATCH(H2_Fuel_Price[[#This Row],[Type]],Indexatie!$C:$C,0)) -> 10
A64: =Config!B9 -> Electrolyse (hernieuwbare energie) | B64: =INDEX(Indexatie!$D:$D,MATCH(H2_Fuel_Price[[#This Row],[Type]],Indexatie!$C:$C,0)) -> 10
A66: Fuel Emission factors
A67: Fuel category ID | B67: Fuel type / Vehicle type | C67: Unit | D67: CO2-eq (kg per unit) | E67: PM10 combustion (g per unit) | F67: NOx (g per unit)
A68: DV | B68: Kleine bakwagen | C68: L | D68: 3.239163899 | E68: 0.04053939977 | F68: 38.2590958 | G68: DV NOx | H68: based on Euro III standards -> to calculate AdBlue
A69: DV | B69: Medium bakwagen | C69: L | D69: 3.239163899 | E69: 0.04077897973 | F69: 27.55146618 | G69: PM | H69: based on Euro VI standards
A70: DV | B70: Grote bakwagen | C70: L | D70: 3.239163899 | E70: 0.03862735713 | F70: 29.41422173
A71: DV | B71: Lichte trekker z/opl | C71: L | D71: 3.239163899 | E71: 0.04419128514 | F71: 28.53363089
A72: DV | B72: Zware trekker z/opl | C72: L | D72: 3.239163899 | E72: 0.02877760859 | F72: 28.53363089
A73: EV | B73: Grijs | C73: kWh | D73: 0.369 | E73: 0 | F73: 0
A74: EV | B74: Groen | C74: kWh | D74: 0 | E74: 0 | F74: 0
A75: FC | B75: =Config!B6 -> Grijs | C75: kg H2 | D75: 11.02 | E75: 0 | F75: 0
A76: FC | B76: =Config!B7 -> Blauw | C76: kg H2 | D76: 4.24 | E76: 0 | F76: 0
A77: FC | B77: =Config!B8 -> Electrolyse (netstroom) | C77: kg H2 | D77: 20.88 | E77: 0 | F77: 0
A78: FC | B78: =Config!B9 -> Electrolyse (hernieuwbare energie) | C78: kg H2 | D78: 0 | E78: 0 | F78: 0
A80: Estimated value of vehicle according to age
A81: Age | B81: Percentage of value of new vehicle price (%) | C81: Annual depreciation in percentage of new vehicle (%) | D81: Depreciation
A82: 0 | B82: 1 | C82: 0 | D82: 0
A83: 1 | B83: 0.8134100525 | C83: 0.1865899475 | D83: 0.1865899475
A84: 2 | B84: 0.6595156328 | C84: 0.1702421836 | D84: 0.1538944197
A85: 3 | B85: 0.5347375147 | C85: 0.1550874951 | D85: 0.1247781181
A86: 4 | B86: 0.4335669928 | C86: 0.1416082518 | D86: 0.1011705219
A87: 5 | B87: 0.3515375901 | C87: 0.129692482 | D87: 0.08202940271
A88: 6 | B88: 0.2850278718 | C88: 0.1191620214 | D88: 0.06650971828
A89: 7 | B89: 0.2311015663 | C89: 0.1098426334 | D89: 0.05392630544
A90: 8 | B90: 0.1873779348 | C90: 0.1015777582 | D90: 0.04372363157
A91: 9 | B91: 0.1519266658 | C91: 0.09423037047 | D91: 0.03545126896
A92: 10 | B92: 0.1231826566 | C92: 0.08768173434 | D92: 0.02874400926
A93: >10 | B93: 0.1 | C93: "(100-10%)/A | D93: 0.02318265656

Sheet Database
A1: Datasetnaam | B1: =Config!$B$200 -> Voertuigscenario | C1: =Config!$B$204 -> Creatiedatum | D1: =Config!$B$205 -> Voertuigtype | E1: =Config!$B$206 -> Koelmachine (J/N) | F1: =Config!$B$207 -> Verwacht jaarkilometrage | G1: =Config!$B$208 -> Grijze/groene elektriciciteit | H1: =Config!$B$209 -> Grijze/groene waterstof | I1: =Config!$B$210 -> Rechtsvorm en belastingpercentage | J1: =Config!$B$211 -> Jaar prognose | K1: =Config!$B$212 -> Economische levensduur | L1: =Config!$B$214 -> Productieve uren per jaar | M1: =Config!$B$215 -> Kosten van reparaties | N1: =Config!$B$218 -> Capaciteit vrachtwagenbatterij (kWh) | O1: =Config!$B$220 -> Bruto aankoopprijs | P1: =Config!$B$221 -> Subsidies | Q1: =Config!$B$222 -> Netto aankoopprijs | R1: =Config!$B$224 -> Basisprijs energie | S1: =Config!$B$213 -> Restwaarde | T1: =Config!$B$216 -> Stilstand dagen per jaar | U1: =Config!B217 -> Vermogen eigen oplaadsysteem (kW) | V1: =Config!B219 -> Waterstof opslag tank (kg) | W1: =Config!$B$223 -> Netto kosten inkoop & aanleg oplaadsysteem | X1: =Config!$B$44 -> Dieselaccijns | Y1: =Config!$B$46 -> Meerprijs tolheffing | Z1: =Config!$B$47 -> Aandeel snelweg kilometers | AA1: =Config!$B$48 -> Vaste ZE-Voertuigheffing | AB1: =Config!$B$49 -> CO2 prijs | AC1: =Config!$B$226 -> Scenario | AD1: =Config!$B$227 -> Scenario validiteit | AE1: Column1 | AF1: =Config!$B$228 -> Voertuig | AG1: =Config!B229 -> Eigen oplaadsysteem | AH1: =Config!$B$230 -> Openbaar oplaadsysteem | AI1: Column3 | AJ1: =Config!$B$231 -> Percentage eigen oplaadsysteem | AK1: =Config!$B$232 -> Percentage extern (openbaar) Oplaadsysteem | AL1: Column4 | AM1: =Config!$B$233 -> Totale kosten per jaar | AN1: =Config!$B$234 -> Totale kosten per km | AO1: =Config!$B$235 -> Totale kosten per uur | AP1: Column5 | AQ1: =Config!$B$239 -> Emissies (totaal per jaar voor het geselecteerde voertuig) | AR1: =Config!$B$240 -> CO2 emissies (ton per jaar, WtW) | AS1: =Config!$B$241 -> PM totaal (kg per jaar, TtW) | AT1: =Config!$B$242 -> NOx (kg per jaar, TtW) | AU1: Column6 | AV1: Column7 | AW1: ONDERBOUWING KOSTENBEREKENING | AX1: Vaste kosten per jaar | AY1: Wegenbelasting | AZ1: Eurovignet | BA1: Rente | BB1: Verzekering | BC1: Voertuigheffing | BD1: Diverse overige voertuigkosten | BE1: a: Totale vaste voertuigkosten per jaar | BF1: Fixed transport costs | BG1: Variabele kosten per jaar | BH1: Afschrijving voertuig | BI1: Brandstofverbruik voertuig | BJ1: Brandstofverbruik koeling | BK1: Elektriciteitsverbruik | BL1: H2 verbruik | BM1: Adblue verbruik | BN1: Banden | BO1: Onderhoud | BP1: Reparatie | BQ1: Reparatie/onderhoud koelunit | BR1: Verschil Tolheffing (km-tarief) | BS1: CO2-prijs | BT1: Hernieuwbare Brandstof-Eenheden | BU1: Specifieke vervoerskosten | BV1: b: Totale variabele voertuigkosten per jaar | BW1: Repair, maintenance & tires | BX1: Kosten oplaadsysteem per jaar | BY1: Aankoop en installatie | BZ1: Operationele kosten | CA1: c: Totale kosten oplaadsysteem per jaar | CC1: Totale voertuig en oplaadsysteemkosten per jaar (a+b+c) | CD1: Totale voertuig en oplaadsysteemkosten per km: (a+b+c)/kms per jaar | CE1: Totale voertuig en oplaadsysteemkosten per uur (a+b+c)/uren per jaar | CG1: Chauffeurskosten | CH1: Uurloon incl. sociale lasten | CI1: Verblijfkostenvergoeding | CJ1: Overige kosten | CK1: d: Totale chauffeurskosten per jaar | CM1: Totale directe kosten per jaar (a+b+c+d) | CN1: Totale directe kosten per km: (a+b+c+d)/kms per jaar | CO1: Totale directe kosten per uur (a+b+c+d)/uren per jaar | CQ1: Algemene kosten (overhead) | CR1: Loon incl. sociale lasten | CS1: Huisvesting | CT1: Overig | CU1: e: Totale overhead per jaar | CV1: =Config!$B$236 -> HBE Toepassen (J/N) | CW1: =Config!$B$237 -> Aantal HBE's | CX1: Forfait | CY1: Waarde per HBE | CZ1: =Config!$B$238 -> Totale waarde HBE's
A2: kleine bakwagen 2023 | B2: Diesel | C2: 45048 | D2: Kleine bakwagen (lvm ca. 6 ton) | E2: niet gekoeld | F2: 35000 | G2: Groen | H2: Electrolyse (hernieuwbare energie) | I2: BV of NV met 19% belasting | J2: 2023 | K2: 7 | L2: 2600 | M2: 500 | N2: nvt | O2: 81937.5 | P2: 0 | Q2: 81937.5 | R2: 1.55 | S2: 18935.88 | T2: 0 | U2: nvt | V2: nvt | W2: nvt | X2: 0.47 | Y2: 0 | Z2: 0.75 | AA2: 0 | AB2: 0 | AC2: Diesel | AD2: n.v.t. | AF2: Kleine bakwagen (lvm ca. 6 ton) | AG2: n.v.t. | AH2: n.v.t. | AJ2: n.v.t. | AK2: n.v.t. | AM2: 129888.0979 | AN2: 3.711088511 | AO2: 49.95696073 | AR2: 11.60094302 | AS2: 2.987431151 | AT2: 16.47472605 | AY2: 315.9 | AZ2: 750 | BA2: 2131.445286 | BB2: 2784.841719 | BC2: 0 | BD2: 73.79136 | BE2: 6055.978365 | BH2: 9000.230773 | BI2: 5709.16672 | BJ2: 0 | BK2: 0 | BL2: 0 | BM2: 75.8852861 | BN2: 809.247075 | BO2: 1832.7575 | BP2: 500 | BQ2: 0 | BR2: 0 | BS2: 0 | BT2: 0 | BU2: 410.75625 | BV2: 18338.0436 | BY2: 0 | BZ2: 0 | CA2: 0 | CC2: 24394.02197 | CD2: 0.6969720562 | CE2: 9.382316142 | CH2: 81848 | CI2: 2522 | CJ2: 1404 | CK2: 85774 | CM2: 110168.022 | CN2: 3.147657771 | CO2: 42.37231614 | CR2: 10355.79407 | CS2: 3194.872637 | CT2: 6169.40923 | CU2: 19720.07593 | CV2: nvt
A3: kleine bakwagen 2023 | B3: Elektrisch | C3: 45048 | D3: Kleine bakwagen (lvm ca. 6 ton) | E3: niet gekoeld | F3: 35000 | G3: Groen | H3: Electrolyse (hernieuwbare energie) | I3: BV of NV met 19% belasting | J3: 2023 | K3: 7 | L3: 2600 | M3: 500 | N3: 120 | O3: 139606.2 | P3: 0 | Q3: 139606.2 | R3: 0.12 | S3: 32263.21 | T3: 0 | U3: 22 | V3: nvt | W3: 3639.06 | X3: 0.47 | Y3: 0 | Z3: 0.75 | AA3: 0 | AB3: 0 | AC3: EV Optimale mix | AD3: Scenario valide | AF3: Kleine bakwagen 120 kWh | AG3: AC22 | AH3: AC10 | AJ3: 1 | AK3: 0 | AM3: 137944.5102 | AN3: 3.941271721 | AO3: 53.05558086 | AR3: 0 | AS3: 2.842240824 | AT3: n.v.t. | AY3: 0 | AZ3: 750 | BA3: 3631.584767 | BB3: 4744.850282 | BC3: 0 | BD3: 73.79136 | BE3: 9200.226409 | BH3: 15334.71264 | BI3: 0 | BJ3: 0 | BK3: 2120.170499 | BL3: 0 | BM3: 0 | BN3: 809.247075 | BO3: 916.37875 | BP3: 500 | BQ3: 0 | BR3: 0 | BS3: 0 | BT3: 0 | BU3: 410.75625 | BV3: 20091.26522 | BY3: 363.906 | BZ3: 1571.883312 | CA3: 1935.789312 | CC3: 31227.28094 | CD3: 0.8922080268 | CE3: 12.01049267 | CH3: 81848 | CI3: 2522 | CJ3: 1404 | CK3: 85774 | CM3: 117001.2809 | CN3: 3.342893741 | CO3: 45.00049267 | CR3: 10998.12041 | CS3: 3393.037147 | CT3: 6552.071733 | CU3: 20943.22929 | CV3: N | CW3: 242 | CX3: 1 | CY3: 12 | CZ3: 904
A4: kleine bakwagen 2023 | B4: Waterstof | C4: 45048 | D4: Kleine bakwagen (lvm ca. 6 ton) | E4: niet gekoeld | F4: 35000 | G4: Groen | H4: Electrolyse (hernieuwbare energie) | I4: BV of NV met 19% belasting | J4: 2023 | K4: 7 | L4: 2600 | M4: 1500 | N4: 70 | O4: 257897.98 | P4: 0 | Q4: 257897.98 | R4: 10 | S4: 59600.63 | T4: 0 | U4: nvt | V4: 15 | W4: nvt | X4: 0.47 | Y4: 0 | Z4: 0.75 | AA4: 0 | AB4: 0 | AC4: Waterstof voertuig | AD4: n.v.t. | AF4: Kleine bakwagen 30 kW | AG4: n.v.t. | AH4: n.v.t. | AJ4: n.v.t. | AK4: n.v.t. | AM4: 173331.7523 | AN4: 4.952335781 | AO4: 66.66605859 | AR4: 0 | AS4: 2.842240824 | AT4: n.v.t. | AY4: 0 | AZ4: 750 | BA4: 6708.716244 | BB4: 8765.27913 | BC4: 0 | BD4: 73.79136 | BE4: 16297.78673 | BH4: 28328.19345 | BI4: 0 | BJ4: 0 | BK4: 0 | BL4: 11146.78551 | BM4: 0 | BN4: 809.247075 | BO4: 2749.13625 | BP4: 1500 | BQ4: 0 | BR4: 0 | BS4: 0 | BT4: 0 | BU4: 410.75625 | BV4: 44944.11854 | BY4: 0 | BZ4: 0 | CA4: 0 | CC4: 61241.90528 | CD4: 1.749768722 | CE4: 23.55457895 | CH4: 81848 | CI4: 2522 | CJ4: 1404 | CK4: 85774 | CM4: 147015.9053 | CN4: 4.200454436 | CO4: 56.54457895 | CR4: 13819.4951 | CS4: 4263.461253 | CT4: 8232.890696 | CU4: 26315.84704 | CV4: N | CW4: 334 | CX4: 1 | CY4: 12 | CZ4: 2008
A5: medium bakwagen 2023 | B5: Diesel | C5: 45048 | D5: Medium bakwagen (lvm ca. 9 ton) | E5: niet gekoeld | F5: 70000 | G5: Groen | H5: Electrolyse (hernieuwbare energie) | I5: BV of NV met 19% belasting | J5: 2023 | K5: 7 | L5: 2600 | M5: 500 | N5: nvt | O5: 116351.25 | P5: 0 | Q5: 116351.25 | R5: 1.55 | S5: 26888.96 | T5: 0 | U5: nvt | V5: nvt | W5: nvt | X5: 0.47 | Y5: 0 | Z5: 0.75 | AA5: 0 | AB5: 0 | AC5: Diesel | AD5: n.v.t. | AF5: Medium bakwagen (lvm ca. 9 ton) | AG5: n.v.t. | AH5: n.v.t. | AJ5: n.v.t. | AK5: n.v.t. | AM5: 160194.2223 | AN5: 2.28848889 | AO5: 61.61316243 | AR5: 45.65725919 | AS5: 6.259277029 | AT5: 64.83876667 | AY5: 315.9 | AZ5: 750 | BA5: 3026.652306 | BB5: 3954.475241 | BC5: 0 | BD5: 73.79136 | BE5: 8120.818907 | BH5: 12780.3277 | BI5: 22469.28584 | BJ5: 0 | BK5: 0 | BL5: 0 | BM5: 203.6489187 | BN5: 1593.838995 | BO5: 4031.9405 | BP5: 500 | BQ5: 0 | BR5: 0 | BS5: 0 | BT5: 0 | BU5: 399.10125 | BV5: 41978.1432 | BY5: 0 | BZ5: 0 | CA5: 0 | CC5: 50098.96211 | CD5: 0.7156994587 | CE5: 19.26883158 | CH5: 81848 | CI5: 2522 | CJ5: 1404 | CK5: 85774 | CM5: 135872.9621 | CN5: 1.941042316 | CO5: 52.25883158 | CR5: 12772.05844 | CS5: 3940.315901 | CT5: 7608.885878 | CU5: 24321.26022 | CV5: nvt
A6: medium bakwagen 2023 | B6: Elektrisch | C6: 45048 | D6: Medium bakwagen (lvm ca. 9 ton) | E6: niet gekoeld | F6: 70000 | G6: Groen | H6: Electrolyse (hernieuwbare energie) | I6: BV of NV met 19% belasting | J6: 2023 | K6: 7 | L6: 2600 | M6: 500 | N6: 240 | O6: 232200 | P6: 0 | Q6: 232200 | R6: 0.12 | S6: 53661.78 | T6: 0 | U6: 50 | V6: nvt | W6: 32104.04 | X6: 0.47 | Y6: 0 | Z6: 0.75 | AA6: 0 | AB6: 0 | AC6: EV Optimale mix | AD6: Scenario valide | AF6: Medium bakwagen 240 kWh | AG6: FC50 | AH6: HPC150 | AJ6: 0.658513451 | AK6: 0.341486549 | AM6: 187582.454 | AN6: 2.679749343 | AO6: 72.14709769 | AR6: 0 | AS6: 5.684481648 | AT6: n.v.t. | AY6: 0 | AZ6: 750 | BA6: 6040.233047 | BB6: 7891.871819 | BC6: 0 | BD6: 73.79136 | BE6: 14755.89623 | BH6: 25505.45947 | BI6: 0 | BJ6: 0 | BK6: 15998.78901 | BL6: 0 | BM6: 0 | BN6: 1593.838995 | BO6: 2015.97025 | BP6: 500 | BQ6: 0 | BR6: 0 | BS6: 0 | BT6: 0 | BU6: 399.10125 | BV6: 46013.15897 | BY6: 3210.4035 | BZ6: 4367.797601 | CA6: 7578.201101 | CC6: 68347.2563 | CD6: 0.9763893757 | CE6: 26.28740627 | CH6: 86601.73585 | CI6: 2668.477884 | CJ6: 1485.544389 | CK6: 90755.75812 | CM6: 159103.0144 | CN6: 2.272900206 | CO6: 61.19346709 | CR6: 14955.68336 | CS6: 4613.987418 | CT6: 8909.768808 | CU6: 28479.43958 | CV6: N | CW6: 955 | CX6: 1 | CY6: 12 | CZ6: 9460
A7: medium bakwagen 2023 | B7: Waterstof | C7: 45048 | D7: Medium bakwagen (lvm ca. 9 ton) | E7: niet gekoeld | F7: 70000 | G7: Groen | H7: Electrolyse (hernieuwbare energie) | I7: BV of NV met 19% belasting | J7: 2023 | K7: 7 | L7: 2600 | M7: 1500 | N7: 150 | O7: 389023.24 | P7: 0 | Q7: 389023.24 | R7: 10 | S7: 89903.88 | T7: 0 | U7: nvt | V7: 15 | W7: nvt | X7: 0.47 | Y7: 0 | Z7: 0.75 | AA7: 0 | AB7: 0 | AC7: Waterstof voertuig | AD7: n.v.t. | AF7: Medium bakwagen 40 kW | AG7: n.v.t. | AH7: n.v.t. | AJ7: n.v.t. | AK7: n.v.t. | AM7: 242969.9755 | AN7: 3.47099965 | AO7: 93.44999058 | AR7: 0 | AS7: 5.684481648 | AT7: n.v.t. | AY7: 0 | AZ7: 750 | BA7: 10119.68585 | BB7: 13221.88448 | BC7: 0 | BD7: 73.79136 | BE7: 24165.3617 | BH7: 42731.33758 | BI7: 0 | BJ7: 0 | BK7: 0 | BL7: 43869.8539 | BM7: 0 | BN7: 1593.838995 | BO7: 6047.91075 | BP7: 1500 | BQ7: 0 | BR7: 0 | BS7: 0 | BT7: 0 | BU7: 399.10125 | BV7: 96142.04248 | BY7: 0 | BZ7: 0 | CA7: 0 | CC7: 120307.4042 | CD7: 1.718677202 | CE7: 46.27207853 | CH7: 81848 | CI7: 2522 | CJ7: 1404 | CK7: 85774 | CM7: 206081.4042 | CN7: 2.94402006 | CO7: 79.26207853 | CR7: 19371.65199 | CS7: 5976.360721 | CT7: 11540.55863 | CU7: 36888.57135 | CV7: N | CW7: 1317 | CX7: 1 | CY7: 12 | CZ7: 13804
A8: grote bakwagen 2023 | B8: Diesel | C8: 45048 | D8: Grote bakwagen (lvm > 16 ton) | E8: niet gekoeld | F8: 70000 | G8: Groen | H8: Electrolyse (hernieuwbare energie) | I8: BV of NV met 19% belasting | J8: 2023 | K8: 7 | L8: 2600 | M8: 1000 | N8: nvt | O8: 150765 | P8: 0 | Q8: 150765 | R8: 1.55 | S8: 34842.03 | T8: 0 | U8: nvt | V8: nvt | W8: nvt | X8: 0.47 | Y8: 0 | Z8: 0.75 | AA8: 0 | AB8: 0 | AC8: Diesel | AD8: n.v.t. | AF8: Grote bakwagen (lvm > 16 ton) | AG8: n.v.t. | AH8: n.v.t. | AJ8: n.v.t. | AK8: n.v.t. | AM8: 179264.02 | AN8: 2.560914571 | AO8: 68.94769999 | AR8: 64.71607769 | AS8: 6.45622742 | AT8: 91.90456755 | AY8: 315.9 | AZ8: 750 | BA8: 3921.859326 | BB8: 5124.108763 | BC8: 0 | BD8: 73.79136 | BE8: 10185.65945 | BH8: 16560.42462 | BI8: 31848.69337 | BJ8: 0 | BK8: 0 | BL8: 0 | BM8: 312.0862848 | BN8: 1569.18384 | BO8: 4398.366 | BP8: 1000 | BQ8: 0 | BR8: 0 | BS8: 0 | BT8: 0 | BU8: 399.10125 | BV8: 56087.85537 | BY8: 0 | BZ8: 0 | CA8: 0 | CC8: 66273.51482 | CD8: 0.9467644974 | CE8: 25.48981339 | CH8: 81848 | CI8: 2522 | CJ8: 1404 | CK8: 85774 | CM8: 152047.5148 | CN8: 2.172107355 | CO8: 58.47981339 | CR8: 14292.46639 | CS8: 4409.37793 | CT8: 8514.66083 | CU8: 27216.50515 | CV8: nvt
A9: grote bakwagen 2023 | B9: Elektrisch | C9: 45048 | D9: Grote bakwagen (lvm > 16 ton) | E9: niet gekoeld | F9: 70000 | G9: Groen | H9: Electrolyse (hernieuwbare energie) | I9: BV of NV met 19% belasting | J9: 2023 | K9: 7 | L9: 2600 | M9: 1000 | N9: 260 | O9: 270000 | P9: 0 | Q9: 270000 | R9: 0.12 | S9: 62397.42 | T9: 0 | U9: 50 | V9: nvt | W9: 32104.04 | X9: 0.47 | Y9: 0 | Z9: 0.75 | AA9: 0 | AB9: 0 | AC9: EV Optimale mix | AD9: Scenario valide | AF9: Grote bakwagen 260 kWh | AG9: FC50 | AH9: HPC350 | AJ9: 0.5032970747 | AK9: 0.4967029253 | AM9: 211769.512 | AN9: 3.025278743 | AO9: 81.44981232 | AR9: 0 | AS9: 5.684481648 | AT9: n.v.t. | AY9: 0 | AZ9: 750 | BA9: 7023.526799 | BB9: 9176.595138 | BC9: 0 | BD9: 73.79136 | BE9: 17023.9133 | BH9: 29657.51101 | BI9: 0 | BJ9: 0 | BK9: 30015.00296 | BL9: 0 | BM9: 0 | BN9: 1569.18384 | BO9: 2199.183 | BP9: 1000 | BQ9: 0 | BR9: 0 | BS9: 0 | BT9: 0 | BU9: 399.10125 | BV9: 64839.98206 | BY9: 3210.4035 | BZ9: 4367.797601 | CA9: 7578.201101 | CC9: 89442.09646 | CD9: 1.277744235 | CE9: 34.40080633 | CH9: 86048.33304 | CI9: 2651.425764 | CJ9: 1476.051456 | CK9: 90175.81026 | CM9: 179617.9067 | CN9: 2.565970096 | CO9: 69.08381028 | CR9: 16884.08323 | CS9: 5208.919295 | CT9: 10058.60278 | CU9: 32151.6053 | CV9: N | CW9: 1353 | CX9: 1 | CY9: 12 | CZ9: 14236
A10: grote bakwagen 2023 | B10: Waterstof | C10: 45048 | D10: Grote bakwagen (lvm > 16 ton) | E10: niet gekoeld | F10: 70000 | G10: Groen | H10: Electrolyse (hernieuwbare energie) | I10: BV of NV met 19% belasting | J10: 2023 | K10: 7 | L10: 2600 | M10: 3000 | N10: 140 | O10: 443998.61 | P10: 0 | Q10: 443998.61 | R10: 10 | S10: 102608.77 | T10: 0 | U10: nvt | V10: 20 | W10: nvt | X10: 0.47 | Y10: 0 | Z10: 0.75 | AA10: 0 | AB10: 0 | AC10: Waterstof voertuig | AD10: n.v.t. | AF10: Grote bakwagen 45 kW | AG10: n.v.t. | AH10: n.v.t. | AJ10: n.v.t. | AK10: n.v.t. | AM10: 277956.6428 | AN10: 3.970809182 | AO10: 106.9064011 | AR10: 0 | AS10: 5.684481648 | AT10: n.v.t. | AY10: 0 | AZ10: 750 | BA10: 11549.76342 | BB10: 15090.35359 | BC10: 0 | BD10: 73.79136 | BE10: 27463.90838 | BH10: 48769.97635 | BI10: 0 | BJ10: 0 | BK10: 0 | BL10: 62182.55156 | BM10: 0 | BN10: 1569.18384 | BO10: 6597.549 | BP10: 3000 | BQ10: 0 | BR10: 0 | BS10: 0 | BT10: 0 | BU10: 399.10125 | BV10: 122518.362 | BY10: 0 | BZ10: 0 | CA10: 0 | CC10: 149982.2704 | CD10: 2.142603863 | CE10: 57.68548861 | CH10: 81848 | CI10: 2522 | CJ10: 1404 | CK10: 85774 | CM10: 235756.2704 | CN10: 3.36794672 | CO10: 90.67548861 | CR10: 22161.08942 | CS10: 6836.931841 | CT10: 13202.35114 | CU10: 42200.3724 | CV10: N | CW10: 1867 | CX10: 1 | CY10: 12 | CZ10: 20404
A11: lichte trekker 2023 | B11: Diesel | C11: 45048 | D11: Lichte trekker z/opl (GVW <40 ton) | E11: niet gekoeld | F11: 100000 | G11: Groen | H11: Electrolyse (hernieuwbare energie) | I11: BV of NV met 19% belasting | J11: 2023 | K11: 7 | L11: 2600 | M11: 1500 | N11: nvt | O11: 124872.75 | P11: 0 | Q11: 124872.75 | R11: 1.55 | S11: 28858.29 | T11: 0 | U11: nvt | V11: nvt | W11: nvt | X11: 0.47 | Y11: 0 | Z11: 0.75 | AA11: 0 | AB11: 0 | AC11: Diesel | AD11: n.v.t. | AF11: Lichte trekker z/opl (GVW <40 ton) | AG11: n.v.t. | AH11: n.v.t. | AJ11: n.v.t. | AK11: n.v.t. | AM11: 200437.8199 | AN11: 2.004378199 | AO11: 77.09146918 | AR11: 95.77075768 | AS11: 8.778590015 | AT11: 136.0059259 | AY11: 851.6088 | AZ11: 1250 | BA11: 3248.322615 | BB11: 4244.09878 | BC11: 0 | BD11: 73.79136 | BE11: 9667.821555 | BH11: 13716.3517 | BI11: 47131.61867 | BJ11: 0 | BK11: 0 | BL11: 0 | BM11: 445.4544988 | BN11: 3444.994 | BO11: 7329.57 | BP11: 1500 | BQ11: 0 | BR11: 0 | BS11: 0 | BT11: 0 | BU11: 996.8222 | BV11: 74564.81107 | BY11: 0 | BZ11: 0 | CA11: 0 | CC11: 84232.63262 | CD11: 0.8423263262 | CE11: 32.39716639 | CH11: 81848 | CI11: 2522 | CJ11: 1404 | CK11: 85774 | CM11: 170006.6326 | CN11: 1.700066326 | CO11: 65.38716639 | CR11: 15980.62347 | CS11: 4930.192346 | CT11: 9520.371427 | CU11: 30431.18724 | CV11: nvt
A12: lichte trekker 2023 | B12: Elektrisch | C12: 45048 | D12: Lichte trekker z/opl (GVW <40 ton) | E12: niet gekoeld | F12: 100000 | G12: Groen | H12: Electrolyse (hernieuwbare energie) | I12: BV of NV met 19% belasting | J12: 2023 | K12: 7 | L12: 2600 | M12: 1500 | N12: 340 | O12: 259200 | P12: 0 | Q12: 259200 | R12: 0.12 | S12: 59901.53 | T12: 0 | U12: 50 | V12: nvt | W12: 32104.04 | X12: 0.47 | Y12: 0 | Z12: 0.75 | AA12: 0 | AB12: 0 | AC12: EV Optimale mix | AD12: Vehicle technology insufficient | AF12: Lichte trekker z/opl 340 kWh | AG12: FC50 | AH12: HPC350 | AJ12: 0.4447431212 | AK12: 0.4447431212 | AM12: 239547.81 | AN12: 2.3954781 | AO12: 92.13377307 | AR12: 0 | AS12: 7.472008133 | AT12: n.v.t. | AY12: 0 | AZ12: 1250 | BA12: 6742.585727 | BB12: 8809.531332 | BC12: 0 | BD12: 73.79136 | BE12: 16875.90842 | BH12: 28471.21057 | BI12: 0 | BJ12: 0 | BK12: 47590.90609 | BL12: 0 | BM12: 0 | BN12: 3444.994 | BO12: 3664.785 | BP12: 1500 | BQ12: 0 | BR12: 0 | BS12: 0 | BT12: 0 | BU12: 996.8222 | BV12: 85668.71786 | BY12: 3210.4035 | BZ12: 4367.797601 | CA12: 7578.201101 | CC12: 110122.8274 | CD12: 1.101228274 | CE12: 42.35493361 | CH12: 88796.67008 | CI12: 2736.110863 | CJ12: 1523.195738 | CK12: 93055.97669 | CM12: 203178.8041 | CN12: 2.031788041 | CO12: 78.14569387 | CR12: 19098.80758 | CS12: 5892.185318 | CT12: 11378.01303 | CU12: 36369.00593 | CV12: N | CW12: 2003 | CX12: 1 | CY12: 12 | CZ12: 22036
A13: lichte trekker 2023 | B13: Waterstof | C13: 45048 | D13: Lichte trekker z/opl (GVW <40 ton) | E13: niet gekoeld | F13: 100000 | G13: Groen | H13: Electrolyse (hernieuwbare energie) | I13: BV of NV met 19% belasting | J13: 2023 | K13: 7 | L13: 2600 | M13: 5000 | N13: 140 | O13: 523246.26 | P13: 0 | Q13: 523246.26 | R13: 10 | S13: 120923.03 | T13: 0 | U13: nvt | V13: 30 | W13: nvt | X13: 0.47 | Y13: 0 | Z13: 0.75 | AA13: 0 | AB13: 0 | AC13: Waterstof voertuig | AD13: n.v.t. | AF13: Lichte trekker z/opl 60 kW | AG13: n.v.t. | AH13: n.v.t. | AJ13: n.v.t. | AK13: n.v.t. | AM13: 340053.3282 | AN13: 3.400533282 | AO13: 130.7897416 | AR13: 0 | AS13: 7.472008133 | AT13: n.v.t. | AY13: 0 | AZ13: 1250 | BA13: 13611.23758 | BB13: 17783.77447 | BC13: 0 | BD13: 73.79136 | BE13: 32718.80341 | BH13: 57474.74737 | BI13: 0 | BJ13: 0 | BK13: 0 | BL13: 92021.4928 | BM13: 0 | BN13: 3444.994 | BO13: 10994.355 | BP13: 5000 | BQ13: 0 | BR13: 0 | BS13: 0 | BT13: 0 | BU13: 996.8222 | BV13: 169932.4114 | BY13: 0 | BZ13: 0 | CA13: 0 | CC13: 202651.2148 | CD13: 2.026512148 | CE13: 77.94277492 | CH13: 81848 | CI13: 2522 | CJ13: 1404 | CK13: 85774 | CM13: 288425.2148 | CN13: 2.884252148 | CO13: 110.9327749 | CR13: 27111.97019 | CS13: 8364.331229 | CT13: 16151.81203 | CU13: 51628.11345 | CV13: N | CW13: 2762 | CX13: 1 | CY13: 12 | CZ13: 31144
A14: zware trekker 2023 | B14: Diesel | C14: 45048 | D14: Zware trekker z/opl (GVW >40 ton) | E14: niet gekoeld | F14: 100000 | G14: Groen | H14: Electrolyse (hernieuwbare energie) | I14: BV of NV met 19% belasting | J14: 2023 | K14: 7 | L14: 2600 | M14: 1500 | N14: nvt | O14: 144210 | P14: 0 | Q14: 144210 | R14: 1.55 | S14: 33327.16 | T14: 0 | U14: nvt | V14: nvt | W14: nvt | X14: 0.47 | Y14: 0 | Z14: 0.75 | AA14: 0 | AB14: 0 | AC14: Diesel | AD14: n.v.t. | AF14: Zware trekker z/opl (GVW >40 ton) | AG14: n.v.t. | AH14: n.v.t. | AJ14: n.v.t. | AK14: n.v.t. | AM14: 234960.5057 | AN14: 2.349605057 | AO14: 90.36942527 | AR14: 143.5736062 | AS14: 8.098874967 | AT14: 203.891686 | AY14: 851.6088 | AZ14: 1250 | BA14: 3751.343703 | BB14: 4901.321425 | BC14: 0 | BD14: 73.79136 | BE14: 10828.06529 | BH14: 15840.40616 | BI14: 70656.8124 | BJ14: 0 | BK14: 0 | BL14: 0 | BM14: 667.7978783 | BN14: 4648.2968 | BO14: 8375.76 | BP14: 1500 | BQ14: 0 | BR14: 0 | BS14: 0 | BT14: 0 | BU14: 996.8222 | BV14: 102685.8954 | BY14: 0 | BZ14: 0 | CA14: 0 | CC14: 113513.9607 | CD14: 1.135139607 | CE14: 43.65921566 | CH14: 81848 | CI14: 2522 | CJ14: 1404 | CK14: 85774 | CM14: 199287.9607 | CN14: 1.992879607 | CO14: 76.64921566 | CR14: 18733.06831 | CS14: 5779.350861 | CT14: 11160.1258 | CU14: 35672.54497 | CV14: nvt
A15: zware trekker 2023 | B15: Elektrisch | C15: 45048 | D15: Zware trekker z/opl (GVW >40 ton) | E15: niet gekoeld | F15: 100000 | G15: Groen | H15: Electrolyse (hernieuwbare energie) | I15: BV of NV met 19% belasting | J15: 2023 | K15: 7 | L15: 2600 | M15: 1500 | N15: 490 | O15: 410400 | P15: 0 | Q15: 410400 | R15: 0.12 | S15: 94844.08 | T15: 0 | U15: 50 | V15: nvt | W15: 32104.04 | X15: 0.47 | Y15: 0 | Z15: 0.75 | AA15: 0 | AB15: 0 | AC15: EV Optimale mix | AD15: Vehicle technology insufficient | AF15: Zware trekker z/opl 490 kWh | AG15: FC50 | AH15: HPC350 | AJ15: 0.4275478403 | AK15: 0.4275478403 | AM15: 306197.562 | AN15: 3.06197562 | AO15: 117.7682931 | AR15: 0 | AS15: 6.823328198 | AT15: n.v.t. | AY15: 0 | AZ15: 1250 | BA15: 10675.76074 | BB15: 13948.42461 | BC15: 0 | BD15: 73.79136 | BE15: 25947.9767 | BH15: 45079.41674 | BI15: 0 | BJ15: 0 | BK15: 72742.19906 | BL15: 0 | BM15: 0 | BN15: 4648.2968 | BO15: 4187.88 | BP15: 1500 | BQ15: 0 | BR15: 0 | BS15: 0 | BT15: 0 | BU15: 996.8222 | BV15: 129154.6148 | BY15: 3210.4035 | BZ15: 4367.797601 | CA15: 7578.201101 | CC15: 162680.7926 | CD15: 1.626807926 | CE15: 62.56953562 | CH15: 92587.61291 | CI15: 2852.921999 | CJ15: 1588.224618 | CK15: 97028.75953 | CM15: 259709.5521 | CN15: 2.597095521 | CO15: 99.88828928 | CR15: 24412.6979 | CS15: 7531.577012 | CT15: 14543.73492 | CU15: 46488.00983 | CV15: N | CW15: 3003 | CX15: 1 | CY15: 12 | CZ15: 34036
A16: zware trekker 2023 | B16: Waterstof | C16: 45048 | D16: Zware trekker z/opl (GVW >40 ton) | E16: niet gekoeld | F16: 100000 | G16: Groen | H16: Electrolyse (hernieuwbare energie) | I16: BV of NV met 19% belasting | J16: 2023 | K16: 7 | L16: 2600 | M16: 5000 | N16: 200 | O16: 645559.65 | P16: 0 | Q16: 645559.65 | R16: 10 | S16: 149189.85 | T16: 0 | U16: nvt | V16: 50 | W16: nvt | X16: 0.47 | Y16: 0 | Z16: 0.75 | AA16: 0 | AB16: 0 | AC16: Waterstof voertuig | AD16: n.v.t. | AF16: Zware trekker z/opl 80 kW | AG16: n.v.t. | AH16: n.v.t. | AJ16: n.v.t. | AK16: n.v.t. | AM16: 421968.0289 | AN16: 4.219680289 | AO16: 162.2953957 | AR16: 0 | AS16: 6.823328198 | AT16: n.v.t. | AY16: 0 | AZ16: 1250 | BA16: 16792.9833 | BB16: 21940.88714 | BC16: 0 | BD16: 73.79136 | BE16: 40057.6618 | BH16: 70909.97176 | BI16: 0 | BJ16: 0 | BK16: 0 | BL16: 137952.9398 | BM16: 0 | BN16: 4648.2968 | BO16: 12563.64 | BP16: 5000 | BQ16: 0 | BR16: 0 | BS16: 0 | BT16: 0 | BU16: 996.8222 | BV16: 232071.6706 | BY16: 0 | BZ16: 0 | CA16: 0 | CC16: 272129.3324 | CD16: 2.721293324 | CE16: 104.6651278 | CH16: 81848 | CI16: 2522 | CJ16: 1404 | CK16: 85774 | CM16: 357903.3324 | CN16: 3.579033324 | CO16: 137.6551278 | CR16: 33642.91324 | CS16: 10379.19664 | CT16: 20042.58661 | CU16: 64064.69649 | CV16: N | CW16: 4142 | CX16: 1 | CY16: 12 | CZ16: 47704

Sheet Dynamic
D1: Jaarlijkse verandering (%) | E1: Geaggregeerd
B2: Diesel prijs | D2: =Parameters!B25 -> 0.01 | E2: =(1-(1+D2)^DV_age)/(1-(1+D2))/DV_age -> 1.03050503
B4: Opladen | C4: Aanschaf en installatie | D4: =Parameters!B26 -> 0.016
C5: Operationele kosten | D5: =Parameters!B27 -> 0.016
B6: Energie prijs | C6: AC3,7 | D6: =Parameters!B28 -> 0.01 | E6: =(1-(1+D6)^EV_age)/(1-(1+D6))/EV_age -> 1.03050503
B7: Energie prijs | C7: Andere | D7: =Parameters!B29 -> 0.01 | E7: =(1-(1+D7)^EV_age)/(1-(1+D7))/EV_age -> 1.03050503
B8: Energie prijs | C8: Extern opladen | D8: =Parameters!B30 -> 0.01 | E8: =(1-(1+D8)^EV_age)/(1-(1+D8))/EV_age -> 1.03050503
D10: Factor
B11: Batterij prijs | D11: =Parameters!B31 -> 0.94
F12: Total price | G12: Total price
F13: BEV (kWh) | G13: FCEV (kWh)
C14: Year | D14: Calculated price | E14: Rounded price | F14: =Calculatie!C26 -> 120 | G14: =Calculatie!D26 -> 70
B15: =C15-MIN($C$15:$C$24) -> 0 | C15: =Invoervelden!H2 -> 2022 | D15: =Parameters!B15 -> 525 | E15: =ROUND(D15,0) -> 525 | F15: =E15*$F$14 -> 63000 | G15: =E15*$G$14 -> 36750
B16: =C16-MIN($C$15:$C$24) -> 1 | C16: =C15+1 -> 2023 | D16: =D15*$D$11 -> 493.5 | E16: =ROUND(D16,0) -> 494 | F16: =E16*$F$14 -> 59280 | G16: =E16*$G$14 -> 34580
B17: 2 | C17: =C16+1 -> 2024 | D17: =D16*$D$11 -> 463.89 | E17: 464 | F17: 55680 | G17: 32480
B18: 3 | C18: 2025 | D18: =D17*$D$11 -> 436.0566 | E18: 436 | F18: 52320 | G18: 30520
B19: 4 | C19: 2026 | D19: 409.893204 | E19: 410 | F19: 49200 | G19: 28700
B20: 5 | C20: 2027 | D20: 385.2996118 | E20: 385 | F20: 46200 | G20: 26950
B21: 6 | C21: 2028 | D21: 362.1816351 | E21: 362 | F21: 43440 | G21: 25340
B22: 7 | C22: 2029 | D22: 340.450737 | E22: 340 | F22: 40800 | G22: 23800
B23: 8 | C23: 2030 | D23: =D22*$D$11 -> 320.0236927 | E23: 320 | F23: 38400 | G23: 22400
B24: 9 | C24: 2031 | D24: =D23*$D$11 -> 300.8222712 | E24: 301 | F24: 36120 | G24: 21070
B26: Hydrogen prices | D26: =D2 -> 0.01
B28: Diesel vehicle | C28: 2030 | D28: 0.3 | E28: =D28/B43 -> 0.03333333333 | G28: -increase by 30% until 2030
D29: 0.4 | E29: =(D29-D28)/(B62-B43) -> 0.005263157895 | G29: -increase by 40% until 2050
B30: Base vehicle | E30: 0.016
C33: Year | D33: Diesel vehicle price | E33: Fuel Cell production cost
B34: =C34-MIN($C$34:$C$62) -> 0 | C34: =Invoervelden!H2 -> 2022 | D34: 1 | E34: =Parameters!B36 -> 1.41
B35: =C35-MIN($C$34:$C$62) -> 1 | C35: =C34+1 -> 2023 | D35: =IF(C35<$C$28+1,$E$28,$E$29)+D34 -> 1.033333333 | E35: =IF(C35<Parameters!$B$38+1,-Parameters!$B$37,0)+E34 -> 1.388421053
B36: 2 | C36: =C35+1 -> 2024 | D36: 1.066666667 | E36: =IF(C36<Parameters!$B$38+1,-Parameters!$B$37,0)+E35 -> 1.366842105
B37: 3 | C37: 2025 | D37: 1.1 | E37: =IF(C37<Parameters!$B$38+1,-Parameters!$B$37,0)+E36 -> 1.345263158
B38: 4 | C38: 2026 | D38: 1.133333333 | E38: =IF(C38<Parameters!$B$38+1,-Parameters!$B$37,0)+E37 -> 1.323684211
B39: 5 | C39: 2027 | D39: 1.166666667 | E39: =IF(C39<Parameters!$B$38+1,-Parameters!$B$37,0)+E38 -> 1.302105263
B40: 6 | C40: 2028 | D40: 1.2 | E40: =IF(C40<Parameters!$B$38+1,-Parameters!$B$37,0)+E39 -> 1.280526316
B41: 7 | C41: 2029 | D41: 1.233333333 | E41: =IF(C41<Parameters!$B$38+1,-Parameters!$B$37,0)+E40 -> 1.258947368
B42: 8 | C42: 2030 | D42: =IF(C42<$C$28+1,$E$28,$E$29)+D41 -> 1.266666667 | E42: =IF(C42<Parameters!$B$38+1,-Parameters!$B$37,0)+E41 -> 1.237368421
B43: 9 | C43: 2031 | D43: 1.271929825 | E43: =IF(C43<Parameters!$B$38+1,-Parameters!$B$37,0)+E42 -> 1.215789474
B44: 10 | C44: 2032 | D44: 1.277192982 | E44: =IF(C44<Parameters!$B$38+1,-Parameters!$B$37,0)+E43 -> 1.194210526
B45: 11 | C45: 2033 | D45: 1.28245614 | E45: =IF(C45<Parameters!$B$38+1,-Parameters!$B$37,0)+E44 -> 1.172631579
B46: 12 | C46: 2034 | D46: 1.287719298 | E46: =IF(C46<Parameters!$B$38+1,-Parameters!$B$37,0)+E45 -> 1.151052632
B47: 13 | C47: 2035 | D47: 1.292982456 | E47: =IF(C47<Parameters!$B$38+1,-Parameters!$B$37,0)+E46 -> 1.129473684
B48: 14 | C48: 2036 | D48: 1.298245614 | E48: =IF(C48<Parameters!$B$38+1,-Parameters!$B$37,0)+E47 -> 1.107894737
B49: 15 | C49: 2037 | D49: 1.303508772 | E49: =IF(C49<Parameters!$B$38+1,-Parameters!$B$37,0)+E48 -> 1.086315789
B50: 16 | C50: 2038 | D50: 1.30877193 | E50: =IF(C50<Parameters!$B$38+1,-Parameters!$B$37,0)+E49 -> 1.064736842
B51: 17 | C51: 2039 | D51: 1.314035088 | E51: =IF(C51<Parameters!$B$38+1,-Parameters!$B$37,0)+E50 -> 1.043157895
B52: 18 | C52: 2040 | D52: 1.319298246 | E52: =IF(C52<Parameters!$B$38+1,-Parameters!$B$37,0)+E51 -> 1.021578947
B53: 19 | C53: 2041 | D53: 1.324561404 | E53: =IF(C53<Parameters!$B$38+1,-Parameters!$B$37,0)+E52 -> 1.021578947
B54: 20 | C54: 2042 | D54: 1.329824561 | E54: =IF(C54<Parameters!$B$38+1,-Parameters!$B$37,0)+E53 -> 1.021578947
B55: 21 | C55: 2043 | D55: 1.335087719 | E55: =IF(C55<Parameters!$B$38+1,-Parameters!$B$37,0)+E54 -> 1.021578947
B56: 22 | C56: 2044 | D56: 1.340350877 | E56: =IF(C56<Parameters!$B$38+1,-Parameters!$B$37,0)+E55 -> 1.021578947
B57: 23 | C57: 2045 | D57: 1.345614035 | E57: =IF(C57<Parameters!$B$38+1,-Parameters!$B$37,0)+E56 -> 1.021578947
B58: 24 | C58: 2046 | D58: 1.350877193 | E58: =IF(C58<Parameters!$B$38+1,-Parameters!$B$37,0)+E57 -> 1.021578947
B59: 25 | C59: 2047 | D59: 1.356140351 | E59: =IF(C59<Parameters!$B$38+1,-Parameters!$B$37,0)+E58 -> 1.021578947
B60: 26 | C60: 2048 | D60: 1.361403509 | E60: =IF(C60<Parameters!$B$38+1,-Parameters!$B$37,0)+E59 -> 1.021578947
B61: 27 | C61: 2049 | D61: 1.366666667 | E61: =IF(C61<Parameters!$B$38+1,-Parameters!$B$37,0)+E60 -> 1.021578947
B62: 28 | C62: 2050 | D62: 1.371929825 | E62: =IF(C62<Parameters!$B$38+1,-Parameters!$B$37,0)+E61 -> 1.021578947
B65: Fuel cell system
D66: Fuel cell system per kW | E66: Total fuel cell price | F66: Storage cost price | G66: Total storage cost | H66: Fuel cell system
E67: =INDEX(VehicleCatalogus[[#All],[FC power]],MATCH(Calculatie!$D$28,VehicleCatalogus[[#All],[Name]],0)) -> 30 | G67: =Calculatie!$D$32 -> 15
B68: =C68-MIN($C$68:$C$96) -> 0 | C68: =Invoervelden!H2 -> 2022 | D68: =Parameters!B16 -> 1535 | E68: =$E$67*D68 -> 46050 | F68: =Parameters!$B$17 -> 1275 | G68: =F68*$G$67 -> 19125 | H68: =G68+E68 -> 65175
B69: =C69-MIN($C$68:$C$96) -> 1 | C69: =C68+1 -> 2023 | D69: =IF(C69<2030+1,Parameters!$B$32,Parameters!$B$33)*Dynamic!D68 -> 1473.6 | E69: =$E$67*D69 -> 44208 | F69: =IF(C69<2030+1,Parameters!$B$34,Parameters!$B$35)*Dynamic!F68 -> 1224 | G69: =F69*$G$67 -> 18360 | H69: =G69+E69 -> 62568
B70: 2 | C70: =C69+1 -> 2024 | D70: =IF(C70<2030+1,Parameters!$B$32,Parameters!$B$33)*Dynamic!D69 -> 1414.656 | E70: 42439.68 | F70: =IF(C70<2030+1,Parameters!$B$34,Parameters!$B$35)*Dynamic!F69 -> 1175.04 | G70: 17625.6 | H70: 60065.28
B71: 3 | C71: 2025 | D71: =IF(C71<2030+1,Parameters!$B$32,Parameters!$B$33)*Dynamic!D70 -> 1358.06976 | E71: 40742.0928 | F71: =IF(C71<2030+1,Parameters!$B$34,Parameters!$B$35)*Dynamic!F70 -> 1128.0384 | G71: 16920.576 | H71: 57662.6688
B72: 4 | C72: 2026 | D72: =IF(C72<2030+1,Parameters!$B$32,Parameters!$B$33)*Dynamic!D71 -> 1303.74697 | E72: 39112.40909 | F72: =IF(C72<2030+1,Parameters!$B$34,Parameters!$B$35)*Dynamic!F71 -> 1082.916864 | G72: 16243.75296 | H72: 55356.16205
B73: 5 | C73: 2027 | D73: =IF(C73<2030+1,Parameters!$B$32,Parameters!$B$33)*Dynamic!D72 -> 1251.597091 | E73: 37547.91272 | F73: =IF(C73<2030+1,Parameters!$B$34,Parameters!$B$35)*Dynamic!F72 -> 1039.600189 | G73: 15594.00284 | H73: 53141.91557
B74: 6 | C74: 2028 | D74: =IF(C74<2030+1,Parameters!$B$32,Parameters!$B$33)*Dynamic!D73 -> 1201.533207 | E74: 36045.99622 | F74: =IF(C74<2030+1,Parameters!$B$34,Parameters!$B$35)*Dynamic!F73 -> 998.0161819 | G74: 14970.24273 | H74: 51016.23894
B75: 7 | C75: 2029 | D75: =IF(C75<2030+1,Parameters!$B$32,Parameters!$B$33)*Dynamic!D74 -> 1153.471879 | E75: 34604.15637 | F75: =IF(C75<2030+1,Parameters!$B$34,Parameters!$B$35)*Dynamic!F74 -> 958.0955346 | G75: 14371.43302 | H75: 48975.58939
B76: 8 | C76: 2030 | D76: =IF(C76<2030+1,Parameters!$B$32,Parameters!$B$33)*Dynamic!D75 -> 1107.333004 | E76: 33219.99011 | F76: =IF(C76<2030+1,Parameters!$B$34,Parameters!$B$35)*Dynamic!F75 -> 919.7717132 | G76: 13796.5757 | H76: 47016.56581
B77: 9 | C77: 2031 | D77: =IF(C77<2030+1,Parameters!$B$32,Parameters!$B$33)*Dynamic!D76 -> 1074.113014 | E77: 32223.39041 | F77: =IF(C77<2030+1,Parameters!$B$34,Parameters!$B$35)*Dynamic!F76 -> 892.1785618 | G77: 13382.67843 | H77: 45606.06884
B78: 10 | C78: 2032 | D78: =IF(C78<2030+1,Parameters!$B$32,Parameters!$B$33)*Dynamic!D77 -> 1041.889623 | E78: 31256.6887 | F78: =IF(C78<2030+1,Parameters!$B$34,Parameters!$B$35)*Dynamic!F77 -> 865.413205 | G78: 12981.19807 | H78: 44237.88677
B79: 11 | C79: 2033 | D79: =IF(C79<2030+1,Parameters!$B$32,Parameters!$B$33)*Dynamic!D78 -> 1010.632935 | E79: 30318.98804 | F79: =IF(C79<2030+1,Parameters!$B$34,Parameters!$B$35)*Dynamic!F78 -> 839.4508088 | G79: 12591.76213 | H79: 42910.75017
B80: 12 | C80: 2034 | D80: =IF(C80<2030+1,Parameters!$B$32,Parameters!$B$33)*Dynamic!D79 -> 980.3139465 | E80: 29409.41839 | F80: =IF(C80<2030+1,Parameters!$B$34,Parameters!$B$35)*Dynamic!F79 -> 814.2672845 | G80: 12214.00927 | H80: 41623.42766
B81: 13 | C81: 2035 | D81: =IF(C81<2030+1,Parameters!$B$32,Parameters!$B$33)*Dynamic!D80 -> 950.9045281 | E81: 28527.13584 | F81: =IF(C81<2030+1,Parameters!$B$34,Parameters!$B$35)*Dynamic!F80 -> 789.839266 | G81: 11847.58899 | H81: 40374.72483
B82: 14 | C82: 2036 | D82: =IF(C82<2030+1,Parameters!$B$32,Parameters!$B$33)*Dynamic!D81 -> 922.3773922 | E82: 27671.32177 | F82: =IF(C82<2030+1,Parameters!$B$34,Parameters!$B$35)*Dynamic!F81 -> 766.144088 | G82: 11492.16132 | H82: 39163.48309
B83: 15 | C83: 2037 | D83: =IF(C83<2030+1,Parameters!$B$32,Parameters!$B$33)*Dynamic!D82 -> 894.7060705 | E83: 26841.18211 | F83: =IF(C83<2030+1,Parameters!$B$34,Parameters!$B$35)*Dynamic!F82 -> 743.1597654 | G83: 11147.39648 | H83: 37988.5786
B84: 16 | C84: 2038 | D84: =IF(C84<2030+1,Parameters!$B$32,Parameters!$B$33)*Dynamic!D83 -> 867.8648884 | E84: 26035.94665 | F84: =IF(C84<2030+1,Parameters!$B$34,Parameters!$B$35)*Dynamic!F83 -> 720.8649724 | G84: 10812.97459 | H84: 36848.92124
B85: 17 | C85: 2039 | D85: =IF(C85<2030+1,Parameters!$B$32,Parameters!$B$33)*Dynamic!D84 -> 841.8289417 | E85: 25254.86825 | F85: =IF(C85<2030+1,Parameters!$B$34,Parameters!$B$35)*Dynamic!F84 -> 699.2390232 | G85: 10488.58535 | H85: 35743.4536
B86: 18 | C86: 2040 | D86: =IF(C86<2030+1,Parameters!$B$32,Parameters!$B$33)*Dynamic!D85 -> 816.5740735 | E86: 24497.2222 | F86: =IF(C86<2030+1,Parameters!$B$34,Parameters!$B$35)*Dynamic!F85 -> 678.2618526 | G86: 10173.92779 | H86: 34671.14999
B87: 19 | C87: 2041 | D87: =IF(C87<2030+1,Parameters!$B$32,Parameters!$B$33)*Dynamic!D86 -> 792.0768513 | E87: 23762.30554 | F87: =IF(C87<2030+1,Parameters!$B$34,Parameters!$B$35)*Dynamic!F86 -> 657.913997 | G87: 9868.709955 | H87: 33631.01549
B88: 20 | C88: 2042 | D88: =IF(C88<2030+1,Parameters!$B$32,Parameters!$B$33)*Dynamic!D87 -> 768.3145457 | E88: 23049.43637 | F88: =IF(C88<2030+1,Parameters!$B$34,Parameters!$B$35)*Dynamic!F87 -> 638.1765771 | G88: 9572.648656 | H88: 32622.08503
B89: 21 | C89: 2043 | D89: =IF(C89<2030+1,Parameters!$B$32,Parameters!$B$33)*Dynamic!D88 -> 745.2651094 | E89: 22357.95328 | F89: =IF(C89<2030+1,Parameters!$B$34,Parameters!$B$35)*Dynamic!F88 -> 619.0312798 | G89: 9285.469196 | H89: 31643.42248
B90: 22 | C90: 2044 | D90: =IF(C90<2030+1,Parameters!$B$32,Parameters!$B$33)*Dynamic!D89 -> 722.9071561 | E90: 21687.21468 | F90: =IF(C90<2030+1,Parameters!$B$34,Parameters!$B$35)*Dynamic!F89 -> 600.4603414 | G90: 9006.90512 | H90: 30694.1198
B91: 23 | C91: 2045 | D91: =IF(C91<2030+1,Parameters!$B$32,Parameters!$B$33)*Dynamic!D90 -> 701.2199414 | E91: 21036.59824 | F91: =IF(C91<2030+1,Parameters!$B$34,Parameters!$B$35)*Dynamic!F90 -> 582.4465311 | G91: 8736.697967 | H91: 29773.29621
B92: 24 | C92: 2046 | D92: =IF(C92<2030+1,Parameters!$B$32,Parameters!$B$33)*Dynamic!D91 -> 680.1833431 | E92: 20405.50029 | F92: =IF(C92<2030+1,Parameters!$B$34,Parameters!$B$35)*Dynamic!F91 -> 564.9731352 | G92: 8474.597028 | H92: 28880.09732
B93: 25 | C93: 2047 | D93: =IF(C93<2030+1,Parameters!$B$32,Parameters!$B$33)*Dynamic!D92 -> 659.7778429 | E93: 19793.33529 | F93: =IF(C93<2030+1,Parameters!$B$34,Parameters!$B$35)*Dynamic!F92 -> 548.0239411 | G93: 8220.359117 | H93: 28013.6944
B94: 26 | C94: 2048 | D94: =IF(C94<2030+1,Parameters!$B$32,Parameters!$B$33)*Dynamic!D93 -> 639.9845076 | E94: 19199.53523 | F94: =IF(C94<2030+1,Parameters!$B$34,Parameters!$B$35)*Dynamic!F93 -> 531.5832229 | G94: 7973.748343 | H94: 27173.28357
B95: 27 | C95: 2049 | D95: =IF(C95<2030+1,Parameters!$B$32,Parameters!$B$33)*Dynamic!D94 -> 620.7849723 | E95: 18623.54917 | F95: =IF(C95<2030+1,Parameters!$B$34,Parameters!$B$35)*Dynamic!F94 -> 515.6357262 | G95: 7734.535893 | H95: 26358.08506
B96: 28 | C96: 2050 | D96: =IF(C96<2030+1,Parameters!$B$32,Parameters!$B$33)*Dynamic!D95 -> 602.1614232 | E96: 18064.8427 | F96: =IF(C96<2030+1,Parameters!$B$34,Parameters!$B$35)*Dynamic!F95 -> 500.1666544 | G96: 7502.499816 | H96: 25567.34251

Sheet Breakeven analyse
E3: 1. Buy in Year 0 - which year will it become breakeven
E4: 2. Buy in Year x - which year will it become cheaper to buy EV
E6: Fleet prognosis - vans and trucks
E7: Ingroeipad report
E12: Diesel
F13: =INDEX(VehicleCatalogus[[#All],[Veh. Price]],MATCH(Calculatie!$B$28,VehicleCatalogus[[#All],[Name]],0))/(1+(VLOOKUP(('Input-Output Module'!B20-2022),Dynamic!$B$34:$D$62,3)))^0 -> 81937.5
E14: Year | F14: Investment - resale | G14: Depreciation | H14: Fixed vehicle cost | I14: Energy | J14: Maintenance | K14: Tolheffing | L14: CO2 prijs | M14: HBE | N14: Specific transport cost | O14: Charging infra investment | P14: Charging infra operational | Q14: Diesel
A15: D | B15: =IF(MOD(D15,DV_age)=0,ROUNDUP(D15/DV_age,0)+1,ROUNDUP(D15/DV_age,0)) -> 1 | C15: =COUNTIF($B$15:B15,B15) -> 1 | D15: 0 | E15: ='Input-Output Module'!B20 -> 2023 | F15: =Calculatie!B50 -> 81937.5 | G15: =$F$13*(SUMIFS(Dynamic!$D$34:$D$62,Dynamic!$C$34:$C$62,SUMIFS($E$15:$E$34,$B$15:$B$34,B15,$C$15:$C$34,1)))*IF(C15>10,Parameters!$D$93/(DV_age-10),INDEX(Parameters!$D$83:$D$92,C15)) -> 15798.33761 | H15: ='Input-Output Module'!$C$78 -> 6055.978365 | I15: =Calculatie!$B$57*(Calculatie!$B$74*((1+Dynamic!$D$2)^'Breakeven analyse'!D15))+Calculatie!$B$67 -> 5616.049141 | J15: ='Input-Output Module'!$C$87+'Input-Output Module'!$C$88+'Input-Output Module'!$C$89+'Input-Output Module'!$C$90 -> 3142.004575 | K15: ='Input-Output Module'!$C$91 -> 0 | L15: ='Input-Output Module'!$C$92 -> 0 | M15: ='Input-Output Module'!$C$93 -> 0 | N15: ='Input-Output Module'!$C$94 -> 410.75625 | O15: ='Input-Output Module'!$C$98 -> 0 | P15: ='Input-Output Module'!$C$99 -> 0 | Q15: =SUM(G15:P15) -> 31023.12595 | R15: =SUM(H15:N15,P15) -> 15224.78833
A16: D | B16: 1 | C16: =COUNTIF($B$15:B16,B16) -> 2 | D16: 1 | E16: =E15+1 -> 2024 | F16: =IF(C16=1,$F$13*(SUMIFS(Dynamic!$D$34:$D$62,Dynamic!$C$34:$C$62,SUMIFS($E$15:$E$34,$B$15:$B$34,B16,$C$15:$C$34,1))-SUMIFS(Dynamic!$D$34:$D$62,Dynamic!$C$34:$C$62,SUMIFS($E$15:$E$34,$B$15:$B$34,B16-1,$C$15:$C$34,1))*IFERROR(INDEX(Parameters!$B$83:$B$92,DV_age),10%)),0) -> 0 | G16: =$F$13*(SUMIFS(Dynamic!$D$34:$D$62,Dynamic!$C$34:$C$62,SUMIFS($E$15:$E$34,$B$15:$B$34,B16,$C$15:$C$34,1)))*IF(C16>10,Parameters!$D$93/(DV_age-10),INDEX(Parameters!$D$83:$D$92,C16)) -> 13030.04815 | H16: ='Input-Output Module'!$C$78 -> 6055.978365 | I16: =Calculatie!$B$57*(Calculatie!$B$74*((1+Dynamic!$D$2)^'Breakeven analyse'!D16))+Calculatie!$B$67 -> 5671.45078 | J16: ='Input-Output Module'!$C$87+'Input-Output Module'!$C$88+'Input-Output Module'!$C$89+'Input-Output Module'!$C$90 -> 3142.004575 | K16: ='Input-Output Module'!$C$91 -> 0 | L16: ='Input-Output Module'!$C$92 -> 0 | M16: ='Input-Output Module'!$C$93 -> 0 | N16: ='Input-Output Module'!$C$94 -> 410.75625 | O16: ='Input-Output Module'!$C$98 -> 0 | P16: ='Input-Output Module'!$C$99 -> 0 | Q16: =SUM(G16:P16) -> 28310.23812 | R16: =SUM(H16:N16,P16) -> 15280.18997
A17: D | B17: 1 | C17: =COUNTIF($B$15:B17,B17) -> 3 | D17: 2 | E17: =E16+1 -> 2025 | F17: =IF(C17=1,$F$13*(SUMIFS(Dynamic!$D$34:$D$62,Dynamic!$C$34:$C$62,SUMIFS($E$15:$E$34,$B$15:$B$34,B17,$C$15:$C$34,1))-SUMIFS(Dynamic!$D$34:$D$62,Dynamic!$C$34:$C$62,SUMIFS($E$15:$E$34,$B$15:$B$34,B17-1,$C$15:$C$34,1))*IFERROR(INDEX(Parameters!$B$83:$B$92,DV_age),10%)),0) -> 0 | G17: =$F$13*(SUMIFS(Dynamic!$D$34:$D$62,Dynamic!$C$34:$C$62,SUMIFS($E$15:$E$34,$B$15:$B$34,B17,$C$15:$C$34,1)))*IF(C17>10,Parameters!$D$93/(DV_age-10),INDEX(Parameters!$D$83:$D$92,C17)) -> 10564.80729 | H17: ='Input-Output Module'!$C$78 -> 6055.978365 | I17: =Calculatie!$B$57*(Calculatie!$B$74*((1+Dynamic!$D$2)^'Breakeven analyse'!D17))+Calculatie!$B$67 -> 5727.406435 | J17: ='Input-Output Module'!$C$87+'Input-Output Module'!$C$88+'Input-Output Module'!$C$89+'Input-Output Module'!$C$90 -> 3142.004575 | K17: ='Input-Output Module'!$C$91 -> 0 | L17: ='Input-Output Module'!$C$92 -> 0 | M17: ='Input-Output Module'!$C$93 -> 0 | N17: ='Input-Output Module'!$C$94 -> 410.75625 | O17: ='Input-Output Module'!$C$98 -> 0 | P17: ='Input-Output Module'!$C$99 -> 0 | Q17: 25900.95291 | R17: 15336.14562
A18: D | B18: 1 | C18: =COUNTIF($B$15:B18,B18) -> 4 | D18: 3 | E18: 2026 | F18: =IF(C18=1,$F$13*(SUMIFS(Dynamic!$D$34:$D$62,Dynamic!$C$34:$C$62,SUMIFS($E$15:$E$34,$B$15:$B$34,B18,$C$15:$C$34,1))-SUMIFS(Dynamic!$D$34:$D$62,Dynamic!$C$34:$C$62,SUMIFS($E$15:$E$34,$B$15:$B$34,B18-1,$C$15:$C$34,1))*IFERROR(INDEX(Parameters!$B$83:$B$92,DV_age),10%)),0) -> 0 | G18: =$F$13*(SUMIFS(Dynamic!$D$34:$D$62,Dynamic!$C$34:$C$62,SUMIFS($E$15:$E$34,$B$15:$B$34,B18,$C$15:$C$34,1)))*IF(C18>10,Parameters!$D$93/(DV_age-10),INDEX(Parameters!$D$83:$D$92,C18)) -> 8565.981626 | H18: ='Input-Output Module'!$C$78 -> 6055.978365 | I18: =Calculatie!$B$57*(Calculatie!$B$74*((1+Dynamic!$D$2)^'Breakeven analyse'!D18))+Calculatie!$B$67 -> 5783.921646 | J18: ='Input-Output Module'!$C$87+'Input-Output Module'!$C$88+'Input-Output Module'!$C$89+'Input-Output Module'!$C$90 -> 3142.004575 | K18: ='Input-Output Module'!$C$91 -> 0 | L18: ='Input-Output Module'!$C$92 -> 0 | M18: ='Input-Output Module'!$C$93 -> 0 | N18: ='Input-Output Module'!$C$94 -> 410.75625 | O18: ='Input-Output Module'!$C$98 -> 0 | P18: ='Input-Output Module'!$C$99 -> 0 | Q18: 23958.64246 | R18: 15392.66084
A19: D | B19: 1 | C19: =COUNTIF($B$15:B19,B19) -> 5 | D19: 4 | E19: 2027 | F19: =IF(C19=1,$F$13*(SUMIFS(Dynamic!$D$34:$D$62,Dynamic!$C$34:$C$62,SUMIFS($E$15:$E$34,$B$15:$B$34,B19,$C$15:$C$34,1))-SUMIFS(Dynamic!$D$34:$D$62,Dynamic!$C$34:$C$62,SUMIFS($E$15:$E$34,$B$15:$B$34,B19-1,$C$15:$C$34,1))*IFERROR(INDEX(Parameters!$B$83:$B$92,DV_age),10%)),0) -> 0 | G19: =$F$13*(SUMIFS(Dynamic!$D$34:$D$62,Dynamic!$C$34:$C$62,SUMIFS($E$15:$E$34,$B$15:$B$34,B19,$C$15:$C$34,1)))*IF(C19>10,Parameters!$D$93/(DV_age-10),INDEX(Parameters!$D$83:$D$92,C19)) -> 6945.326991 | H19: ='Input-Output Module'!$C$78 -> 6055.978365 | I19: =Calculatie!$B$57*(Calculatie!$B$74*((1+Dynamic!$D$2)^'Breakeven analyse'!D19))+Calculatie!$B$67 -> 5841.00201 | J19: ='Input-Output Module'!$C$87+'Input-Output Module'!$C$88+'Input-Output Module'!$C$89+'Input-Output Module'!$C$90 -> 3142.004575 | K19: ='Input-Output Module'!$C$91 -> 0 | L19: ='Input-Output Module'!$C$92 -> 0 | M19: ='Input-Output Module'!$C$93 -> 0 | N19: ='Input-Output Module'!$C$94 -> 410.75625 | O19: ='Input-Output Module'!$C$98 -> 0 | P19: ='Input-Output Module'!$C$99 -> 0 | Q19: 22395.06819 | R19: 15449.7412
A20: D | B20: 1 | C20: =COUNTIF($B$15:B20,B20) -> 6 | D20: 5 | E20: 2028 | F20: =IF(C20=1,$F$13*(SUMIFS(Dynamic!$D$34:$D$62,Dynamic!$C$34:$C$62,SUMIFS($E$15:$E$34,$B$15:$B$34,B20,$C$15:$C$34,1))-SUMIFS(Dynamic!$D$34:$D$62,Dynamic!$C$34:$C$62,SUMIFS($E$15:$E$34,$B$15:$B$34,B20-1,$C$15:$C$34,1))*IFERROR(INDEX(Parameters!$B$83:$B$92,DV_age),10%)),0) -> 0 | G20: =$F$13*(SUMIFS(Dynamic!$D$34:$D$62,Dynamic!$C$34:$C$62,SUMIFS($E$15:$E$34,$B$15:$B$34,B20,$C$15:$C$34,1)))*IF(C20>10,Parameters!$D$93/(DV_age-10),INDEX(Parameters!$D$83:$D$92,C20)) -> 5631.294709 | H20: ='Input-Output Module'!$C$78 -> 6055.978365 | I20: =Calculatie!$B$57*(Calculatie!$B$74*((1+Dynamic!$D$2)^'Breakeven analyse'!D20))+Calculatie!$B$67 -> 5898.653177 | J20: ='Input-Output Module'!$C$87+'Input-Output Module'!$C$88+'Input-Output Module'!$C$89+'Input-Output Module'!$C$90 -> 3142.004575 | K20: ='Input-Output Module'!$C$91 -> 0 | L20: ='Input-Output Module'!$C$92 -> 0 | M20: ='Input-Output Module'!$C$93 -> 0 | N20: ='Input-Output Module'!$C$94 -> 410.75625 | O20: ='Input-Output Module'!$C$98 -> 0 | P20: ='Input-Output Module'!$C$99 -> 0 | Q20: 21138.68708 | R20: 15507.39237
A21: D | B21: 1 | C21: =COUNTIF($B$15:B21,B21) -> 7 | D21: 6 | E21: 2029 | F21: =IF(C21=1,$F$13*(SUMIFS(Dynamic!$D$34:$D$62,Dynamic!$C$34:$C$62,SUMIFS($E$15:$E$34,$B$15:$B$34,B21,$C$15:$C$34,1))-SUMIFS(Dynamic!$D$34:$D$62,Dynamic!$C$34:$C$62,SUMIFS($E$15:$E$34,$B$15:$B$34,B21-1,$C$15:$C$34,1))*IFERROR(INDEX(Parameters!$B$83:$B$92,DV_age),10%)),0) -> 0 | G21: =$F$13*(SUMIFS(Dynamic!$D$34:$D$62,Dynamic!$C$34:$C$62,SUMIFS($E$15:$E$34,$B$15:$B$34,B21,$C$15:$C$34,1)))*IF(C21>10,Parameters!$D$93/(DV_age-10),INDEX(Parameters!$D$83:$D$92,C21)) -> 4565.872873 | H21: ='Input-Output Module'!$C$78 -> 6055.978365 | I21: =Calculatie!$B$57*(Calculatie!$B$74*((1+Dynamic!$D$2)^'Breakeven analyse'!D21))+Calculatie!$B$67 -> 5956.880856 | J21: ='Input-Output Module'!$C$87+'Input-Output Module'!$C$88+'Input-Output Module'!$C$89+'Input-Output Module'!$C$90 -> 3142.004575 | K21: ='Input-Output Module'!$C$91 -> 0 | L21: ='Input-Output Module'!$C$92 -> 0 | M21: ='Input-Output Module'!$C$93 -> 0 | N21: ='Input-Output Module'!$C$94 -> 410.75625 | O21: ='Input-Output Module'!$C$98 -> 0 | P21: ='Input-Output Module'!$C$99 -> 0 | Q21: 20131.49292 | R21: 15565.62005
A22: D | B22: 2 | C22: =COUNTIF($B$15:B22,B22) -> 1 | D22: 7 | E22: 2030 | F22: =IF(C22=1,$F$13*(SUMIFS(Dynamic!$D$34:$D$62,Dynamic!$C$34:$C$62,SUMIFS($E$15:$E$34,$B$15:$B$34,B22,$C$15:$C$34,1))-SUMIFS(Dynamic!$D$34:$D$62,Dynamic!$C$34:$C$62,SUMIFS($E$15:$E$34,$B$15:$B$34,B22-1,$C$15:$C$34,1))*IFERROR(INDEX(Parameters!$B$83:$B$92,DV_age),10%)),0) -> 84220.41926 | G22: =$F$13*(SUMIFS(Dynamic!$D$34:$D$62,Dynamic!$C$34:$C$62,SUMIFS($E$15:$E$34,$B$15:$B$34,B22,$C$15:$C$34,1)))*IF(C22>10,Parameters!$D$93/(DV_age-10),INDEX(Parameters!$D$83:$D$92,C22)) -> 19365.70417 | H22: ='Input-Output Module'!$C$78 -> 6055.978365 | I22: =Calculatie!$B$57*(Calculatie!$B$74*((1+Dynamic!$D$2)^'Breakeven analyse'!D22))+Calculatie!$B$67 -> 6015.690812 | J22: ='Input-Output Module'!$C$87+'Input-Output Module'!$C$88+'Input-Output Module'!$C$89+'Input-Output Module'!$C$90 -> 3142.004575 | K22: ='Input-Output Module'!$C$91 -> 0 | L22: ='Input-Output Module'!$C$92 -> 0 | M22: ='Input-Output Module'!$C$93 -> 0 | N22: ='Input-Output Module'!$C$94 -> 410.75625 | O22: ='Input-Output Module'!$C$98 -> 0 | P22: ='Input-Output Module'!$C$99 -> 0 | Q22: 34990.13417 | R22: 15624.43
A23: D | B23: 2 | C23: =COUNTIF($B$15:B23,B23) -> 2 | D23: 8 | E23: 2031 | F23: =IF(C23=1,$F$13*(SUMIFS(Dynamic!$D$34:$D$62,Dynamic!$C$34:$C$62,SUMIFS($E$15:$E$34,$B$15:$B$34,B23,$C$15:$C$34,1))-SUMIFS(Dynamic!$D$34:$D$62,Dynamic!$C$34:$C$62,SUMIFS($E$15:$E$34,$B$15:$B$34,B23-1,$C$15:$C$34,1))*IFERROR(INDEX(Parameters!$B$83:$B$92,DV_age),10%)),0) -> 0 | G23: =$F$13*(SUMIFS(Dynamic!$D$34:$D$62,Dynamic!$C$34:$C$62,SUMIFS($E$15:$E$34,$B$15:$B$34,B23,$C$15:$C$34,1)))*IF(C23>10,Parameters!$D$93/(DV_age-10),INDEX(Parameters!$D$83:$D$92,C23)) -> 15972.31709 | H23: ='Input-Output Module'!$C$78 -> 6055.978365 | I23: =Calculatie!$B$57*(Calculatie!$B$74*((1+Dynamic!$D$2)^'Breakeven analyse'!D23))+Calculatie!$B$67 -> 6075.088867 | J23: ='Input-Output Module'!$C$87+'Input-Output Module'!$C$88+'Input-Output Module'!$C$89+'Input-Output Module'!$C$90 -> 3142.004575 | K23: ='Input-Output Module'!$C$91 -> 0 | L23: ='Input-Output Module'!$C$92 -> 0 | M23: ='Input-Output Module'!$C$93 -> 0 | N23: ='Input-Output Module'!$C$94 -> 410.75625 | O23: ='Input-Output Module'!$C$98 -> 0 | P23: ='Input-Output Module'!$C$99 -> 0 | Q23: 31656.14515 | R23: 15683.82806
A24: D | B24: 2 | C24: =COUNTIF($B$15:B24,B24) -> 3 | D24: 9 | E24: 2032 | F24: =IF(C24=1,$F$13*(SUMIFS(Dynamic!$D$34:$D$62,Dynamic!$C$34:$C$62,SUMIFS($E$15:$E$34,$B$15:$B$34,B24,$C$15:$C$34,1))-SUMIFS(Dynamic!$D$34:$D$62,Dynamic!$C$34:$C$62,SUMIFS($E$15:$E$34,$B$15:$B$34,B24-1,$C$15:$C$34,1))*IFERROR(INDEX(Parameters!$B$83:$B$92,DV_age),10%)),0) -> 0 | G24: =$F$13*(SUMIFS(Dynamic!$D$34:$D$62,Dynamic!$C$34:$C$62,SUMIFS($E$15:$E$34,$B$15:$B$34,B24,$C$15:$C$34,1)))*IF(C24>10,Parameters!$D$93/(DV_age-10),INDEX(Parameters!$D$83:$D$92,C24)) -> 12950.40894 | H24: ='Input-Output Module'!$C$78 -> 6055.978365 | I24: =Calculatie!$B$57*(Calculatie!$B$74*((1+Dynamic!$D$2)^'Breakeven analyse'!D24))+Calculatie!$B$67 -> 6135.080903 | J24: ='Input-Output Module'!$C$87+'Input-Output Module'!$C$88+'Input-Output Module'!$C$89+'Input-Output Module'!$C$90 -> 3142.004575 | K24: ='Input-Output Module'!$C$91 -> 0 | L24: ='Input-Output Module'!$C$92 -> 0 | M24: ='Input-Output Module'!$C$93 -> 0 | N24: ='Input-Output Module'!$C$94 -> 410.75625 | O24: ='Input-Output Module'!$C$98 -> 0 | P24: ='Input-Output Module'!$C$99 -> 0 | Q24: 28694.22903 | R24: 15743.82009
A25: D | B25: 2 | C25: =COUNTIF($B$15:B25,B25) -> 4 | D25: 10 | E25: 2033 | F25: =IF(C25=1,$F$13*(SUMIFS(Dynamic!$D$34:$D$62,Dynamic!$C$34:$C$62,SUMIFS($E$15:$E$34,$B$15:$B$34,B25,$C$15:$C$34,1))-SUMIFS(Dynamic!$D$34:$D$62,Dynamic!$C$34:$C$62,SUMIFS($E$15:$E$34,$B$15:$B$34,B25-1,$C$15:$C$34,1))*IFERROR(INDEX(Parameters!$B$83:$B$92,DV_age),10%)),0) -> 0 | G25: =$F$13*(SUMIFS(Dynamic!$D$34:$D$62,Dynamic!$C$34:$C$62,SUMIFS($E$15:$E$34,$B$15:$B$34,B25,$C$15:$C$34,1)))*IF(C25>10,Parameters!$D$93/(DV_age-10),INDEX(Parameters!$D$83:$D$92,C25)) -> 10500.23554 | H25: ='Input-Output Module'!$C$78 -> 6055.978365 | I25: =Calculatie!$B$57*(Calculatie!$B$74*((1+Dynamic!$D$2)^'Breakeven analyse'!D25))+Calculatie!$B$67 -> 6195.672859 | J25: ='Input-Output Module'!$C$87+'Input-Output Module'!$C$88+'Input-Output Module'!$C$89+'Input-Output Module'!$C$90 -> 3142.004575 | K25: ='Input-Output Module'!$C$91 -> 0 | L25: ='Input-Output Module'!$C$92 -> 0 | M25: ='Input-Output Module'!$C$93 -> 0 | N25: ='Input-Output Module'!$C$94 -> 410.75625 | O25: ='Input-Output Module'!$C$98 -> 0 | P25: ='Input-Output Module'!$C$99 -> 0 | Q25: 26304.64759 | R25: 15804.41205
A26: D | B26: 2 | C26: =COUNTIF($B$15:B26,B26) -> 5 | D26: 11 | E26: 2034 | F26: =IF(C26=1,$F$13*(SUMIFS(Dynamic!$D$34:$D$62,Dynamic!$C$34:$C$62,SUMIFS($E$15:$E$34,$B$15:$B$34,B26,$C$15:$C$34,1))-SUMIFS(Dynamic!$D$34:$D$62,Dynamic!$C$34:$C$62,SUMIFS($E$15:$E$34,$B$15:$B$34,B26-1,$C$15:$C$34,1))*IFERROR(INDEX(Parameters!$B$83:$B$92,DV_age),10%)),0) -> 0 | G26: =$F$13*(SUMIFS(Dynamic!$D$34:$D$62,Dynamic!$C$34:$C$62,SUMIFS($E$15:$E$34,$B$15:$B$34,B26,$C$15:$C$34,1)))*IF(C26>10,Parameters!$D$93/(DV_age-10),INDEX(Parameters!$D$83:$D$92,C26)) -> 8513.626634 | H26: ='Input-Output Module'!$C$78 -> 6055.978365 | I26: =Calculatie!$B$57*(Calculatie!$B$74*((1+Dynamic!$D$2)^'Breakeven analyse'!D26))+Calculatie!$B$67 -> 6256.870735 | J26: ='Input-Output Module'!$C$87+'Input-Output Module'!$C$88+'Input-Output Module'!$C$89+'Input-Output Module'!$C$90 -> 3142.004575 | K26: ='Input-Output Module'!$C$91 -> 0 | L26: ='Input-Output Module'!$C$92 -> 0 | M26: ='Input-Output Module'!$C$93 -> 0 | N26: ='Input-Output Module'!$C$94 -> 410.75625 | O26: ='Input-Output Module'!$C$98 -> 0 | P26: ='Input-Output Module'!$C$99 -> 0 | Q26: 24379.23656 | R26: 15865.60992
A27: D | B27: 2 | C27: =COUNTIF($B$15:B27,B27) -> 6 | D27: 12 | E27: 2035 | F27: =IF(C27=1,$F$13*(SUMIFS(Dynamic!$D$34:$D$62,Dynamic!$C$34:$C$62,SUMIFS($E$15:$E$34,$B$15:$B$34,B27,$C$15:$C$34,1))-SUMIFS(Dynamic!$D$34:$D$62,Dynamic!$C$34:$C$62,SUMIFS($E$15:$E$34,$B$15:$B$34,B27-1,$C$15:$C$34,1))*IFERROR(INDEX(Parameters!$B$83:$B$92,DV_age),10%)),0) -> 0 | G27: =$F$13*(SUMIFS(Dynamic!$D$34:$D$62,Dynamic!$C$34:$C$62,SUMIFS($E$15:$E$34,$B$15:$B$34,B27,$C$15:$C$34,1)))*IF(C27>10,Parameters!$D$93/(DV_age-10),INDEX(Parameters!$D$83:$D$92,C27)) -> 6902.877386 | H27: ='Input-Output Module'!$C$78 -> 6055.978365 | I27: =Calculatie!$B$57*(Calculatie!$B$74*((1+Dynamic!$D$2)^'Breakeven analyse'!D27))+Calculatie!$B$67 -> 6318.680589 | J27: ='Input-Output Module'!$C$87+'Input-Output Module'!$C$88+'Input-Output Module'!$C$89+'Input-Output Module'!$C$90 -> 3142.004575 | K27: ='Input-Output Module'!$C$91 -> 0 | L27: ='Input-Output Module'!$C$92 -> 0 | M27: ='Input-Output Module'!$C$93 -> 0 | N27: ='Input-Output Module'!$C$94 -> 410.75625 | O27: ='Input-Output Module'!$C$98 -> 0 | P27: ='Input-Output Module'!$C$99 -> 0 | Q27: 22830.29716 | R27: 15927.41978
A28: D | B28: 2 | C28: =COUNTIF($B$15:B28,B28) -> 7 | D28: 13 | E28: 2036 | F28: =IF(C28=1,$F$13*(SUMIFS(Dynamic!$D$34:$D$62,Dynamic!$C$34:$C$62,SUMIFS($E$15:$E$34,$B$15:$B$34,B28,$C$15:$C$34,1))-SUMIFS(Dynamic!$D$34:$D$62,Dynamic!$C$34:$C$62,SUMIFS($E$15:$E$34,$B$15:$B$34,B28-1,$C$15:$C$34,1))*IFERROR(INDEX(Parameters!$B$83:$B$92,DV_age),10%)),0) -> 0 | G28: =$F$13*(SUMIFS(Dynamic!$D$34:$D$62,Dynamic!$C$34:$C$62,SUMIFS($E$15:$E$34,$B$15:$B$34,B28,$C$15:$C$34,1)))*IF(C28>10,Parameters!$D$93/(DV_age-10),INDEX(Parameters!$D$83:$D$92,C28)) -> 5596.876425 | H28: ='Input-Output Module'!$C$78 -> 6055.978365 | I28: =Calculatie!$B$57*(Calculatie!$B$74*((1+Dynamic!$D$2)^'Breakeven analyse'!D28))+Calculatie!$B$67 -> 6381.108542 | J28: ='Input-Output Module'!$C$87+'Input-Output Module'!$C$88+'Input-Output Module'!$C$89+'Input-Output Module'!$C$90 -> 3142.004575 | K28: ='Input-Output Module'!$C$91 -> 0 | L28: ='Input-Output Module'!$C$92 -> 0 | M28: ='Input-Output Module'!$C$93 -> 0 | N28: ='Input-Output Module'!$C$94 -> 410.75625 | O28: ='Input-Output Module'!$C$98 -> 0 | P28: ='Input-Output Module'!$C$99 -> 0 | Q28: 21586.72416 | R28: 15989.84773
A29: D | B29: 3 | C29: =COUNTIF($B$15:B29,B29) -> 1 | D29: 14 | E29: 2037 | F29: =IF(C29=1,$F$13*(SUMIFS(Dynamic!$D$34:$D$62,Dynamic!$C$34:$C$62,SUMIFS($E$15:$E$34,$B$15:$B$34,B29,$C$15:$C$34,1))-SUMIFS(Dynamic!$D$34:$D$62,Dynamic!$C$34:$C$62,SUMIFS($E$15:$E$34,$B$15:$B$34,B29-1,$C$15:$C$34,1))*IFERROR(INDEX(Parameters!$B$83:$B$92,DV_age),10%)),0) -> 82820.79618 | G29: =$F$13*(SUMIFS(Dynamic!$D$34:$D$62,Dynamic!$C$34:$C$62,SUMIFS($E$15:$E$34,$B$15:$B$34,B29,$C$15:$C$34,1)))*IF(C29>10,Parameters!$D$93/(DV_age-10),INDEX(Parameters!$D$83:$D$92,C29)) -> 19928.97258 | H29: ='Input-Output Module'!$C$78 -> 6055.978365 | I29: =Calculatie!$B$57*(Calculatie!$B$74*((1+Dynamic!$D$2)^'Breakeven analyse'!D29))+Calculatie!$B$67 -> 6444.160775 | J29: ='Input-Output Module'!$C$87+'Input-Output Module'!$C$88+'Input-Output Module'!$C$89+'Input-Output Module'!$C$90 -> 3142.004575 | K29: ='Input-Output Module'!$C$91 -> 0 | L29: ='Input-Output Module'!$C$92 -> 0 | M29: ='Input-Output Module'!$C$93 -> 0 | N29: ='Input-Output Module'!$C$94 -> 410.75625 | O29: ='Input-Output Module'!$C$98 -> 0 | P29: ='Input-Output Module'!$C$99 -> 0 | Q29: 35981.87254 | R29: 16052.89996
A30: D | B30: 3 | C30: =COUNTIF($B$15:B30,B30) -> 2 | D30: 15 | E30: 2038 | F30: =IF(C30=1,$F$13*(SUMIFS(Dynamic!$D$34:$D$62,Dynamic!$C$34:$C$62,SUMIFS($E$15:$E$34,$B$15:$B$34,B30,$C$15:$C$34,1))-SUMIFS(Dynamic!$D$34:$D$62,Dynamic!$C$34:$C$62,SUMIFS($E$15:$E$34,$B$15:$B$34,B30-1,$C$15:$C$34,1))*IFERROR(INDEX(Parameters!$B$83:$B$92,DV_age),10%)),0) -> 0 | G30: =$F$13*(SUMIFS(Dynamic!$D$34:$D$62,Dynamic!$C$34:$C$62,SUMIFS($E$15:$E$34,$B$15:$B$34,B30,$C$15:$C$34,1)))*IF(C30>10,Parameters!$D$93/(DV_age-10),INDEX(Parameters!$D$83:$D$92,C30)) -> 16436.88587 | H30: ='Input-Output Module'!$C$78 -> 6055.978365 | I30: =Calculatie!$B$57*(Calculatie!$B$74*((1+Dynamic!$D$2)^'Breakeven analyse'!D30))+Calculatie!$B$67 -> 6507.84353 | J30: ='Input-Output Module'!$C$87+'Input-Output Module'!$C$88+'Input-Output Module'!$C$89+'Input-Output Module'!$C$90 -> 3142.004575 | K30: ='Input-Output Module'!$C$91 -> 0 | L30: ='Input-Output Module'!$C$92 -> 0 | M30: ='Input-Output Module'!$C$93 -> 0 | N30: ='Input-Output Module'!$C$94 -> 410.75625 | O30: ='Input-Output Module'!$C$98 -> 0 | P30: ='Input-Output Module'!$C$99 -> 0 | Q30: 32553.46859 | R30: 16116.58272
A31: D | B31: 3 | C31: =COUNTIF($B$15:B31,B31) -> 3 | D31: 16 | E31: 2039 | F31: =IF(C31=1,$F$13*(SUMIFS(Dynamic!$D$34:$D$62,Dynamic!$C$34:$C$62,SUMIFS($E$15:$E$34,$B$15:$B$34,B31,$C$15:$C$34,1))-SUMIFS(Dynamic!$D$34:$D$62,Dynamic!$C$34:$C$62,SUMIFS($E$15:$E$34,$B$15:$B$34,B31-1,$C$15:$C$34,1))*IFERROR(INDEX(Parameters!$B$83:$B$92,DV_age),10%)),0) -> 0 | G31: =$F$13*(SUMIFS(Dynamic!$D$34:$D$62,Dynamic!$C$34:$C$62,SUMIFS($E$15:$E$34,$B$15:$B$34,B31,$C$15:$C$34,1)))*IF(C31>10,Parameters!$D$93/(DV_age-10),INDEX(Parameters!$D$83:$D$92,C31)) -> 13327.08288 | H31: ='Input-Output Module'!$C$78 -> 6055.978365 | I31: =Calculatie!$B$57*(Calculatie!$B$74*((1+Dynamic!$D$2)^'Breakeven analyse'!D31))+Calculatie!$B$67 -> 6572.163112 | J31: ='Input-Output Module'!$C$87+'Input-Output Module'!$C$88+'Input-Output Module'!$C$89+'Input-Output Module'!$C$90 -> 3142.004575 | K31: ='Input-Output Module'!$C$91 -> 0 | L31: ='Input-Output Module'!$C$92 -> 0 | M31: ='Input-Output Module'!$C$93 -> 0 | N31: ='Input-Output Module'!$C$94 -> 410.75625 | O31: ='Input-Output Module'!$C$98 -> 0 | P31: ='Input-Output Module'!$C$99 -> 0 | Q31: 29507.98518 | R31: 16180.9023
A32: D | B32: 3 | C32: =COUNTIF($B$15:B32,B32) -> 4 | D32: 17 | E32: 2040 | F32: =IF(C32=1,$F$13*(SUMIFS(Dynamic!$D$34:$D$62,Dynamic!$C$34:$C$62,SUMIFS($E$15:$E$34,$B$15:$B$34,B32,$C$15:$C$34,1))-SUMIFS(Dynamic!$D$34:$D$62,Dynamic!$C$34:$C$62,SUMIFS($E$15:$E$34,$B$15:$B$34,B32-1,$C$15:$C$34,1))*IFERROR(INDEX(Parameters!$B$83:$B$92,DV_age),10%)),0) -> 0 | G32: =$F$13*(SUMIFS(Dynamic!$D$34:$D$62,Dynamic!$C$34:$C$62,SUMIFS($E$15:$E$34,$B$15:$B$34,B32,$C$15:$C$34,1)))*IF(C32>10,Parameters!$D$93/(DV_age-10),INDEX(Parameters!$D$83:$D$92,C32)) -> 10805.64405 | H32: ='Input-Output Module'!$C$78 -> 6055.978365 | I32: =Calculatie!$B$57*(Calculatie!$B$74*((1+Dynamic!$D$2)^'Breakeven analyse'!D32))+Calculatie!$B$67 -> 6637.12589 | J32: ='Input-Output Module'!$C$87+'Input-Output Module'!$C$88+'Input-Output Module'!$C$89+'Input-Output Module'!$C$90 -> 3142.004575 | K32: ='Input-Output Module'!$C$91 -> 0 | L32: ='Input-Output Module'!$C$92 -> 0 | M32: ='Input-Output Module'!$C$93 -> 0 | N32: ='Input-Output Module'!$C$94 -> 410.75625 | O32: ='Input-Output Module'!$C$98 -> 0 | P32: ='Input-Output Module'!$C$99 -> 0 | Q32: 27051.50913 | R32: 16245.86508
A33: D | B33: 3 | C33: =COUNTIF($B$15:B33,B33) -> 5 | D33: 18 | E33: 2041 | F33: =IF(C33=1,$F$13*(SUMIFS(Dynamic!$D$34:$D$62,Dynamic!$C$34:$C$62,SUMIFS($E$15:$E$34,$B$15:$B$34,B33,$C$15:$C$34,1))-SUMIFS(Dynamic!$D$34:$D$62,Dynamic!$C$34:$C$62,SUMIFS($E$15:$E$34,$B$15:$B$34,B33-1,$C$15:$C$34,1))*IFERROR(INDEX(Parameters!$B$83:$B$92,DV_age),10%)),0) -> 0 | G33: =$F$13*(SUMIFS(Dynamic!$D$34:$D$62,Dynamic!$C$34:$C$62,SUMIFS($E$15:$E$34,$B$15:$B$34,B33,$C$15:$C$34,1)))*IF(C33>10,Parameters!$D$93/(DV_age-10),INDEX(Parameters!$D$83:$D$92,C33)) -> 8761.252894 | H33: ='Input-Output Module'!$C$78 -> 6055.978365 | I33: =Calculatie!$B$57*(Calculatie!$B$74*((1+Dynamic!$D$2)^'Breakeven analyse'!D33))+Calculatie!$B$67 -> 6702.738296 | J33: ='Input-Output Module'!$C$87+'Input-Output Module'!$C$88+'Input-Output Module'!$C$89+'Input-Output Module'!$C$90 -> 3142.004575 | K33: ='Input-Output Module'!$C$91 -> 0 | L33: ='Input-Output Module'!$C$92 -> 0 | M33: ='Input-Output Module'!$C$93 -> 0 | N33: ='Input-Output Module'!$C$94 -> 410.75625 | O33: ='Input-Output Module'!$C$98 -> 0 | P33: ='Input-Output Module'!$C$99 -> 0 | Q33: 25072.73038 | R33: 16311.47749
A34: D | B34: 3 | C34: =COUNTIF($B$15:B34,B34) -> 6 | D34: 19 | E34: 2042 | F34: =IF(C34=1,$F$13*(SUMIFS(Dynamic!$D$34:$D$62,Dynamic!$C$34:$C$62,SUMIFS($E$15:$E$34,$B$15:$B$34,B34,$C$15:$C$34,1))-SUMIFS(Dynamic!$D$34:$D$62,Dynamic!$C$34:$C$62,SUMIFS($E$15:$E$34,$B$15:$B$34,B34-1,$C$15:$C$34,1))*IFERROR(INDEX(Parameters!$B$83:$B$92,DV_age),10%)),0) -> 0 | G34: =$F$13*(SUMIFS(Dynamic!$D$34:$D$62,Dynamic!$C$34:$C$62,SUMIFS($E$15:$E$34,$B$15:$B$34,B34,$C$15:$C$34,1)))*IF(C34>10,Parameters!$D$93/(DV_age-10),INDEX(Parameters!$D$83:$D$92,C34)) -> 7103.653598 | H34: ='Input-Output Module'!$C$78 -> 6055.978365 | I34: =Calculatie!$B$57*(Calculatie!$B$74*((1+Dynamic!$D$2)^'Breakeven analyse'!D34))+Calculatie!$B$67 -> 6769.006827 | J34: ='Input-Output Module'!$C$87+'Input-Output Module'!$C$88+'Input-Output Module'!$C$89+'Input-Output Module'!$C$90 -> 3142.004575 | K34: ='Input-Output Module'!$C$91 -> 0 | L34: ='Input-Output Module'!$C$92 -> 0 | M34: ='Input-Output Module'!$C$93 -> 0 | N34: ='Input-Output Module'!$C$94 -> 410.75625 | O34: ='Input-Output Module'!$C$98 -> 0 | P34: ='Input-Output Module'!$C$99 -> 0 | Q34: 23481.39961 | R34: 16377.74602
F38: =F13 -> 81937.5
F39: =F38*(1+(VLOOKUP(('Input-Output Module'!B20-2022),Dynamic!$B$34:$D$62,3)))^0 -> 81937.5 | G39: =F39+VLOOKUP('Input-Output Module'!$B$20,Dynamic!$C$15:$F$24,4) -> 141217.5 | H39: =G39-Calculatie!$C$49 -> 141217.5
E40: Year | F40: Investment | G40: Depreciation | H40: Fixed vehicle cost | I40: Energy | J40: Maintenance | K40: Tolheffing | L40: CO2 prijs | M40: HBE | N40: Specific transport cost | O40: Charging infra investment | P40: Charging infra operational | Q40: Electric
A41: E | B41: =IF(MOD(D41,EV_age)=0,ROUNDUP(D41/EV_age,0)+1,ROUNDUP(D41/EV_age,0)) -> 1 | C41: =COUNTIF($B$41:B41,B41) -> 1 | D41: 0 | E41: ='Input-Output Module'!B20 -> 2023 | F41: =Calculatie!C50 -> 139606.2 | G41: =IF(B41=1,$F$41,$F$38*(1+Dynamic!$E$30)^(SUMIFS($E$41:$E$60,$B$41:$B$60,B41,$C$41:$C$60,1)-2021)+IF(SUMIFS($E$41:$E$60,$B$41:$B$60,B41,$C$41:$C$60,1)>2030,Dynamic!$F$24,SUMIFS(Dynamic!$F$15:$F$24,Dynamic!$C$15:$C$24,SUMIFS($E$41:$E$60,$B$41:$B$60,B41,$C$41:$C$60,1))))*IF(C41>10,Parameters!$D$93/(EV_age-10),INDEX(Parameters!$D$83:$D$92,C41)) -> 26049.11352 | H41: ='Input-Output Module'!$D$78 -> 9200.226409 | I41: =('Input-Output Module'!$D$57*Calculatie!$C$57*(Calculatie!$C$74*(1+Dynamic!$D$6)^'Breakeven analyse'!D41)) + ('Input-Output Module'!$D$58*Calculatie!$C$57*(INDEX(Laadinfra8[[#All],[External energy costs (€)]],MATCH('M1-PowerSupply'!$B$49,Laadinfra8[[#All],[Charging type]],0))*(1+Dynamic!$D$6)^'Breakeven analyse'!D41)) -> 2154.355152 | J41: ='Input-Output Module'!$D$87+'Input-Output Module'!$D$88+'Input-Output Module'!$D$89+'Input-Output Module'!$D$90 -> 2225.625825 | K41: ='Input-Output Module'!$D$91 -> 0 | L41: ='Input-Output Module'!$D$92 -> 0 | M41: ='Input-Output Module'!$D$93 -> 0 | N41: ='Input-Output Module'!$D$94 -> 410.75625 | O41: ='Input-Output Module'!C38 -> 3639.06 | P41: ='Input-Output Module'!$D$99*(1+Dynamic!$D$4)^'Breakeven analyse'!D41 -> 1571.883312 | Q41: =SUM(G41:P41) -> 45251.02047 | R41: =SUM(H41:N41,P41) -> 15562.84695 | S41: =Q41<Q15 -> FALSE | U41: subsidy is not included for future vehicles
A42: E | B42: 1 | C42: =COUNTIF($B$41:B42,B42) -> 2 | D42: 1 | E42: =E41+1 -> 2024 | F42: =IF(C42=1,$F$38*(1+Dynamic!$E$30)^('Breakeven analyse'!D42)-$F$38*(1+Dynamic!$E$30)^('Breakeven analyse'!D42-EV_age)*(IF(EV_age>10,10%,VLOOKUP(EV_age,Parameters!$A$83:$D$92,2)))+IF('Breakeven analyse'!E42>2030,Dynamic!$F$24,SUMIFS(Dynamic!$F$15:$F$24,Dynamic!$C$15:$C$24,'Breakeven analyse'!E42))-IF('Breakeven analyse'!E42-EV_age>2030,Dynamic!$F$24,SUMIFS(Dynamic!$F$15:$F$24,Dynamic!$C$15:$C$24,'Breakeven analyse'!E42-EV_age))*(IF(EV_age>10,10%,VLOOKUP(EV_age,Parameters!$A$83:$D$92,2))),0) -> 0 | G42: =IF(B42=1,$F$41,$F$38*(1+Dynamic!$E$30)^(SUMIFS($E$41:$E$60,$B$41:$B$60,B42,$C$41:$C$60,1)-2021)+IF(SUMIFS($E$41:$E$60,$B$41:$B$60,B42,$C$41:$C$60,1)>2030,Dynamic!$F$24,SUMIFS(Dynamic!$F$15:$F$24,Dynamic!$C$15:$C$24,SUMIFS($E$41:$E$60,$B$41:$B$60,B42,$C$41:$C$60,1))))*IF(C42>10,Parameters!$D$93/(EV_age-10),INDEX(Parameters!$D$83:$D$92,C42)) -> 21484.61514 | H42: ='Input-Output Module'!$D$78 -> 9200.226409 | I42: =('Input-Output Module'!$D$57*Calculatie!$C$57*(Calculatie!$C$74*(1+Dynamic!$D$6)^'Breakeven analyse'!D42)) + ('Input-Output Module'!$D$58*Calculatie!$C$57*(INDEX(Laadinfra8[[#All],[External energy costs (€)]],MATCH('M1-PowerSupply'!$B$49,Laadinfra8[[#All],[Charging type]],0))*(1+Dynamic!$D$6)^'Breakeven analyse'!D42)) -> 2175.898703 | J42: ='Input-Output Module'!$D$87+'Input-Output Module'!$D$88+'Input-Output Module'!$D$89+'Input-Output Module'!$D$90 -> 2225.625825 | K42: ='Input-Output Module'!$D$91 -> 0 | L42: ='Input-Output Module'!$D$92 -> 0 | M42: ='Input-Output Module'!$D$93 -> 0 | N42: ='Input-Output Module'!$D$94 -> 410.75625 | O42: 0 | P42: ='Input-Output Module'!$D$99*(1+Dynamic!$D$4)^'Breakeven analyse'!D42 -> 1597.033445 | Q42: =SUM(G42:P42) -> 37094.15577 | R42: =SUM(H42:N42,P42) -> 15609.54063 | S42: =Q42<Q16 -> FALSE | T42: =I42/I41 -> 1.01 | U42: rente, verzekering not correct
A43: E | B43: 1 | C43: =COUNTIF($B$41:B43,B43) -> 3 | D43: 2 | E43: =E42+1 -> 2025 | F43: =IF(C43=1,$F$38*(1+Dynamic!$E$30)^('Breakeven analyse'!D43)-$F$38*(1+Dynamic!$E$30)^('Breakeven analyse'!D43-EV_age)*(IF(EV_age>10,10%,VLOOKUP(EV_age,Parameters!$A$83:$D$92,2)))+IF('Breakeven analyse'!E43>2030,Dynamic!$F$24,SUMIFS(Dynamic!$F$15:$F$24,Dynamic!$C$15:$C$24,'Breakeven analyse'!E43))-IF('Breakeven analyse'!E43-EV_age>2030,Dynamic!$F$24,SUMIFS(Dynamic!$F$15:$F$24,Dynamic!$C$15:$C$24,'Breakeven analyse'!E43-EV_age))*(IF(EV_age>10,10%,VLOOKUP(EV_age,Parameters!$A$83:$D$92,2))),0) -> 0 | G43: =IF(B43=1,$F$41,$F$38*(1+Dynamic!$E$30)^(SUMIFS($E$41:$E$60,$B$41:$B$60,B43,$C$41:$C$60,1)-2021)+IF(SUMIFS($E$41:$E$60,$B$41:$B$60,B43,$C$41:$C$60,1)>2030,Dynamic!$F$24,SUMIFS(Dynamic!$F$15:$F$24,Dynamic!$C$15:$C$24,SUMIFS($E$41:$E$60,$B$41:$B$60,B43,$C$41:$C$60,1))))*IF(C43>10,Parameters!$D$93/(EV_age-10),INDEX(Parameters!$D$83:$D$92,C43)) -> 17419.79891 | H43: ='Input-Output Module'!$D$78 -> 9200.226409 | I43: =('Input-Output Module'!$D$57*Calculatie!$C$57*(Calculatie!$C$74*(1+Dynamic!$D$6)^'Breakeven analyse'!D43)) + ('Input-Output Module'!$D$58*Calculatie!$C$57*(INDEX(Laadinfra8[[#All],[External energy costs (€)]],MATCH('M1-PowerSupply'!$B$49,Laadinfra8[[#All],[Charging type]],0))*(1+Dynamic!$D$6)^'Breakeven analyse'!D43)) -> 2197.65769 | J43: ='Input-Output Module'!$D$87+'Input-Output Module'!$D$88+'Input-Output Module'!$D$89+'Input-Output Module'!$D$90 -> 2225.625825 | K43: ='Input-Output Module'!$D$91 -> 0 | L43: ='Input-Output Module'!$D$92 -> 0 | M43: ='Input-Output Module'!$D$93 -> 0 | N43: ='Input-Output Module'!$D$94 -> 410.75625 | O43: 0 | P43: ='Input-Output Module'!$D$99*(1+Dynamic!$D$4)^'Breakeven analyse'!D43 -> 1622.58598 | Q43: 33076.65107 | R43: 15656.85215 | S43: FALSE | U43: rente can be same
A44: E | B44: 1 | C44: =COUNTIF($B$41:B44,B44) -> 4 | D44: 3 | E44: 2026 | F44: =IF(C44=1,$F$38*(1+Dynamic!$E$30)^('Breakeven analyse'!D44)-$F$38*(1+Dynamic!$E$30)^('Breakeven analyse'!D44-EV_age)*(IF(EV_age>10,10%,VLOOKUP(EV_age,Parameters!$A$83:$D$92,2)))+IF('Breakeven analyse'!E44>2030,Dynamic!$F$24,SUMIFS(Dynamic!$F$15:$F$24,Dynamic!$C$15:$C$24,'Breakeven analyse'!E44))-IF('Breakeven analyse'!E44-EV_age>2030,Dynamic!$F$24,SUMIFS(Dynamic!$F$15:$F$24,Dynamic!$C$15:$C$24,'Breakeven analyse'!E44-EV_age))*(IF(EV_age>10,10%,VLOOKUP(EV_age,Parameters!$A$83:$D$92,2))),0) -> 0 | G44: =IF(B44=1,$F$41,$F$38*(1+Dynamic!$E$30)^(SUMIFS($E$41:$E$60,$B$41:$B$60,B44,$C$41:$C$60,1)-2021)+IF(SUMIFS($E$41:$E$60,$B$41:$B$60,B44,$C$41:$C$60,1)>2030,Dynamic!$F$24,SUMIFS(Dynamic!$F$15:$F$24,Dynamic!$C$15:$C$24,SUMIFS($E$41:$E$60,$B$41:$B$60,B44,$C$41:$C$60,1))))*IF(C44>10,Parameters!$D$93/(EV_age-10),INDEX(Parameters!$D$83:$D$92,C44)) -> 14124.03211 | H44: ='Input-Output Module'!$D$78 -> 9200.226409 | I44: =('Input-Output Module'!$D$57*Calculatie!$C$57*(Calculatie!$C$74*(1+Dynamic!$D$6)^'Breakeven analyse'!D44)) + ('Input-Output Module'!$D$58*Calculatie!$C$57*(INDEX(Laadinfra8[[#All],[External energy costs (€)]],MATCH('M1-PowerSupply'!$B$49,Laadinfra8[[#All],[Charging type]],0))*(1+Dynamic!$D$6)^'Breakeven analyse'!D44)) -> 2219.634267 | J44: ='Input-Output Module'!$D$87+'Input-Output Module'!$D$88+'Input-Output Module'!$D$89+'Input-Output Module'!$D$90 -> 2225.625825 | K44: ='Input-Output Module'!$D$91 -> 0 | L44: ='Input-Output Module'!$D$92 -> 0 | M44: ='Input-Output Module'!$D$93 -> 0 | N44: ='Input-Output Module'!$D$94 -> 410.75625 | O44: 0 | P44: ='Input-Output Module'!$D$99*(1+Dynamic!$D$4)^'Breakeven analyse'!D44 -> 1648.547356 | Q44: 29828.82222 | R44: 15704.79011 | S44: FALSE | U44: verzekering should increase by a percentage
A45: E | B45: 1 | C45: =COUNTIF($B$41:B45,B45) -> 5 | D45: 4 | E45: 2027 | F45: =IF(C45=1,$F$38*(1+Dynamic!$E$30)^('Breakeven analyse'!D45)-$F$38*(1+Dynamic!$E$30)^('Breakeven analyse'!D45-EV_age)*(IF(EV_age>10,10%,VLOOKUP(EV_age,Parameters!$A$83:$D$92,2)))+IF('Breakeven analyse'!E45>2030,Dynamic!$F$24,SUMIFS(Dynamic!$F$15:$F$24,Dynamic!$C$15:$C$24,'Breakeven analyse'!E45))-IF('Breakeven analyse'!E45-EV_age>2030,Dynamic!$F$24,SUMIFS(Dynamic!$F$15:$F$24,Dynamic!$C$15:$C$24,'Breakeven analyse'!E45-EV_age))*(IF(EV_age>10,10%,VLOOKUP(EV_age,Parameters!$A$83:$D$92,2))),0) -> 0 | G45: =IF(B45=1,$F$41,$F$38*(1+Dynamic!$E$30)^(SUMIFS($E$41:$E$60,$B$41:$B$60,B45,$C$41:$C$60,1)-2021)+IF(SUMIFS($E$41:$E$60,$B$41:$B$60,B45,$C$41:$C$60,1)>2030,Dynamic!$F$24,SUMIFS(Dynamic!$F$15:$F$24,Dynamic!$C$15:$C$24,SUMIFS($E$41:$E$60,$B$41:$B$60,B45,$C$41:$C$60,1))))*IF(C45>10,Parameters!$D$93/(EV_age-10),INDEX(Parameters!$D$83:$D$92,C45)) -> 11451.8132 | H45: ='Input-Output Module'!$D$78 -> 9200.226409 | I45: =('Input-Output Module'!$D$57*Calculatie!$C$57*(Calculatie!$C$74*(1+Dynamic!$D$6)^'Breakeven analyse'!D45)) + ('Input-Output Module'!$D$58*Calculatie!$C$57*(INDEX(Laadinfra8[[#All],[External energy costs (€)]],MATCH('M1-PowerSupply'!$B$49,Laadinfra8[[#All],[Charging type]],0))*(1+Dynamic!$D$6)^'Breakeven analyse'!D45)) -> 2241.83061 | J45: ='Input-Output Module'!$D$87+'Input-Output Module'!$D$88+'Input-Output Module'!$D$89+'Input-Output Module'!$D$90 -> 2225.625825 | K45: ='Input-Output Module'!$D$91 -> 0 | L45: ='Input-Output Module'!$D$92 -> 0 | M45: ='Input-Output Module'!$D$93 -> 0 | N45: ='Input-Output Module'!$D$94 -> 410.75625 | O45: 0 | P45: ='Input-Output Module'!$D$99*(1+Dynamic!$D$4)^'Breakeven analyse'!D45 -> 1674.924114 | Q45: 27205.17641 | R45: 15753.36321 | S45: FALSE | T45: =I45/I44 -> 1.01 | U45: but also change for new vehicles
A46: E | B46: 1 | C46: =COUNTIF($B$41:B46,B46) -> 6 | D46: 5 | E46: 2028 | F46: =IF(C46=1,$F$38*(1+Dynamic!$E$30)^('Breakeven analyse'!D46)-$F$38*(1+Dynamic!$E$30)^('Breakeven analyse'!D46-EV_age)*(IF(EV_age>10,10%,VLOOKUP(EV_age,Parameters!$A$83:$D$92,2)))+IF('Breakeven analyse'!E46>2030,Dynamic!$F$24,SUMIFS(Dynamic!$F$15:$F$24,Dynamic!$C$15:$C$24,'Breakeven analyse'!E46))-IF('Breakeven analyse'!E46-EV_age>2030,Dynamic!$F$24,SUMIFS(Dynamic!$F$15:$F$24,Dynamic!$C$15:$C$24,'Breakeven analyse'!E46-EV_age))*(IF(EV_age>10,10%,VLOOKUP(EV_age,Parameters!$A$83:$D$92,2))),0) -> 0 | G46: =IF(B46=1,$F$41,$F$38*(1+Dynamic!$E$30)^(SUMIFS($E$41:$E$60,$B$41:$B$60,B46,$C$41:$C$60,1)-2021)+IF(SUMIFS($E$41:$E$60,$B$41:$B$60,B46,$C$41:$C$60,1)>2030,Dynamic!$F$24,SUMIFS(Dynamic!$F$15:$F$24,Dynamic!$C$15:$C$24,SUMIFS($E$41:$E$60,$B$41:$B$60,B46,$C$41:$C$60,1))))*IF(C46>10,Parameters!$D$93/(EV_age-10),INDEX(Parameters!$D$83:$D$92,C46)) -> 9285.169032 | H46: ='Input-Output Module'!$D$78 -> 9200.226409 | I46: =('Input-Output Module'!$D$57*Calculatie!$C$57*(Calculatie!$C$74*(1+Dynamic!$D$6)^'Breakeven analyse'!D46)) + ('Input-Output Module'!$D$58*Calculatie!$C$57*(INDEX(Laadinfra8[[#All],[External energy costs (€)]],MATCH('M1-PowerSupply'!$B$49,Laadinfra8[[#All],[Charging type]],0))*(1+Dynamic!$D$6)^'Breakeven analyse'!D46)) -> 2264.248916 | J46: ='Input-Output Module'!$D$87+'Input-Output Module'!$D$88+'Input-Output Module'!$D$89+'Input-Output Module'!$D$90 -> 2225.625825 | K46: ='Input-Output Module'!$D$91 -> 0 | L46: ='Input-Output Module'!$D$92 -> 0 | M46: ='Input-Output Module'!$D$93 -> 0 | N46: ='Input-Output Module'!$D$94 -> 410.75625 | O46: 0 | P46: ='Input-Output Module'!$D$99*(1+Dynamic!$D$4)^'Breakeven analyse'!D46 -> 1701.722899 | Q46: 25087.74933 | R46: 15802.5803 | S46: FALSE
A47: E | B47: 1 | C47: =COUNTIF($B$41:B47,B47) -> 7 | D47: 6 | E47: 2029 | F47: =IF(C47=1,$F$38*(1+Dynamic!$E$30)^('Breakeven analyse'!D47)-$F$38*(1+Dynamic!$E$30)^('Breakeven analyse'!D47-EV_age)*(IF(EV_age>10,10%,VLOOKUP(EV_age,Parameters!$A$83:$D$92,2)))+IF('Breakeven analyse'!E47>2030,Dynamic!$F$24,SUMIFS(Dynamic!$F$15:$F$24,Dynamic!$C$15:$C$24,'Breakeven analyse'!E47))-IF('Breakeven analyse'!E47-EV_age>2030,Dynamic!$F$24,SUMIFS(Dynamic!$F$15:$F$24,Dynamic!$C$15:$C$24,'Breakeven analyse'!E47-EV_age))*(IF(EV_age>10,10%,VLOOKUP(EV_age,Parameters!$A$83:$D$92,2))),0) -> 0 | G47: =IF(B47=1,$F$41,$F$38*(1+Dynamic!$E$30)^(SUMIFS($E$41:$E$60,$B$41:$B$60,B47,$C$41:$C$60,1)-2021)+IF(SUMIFS($E$41:$E$60,$B$41:$B$60,B47,$C$41:$C$60,1)>2030,Dynamic!$F$24,SUMIFS(Dynamic!$F$15:$F$24,Dynamic!$C$15:$C$24,SUMIFS($E$41:$E$60,$B$41:$B$60,B47,$C$41:$C$60,1))))*IF(C47>10,Parameters!$D$93/(EV_age-10),INDEX(Parameters!$D$83:$D$92,C47)) -> 7528.446582 | H47: ='Input-Output Module'!$D$78 -> 9200.226409 | I47: =('Input-Output Module'!$D$57*Calculatie!$C$57*(Calculatie!$C$74*(1+Dynamic!$D$6)^'Breakeven analyse'!D47)) + ('Input-Output Module'!$D$58*Calculatie!$C$57*(INDEX(Laadinfra8[[#All],[External energy costs (€)]],MATCH('M1-PowerSupply'!$B$49,Laadinfra8[[#All],[Charging type]],0))*(1+Dynamic!$D$6)^'Breakeven analyse'!D47)) -> 2286.891405 | J47: ='Input-Output Module'!$D$87+'Input-Output Module'!$D$88+'Input-Output Module'!$D$89+'Input-Output Module'!$D$90 -> 2225.625825 | K47: ='Input-Output Module'!$D$91 -> 0 | L47: ='Input-Output Module'!$D$92 -> 0 | M47: ='Input-Output Module'!$D$93 -> 0 | N47: ='Input-Output Module'!$D$94 -> 410.75625 | O47: 0 | P47: ='Input-Output Module'!$D$99*(1+Dynamic!$D$4)^'Breakeven analyse'!D47 -> 1728.950466 | Q47: 23380.89694 | R47: 15852.45036 | S47: FALSE | U47: average energy prices should be used in the TCO
A48: E | B48: 2 | C48: =COUNTIF($B$41:B48,B48) -> 1 | D48: 7 | E48: 2030 | F48: =IF(C48=1,$F$38*(1+Dynamic!$E$30)^('Breakeven analyse'!D48)-$F$38*(1+Dynamic!$E$30)^('Breakeven analyse'!D48-EV_age)*(IF(EV_age>10,10%,VLOOKUP(EV_age,Parameters!$A$83:$D$92,2)))+IF('Breakeven analyse'!E48>2030,Dynamic!$F$24,SUMIFS(Dynamic!$F$15:$F$24,Dynamic!$C$15:$C$24,'Breakeven analyse'!E48))-IF('Breakeven analyse'!E48-EV_age>2030,Dynamic!$F$24,SUMIFS(Dynamic!$F$15:$F$24,Dynamic!$C$15:$C$24,'Breakeven analyse'!E48-EV_age))*(IF(EV_age>10,10%,VLOOKUP(EV_age,Parameters!$A$83:$D$92,2))),0) -> 97331.34687 | G48: =IF(B48=1,$F$41,$F$38*(1+Dynamic!$E$30)^(SUMIFS($E$41:$E$60,$B$41:$B$60,B48,$C$41:$C$60,1)-2021)+IF(SUMIFS($E$41:$E$60,$B$41:$B$60,B48,$C$41:$C$60,1)>2030,Dynamic!$F$24,SUMIFS(Dynamic!$F$15:$F$24,Dynamic!$C$15:$C$24,SUMIFS($E$41:$E$60,$B$41:$B$60,B48,$C$41:$C$60,1))))*IF(C48>10,Parameters!$D$93/(EV_age-10),INDEX(Parameters!$D$83:$D$92,C48)) -> 24801.63196 | H48: ='Input-Output Module'!$D$78 -> 9200.226409 | I48: =('Input-Output Module'!$D$57*Calculatie!$C$57*(Calculatie!$C$74*(1+Dynamic!$D$6)^'Breakeven analyse'!D48)) + ('Input-Output Module'!$D$58*Calculatie!$C$57*(INDEX(Laadinfra8[[#All],[External energy costs (€)]],MATCH('M1-PowerSupply'!$B$49,Laadinfra8[[#All],[Charging type]],0))*(1+Dynamic!$D$6)^'Breakeven analyse'!D48)) -> 2309.760319 | J48: ='Input-Output Module'!$D$87+'Input-Output Module'!$D$88+'Input-Output Module'!$D$89+'Input-Output Module'!$D$90 -> 2225.625825 | K48: ='Input-Output Module'!$D$91 -> 0 | L48: ='Input-Output Module'!$D$92 -> 0 | M48: ='Input-Output Module'!$D$93 -> 0 | N48: ='Input-Output Module'!$D$94 -> 410.75625 | O48: 0 | P48: ='Input-Output Module'!$D$99*(1+Dynamic!$D$4)^'Breakeven analyse'!D48 -> 1756.613673 | Q48: 40704.61444 | R48: 15902.98248 | S48: FALSE | U48: how do the energy prices change?
A49: E | B49: 2 | C49: =COUNTIF($B$41:B49,B49) -> 2 | D49: 8 | E49: 2031 | F49: =IF(C49=1,$F$38*(1+Dynamic!$E$30)^('Breakeven analyse'!D49)-$F$38*(1+Dynamic!$E$30)^('Breakeven analyse'!D49-EV_age)*(IF(EV_age>10,10%,VLOOKUP(EV_age,Parameters!$A$83:$D$92,2)))+IF('Breakeven analyse'!E49>2030,Dynamic!$F$24,SUMIFS(Dynamic!$F$15:$F$24,Dynamic!$C$15:$C$24,'Breakeven analyse'!E49))-IF('Breakeven analyse'!E49-EV_age>2030,Dynamic!$F$24,SUMIFS(Dynamic!$F$15:$F$24,Dynamic!$C$15:$C$24,'Breakeven analyse'!E49-EV_age))*(IF(EV_age>10,10%,VLOOKUP(EV_age,Parameters!$A$83:$D$92,2))),0) -> 0 | G49: =IF(B49=1,$F$41,$F$38*(1+Dynamic!$E$30)^(SUMIFS($E$41:$E$60,$B$41:$B$60,B49,$C$41:$C$60,1)-2021)+IF(SUMIFS($E$41:$E$60,$B$41:$B$60,B49,$C$41:$C$60,1)>2030,Dynamic!$F$24,SUMIFS(Dynamic!$F$15:$F$24,Dynamic!$C$15:$C$24,SUMIFS($E$41:$E$60,$B$41:$B$60,B49,$C$41:$C$60,1))))*IF(C49>10,Parameters!$D$93/(EV_age-10),INDEX(Parameters!$D$83:$D$92,C49)) -> 20455.72557 | H49: ='Input-Output Module'!$D$78 -> 9200.226409 | I49: =('Input-Output Module'!$D$57*Calculatie!$C$57*(Calculatie!$C$74*(1+Dynamic!$D$6)^'Breakeven analyse'!D49)) + ('Input-Output Module'!$D$58*Calculatie!$C$57*(INDEX(Laadinfra8[[#All],[External energy costs (€)]],MATCH('M1-PowerSupply'!$B$49,Laadinfra8[[#All],[Charging type]],0))*(1+Dynamic!$D$6)^'Breakeven analyse'!D49)) -> 2332.857922 | J49: ='Input-Output Module'!$D$87+'Input-Output Module'!$D$88+'Input-Output Module'!$D$89+'Input-Output Module'!$D$90 -> 2225.625825 | K49: ='Input-Output Module'!$D$91 -> 0 | L49: ='Input-Output Module'!$D$92 -> 0 | M49: ='Input-Output Module'!$D$93 -> 0 | N49: ='Input-Output Module'!$D$94 -> 410.75625 | O49: 0 | P49: ='Input-Output Module'!$D$99*(1+Dynamic!$D$4)^'Breakeven analyse'!D49 -> 1784.719492 | Q49: 36409.91147 | R49: 15954.1859 | S49: FALSE
A50: E | B50: 2 | C50: =COUNTIF($B$41:B50,B50) -> 3 | D50: 9 | E50: 2032 | F50: =IF(C50=1,$F$38*(1+Dynamic!$E$30)^('Breakeven analyse'!D50)-$F$38*(1+Dynamic!$E$30)^('Breakeven analyse'!D50-EV_age)*(IF(EV_age>10,10%,VLOOKUP(EV_age,Parameters!$A$83:$D$92,2)))+IF('Breakeven analyse'!E50>2030,Dynamic!$F$24,SUMIFS(Dynamic!$F$15:$F$24,Dynamic!$C$15:$C$24,'Breakeven analyse'!E50))-IF('Breakeven analyse'!E50-EV_age>2030,Dynamic!$F$24,SUMIFS(Dynamic!$F$15:$F$24,Dynamic!$C$15:$C$24,'Breakeven analyse'!E50-EV_age))*(IF(EV_age>10,10%,VLOOKUP(EV_age,Parameters!$A$83:$D$92,2))),0) -> 0 | G50: =IF(B50=1,$F$41,$F$38*(1+Dynamic!$E$30)^(SUMIFS($E$41:$E$60,$B$41:$B$60,B50,$C$41:$C$60,1)-2021)+IF(SUMIFS($E$41:$E$60,$B$41:$B$60,B50,$C$41:$C$60,1)>2030,Dynamic!$F$24,SUMIFS(Dynamic!$F$15:$F$24,Dynamic!$C$15:$C$24,SUMIFS($E$41:$E$60,$B$41:$B$60,B50,$C$41:$C$60,1))))*IF(C50>10,Parameters!$D$93/(EV_age-10),INDEX(Parameters!$D$83:$D$92,C50)) -> 16585.57176 | H50: ='Input-Output Module'!$D$78 -> 9200.226409 | I50: =('Input-Output Module'!$D$57*Calculatie!$C$57*(Calculatie!$C$74*(1+Dynamic!$D$6)^'Breakeven analyse'!D50)) + ('Input-Output Module'!$D$58*Calculatie!$C$57*(INDEX(Laadinfra8[[#All],[External energy costs (€)]],MATCH('M1-PowerSupply'!$B$49,Laadinfra8[[#All],[Charging type]],0))*(1+Dynamic!$D$6)^'Breakeven analyse'!D50)) -> 2356.186502 | J50: ='Input-Output Module'!$D$87+'Input-Output Module'!$D$88+'Input-Output Module'!$D$89+'Input-Output Module'!$D$90 -> 2225.625825 | K50: ='Input-Output Module'!$D$91 -> 0 | L50: ='Input-Output Module'!$D$92 -> 0 | M50: ='Input-Output Module'!$D$93 -> 0 | N50: ='Input-Output Module'!$D$94 -> 410.75625 | O50: 0 | P50: ='Input-Output Module'!$D$99*(1+Dynamic!$D$4)^'Breakeven analyse'!D50 -> 1813.275004 | Q50: 32591.64175 | R50: 16006.06999 | S50: FALSE | U50: link - diesel and energy price increase
A51: E | B51: 2 | C51: =COUNTIF($B$41:B51,B51) -> 4 | D51: 10 | E51: 2033 | F51: =IF(C51=1,$F$38*(1+Dynamic!$E$30)^('Breakeven analyse'!D51)-$F$38*(1+Dynamic!$E$30)^('Breakeven analyse'!D51-EV_age)*(IF(EV_age>10,10%,VLOOKUP(EV_age,Parameters!$A$83:$D$92,2)))+IF('Breakeven analyse'!E51>2030,Dynamic!$F$24,SUMIFS(Dynamic!$F$15:$F$24,Dynamic!$C$15:$C$24,'Breakeven analyse'!E51))-IF('Breakeven analyse'!E51-EV_age>2030,Dynamic!$F$24,SUMIFS(Dynamic!$F$15:$F$24,Dynamic!$C$15:$C$24,'Breakeven analyse'!E51-EV_age))*(IF(EV_age>10,10%,VLOOKUP(EV_age,Parameters!$A$83:$D$92,2))),0) -> 0 | G51: =IF(B51=1,$F$41,$F$38*(1+Dynamic!$E$30)^(SUMIFS($E$41:$E$60,$B$41:$B$60,B51,$C$41:$C$60,1)-2021)+IF(SUMIFS($E$41:$E$60,$B$41:$B$60,B51,$C$41:$C$60,1)>2030,Dynamic!$F$24,SUMIFS(Dynamic!$F$15:$F$24,Dynamic!$C$15:$C$24,SUMIFS($E$41:$E$60,$B$41:$B$60,B51,$C$41:$C$60,1))))*IF(C51>10,Parameters!$D$93/(EV_age-10),INDEX(Parameters!$D$83:$D$92,C51)) -> 13447.6379 | H51: ='Input-Output Module'!$D$78 -> 9200.226409 | I51: =('Input-Output Module'!$D$57*Calculatie!$C$57*(Calculatie!$C$74*(1+Dynamic!$D$6)^'Breakeven analyse'!D51)) + ('Input-Output Module'!$D$58*Calculatie!$C$57*(INDEX(Laadinfra8[[#All],[External energy costs (€)]],MATCH('M1-PowerSupply'!$B$49,Laadinfra8[[#All],[Charging type]],0))*(1+Dynamic!$D$6)^'Breakeven analyse'!D51)) -> 2379.748367 | J51: ='Input-Output Module'!$D$87+'Input-Output Module'!$D$88+'Input-Output Module'!$D$89+'Input-Output Module'!$D$90 -> 2225.625825 | K51: ='Input-Output Module'!$D$91 -> 0 | L51: ='Input-Output Module'!$D$92 -> 0 | M51: ='Input-Output Module'!$D$93 -> 0 | N51: ='Input-Output Module'!$D$94 -> 410.75625 | O51: 0 | P51: ='Input-Output Module'!$D$99*(1+Dynamic!$D$4)^'Breakeven analyse'!D51 -> 1842.287404 | Q51: 29506.28216 | R51: 16058.64425 | S51: FALSE | U51: diesel up to 30% - 2029
A52: E | B52: 2 | C52: =COUNTIF($B$41:B52,B52) -> 5 | D52: 11 | E52: 2034 | F52: =IF(C52=1,$F$38*(1+Dynamic!$E$30)^('Breakeven analyse'!D52)-$F$38*(1+Dynamic!$E$30)^('Breakeven analyse'!D52-EV_age)*(IF(EV_age>10,10%,VLOOKUP(EV_age,Parameters!$A$83:$D$92,2)))+IF('Breakeven analyse'!E52>2030,Dynamic!$F$24,SUMIFS(Dynamic!$F$15:$F$24,Dynamic!$C$15:$C$24,'Breakeven analyse'!E52))-IF('Breakeven analyse'!E52-EV_age>2030,Dynamic!$F$24,SUMIFS(Dynamic!$F$15:$F$24,Dynamic!$C$15:$C$24,'Breakeven analyse'!E52-EV_age))*(IF(EV_age>10,10%,VLOOKUP(EV_age,Parameters!$A$83:$D$92,2))),0) -> 0 | G52: =IF(B52=1,$F$41,$F$38*(1+Dynamic!$E$30)^(SUMIFS($E$41:$E$60,$B$41:$B$60,B52,$C$41:$C$60,1)-2021)+IF(SUMIFS($E$41:$E$60,$B$41:$B$60,B52,$C$41:$C$60,1)>2030,Dynamic!$F$24,SUMIFS(Dynamic!$F$15:$F$24,Dynamic!$C$15:$C$24,SUMIFS($E$41:$E$60,$B$41:$B$60,B52,$C$41:$C$60,1))))*IF(C52>10,Parameters!$D$93/(EV_age-10),INDEX(Parameters!$D$83:$D$92,C52)) -> 10903.39048 | H52: ='Input-Output Module'!$D$78 -> 9200.226409 | I52: =('Input-Output Module'!$D$57*Calculatie!$C$57*(Calculatie!$C$74*(1+Dynamic!$D$6)^'Breakeven analyse'!D52)) + ('Input-Output Module'!$D$58*Calculatie!$C$57*(INDEX(Laadinfra8[[#All],[External energy costs (€)]],MATCH('M1-PowerSupply'!$B$49,Laadinfra8[[#All],[Charging type]],0))*(1+Dynamic!$D$6)^'Breakeven analyse'!D52)) -> 2403.54585 | J52: ='Input-Output Module'!$D$87+'Input-Output Module'!$D$88+'Input-Output Module'!$D$89+'Input-Output Module'!$D$90 -> 2225.625825 | K52: ='Input-Output Module'!$D$91 -> 0 | L52: ='Input-Output Module'!$D$92 -> 0 | M52: ='Input-Output Module'!$D$93 -> 0 | N52: ='Input-Output Module'!$D$94 -> 410.75625 | O52: 0 | P52: ='Input-Output Module'!$D$99*(1+Dynamic!$D$4)^'Breakeven analyse'!D52 -> 1871.764003 | Q52: 27015.30881 | R52: 16111.91834 | S52: FALSE
A53: E | B53: 2 | C53: =COUNTIF($B$41:B53,B53) -> 6 | D53: 12 | E53: 2035 | F53: =IF(C53=1,$F$38*(1+Dynamic!$E$30)^('Breakeven analyse'!D53)-$F$38*(1+Dynamic!$E$30)^('Breakeven analyse'!D53-EV_age)*(IF(EV_age>10,10%,VLOOKUP(EV_age,Parameters!$A$83:$D$92,2)))+IF('Breakeven analyse'!E53>2030,Dynamic!$F$24,SUMIFS(Dynamic!$F$15:$F$24,Dynamic!$C$15:$C$24,'Breakeven analyse'!E53))-IF('Breakeven analyse'!E53-EV_age>2030,Dynamic!$F$24,SUMIFS(Dynamic!$F$15:$F$24,Dynamic!$C$15:$C$24,'Breakeven analyse'!E53-EV_age))*(IF(EV_age>10,10%,VLOOKUP(EV_age,Parameters!$A$83:$D$92,2))),0) -> 0 | G53: =IF(B53=1,$F$41,$F$38*(1+Dynamic!$E$30)^(SUMIFS($E$41:$E$60,$B$41:$B$60,B53,$C$41:$C$60,1)-2021)+IF(SUMIFS($E$41:$E$60,$B$41:$B$60,B53,$C$41:$C$60,1)>2030,Dynamic!$F$24,SUMIFS(Dynamic!$F$15:$F$24,Dynamic!$C$15:$C$24,SUMIFS($E$41:$E$60,$B$41:$B$60,B53,$C$41:$C$60,1))))*IF(C53>10,Parameters!$D$93/(EV_age-10),INDEX(Parameters!$D$83:$D$92,C53)) -> 8840.506025 | H53: ='Input-Output Module'!$D$78 -> 9200.226409 | I53: =('Input-Output Module'!$D$57*Calculatie!$C$57*(Calculatie!$C$74*(1+Dynamic!$D$6)^'Breakeven analyse'!D53)) + ('Input-Output Module'!$D$58*Calculatie!$C$57*(INDEX(Laadinfra8[[#All],[External energy costs (€)]],MATCH('M1-PowerSupply'!$B$49,Laadinfra8[[#All],[Charging type]],0))*(1+Dynamic!$D$6)^'Breakeven analyse'!D53)) -> 2427.581309 | J53: ='Input-Output Module'!$D$87+'Input-Output Module'!$D$88+'Input-Output Module'!$D$89+'Input-Output Module'!$D$90 -> 2225.625825 | K53: ='Input-Output Module'!$D$91 -> 0 | L53: ='Input-Output Module'!$D$92 -> 0 | M53: ='Input-Output Module'!$D$93 -> 0 | N53: ='Input-Output Module'!$D$94 -> 410.75625 | O53: 0 | P53: ='Input-Output Module'!$D$99*(1+Dynamic!$D$4)^'Breakeven analyse'!D53 -> 1901.712227 | Q53: 25006.40804 | R53: 16165.90202 | S53: FALSE | U53: by 2030, repair costs are the same as diesel
A54: E | B54: 2 | C54: =COUNTIF($B$41:B54,B54) -> 7 | D54: 13 | E54: 2036 | F54: =IF(C54=1,$F$38*(1+Dynamic!$E$30)^('Breakeven analyse'!D54)-$F$38*(1+Dynamic!$E$30)^('Breakeven analyse'!D54-EV_age)*(IF(EV_age>10,10%,VLOOKUP(EV_age,Parameters!$A$83:$D$92,2)))+IF('Breakeven analyse'!E54>2030,Dynamic!$F$24,SUMIFS(Dynamic!$F$15:$F$24,Dynamic!$C$15:$C$24,'Breakeven analyse'!E54))-IF('Breakeven analyse'!E54-EV_age>2030,Dynamic!$F$24,SUMIFS(Dynamic!$F$15:$F$24,Dynamic!$C$15:$C$24,'Breakeven analyse'!E54-EV_age))*(IF(EV_age>10,10%,VLOOKUP(EV_age,Parameters!$A$83:$D$92,2))),0) -> 0 | G54: =IF(B54=1,$F$41,$F$38*(1+Dynamic!$E$30)^(SUMIFS($E$41:$E$60,$B$41:$B$60,B54,$C$41:$C$60,1)-2021)+IF(SUMIFS($E$41:$E$60,$B$41:$B$60,B54,$C$41:$C$60,1)>2030,Dynamic!$F$24,SUMIFS(Dynamic!$F$15:$F$24,Dynamic!$C$15:$C$24,SUMIFS($E$41:$E$60,$B$41:$B$60,B54,$C$41:$C$60,1))))*IF(C54>10,Parameters!$D$93/(EV_age-10),INDEX(Parameters!$D$83:$D$92,C54)) -> 7167.912306 | H54: ='Input-Output Module'!$D$78 -> 9200.226409 | I54: =('Input-Output Module'!$D$57*Calculatie!$C$57*(Calculatie!$C$74*(1+Dynamic!$D$6)^'Breakeven analyse'!D54)) + ('Input-Output Module'!$D$58*Calculatie!$C$57*(INDEX(Laadinfra8[[#All],[External energy costs (€)]],MATCH('M1-PowerSupply'!$B$49,Laadinfra8[[#All],[Charging type]],0))*(1+Dynamic!$D$6)^'Breakeven analyse'!D54)) -> 2451.857122 | J54: ='Input-Output Module'!$D$87+'Input-Output Module'!$D$88+'Input-Output Module'!$D$89+'Input-Output Module'!$D$90 -> 2225.625825 | K54: ='Input-Output Module'!$D$91 -> 0 | L54: ='Input-Output Module'!$D$92 -> 0 | M54: ='Input-Output Module'!$D$93 -> 0 | N54: ='Input-Output Module'!$D$94 -> 410.75625 | O54: 0 | P54: ='Input-Output Module'!$D$99*(1+Dynamic!$D$4)^'Breakeven analyse'!D54 -> 1932.139622 | Q54: 23388.51753 | R54: 16220.60523 | S54: FALSE
A55: E | B55: 3 | C55: =COUNTIF($B$41:B55,B55) -> 1 | D55: 14 | E55: 2037 | F55: =IF(C55=1,$F$38*(1+Dynamic!$E$30)^('Breakeven analyse'!D55)-$F$38*(1+Dynamic!$E$30)^('Breakeven analyse'!D55-EV_age)*(IF(EV_age>10,10%,VLOOKUP(EV_age,Parameters!$A$83:$D$92,2)))+IF('Breakeven analyse'!E55>2030,Dynamic!$F$24,SUMIFS(Dynamic!$F$15:$F$24,Dynamic!$C$15:$C$24,'Breakeven analyse'!E55))-IF('Breakeven analyse'!E55-EV_age>2030,Dynamic!$F$24,SUMIFS(Dynamic!$F$15:$F$24,Dynamic!$C$15:$C$24,'Breakeven analyse'!E55-EV_age))*(IF(EV_age>10,10%,VLOOKUP(EV_age,Parameters!$A$83:$D$92,2))),0) -> 108412.47 | G55: =IF(B55=1,$F$41,$F$38*(1+Dynamic!$E$30)^(SUMIFS($E$41:$E$60,$B$41:$B$60,B55,$C$41:$C$60,1)-2021)+IF(SUMIFS($E$41:$E$60,$B$41:$B$60,B55,$C$41:$C$60,1)>2030,Dynamic!$F$24,SUMIFS(Dynamic!$F$15:$F$24,Dynamic!$C$15:$C$24,SUMIFS($E$41:$E$60,$B$41:$B$60,B55,$C$41:$C$60,1))))*IF(C55>10,Parameters!$D$93/(EV_age-10),INDEX(Parameters!$D$83:$D$92,C55)) -> 26448.88709 | H55: ='Input-Output Module'!$D$78 -> 9200.226409 | I55: =('Input-Output Module'!$D$57*Calculatie!$C$57*(Calculatie!$C$74*(1+Dynamic!$D$6)^'Breakeven analyse'!D55)) + ('Input-Output Module'!$D$58*Calculatie!$C$57*(INDEX(Laadinfra8[[#All],[External energy costs (€)]],MATCH('M1-PowerSupply'!$B$49,Laadinfra8[[#All],[Charging type]],0))*(1+Dynamic!$D$6)^'Breakeven analyse'!D55)) -> 2476.375693 | J55: ='Input-Output Module'!$D$87+'Input-Output Module'!$D$88+'Input-Output Module'!$D$89+'Input-Output Module'!$D$90 -> 2225.625825 | K55: ='Input-Output Module'!$D$91 -> 0 | L55: ='Input-Output Module'!$D$92 -> 0 | M55: ='Input-Output Module'!$D$93 -> 0 | N55: ='Input-Output Module'!$D$94 -> 410.75625 | O55: 0 | P55: ='Input-Output Module'!$D$99*(1+Dynamic!$D$4)^'Breakeven analyse'!D55 -> 1963.053856 | Q55: 42724.92512 | R55: 16276.03803 | S55: FALSE
A56: E | B56: 3 | C56: =COUNTIF($B$41:B56,B56) -> 2 | D56: 15 | E56: 2038 | F56: =IF(C56=1,$F$38*(1+Dynamic!$E$30)^('Breakeven analyse'!D56)-$F$38*(1+Dynamic!$E$30)^('Breakeven analyse'!D56-EV_age)*(IF(EV_age>10,10%,VLOOKUP(EV_age,Parameters!$A$83:$D$92,2)))+IF('Breakeven analyse'!E56>2030,Dynamic!$F$24,SUMIFS(Dynamic!$F$15:$F$24,Dynamic!$C$15:$C$24,'Breakeven analyse'!E56))-IF('Breakeven analyse'!E56-EV_age>2030,Dynamic!$F$24,SUMIFS(Dynamic!$F$15:$F$24,Dynamic!$C$15:$C$24,'Breakeven analyse'!E56-EV_age))*(IF(EV_age>10,10%,VLOOKUP(EV_age,Parameters!$A$83:$D$92,2))),0) -> 0 | G56: =IF(B56=1,$F$41,$F$38*(1+Dynamic!$E$30)^(SUMIFS($E$41:$E$60,$B$41:$B$60,B56,$C$41:$C$60,1)-2021)+IF(SUMIFS($E$41:$E$60,$B$41:$B$60,B56,$C$41:$C$60,1)>2030,Dynamic!$F$24,SUMIFS(Dynamic!$F$15:$F$24,Dynamic!$C$15:$C$24,SUMIFS($E$41:$E$60,$B$41:$B$60,B56,$C$41:$C$60,1))))*IF(C56>10,Parameters!$D$93/(EV_age-10),INDEX(Parameters!$D$83:$D$92,C56)) -> 21814.33773 | H56: ='Input-Output Module'!$D$78 -> 9200.226409 | I56: =('Input-Output Module'!$D$57*Calculatie!$C$57*(Calculatie!$C$74*(1+Dynamic!$D$6)^'Breakeven analyse'!D56)) + ('Input-Output Module'!$D$58*Calculatie!$C$57*(INDEX(Laadinfra8[[#All],[External energy costs (€)]],MATCH('M1-PowerSupply'!$B$49,Laadinfra8[[#All],[Charging type]],0))*(1+Dynamic!$D$6)^'Breakeven analyse'!D56)) -> 2501.13945 | J56: ='Input-Output Module'!$D$87+'Input-Output Module'!$D$88+'Input-Output Module'!$D$89+'Input-Output Module'!$D$90 -> 2225.625825 | K56: ='Input-Output Module'!$D$91 -> 0 | L56: ='Input-Output Module'!$D$92 -> 0 | M56: ='Input-Output Module'!$D$93 -> 0 | N56: ='Input-Output Module'!$D$94 -> 410.75625 | O56: 0 | P56: ='Input-Output Module'!$D$99*(1+Dynamic!$D$4)^'Breakeven analyse'!D56 -> 1994.462718 | Q56: 38146.54838 | R56: 16332.21065 | S56: FALSE
A57: E | B57: 3 | C57: =COUNTIF($B$41:B57,B57) -> 3 | D57: 16 | E57: 2039 | F57: =IF(C57=1,$F$38*(1+Dynamic!$E$30)^('Breakeven analyse'!D57)-$F$38*(1+Dynamic!$E$30)^('Breakeven analyse'!D57-EV_age)*(IF(EV_age>10,10%,VLOOKUP(EV_age,Parameters!$A$83:$D$92,2)))+IF('Breakeven analyse'!E57>2030,Dynamic!$F$24,SUMIFS(Dynamic!$F$15:$F$24,Dynamic!$C$15:$C$24,'Breakeven analyse'!E57))-IF('Breakeven analyse'!E57-EV_age>2030,Dynamic!$F$24,SUMIFS(Dynamic!$F$15:$F$24,Dynamic!$C$15:$C$24,'Breakeven analyse'!E57-EV_age))*(IF(EV_age>10,10%,VLOOKUP(EV_age,Parameters!$A$83:$D$92,2))),0) -> 0 | G57: =IF(B57=1,$F$41,$F$38*(1+Dynamic!$E$30)^(SUMIFS($E$41:$E$60,$B$41:$B$60,B57,$C$41:$C$60,1)-2021)+IF(SUMIFS($E$41:$E$60,$B$41:$B$60,B57,$C$41:$C$60,1)>2030,Dynamic!$F$24,SUMIFS(Dynamic!$F$15:$F$24,Dynamic!$C$15:$C$24,SUMIFS($E$41:$E$60,$B$41:$B$60,B57,$C$41:$C$60,1))))*IF(C57>10,Parameters!$D$93/(EV_age-10),INDEX(Parameters!$D$83:$D$92,C57)) -> 17687.13911 | H57: ='Input-Output Module'!$D$78 -> 9200.226409 | I57: =('Input-Output Module'!$D$57*Calculatie!$C$57*(Calculatie!$C$74*(1+Dynamic!$D$6)^'Breakeven analyse'!D57)) + ('Input-Output Module'!$D$58*Calculatie!$C$57*(INDEX(Laadinfra8[[#All],[External energy costs (€)]],MATCH('M1-PowerSupply'!$B$49,Laadinfra8[[#All],[Charging type]],0))*(1+Dynamic!$D$6)^'Breakeven analyse'!D57)) -> 2526.150845 | J57: ='Input-Output Module'!$D$87+'Input-Output Module'!$D$88+'Input-Output Module'!$D$89+'Input-Output Module'!$D$90 -> 2225.625825 | K57: ='Input-Output Module'!$D$91 -> 0 | L57: ='Input-Output Module'!$D$92 -> 0 | M57: ='Input-Output Module'!$D$93 -> 0 | N57: ='Input-Output Module'!$D$94 -> 410.75625 | O57: 0 | P57: ='Input-Output Module'!$D$99*(1+Dynamic!$D$4)^'Breakeven analyse'!D57 -> 2026.374121 | Q57: 34076.27256 | R57: 16389.13345 | S57: FALSE
A58: E | B58: 3 | C58: =COUNTIF($B$41:B58,B58) -> 4 | D58: 17 | E58: 2040 | F58: =IF(C58=1,$F$38*(1+Dynamic!$E$30)^('Breakeven analyse'!D58)-$F$38*(1+Dynamic!$E$30)^('Breakeven analyse'!D58-EV_age)*(IF(EV_age>10,10%,VLOOKUP(EV_age,Parameters!$A$83:$D$92,2)))+IF('Breakeven analyse'!E58>2030,Dynamic!$F$24,SUMIFS(Dynamic!$F$15:$F$24,Dynamic!$C$15:$C$24,'Breakeven analyse'!E58))-IF('Breakeven analyse'!E58-EV_age>2030,Dynamic!$F$24,SUMIFS(Dynamic!$F$15:$F$24,Dynamic!$C$15:$C$24,'Breakeven analyse'!E58-EV_age))*(IF(EV_age>10,10%,VLOOKUP(EV_age,Parameters!$A$83:$D$92,2))),0) -> 0 | G58: =IF(B58=1,$F$41,$F$38*(1+Dynamic!$E$30)^(SUMIFS($E$41:$E$60,$B$41:$B$60,B58,$C$41:$C$60,1)-2021)+IF(SUMIFS($E$41:$E$60,$B$41:$B$60,B58,$C$41:$C$60,1)>2030,Dynamic!$F$24,SUMIFS(Dynamic!$F$15:$F$24,Dynamic!$C$15:$C$24,SUMIFS($E$41:$E$60,$B$41:$B$60,B58,$C$41:$C$60,1))))*IF(C58>10,Parameters!$D$93/(EV_age-10),INDEX(Parameters!$D$83:$D$92,C58)) -> 14340.79245 | H58: ='Input-Output Module'!$D$78 -> 9200.226409 | I58: =('Input-Output Module'!$D$57*Calculatie!$C$57*(Calculatie!$C$74*(1+Dynamic!$D$6)^'Breakeven analyse'!D58)) + ('Input-Output Module'!$D$58*Calculatie!$C$57*(INDEX(Laadinfra8[[#All],[External energy costs (€)]],MATCH('M1-PowerSupply'!$B$49,Laadinfra8[[#All],[Charging type]],0))*(1+Dynamic!$D$6)^'Breakeven analyse'!D58)) -> 2551.412353 | J58: ='Input-Output Module'!$D$87+'Input-Output Module'!$D$88+'Input-Output Module'!$D$89+'Input-Output Module'!$D$90 -> 2225.625825 | K58: ='Input-Output Module'!$D$91 -> 0 | L58: ='Input-Output Module'!$D$92 -> 0 | M58: ='Input-Output Module'!$D$93 -> 0 | N58: ='Input-Output Module'!$D$94 -> 410.75625 | O58: 0 | P58: ='Input-Output Module'!$D$99*(1+Dynamic!$D$4)^'Breakeven analyse'!D58 -> 2058.796107 | Q58: 30787.6094 | R58: 16446.81694 | S58: FALSE
A59: E | B59: 3 | C59: =COUNTIF($B$41:B59,B59) -> 5 | D59: 18 | E59: 2041 | F59: =IF(C59=1,$F$38*(1+Dynamic!$E$30)^('Breakeven analyse'!D59)-$F$38*(1+Dynamic!$E$30)^('Breakeven analyse'!D59-EV_age)*(IF(EV_age>10,10%,VLOOKUP(EV_age,Parameters!$A$83:$D$92,2)))+IF('Breakeven analyse'!E59>2030,Dynamic!$F$24,SUMIFS(Dynamic!$F$15:$F$24,Dynamic!$C$15:$C$24,'Breakeven analyse'!E59))-IF('Breakeven analyse'!E59-EV_age>2030,Dynamic!$F$24,SUMIFS(Dynamic!$F$15:$F$24,Dynamic!$C$15:$C$24,'Breakeven analyse'!E59-EV_age))*(IF(EV_age>10,10%,VLOOKUP(EV_age,Parameters!$A$83:$D$92,2))),0) -> 0 | G59: =IF(B59=1,$F$41,$F$38*(1+Dynamic!$E$30)^(SUMIFS($E$41:$E$60,$B$41:$B$60,B59,$C$41:$C$60,1)-2021)+IF(SUMIFS($E$41:$E$60,$B$41:$B$60,B59,$C$41:$C$60,1)>2030,Dynamic!$F$24,SUMIFS(Dynamic!$F$15:$F$24,Dynamic!$C$15:$C$24,SUMIFS($E$41:$E$60,$B$41:$B$60,B59,$C$41:$C$60,1))))*IF(C59>10,Parameters!$D$93/(EV_age-10),INDEX(Parameters!$D$83:$D$92,C59)) -> 11627.56322 | H59: ='Input-Output Module'!$D$78 -> 9200.226409 | I59: =('Input-Output Module'!$D$57*Calculatie!$C$57*(Calculatie!$C$74*(1+Dynamic!$D$6)^'Breakeven analyse'!D59)) + ('Input-Output Module'!$D$58*Calculatie!$C$57*(INDEX(Laadinfra8[[#All],[External energy costs (€)]],MATCH('M1-PowerSupply'!$B$49,Laadinfra8[[#All],[Charging type]],0))*(1+Dynamic!$D$6)^'Breakeven analyse'!D59)) -> 2576.926477 | J59: ='Input-Output Module'!$D$87+'Input-Output Module'!$D$88+'Input-Output Module'!$D$89+'Input-Output Module'!$D$90 -> 2225.625825 | K59: ='Input-Output Module'!$D$91 -> 0 | L59: ='Input-Output Module'!$D$92 -> 0 | M59: ='Input-Output Module'!$D$93 -> 0 | N59: ='Input-Output Module'!$D$94 -> 410.75625 | O59: 0 | P59: ='Input-Output Module'!$D$99*(1+Dynamic!$D$4)^'Breakeven analyse'!D59 -> 2091.736845 | Q59: 28132.83502 | R59: 16505.27181 | S59: FALSE
A60: E | B60: 3 | C60: =COUNTIF($B$41:B60,B60) -> 6 | D60: 19 | E60: 2042 | F60: =IF(C60=1,$F$38*(1+Dynamic!$E$30)^('Breakeven analyse'!D60)-$F$38*(1+Dynamic!$E$30)^('Breakeven analyse'!D60-EV_age)*(IF(EV_age>10,10%,VLOOKUP(EV_age,Parameters!$A$83:$D$92,2)))+IF('Breakeven analyse'!E60>2030,Dynamic!$F$24,SUMIFS(Dynamic!$F$15:$F$24,Dynamic!$C$15:$C$24,'Breakeven analyse'!E60))-IF('Breakeven analyse'!E60-EV_age>2030,Dynamic!$F$24,SUMIFS(Dynamic!$F$15:$F$24,Dynamic!$C$15:$C$24,'Breakeven analyse'!E60-EV_age))*(IF(EV_age>10,10%,VLOOKUP(EV_age,Parameters!$A$83:$D$92,2))),0) -> 0 | G60: =IF(B60=1,$F$41,$F$38*(1+Dynamic!$E$30)^(SUMIFS($E$41:$E$60,$B$41:$B$60,B60,$C$41:$C$60,1)-2021)+IF(SUMIFS($E$41:$E$60,$B$41:$B$60,B60,$C$41:$C$60,1)>2030,Dynamic!$F$24,SUMIFS(Dynamic!$F$15:$F$24,Dynamic!$C$15:$C$24,SUMIFS($E$41:$E$60,$B$41:$B$60,B60,$C$41:$C$60,1))))*IF(C60>10,Parameters!$D$93/(EV_age-10),INDEX(Parameters!$D$83:$D$92,C60)) -> 9427.667743 | H60: ='Input-Output Module'!$D$78 -> 9200.226409 | I60: =('Input-Output Module'!$D$57*Calculatie!$C$57*(Calculatie!$C$74*(1+Dynamic!$D$6)^'Breakeven analyse'!D60)) + ('Input-Output Module'!$D$58*Calculatie!$C$57*(INDEX(Laadinfra8[[#All],[External energy costs (€)]],MATCH('M1-PowerSupply'!$B$49,Laadinfra8[[#All],[Charging type]],0))*(1+Dynamic!$D$6)^'Breakeven analyse'!D60)) -> 2602.695741 | J60: ='Input-Output Module'!$D$87+'Input-Output Module'!$D$88+'Input-Output Module'!$D$89+'Input-Output Module'!$D$90 -> 2225.625825 | K60: ='Input-Output Module'!$D$91 -> 0 | L60: ='Input-Output Module'!$D$92 -> 0 | M60: ='Input-Output Module'!$D$93 -> 0 | N60: ='Input-Output Module'!$D$94 -> 410.75625 | O60: 0 | P60: ='Input-Output Module'!$D$99*(1+Dynamic!$D$4)^'Breakeven analyse'!D60 -> 2125.204634 | Q60: 25992.1766 | R60: 16564.50886 | S60: FALSE
F64: =F38 -> 81937.5
F65: =F64*(1+(VLOOKUP(('Input-Output Module'!B20-2022),Dynamic!$B$34:$D$62,3)))^0 -> 81937.5 | G65: =F65+VLOOKUP('Input-Output Module'!$B$20,Dynamic!$C$15:$G$24,5)+VLOOKUP('Input-Output Module'!$B$20,Dynamic!$C$68:$H$96,6) -> 179085.5 | H65: =G65-Calculatie!$D$49 -> 179085.5
E66: Year | F66: Investment | G66: Depreciation | H66: Fixed vehicle cost | I66: Energy | J66: Maintenance | K66: Tolheffing | L66: CO2 prijs | M66: HBE | N66: Specific transport cost | O66: Charging infra investment | P66: Charging infra operational | Q66: Fuel cell
A67: F | B67: =IF(MOD(D67,FC_age)=0,ROUNDUP(D67/FC_age,0)+1,ROUNDUP(D67/FC_age,0)) -> 1 | C67: =COUNTIF($B$67:B67,B67) -> 1 | D67: 0 | E67: ='Input-Output Module'!B20 -> 2023 | F67: =Calculatie!D50 -> 257897.9817 | G67: =IF(B67=1,$F$67,$F$38*(1+Dynamic!$E$30)^(SUMIFS($E$67:$E$86,$B$67:$B$86,B67,$C$67:$C$86,1)-2021)+IF(SUMIFS($E$67:$E$86,$B$67:$B$86,B67,$C$67:$C$86,1)>2030,Dynamic!$G$24,SUMIFS(Dynamic!$G$15:$G$24,Dynamic!$C$15:$C$24,SUMIFS($E$67:$E$86,$B$67:$B$86,B67,$C$67:$C$86,1))+VLOOKUP(SUMIFS($E$67:$E$86,$B$67:$B$86,B67,$C$67:$C$86,1),Dynamic!$C$68:$H$96,6)))*IF(C67>10,Parameters!$D$93/(FC_age-10),INDEX(Parameters!$D$83:$D$92,C67)) -> 48121.17086 | H67: ='Input-Output Module'!$E$78 -> 16297.78673 | I67: =Calculatie!$D$57*(Calculatie!$D$74*(1+Dynamic!$D$26)^'Breakeven analyse'!D67) -> 11146.78551 | J67: ='Input-Output Module'!$E$87+'Input-Output Module'!$E$88+'Input-Output Module'!$E$89+'Input-Output Module'!$E$90 -> 5058.383325 | K67: ='Input-Output Module'!$E$91 -> 0 | L67: ='Input-Output Module'!$E$92 -> 0 | M67: ='Input-Output Module'!$E$93 -> 0 | N67: ='Input-Output Module'!$E$94 -> 410.75625 | O67: 0 | P67: 0 | Q67: =SUM(G67:P67) -> 81034.88268 | R67: =SUM(H67:N67,P67) -> 32913.71182 | S67: =Q67<Q41 -> FALSE | U67: by 2040 the repair costs are the same as diesel
A68: F | B68: 1 | C68: =COUNTIF($B$67:B68,B68) -> 2 | D68: 1 | E68: =E67+1 -> 2024 | F68: =IF(C68=1,$F$64*(1+Dynamic!$E$30)^('Breakeven analyse'!D68)-$F$64*(1+Dynamic!$E$30)^('Breakeven analyse'!D68-EV_age)*(IF(EV_age>10,10%,VLOOKUP(FC_age,Parameters!$A$83:$D$92,2)))+IF('Breakeven analyse'!E68>2030,Dynamic!$F$24,SUMIFS(Dynamic!$F$15:$F$24,Dynamic!$C$15:$C$24,'Breakeven analyse'!E68))-IF('Breakeven analyse'!E68-FC_age>2030,Dynamic!$F$24,SUMIFS(Dynamic!$F$15:$F$24,Dynamic!$C$15:$C$24,'Breakeven analyse'!E68-FC_age))*(IF(FC_age>10,10%,VLOOKUP(FC_age,Parameters!$A$83:$D$92,2))),0) -> 0 | G68: =IF(B68=1,$F$67,$F$38*(1+Dynamic!$E$30)^(SUMIFS($E$67:$E$86,$B$67:$B$86,B68,$C$67:$C$86,1)-2021)+IF(SUMIFS($E$67:$E$86,$B$67:$B$86,B68,$C$67:$C$86,1)>2030,Dynamic!$G$24,SUMIFS(Dynamic!$G$15:$G$24,Dynamic!$C$15:$C$24,SUMIFS($E$67:$E$86,$B$67:$B$86,B68,$C$67:$C$86,1))+VLOOKUP(SUMIFS($E$67:$E$86,$B$67:$B$86,B68,$C$67:$C$86,1),Dynamic!$C$68:$H$96,6)))*IF(C68>10,Parameters!$D$93/(FC_age-10),INDEX(Parameters!$D$83:$D$92,C68)) -> 39689.06025 | H68: ='Input-Output Module'!$E$78 -> 16297.78673 | I68: =Calculatie!$D$57*(Calculatie!$D$74*(1+Dynamic!$D$26)^'Breakeven analyse'!D68) -> 11258.25337 | J68: ='Input-Output Module'!$E$87+'Input-Output Module'!$E$88+'Input-Output Module'!$E$89+'Input-Output Module'!$E$90 -> 5058.383325 | K68: ='Input-Output Module'!$E$91 -> 0 | L68: ='Input-Output Module'!$E$92 -> 0 | M68: ='Input-Output Module'!$E$93 -> 0 | N68: ='Input-Output Module'!$E$94 -> 410.75625 | O68: 0 | P68: 0 | Q68: =SUM(G68:P68) -> 72714.23993 | R68: =SUM(H68:N68,P68) -> 33025.17968 | S68: =Q68<Q42 -> FALSE | T68: =I68/I67 -> 1.01
A69: F | B69: 1 | C69: =COUNTIF($B$67:B69,B69) -> 3 | D69: 2 | E69: =E68+1 -> 2025 | F69: =IF(C69=1,$F$38*(1+Dynamic!$E$30)^('Breakeven analyse'!D69)-$F$38*(1+Dynamic!$E$30)^('Breakeven analyse'!D69-EV_age)*(IF(EV_age>10,10%,VLOOKUP(FC_age,Parameters!$A$83:$D$92,2)))+IF('Breakeven analyse'!E69>2030,Dynamic!$F$24,SUMIFS(Dynamic!$F$15:$F$24,Dynamic!$C$15:$C$24,'Breakeven analyse'!E69))-IF('Breakeven analyse'!E69-FC_age>2030,Dynamic!$F$24,SUMIFS(Dynamic!$F$15:$F$24,Dynamic!$C$15:$C$24,'Breakeven analyse'!E69-FC_age))*(IF(FC_age>10,10%,VLOOKUP(FC_age,Parameters!$A$83:$D$92,2))),0) -> 0 | G69: =IF(B69=1,$F$67,$F$38*(1+Dynamic!$E$30)^(SUMIFS($E$67:$E$86,$B$67:$B$86,B69,$C$67:$C$86,1)-2021)+IF(SUMIFS($E$67:$E$86,$B$67:$B$86,B69,$C$67:$C$86,1)>2030,Dynamic!$G$24,SUMIFS(Dynamic!$G$15:$G$24,Dynamic!$C$15:$C$24,SUMIFS($E$67:$E$86,$B$67:$B$86,B69,$C$67:$C$86,1))+VLOOKUP(SUMIFS($E$67:$E$86,$B$67:$B$86,B69,$C$67:$C$86,1),Dynamic!$C$68:$H$96,6)))*IF(C69>10,Parameters!$D$93/(FC_age-10),INDEX(Parameters!$D$83:$D$92,C69)) -> 32180.02483 | H69: ='Input-Output Module'!$E$78 -> 16297.78673 | I69: =Calculatie!$D$57*(Calculatie!$D$74*(1+Dynamic!$D$26)^'Breakeven analyse'!D69) -> 11370.8359 | J69: ='Input-Output Module'!$E$87+'Input-Output Module'!$E$88+'Input-Output Module'!$E$89+'Input-Output Module'!$E$90 -> 5058.383325 | K69: ='Input-Output Module'!$E$91 -> 0 | L69: ='Input-Output Module'!$E$92 -> 0 | M69: ='Input-Output Module'!$E$93 -> 0 | N69: ='Input-Output Module'!$E$94 -> 410.75625 | O69: 0 | P69: 0 | Q69: 65317.78704 | R69: 33137.76221 | S69: FALSE
A70: F | B70: 1 | C70: =COUNTIF($B$67:B70,B70) -> 4 | D70: 3 | E70: 2026 | F70: =IF(C70=1,$F$38*(1+Dynamic!$E$30)^('Breakeven analyse'!D70)-$F$38*(1+Dynamic!$E$30)^('Breakeven analyse'!D70-EV_age)*(IF(EV_age>10,10%,VLOOKUP(FC_age,Parameters!$A$83:$D$92,2)))+IF('Breakeven analyse'!E70>2030,Dynamic!$F$24,SUMIFS(Dynamic!$F$15:$F$24,Dynamic!$C$15:$C$24,'Breakeven analyse'!E70))-IF('Breakeven analyse'!E70-FC_age>2030,Dynamic!$F$24,SUMIFS(Dynamic!$F$15:$F$24,Dynamic!$C$15:$C$24,'Breakeven analyse'!E70-FC_age))*(IF(FC_age>10,10%,VLOOKUP(FC_age,Parameters!$A$83:$D$92,2))),0) -> 0 | G70: =IF(B70=1,$F$67,$F$38*(1+Dynamic!$E$30)^(SUMIFS($E$67:$E$86,$B$67:$B$86,B70,$C$67:$C$86,1)-2021)+IF(SUMIFS($E$67:$E$86,$B$67:$B$86,B70,$C$67:$C$86,1)>2030,Dynamic!$G$24,SUMIFS(Dynamic!$G$15:$G$24,Dynamic!$C$15:$C$24,SUMIFS($E$67:$E$86,$B$67:$B$86,B70,$C$67:$C$86,1))+VLOOKUP(SUMIFS($E$67:$E$86,$B$67:$B$86,B70,$C$67:$C$86,1),Dynamic!$C$68:$H$96,6)))*IF(C70>10,Parameters!$D$93/(FC_age-10),INDEX(Parameters!$D$83:$D$92,C70)) -> 26091.67341 | H70: ='Input-Output Module'!$E$78 -> 16297.78673 | I70: =Calculatie!$D$57*(Calculatie!$D$74*(1+Dynamic!$D$26)^'Breakeven analyse'!D70) -> 11484.54426 | J70: ='Input-Output Module'!$E$87+'Input-Output Module'!$E$88+'Input-Output Module'!$E$89+'Input-Output Module'!$E$90 -> 5058.383325 | K70: ='Input-Output Module'!$E$91 -> 0 | L70: ='Input-Output Module'!$E$92 -> 0 | M70: ='Input-Output Module'!$E$93 -> 0 | N70: ='Input-Output Module'!$E$94 -> 410.75625 | O70: 0 | P70: 0 | Q70: 59343.14398 | R70: 33251.47057 | S70: FALSE
A71: F | B71: 1 | C71: =COUNTIF($B$67:B71,B71) -> 5 | D71: 4 | E71: 2027 | F71: =IF(C71=1,$F$38*(1+Dynamic!$E$30)^('Breakeven analyse'!D71)-$F$38*(1+Dynamic!$E$30)^('Breakeven analyse'!D71-EV_age)*(IF(EV_age>10,10%,VLOOKUP(FC_age,Parameters!$A$83:$D$92,2)))+IF('Breakeven analyse'!E71>2030,Dynamic!$F$24,SUMIFS(Dynamic!$F$15:$F$24,Dynamic!$C$15:$C$24,'Breakeven analyse'!E71))-IF('Breakeven analyse'!E71-FC_age>2030,Dynamic!$F$24,SUMIFS(Dynamic!$F$15:$F$24,Dynamic!$C$15:$C$24,'Breakeven analyse'!E71-FC_age))*(IF(FC_age>10,10%,VLOOKUP(FC_age,Parameters!$A$83:$D$92,2))),0) -> 0 | G71: =IF(B71=1,$F$67,$F$38*(1+Dynamic!$E$30)^(SUMIFS($E$67:$E$86,$B$67:$B$86,B71,$C$67:$C$86,1)-2021)+IF(SUMIFS($E$67:$E$86,$B$67:$B$86,B71,$C$67:$C$86,1)>2030,Dynamic!$G$24,SUMIFS(Dynamic!$G$15:$G$24,Dynamic!$C$15:$C$24,SUMIFS($E$67:$E$86,$B$67:$B$86,B71,$C$67:$C$86,1))+VLOOKUP(SUMIFS($E$67:$E$86,$B$67:$B$86,B71,$C$67:$C$86,1),Dynamic!$C$68:$H$96,6)))*IF(C71>10,Parameters!$D$93/(FC_age-10),INDEX(Parameters!$D$83:$D$92,C71)) -> 21155.2174 | H71: ='Input-Output Module'!$E$78 -> 16297.78673 | I71: =Calculatie!$D$57*(Calculatie!$D$74*(1+Dynamic!$D$26)^'Breakeven analyse'!D71) -> 11599.38971 | J71: ='Input-Output Module'!$E$87+'Input-Output Module'!$E$88+'Input-Output Module'!$E$89+'Input-Output Module'!$E$90 -> 5058.383325 | K71: ='Input-Output Module'!$E$91 -> 0 | L71: ='Input-Output Module'!$E$92 -> 0 | M71: ='Input-Output Module'!$E$93 -> 0 | N71: ='Input-Output Module'!$E$94 -> 410.75625 | O71: 0 | P71: 0 | Q71: 54521.53341 | R71: 33366.31601 | S71: FALSE
A72: F | B72: 1 | C72: =COUNTIF($B$67:B72,B72) -> 6 | D72: 5 | E72: 2028 | F72: =IF(C72=1,$F$38*(1+Dynamic!$E$30)^('Breakeven analyse'!D72)-$F$38*(1+Dynamic!$E$30)^('Breakeven analyse'!D72-EV_age)*(IF(EV_age>10,10%,VLOOKUP(FC_age,Parameters!$A$83:$D$92,2)))+IF('Breakeven analyse'!E72>2030,Dynamic!$F$24,SUMIFS(Dynamic!$F$15:$F$24,Dynamic!$C$15:$C$24,'Breakeven analyse'!E72))-IF('Breakeven analyse'!E72-FC_age>2030,Dynamic!$F$24,SUMIFS(Dynamic!$F$15:$F$24,Dynamic!$C$15:$C$24,'Breakeven analyse'!E72-FC_age))*(IF(FC_age>10,10%,VLOOKUP(FC_age,Parameters!$A$83:$D$92,2))),0) -> 0 | G72: =IF(B72=1,$F$67,$F$38*(1+Dynamic!$E$30)^(SUMIFS($E$67:$E$86,$B$67:$B$86,B72,$C$67:$C$86,1)-2021)+IF(SUMIFS($E$67:$E$86,$B$67:$B$86,B72,$C$67:$C$86,1)>2030,Dynamic!$G$24,SUMIFS(Dynamic!$G$15:$G$24,Dynamic!$C$15:$C$24,SUMIFS($E$67:$E$86,$B$67:$B$86,B72,$C$67:$C$86,1))+VLOOKUP(SUMIFS($E$67:$E$86,$B$67:$B$86,B72,$C$67:$C$86,1),Dynamic!$C$68:$H$96,6)))*IF(C72>10,Parameters!$D$93/(FC_age-10),INDEX(Parameters!$D$83:$D$92,C72)) -> 17152.72211 | H72: ='Input-Output Module'!$E$78 -> 16297.78673 | I72: =Calculatie!$D$57*(Calculatie!$D$74*(1+Dynamic!$D$26)^'Breakeven analyse'!D72) -> 11715.3836 | J72: ='Input-Output Module'!$E$87+'Input-Output Module'!$E$88+'Input-Output Module'!$E$89+'Input-Output Module'!$E$90 -> 5058.383325 | K72: ='Input-Output Module'!$E$91 -> 0 | L72: ='Input-Output Module'!$E$92 -> 0 | M72: ='Input-Output Module'!$E$93 -> 0 | N72: ='Input-Output Module'!$E$94 -> 410.75625 | O72: 0 | P72: 0 | Q72: 50635.03202 | R72: 33482.30991 | S72: FALSE
A73: F | B73: 1 | C73: =COUNTIF($B$67:B73,B73) -> 7 | D73: 6 | E73: 2029 | F73: =IF(C73=1,$F$38*(1+Dynamic!$E$30)^('Breakeven analyse'!D73)-$F$38*(1+Dynamic!$E$30)^('Breakeven analyse'!D73-EV_age)*(IF(EV_age>10,10%,VLOOKUP(FC_age,Parameters!$A$83:$D$92,2)))+IF('Breakeven analyse'!E73>2030,Dynamic!$F$24,SUMIFS(Dynamic!$F$15:$F$24,Dynamic!$C$15:$C$24,'Breakeven analyse'!E73))-IF('Breakeven analyse'!E73-FC_age>2030,Dynamic!$F$24,SUMIFS(Dynamic!$F$15:$F$24,Dynamic!$C$15:$C$24,'Breakeven analyse'!E73-FC_age))*(IF(FC_age>10,10%,VLOOKUP(FC_age,Parameters!$A$83:$D$92,2))),0) -> 0 | G73: =IF(B73=1,$F$67,$F$38*(1+Dynamic!$E$30)^(SUMIFS($E$67:$E$86,$B$67:$B$86,B73,$C$67:$C$86,1)-2021)+IF(SUMIFS($E$67:$E$86,$B$67:$B$86,B73,$C$67:$C$86,1)>2030,Dynamic!$G$24,SUMIFS(Dynamic!$G$15:$G$24,Dynamic!$C$15:$C$24,SUMIFS($E$67:$E$86,$B$67:$B$86,B73,$C$67:$C$86,1))+VLOOKUP(SUMIFS($E$67:$E$86,$B$67:$B$86,B73,$C$67:$C$86,1),Dynamic!$C$68:$H$96,6)))*IF(C73>10,Parameters!$D$93/(FC_age-10),INDEX(Parameters!$D$83:$D$92,C73)) -> 13907.48533 | H73: ='Input-Output Module'!$E$78 -> 16297.78673 | I73: =Calculatie!$D$57*(Calculatie!$D$74*(1+Dynamic!$D$26)^'Breakeven analyse'!D73) -> 11832.53744 | J73: ='Input-Output Module'!$E$87+'Input-Output Module'!$E$88+'Input-Output Module'!$E$89+'Input-Output Module'!$E$90 -> 5058.383325 | K73: ='Input-Output Module'!$E$91 -> 0 | L73: ='Input-Output Module'!$E$92 -> 0 | M73: ='Input-Output Module'!$E$93 -> 0 | N73: ='Input-Output Module'!$E$94 -> 410.75625 | O73: 0 | P73: 0 | Q73: 47506.94908 | R73: 33599.46375 | S73: FALSE | T73: =I72/I71 -> 1.01
A74: F | B74: 2 | C74: =COUNTIF($B$67:B74,B74) -> 1 | D74: 7 | E74: 2030 | F74: =IF(C74=1,$F$38*(1+Dynamic!$E$30)^('Breakeven analyse'!D74)-$F$38*(1+Dynamic!$E$30)^('Breakeven analyse'!D74-EV_age)*(IF(EV_age>10,10%,VLOOKUP(FC_age,Parameters!$A$83:$D$92,2)))+IF('Breakeven analyse'!E74>2030,Dynamic!$F$24,SUMIFS(Dynamic!$F$15:$F$24,Dynamic!$C$15:$C$24,'Breakeven analyse'!E74))-IF('Breakeven analyse'!E74-FC_age>2030,Dynamic!$F$24,SUMIFS(Dynamic!$F$15:$F$24,Dynamic!$C$15:$C$24,'Breakeven analyse'!E74-FC_age))*(IF(FC_age>10,10%,VLOOKUP(FC_age,Parameters!$A$83:$D$92,2))),0) -> 97331.34687 | G74: =IF(B74=1,$F$67,$F$38*(1+Dynamic!$E$30)^(SUMIFS($E$67:$E$86,$B$67:$B$86,B74,$C$67:$C$86,1)-2021)+IF(SUMIFS($E$67:$E$86,$B$67:$B$86,B74,$C$67:$C$86,1)>2030,Dynamic!$G$24,SUMIFS(Dynamic!$G$15:$G$24,Dynamic!$C$15:$C$24,SUMIFS($E$67:$E$86,$B$67:$B$86,B74,$C$67:$C$86,1))+VLOOKUP(SUMIFS($E$67:$E$86,$B$67:$B$86,B74,$C$67:$C$86,1),Dynamic!$C$68:$H$96,6)))*IF(C74>10,Parameters!$D$93/(FC_age-10),INDEX(Parameters!$D$83:$D$92,C74)) -> 30589.01135 | H74: ='Input-Output Module'!$E$78 -> 16297.78673 | I74: =Calculatie!$D$57*(Calculatie!$D$74*(1+Dynamic!$D$26)^'Breakeven analyse'!D74) -> 11950.86281 | J74: ='Input-Output Module'!$E$87+'Input-Output Module'!$E$88+'Input-Output Module'!$E$89+'Input-Output Module'!$E$90 -> 5058.383325 | K74: ='Input-Output Module'!$E$91 -> 0 | L74: ='Input-Output Module'!$E$92 -> 0 | M74: ='Input-Output Module'!$E$93 -> 0 | N74: ='Input-Output Module'!$E$94 -> 410.75625 | O74: 0 | P74: 0 | Q74: 64306.80047 | R74: 33717.78912 | S74: FALSE
A75: F | B75: 2 | C75: =COUNTIF($B$67:B75,B75) -> 2 | D75: 8 | E75: 2031 | F75: =IF(C75=1,$F$38*(1+Dynamic!$E$30)^('Breakeven analyse'!D75)-$F$38*(1+Dynamic!$E$30)^('Breakeven analyse'!D75-EV_age)*(IF(EV_age>10,10%,VLOOKUP(FC_age,Parameters!$A$83:$D$92,2)))+IF('Breakeven analyse'!E75>2030,Dynamic!$F$24,SUMIFS(Dynamic!$F$15:$F$24,Dynamic!$C$15:$C$24,'Breakeven analyse'!E75))-IF('Breakeven analyse'!E75-FC_age>2030,Dynamic!$F$24,SUMIFS(Dynamic!$F$15:$F$24,Dynamic!$C$15:$C$24,'Breakeven analyse'!E75-FC_age))*(IF(FC_age>10,10%,VLOOKUP(FC_age,Parameters!$A$83:$D$92,2))),0) -> 0 | G75: =IF(B75=1,$F$67,$F$38*(1+Dynamic!$E$30)^(SUMIFS($E$67:$E$86,$B$67:$B$86,B75,$C$67:$C$86,1)-2021)+IF(SUMIFS($E$67:$E$86,$B$67:$B$86,B75,$C$67:$C$86,1)>2030,Dynamic!$G$24,SUMIFS(Dynamic!$G$15:$G$24,Dynamic!$C$15:$C$24,SUMIFS($E$67:$E$86,$B$67:$B$86,B75,$C$67:$C$86,1))+VLOOKUP(SUMIFS($E$67:$E$86,$B$67:$B$86,B75,$C$67:$C$86,1),Dynamic!$C$68:$H$96,6)))*IF(C75>10,Parameters!$D$93/(FC_age-10),INDEX(Parameters!$D$83:$D$92,C75)) -> 25229.00197 | H75: ='Input-Output Module'!$E$78 -> 16297.78673 | I75: =Calculatie!$D$57*(Calculatie!$D$74*(1+Dynamic!$D$26)^'Breakeven analyse'!D75) -> 12070.37144 | J75: ='Input-Output Module'!$E$87+'Input-Output Module'!$E$88+'Input-Output Module'!$E$89+'Input-Output Module'!$E$90 -> 5058.383325 | K75: ='Input-Output Module'!$E$91 -> 0 | L75: ='Input-Output Module'!$E$92 -> 0 | M75: ='Input-Output Module'!$E$93 -> 0 | N75: ='Input-Output Module'!$E$94 -> 410.75625 | O75: 0 | P75: 0 | Q75: 59066.29972 | R75: 33837.29775 | S75: FALSE
A76: F | B76: 2 | C76: =COUNTIF($B$67:B76,B76) -> 3 | D76: 9 | E76: 2032 | F76: =IF(C76=1,$F$38*(1+Dynamic!$E$30)^('Breakeven analyse'!D76)-$F$38*(1+Dynamic!$E$30)^('Breakeven analyse'!D76-EV_age)*(IF(EV_age>10,10%,VLOOKUP(FC_age,Parameters!$A$83:$D$92,2)))+IF('Breakeven analyse'!E76>2030,Dynamic!$F$24,SUMIFS(Dynamic!$F$15:$F$24,Dynamic!$C$15:$C$24,'Breakeven analyse'!E76))-IF('Breakeven analyse'!E76-FC_age>2030,Dynamic!$F$24,SUMIFS(Dynamic!$F$15:$F$24,Dynamic!$C$15:$C$24,'Breakeven analyse'!E76-FC_age))*(IF(FC_age>10,10%,VLOOKUP(FC_age,Parameters!$A$83:$D$92,2))),0) -> 0 | G76: =IF(B76=1,$F$67,$F$38*(1+Dynamic!$E$30)^(SUMIFS($E$67:$E$86,$B$67:$B$86,B76,$C$67:$C$86,1)-2021)+IF(SUMIFS($E$67:$E$86,$B$67:$B$86,B76,$C$67:$C$86,1)>2030,Dynamic!$G$24,SUMIFS(Dynamic!$G$15:$G$24,Dynamic!$C$15:$C$24,SUMIFS($E$67:$E$86,$B$67:$B$86,B76,$C$67:$C$86,1))+VLOOKUP(SUMIFS($E$67:$E$86,$B$67:$B$86,B76,$C$67:$C$86,1),Dynamic!$C$68:$H$96,6)))*IF(C76>10,Parameters!$D$93/(FC_age-10),INDEX(Parameters!$D$83:$D$92,C76)) -> 20455.76047 | H76: ='Input-Output Module'!$E$78 -> 16297.78673 | I76: =Calculatie!$D$57*(Calculatie!$D$74*(1+Dynamic!$D$26)^'Breakeven analyse'!D76) -> 12191.07516 | J76: ='Input-Output Module'!$E$87+'Input-Output Module'!$E$88+'Input-Output Module'!$E$89+'Input-Output Module'!$E$90 -> 5058.383325 | K76: ='Input-Output Module'!$E$91 -> 0 | L76: ='Input-Output Module'!$E$92 -> 0 | M76: ='Input-Output Module'!$E$93 -> 0 | N76: ='Input-Output Module'!$E$94 -> 410.75625 | O76: 0 | P76: 0 | Q76: 54413.76193 | R76: 33958.00146 | S76: FALSE
A77: F | B77: 2 | C77: =COUNTIF($B$67:B77,B77) -> 4 | D77: 10 | E77: 2033 | F77: =IF(C77=1,$F$38*(1+Dynamic!$E$30)^('Breakeven analyse'!D77)-$F$38*(1+Dynamic!$E$30)^('Breakeven analyse'!D77-EV_age)*(IF(EV_age>10,10%,VLOOKUP(FC_age,Parameters!$A$83:$D$92,2)))+IF('Breakeven analyse'!E77>2030,Dynamic!$F$24,SUMIFS(Dynamic!$F$15:$F$24,Dynamic!$C$15:$C$24,'Breakeven analyse'!E77))-IF('Breakeven analyse'!E77-FC_age>2030,Dynamic!$F$24,SUMIFS(Dynamic!$F$15:$F$24,Dynamic!$C$15:$C$24,'Breakeven analyse'!E77-FC_age))*(IF(FC_age>10,10%,VLOOKUP(FC_age,Parameters!$A$83:$D$92,2))),0) -> 0 | G77: =IF(B77=1,$F$67,$F$38*(1+Dynamic!$E$30)^(SUMIFS($E$67:$E$86,$B$67:$B$86,B77,$C$67:$C$86,1)-2021)+IF(SUMIFS($E$67:$E$86,$B$67:$B$86,B77,$C$67:$C$86,1)>2030,Dynamic!$G$24,SUMIFS(Dynamic!$G$15:$G$24,Dynamic!$C$15:$C$24,SUMIFS($E$67:$E$86,$B$67:$B$86,B77,$C$67:$C$86,1))+VLOOKUP(SUMIFS($E$67:$E$86,$B$67:$B$86,B77,$C$67:$C$86,1),Dynamic!$C$68:$H$96,6)))*IF(C77>10,Parameters!$D$93/(FC_age-10),INDEX(Parameters!$D$83:$D$92,C77)) -> 16585.60005 | H77: ='Input-Output Module'!$E$78 -> 16297.78673 | I77: =Calculatie!$D$57*(Calculatie!$D$74*(1+Dynamic!$D$26)^'Breakeven analyse'!D77) -> 12312.98591 | J77: ='Input-Output Module'!$E$87+'Input-Output Module'!$E$88+'Input-Output Module'!$E$89+'Input-Output Module'!$E$90 -> 5058.383325 | K77: ='Input-Output Module'!$E$91 -> 0 | L77: ='Input-Output Module'!$E$92 -> 0 | M77: ='Input-Output Module'!$E$93 -> 0 | N77: ='Input-Output Module'!$E$94 -> 410.75625 | O77: 0 | P77: 0 | Q77: 50665.51227 | R77: 34079.91222 | S77: FALSE
A78: F | B78: 2 | C78: =COUNTIF($B$67:B78,B78) -> 5 | D78: 11 | E78: 2034 | F78: =IF(C78=1,$F$38*(1+Dynamic!$E$30)^('Breakeven analyse'!D78)-$F$38*(1+Dynamic!$E$30)^('Breakeven analyse'!D78-EV_age)*(IF(EV_age>10,10%,VLOOKUP(FC_age,Parameters!$A$83:$D$92,2)))+IF('Breakeven analyse'!E78>2030,Dynamic!$F$24,SUMIFS(Dynamic!$F$15:$F$24,Dynamic!$C$15:$C$24,'Breakeven analyse'!E78))-IF('Breakeven analyse'!E78-FC_age>2030,Dynamic!$F$24,SUMIFS(Dynamic!$F$15:$F$24,Dynamic!$C$15:$C$24,'Breakeven analyse'!E78-FC_age))*(IF(FC_age>10,10%,VLOOKUP(FC_age,Parameters!$A$83:$D$92,2))),0) -> 0 | G78: =IF(B78=1,$F$67,$F$38*(1+Dynamic!$E$30)^(SUMIFS($E$67:$E$86,$B$67:$B$86,B78,$C$67:$C$86,1)-2021)+IF(SUMIFS($E$67:$E$86,$B$67:$B$86,B78,$C$67:$C$86,1)>2030,Dynamic!$G$24,SUMIFS(Dynamic!$G$15:$G$24,Dynamic!$C$15:$C$24,SUMIFS($E$67:$E$86,$B$67:$B$86,B78,$C$67:$C$86,1))+VLOOKUP(SUMIFS($E$67:$E$86,$B$67:$B$86,B78,$C$67:$C$86,1),Dynamic!$C$68:$H$96,6)))*IF(C78>10,Parameters!$D$93/(FC_age-10),INDEX(Parameters!$D$83:$D$92,C78)) -> 13447.66085 | H78: ='Input-Output Module'!$E$78 -> 16297.78673 | I78: =Calculatie!$D$57*(Calculatie!$D$74*(1+Dynamic!$D$26)^'Breakeven analyse'!D78) -> 12436.11577 | J78: ='Input-Output Module'!$E$87+'Input-Output Module'!$E$88+'Input-Output Module'!$E$89+'Input-Output Module'!$E$90 -> 5058.383325 | K78: ='Input-Output Module'!$E$91 -> 0 | L78: ='Input-Output Module'!$E$92 -> 0 | M78: ='Input-Output Module'!$E$93 -> 0 | N78: ='Input-Output Module'!$E$94 -> 410.75625 | O78: 0 | P78: 0 | Q78: 47650.70292 | R78: 34203.04207 | S78: FALSE
A79: F | B79: 2 | C79: =COUNTIF($B$67:B79,B79) -> 6 | D79: 12 | E79: 2035 | F79: =IF(C79=1,$F$38*(1+Dynamic!$E$30)^('Breakeven analyse'!D79)-$F$38*(1+Dynamic!$E$30)^('Breakeven analyse'!D79-EV_age)*(IF(EV_age>10,10%,VLOOKUP(FC_age,Parameters!$A$83:$D$92,2)))+IF('Breakeven analyse'!E79>2030,Dynamic!$F$24,SUMIFS(Dynamic!$F$15:$F$24,Dynamic!$C$15:$C$24,'Breakeven analyse'!E79))-IF('Breakeven analyse'!E79-FC_age>2030,Dynamic!$F$24,SUMIFS(Dynamic!$F$15:$F$24,Dynamic!$C$15:$C$24,'Breakeven analyse'!E79-FC_age))*(IF(FC_age>10,10%,VLOOKUP(FC_age,Parameters!$A$83:$D$92,2))),0) -> 0 | G79: =IF(B79=1,$F$67,$F$38*(1+Dynamic!$E$30)^(SUMIFS($E$67:$E$86,$B$67:$B$86,B79,$C$67:$C$86,1)-2021)+IF(SUMIFS($E$67:$E$86,$B$67:$B$86,B79,$C$67:$C$86,1)>2030,Dynamic!$G$24,SUMIFS(Dynamic!$G$15:$G$24,Dynamic!$C$15:$C$24,SUMIFS($E$67:$E$86,$B$67:$B$86,B79,$C$67:$C$86,1))+VLOOKUP(SUMIFS($E$67:$E$86,$B$67:$B$86,B79,$C$67:$C$86,1),Dynamic!$C$68:$H$96,6)))*IF(C79>10,Parameters!$D$93/(FC_age-10),INDEX(Parameters!$D$83:$D$92,C79)) -> 10903.40908 | H79: ='Input-Output Module'!$E$78 -> 16297.78673 | I79: =Calculatie!$D$57*(Calculatie!$D$74*(1+Dynamic!$D$26)^'Breakeven analyse'!D79) -> 12560.47692 | J79: ='Input-Output Module'!$E$87+'Input-Output Module'!$E$88+'Input-Output Module'!$E$89+'Input-Output Module'!$E$90 -> 5058.383325 | K79: ='Input-Output Module'!$E$91 -> 0 | L79: ='Input-Output Module'!$E$92 -> 0 | M79: ='Input-Output Module'!$E$93 -> 0 | N79: ='Input-Output Module'!$E$94 -> 410.75625 | O79: 0 | P79: 0 | Q79: 45230.81231 | R79: 34327.40323 | S79: FALSE
A80: F | B80: 2 | C80: =COUNTIF($B$67:B80,B80) -> 7 | D80: 13 | E80: 2036 | F80: =IF(C80=1,$F$38*(1+Dynamic!$E$30)^('Breakeven analyse'!D80)-$F$38*(1+Dynamic!$E$30)^('Breakeven analyse'!D80-EV_age)*(IF(EV_age>10,10%,VLOOKUP(FC_age,Parameters!$A$83:$D$92,2)))+IF('Breakeven analyse'!E80>2030,Dynamic!$F$24,SUMIFS(Dynamic!$F$15:$F$24,Dynamic!$C$15:$C$24,'Breakeven analyse'!E80))-IF('Breakeven analyse'!E80-FC_age>2030,Dynamic!$F$24,SUMIFS(Dynamic!$F$15:$F$24,Dynamic!$C$15:$C$24,'Breakeven analyse'!E80-FC_age))*(IF(FC_age>10,10%,VLOOKUP(FC_age,Parameters!$A$83:$D$92,2))),0) -> 0 | G80: =IF(B80=1,$F$67,$F$38*(1+Dynamic!$E$30)^(SUMIFS($E$67:$E$86,$B$67:$B$86,B80,$C$67:$C$86,1)-2021)+IF(SUMIFS($E$67:$E$86,$B$67:$B$86,B80,$C$67:$C$86,1)>2030,Dynamic!$G$24,SUMIFS(Dynamic!$G$15:$G$24,Dynamic!$C$15:$C$24,SUMIFS($E$67:$E$86,$B$67:$B$86,B80,$C$67:$C$86,1))+VLOOKUP(SUMIFS($E$67:$E$86,$B$67:$B$86,B80,$C$67:$C$86,1),Dynamic!$C$68:$H$96,6)))*IF(C80>10,Parameters!$D$93/(FC_age-10),INDEX(Parameters!$D$83:$D$92,C80)) -> 8840.521107 | H80: ='Input-Output Module'!$E$78 -> 16297.78673 | I80: =Calculatie!$D$57*(Calculatie!$D$74*(1+Dynamic!$D$26)^'Breakeven analyse'!D80) -> 12686.08169 | J80: ='Input-Output Module'!$E$87+'Input-Output Module'!$E$88+'Input-Output Module'!$E$89+'Input-Output Module'!$E$90 -> 5058.383325 | K80: ='Input-Output Module'!$E$91 -> 0 | L80: ='Input-Output Module'!$E$92 -> 0 | M80: ='Input-Output Module'!$E$93 -> 0 | N80: ='Input-Output Module'!$E$94 -> 410.75625 | O80: 0 | P80: 0 | Q80: 43293.52911 | R80: 34453.008 | S80: FALSE
A81: F | B81: 3 | C81: =COUNTIF($B$67:B81,B81) -> 1 | D81: 14 | E81: 2037 | F81: =IF(C81=1,$F$38*(1+Dynamic!$E$30)^('Breakeven analyse'!D81)-$F$38*(1+Dynamic!$E$30)^('Breakeven analyse'!D81-EV_age)*(IF(EV_age>10,10%,VLOOKUP(FC_age,Parameters!$A$83:$D$92,2)))+IF('Breakeven analyse'!E81>2030,Dynamic!$F$24,SUMIFS(Dynamic!$F$15:$F$24,Dynamic!$C$15:$C$24,'Breakeven analyse'!E81))-IF('Breakeven analyse'!E81-FC_age>2030,Dynamic!$F$24,SUMIFS(Dynamic!$F$15:$F$24,Dynamic!$C$15:$C$24,'Breakeven analyse'!E81-FC_age))*(IF(FC_age>10,10%,VLOOKUP(FC_age,Parameters!$A$83:$D$92,2))),0) -> 108412.47 | G81: =IF(B81=1,$F$67,$F$38*(1+Dynamic!$E$30)^(SUMIFS($E$67:$E$86,$B$67:$B$86,B81,$C$67:$C$86,1)-2021)+IF(SUMIFS($E$67:$E$86,$B$67:$B$86,B81,$C$67:$C$86,1)>2030,Dynamic!$G$24,SUMIFS(Dynamic!$G$15:$G$24,Dynamic!$C$15:$C$24,SUMIFS($E$67:$E$86,$B$67:$B$86,B81,$C$67:$C$86,1))+VLOOKUP(SUMIFS($E$67:$E$86,$B$67:$B$86,B81,$C$67:$C$86,1),Dynamic!$C$68:$H$96,6)))*IF(C81>10,Parameters!$D$93/(FC_age-10),INDEX(Parameters!$D$83:$D$92,C81)) -> 23640.70838 | H81: ='Input-Output Module'!$E$78 -> 16297.78673 | I81: =Calculatie!$D$57*(Calculatie!$D$74*(1+Dynamic!$D$26)^'Breakeven analyse'!D81) -> 12812.94251 | J81: ='Input-Output Module'!$E$87+'Input-Output Module'!$E$88+'Input-Output Module'!$E$89+'Input-Output Module'!$E$90 -> 5058.383325 | K81: ='Input-Output Module'!$E$91 -> 0 | L81: ='Input-Output Module'!$E$92 -> 0 | M81: ='Input-Output Module'!$E$93 -> 0 | N81: ='Input-Output Module'!$E$94 -> 410.75625 | O81: 0 | P81: 0 | Q81: 58220.57719 | R81: 34579.86882 | S81: FALSE
A82: F | B82: 3 | C82: =COUNTIF($B$67:B82,B82) -> 2 | D82: 15 | E82: 2038 | F82: =IF(C82=1,$F$38*(1+Dynamic!$E$30)^('Breakeven analyse'!D82)-$F$38*(1+Dynamic!$E$30)^('Breakeven analyse'!D82-EV_age)*(IF(EV_age>10,10%,VLOOKUP(FC_age,Parameters!$A$83:$D$92,2)))+IF('Breakeven analyse'!E82>2030,Dynamic!$F$24,SUMIFS(Dynamic!$F$15:$F$24,Dynamic!$C$15:$C$24,'Breakeven analyse'!E82))-IF('Breakeven analyse'!E82-FC_age>2030,Dynamic!$F$24,SUMIFS(Dynamic!$F$15:$F$24,Dynamic!$C$15:$C$24,'Breakeven analyse'!E82-FC_age))*(IF(FC_age>10,10%,VLOOKUP(FC_age,Parameters!$A$83:$D$92,2))),0) -> 0 | G82: =IF(B82=1,$F$67,$F$38*(1+Dynamic!$E$30)^(SUMIFS($E$67:$E$86,$B$67:$B$86,B82,$C$67:$C$86,1)-2021)+IF(SUMIFS($E$67:$E$86,$B$67:$B$86,B82,$C$67:$C$86,1)>2030,Dynamic!$G$24,SUMIFS(Dynamic!$G$15:$G$24,Dynamic!$C$15:$C$24,SUMIFS($E$67:$E$86,$B$67:$B$86,B82,$C$67:$C$86,1))+VLOOKUP(SUMIFS($E$67:$E$86,$B$67:$B$86,B82,$C$67:$C$86,1),Dynamic!$C$68:$H$96,6)))*IF(C82>10,Parameters!$D$93/(FC_age-10),INDEX(Parameters!$D$83:$D$92,C82)) -> 19498.22671 | H82: ='Input-Output Module'!$E$78 -> 16297.78673 | I82: =Calculatie!$D$57*(Calculatie!$D$74*(1+Dynamic!$D$26)^'Breakeven analyse'!D82) -> 12941.07193 | J82: ='Input-Output Module'!$E$87+'Input-Output Module'!$E$88+'Input-Output Module'!$E$89+'Input-Output Module'!$E$90 -> 5058.383325 | K82: ='Input-Output Module'!$E$91 -> 0 | L82: ='Input-Output Module'!$E$92 -> 0 | M82: ='Input-Output Module'!$E$93 -> 0 | N82: ='Input-Output Module'!$E$94 -> 410.75625 | O82: 0 | P82: 0 | Q82: 54206.22496 | R82: 34707.99824 | S82: FALSE
A83: F | B83: 3 | C83: =COUNTIF($B$67:B83,B83) -> 3 | D83: 16 | E83: 2039 | F83: =IF(C83=1,$F$38*(1+Dynamic!$E$30)^('Breakeven analyse'!D83)-$F$38*(1+Dynamic!$E$30)^('Breakeven analyse'!D83-EV_age)*(IF(EV_age>10,10%,VLOOKUP(FC_age,Parameters!$A$83:$D$92,2)))+IF('Breakeven analyse'!E83>2030,Dynamic!$F$24,SUMIFS(Dynamic!$F$15:$F$24,Dynamic!$C$15:$C$24,'Breakeven analyse'!E83))-IF('Breakeven analyse'!E83-FC_age>2030,Dynamic!$F$24,SUMIFS(Dynamic!$F$15:$F$24,Dynamic!$C$15:$C$24,'Breakeven analyse'!E83-FC_age))*(IF(FC_age>10,10%,VLOOKUP(FC_age,Parameters!$A$83:$D$92,2))),0) -> 0 | G83: =IF(B83=1,$F$67,$F$38*(1+Dynamic!$E$30)^(SUMIFS($E$67:$E$86,$B$67:$B$86,B83,$C$67:$C$86,1)-2021)+IF(SUMIFS($E$67:$E$86,$B$67:$B$86,B83,$C$67:$C$86,1)>2030,Dynamic!$G$24,SUMIFS(Dynamic!$G$15:$G$24,Dynamic!$C$15:$C$24,SUMIFS($E$67:$E$86,$B$67:$B$86,B83,$C$67:$C$86,1))+VLOOKUP(SUMIFS($E$67:$E$86,$B$67:$B$86,B83,$C$67:$C$86,1),Dynamic!$C$68:$H$96,6)))*IF(C83>10,Parameters!$D$93/(FC_age-10),INDEX(Parameters!$D$83:$D$92,C83)) -> 15809.22843 | H83: ='Input-Output Module'!$E$78 -> 16297.78673 | I83: =Calculatie!$D$57*(Calculatie!$D$74*(1+Dynamic!$D$26)^'Breakeven analyse'!D83) -> 13070.48265 | J83: ='Input-Output Module'!$E$87+'Input-Output Module'!$E$88+'Input-Output Module'!$E$89+'Input-Output Module'!$E$90 -> 5058.383325 | K83: ='Input-Output Module'!$E$91 -> 0 | L83: ='Input-Output Module'!$E$92 -> 0 | M83: ='Input-Output Module'!$E$93 -> 0 | N83: ='Input-Output Module'!$E$94 -> 410.75625 | O83: 0 | P83: 0 | Q83: 50646.63739 | R83: 34837.40896 | S83: FALSE
A84: F | B84: 3 | C84: =COUNTIF($B$67:B84,B84) -> 4 | D84: 17 | E84: 2040 | F84: =IF(C84=1,$F$38*(1+Dynamic!$E$30)^('Breakeven analyse'!D84)-$F$38*(1+Dynamic!$E$30)^('Breakeven analyse'!D84-EV_age)*(IF(EV_age>10,10%,VLOOKUP(FC_age,Parameters!$A$83:$D$92,2)))+IF('Breakeven analyse'!E84>2030,Dynamic!$F$24,SUMIFS(Dynamic!$F$15:$F$24,Dynamic!$C$15:$C$24,'Breakeven analyse'!E84))-IF('Breakeven analyse'!E84-FC_age>2030,Dynamic!$F$24,SUMIFS(Dynamic!$F$15:$F$24,Dynamic!$C$15:$C$24,'Breakeven analyse'!E84-FC_age))*(IF(FC_age>10,10%,VLOOKUP(FC_age,Parameters!$A$83:$D$92,2))),0) -> 0 | G84: =IF(B84=1,$F$67,$F$38*(1+Dynamic!$E$30)^(SUMIFS($E$67:$E$86,$B$67:$B$86,B84,$C$67:$C$86,1)-2021)+IF(SUMIFS($E$67:$E$86,$B$67:$B$86,B84,$C$67:$C$86,1)>2030,Dynamic!$G$24,SUMIFS(Dynamic!$G$15:$G$24,Dynamic!$C$15:$C$24,SUMIFS($E$67:$E$86,$B$67:$B$86,B84,$C$67:$C$86,1))+VLOOKUP(SUMIFS($E$67:$E$86,$B$67:$B$86,B84,$C$67:$C$86,1),Dynamic!$C$68:$H$96,6)))*IF(C84>10,Parameters!$D$93/(FC_age-10),INDEX(Parameters!$D$83:$D$92,C84)) -> 12818.1761 | H84: ='Input-Output Module'!$E$78 -> 16297.78673 | I84: =Calculatie!$D$57*(Calculatie!$D$74*(1+Dynamic!$D$26)^'Breakeven analyse'!D84) -> 13201.18748 | J84: ='Input-Output Module'!$E$87+'Input-Output Module'!$E$88+'Input-Output Module'!$E$89+'Input-Output Module'!$E$90 -> 5058.383325 | K84: ='Input-Output Module'!$E$91 -> 0 | L84: ='Input-Output Module'!$E$92 -> 0 | M84: ='Input-Output Module'!$E$93 -> 0 | N84: ='Input-Output Module'!$E$94 -> 410.75625 | O84: 0 | P84: 0 | Q84: 47786.28989 | R84: 34968.11379 | S84: FALSE
A85: F | B85: 3 | C85: =COUNTIF($B$67:B85,B85) -> 5 | D85: 18 | E85: 2041 | F85: =IF(C85=1,$F$38*(1+Dynamic!$E$30)^('Breakeven analyse'!D85)-$F$38*(1+Dynamic!$E$30)^('Breakeven analyse'!D85-EV_age)*(IF(EV_age>10,10%,VLOOKUP(FC_age,Parameters!$A$83:$D$92,2)))+IF('Breakeven analyse'!E85>2030,Dynamic!$F$24,SUMIFS(Dynamic!$F$15:$F$24,Dynamic!$C$15:$C$24,'Breakeven analyse'!E85))-IF('Breakeven analyse'!E85-FC_age>2030,Dynamic!$F$24,SUMIFS(Dynamic!$F$15:$F$24,Dynamic!$C$15:$C$24,'Breakeven analyse'!E85-FC_age))*(IF(FC_age>10,10%,VLOOKUP(FC_age,Parameters!$A$83:$D$92,2))),0) -> 0 | G85: =IF(B85=1,$F$67,$F$38*(1+Dynamic!$E$30)^(SUMIFS($E$67:$E$86,$B$67:$B$86,B85,$C$67:$C$86,1)-2021)+IF(SUMIFS($E$67:$E$86,$B$67:$B$86,B85,$C$67:$C$86,1)>2030,Dynamic!$G$24,SUMIFS(Dynamic!$G$15:$G$24,Dynamic!$C$15:$C$24,SUMIFS($E$67:$E$86,$B$67:$B$86,B85,$C$67:$C$86,1))+VLOOKUP(SUMIFS($E$67:$E$86,$B$67:$B$86,B85,$C$67:$C$86,1),Dynamic!$C$68:$H$96,6)))*IF(C85>10,Parameters!$D$93/(FC_age-10),INDEX(Parameters!$D$83:$D$92,C85)) -> 10393.02071 | H85: ='Input-Output Module'!$E$78 -> 16297.78673 | I85: =Calculatie!$D$57*(Calculatie!$D$74*(1+Dynamic!$D$26)^'Breakeven analyse'!D85) -> 13333.19936 | J85: ='Input-Output Module'!$E$87+'Input-Output Module'!$E$88+'Input-Output Module'!$E$89+'Input-Output Module'!$E$90 -> 5058.383325 | K85: ='Input-Output Module'!$E$91 -> 0 | L85: ='Input-Output Module'!$E$92 -> 0 | M85: ='Input-Output Module'!$E$93 -> 0 | N85: ='Input-Output Module'!$E$94 -> 410.75625 | O85: 0 | P85: 0 | Q85: 45493.14637 | R85: 35100.12566 | S85: FALSE
A86: F | B86: 3 | C86: =COUNTIF($B$67:B86,B86) -> 6 | D86: 19 | E86: 2042 | F86: =IF(C86=1,$F$38*(1+Dynamic!$E$30)^('Breakeven analyse'!D86)-$F$38*(1+Dynamic!$E$30)^('Breakeven analyse'!D86-EV_age)*(IF(EV_age>10,10%,VLOOKUP(FC_age,Parameters!$A$83:$D$92,2)))+IF('Breakeven analyse'!E86>2030,Dynamic!$F$24,SUMIFS(Dynamic!$F$15:$F$24,Dynamic!$C$15:$C$24,'Breakeven analyse'!E86))-IF('Breakeven analyse'!E86-FC_age>2030,Dynamic!$F$24,SUMIFS(Dynamic!$F$15:$F$24,Dynamic!$C$15:$C$24,'Breakeven analyse'!E86-FC_age))*(IF(FC_age>10,10%,VLOOKUP(FC_age,Parameters!$A$83:$D$92,2))),0) -> 0 | G86: =IF(B86=1,$F$67,$F$38*(1+Dynamic!$E$30)^(SUMIFS($E$67:$E$86,$B$67:$B$86,B86,$C$67:$C$86,1)-2021)+IF(SUMIFS($E$67:$E$86,$B$67:$B$86,B86,$C$67:$C$86,1)>2030,Dynamic!$G$24,SUMIFS(Dynamic!$G$15:$G$24,Dynamic!$C$15:$C$24,SUMIFS($E$67:$E$86,$B$67:$B$86,B86,$C$67:$C$86,1))+VLOOKUP(SUMIFS($E$67:$E$86,$B$67:$B$86,B86,$C$67:$C$86,1),Dynamic!$C$68:$H$96,6)))*IF(C86>10,Parameters!$D$93/(FC_age-10),INDEX(Parameters!$D$83:$D$92,C86)) -> 8426.696483 | H86: ='Input-Output Module'!$E$78 -> 16297.78673 | I86: =Calculatie!$D$57*(Calculatie!$D$74*(1+Dynamic!$D$26)^'Breakeven analyse'!D86) -> 13466.53135 | J86: ='Input-Output Module'!$E$87+'Input-Output Module'!$E$88+'Input-Output Module'!$E$89+'Input-Output Module'!$E$90 -> 5058.383325 | K86: ='Input-Output Module'!$E$91 -> 0 | L86: ='Input-Output Module'!$E$92 -> 0 | M86: ='Input-Output Module'!$E$93 -> 0 | N86: ='Input-Output Module'!$E$94 -> 410.75625 | O86: 0 | P86: 0 | Q86: 43660.15414 | R86: 35233.45766 | S86: FALSE
D90: Year | E90: Vehicle | F90: Investment | G90: Depreciation | H90: Fixed vehicle cost | I90: Energy | J90: Maintenance | K90: Tolheffing | L90: CO2 prijs | M90: HBE | N90: Specific transport cost | O90: Charging infra investment | P90: Charging infra operational | Q90: Diesel | R90: Electric | S90: Fuel cell
A91: 0 | D91: =E41 -> 2023 | E91: D | G91: =SUMIFS(G$15:G$86,$D$15:$D$86,$A91,$A$15:$A$86,$E91) -> 15798.33761 | H91: =SUMIFS(H$15:H$86,$D$15:$D$86,$A91,$A$15:$A$86,$E91) -> 6055.978365 | I91: =SUMIFS(I$15:I$86,$D$15:$D$86,$A91,$A$15:$A$86,$E91)+M91 -> 5616.049141 | J91: 3142.004575 | K91: 0 | L91: 0 | M91: 0 | N91: 410.75625 | O91: 0 | P91: 0 | Q91: =SUMIFS(Q$15:Q$60,$D$15:$D$60,$A91,$A$15:$A$60,"D") -> 31023.12595 | R91: =SUMIFS(Q$15:Q$60,$D$15:$D$60,$A91,$A$15:$A$60,"E") -> 45251.02047 | S91: =SUMIFS(Q$15:Q$86,$D$15:$D$86,$A91,$A$15:$A$86,"F") -> 81034.88268
A92: 0 | E92: E | G92: 26049.11352 | H92: 9200.226409 | I92: =SUMIFS(I$15:I$86,$D$15:$D$86,$A92,$A$15:$A$86,$E92)+M92 -> 2154.355152 | J92: 2225.625825 | K92: 0 | L92: 0 | M92: 0 | N92: 410.75625 | O92: 3639.06 | P92: 1571.883312 | Q92: 31023.12595 | R92: 45251.02047 | S92: =SUMIFS(Q$15:Q$86,$D$15:$D$86,$A92,$A$15:$A$86,"F") -> 81034.88268
A93: 0 | E93: F | G93: 48121.17086 | H93: 16297.78673 | I93: 11146.78551 | J93: 5058.383325 | K93: 0 | L93: 0 | M93: 0 | N93: 410.75625 | O93: 0 | P93: 0 | Q93: 31023.12595 | R93: 45251.02047 | S93: 81034.88268
A94: =A91+1 -> 1 | D94: =E42 -> 2024 | E94: D | G94: 13030.04815 | H94: 6055.978365 | I94: 5671.45078 | J94: 3142.004575 | K94: 0 | L94: 0 | M94: 0 | N94: 410.75625 | O94: 0 | P94: 0 | Q94: 28310.23812 | R94: 37094.15577 | S94: 72714.23993
A95: =A92+1 -> 1 | E95: E | G95: 21484.61514 | H95: 9200.226409 | I95: 2175.898703 | J95: 2225.625825 | K95: 0 | L95: 0 | M95: 0 | N95: 410.75625 | O95: 0 | P95: 1597.033445 | Q95: 28310.23812 | R95: 37094.15577 | S95: 72714.23993
A96: 1 | E96: F | G96: 39689.06025 | H96: 16297.78673 | I96: 11258.25337 | J96: 5058.383325 | K96: 0 | L96: 0 | M96: 0 | N96: 410.75625 | O96: 0 | P96: 0 | Q96: 28310.23812 | R96: 37094.15577 | S96: 72714.23993
A97: 2 | D97: =E43 -> 2025 | E97: D | G97: 10564.80729 | H97: 6055.978365 | I97: 5727.406435 | J97: 3142.004575 | K97: 0 | L97: 0 | M97: 0 | N97: 410.75625 | O97: 0 | P97: 0 | Q97: 25900.95291 | R97: 33076.65107 | S97: 65317.78704
A98: 2 | E98: E | G98: 17419.79891 | H98: 9200.226409 | I98: 2197.65769 | J98: 2225.625825 | K98: 0 | L98: 0 | M98: 0 | N98: 410.75625 | O98: 0 | P98: 1622.58598 | Q98: 25900.95291 | R98: 33076.65107 | S98: 65317.78704
A99: 2 | E99: F | G99: 32180.02483 | H99: 16297.78673 | I99: 11370.8359 | J99: 5058.383325 | K99: 0 | L99: 0 | M99: 0 | N99: 410.75625 | O99: 0 | P99: 0 | Q99: 25900.95291 | R99: 33076.65107 | S99: 65317.78704
A100: 3 | D100: =E44 -> 2026 | E100: D | G100: 8565.981626 | H100: 6055.978365 | I100: 5783.921646 | J100: 3142.004575 | K100: 0 | L100: 0 | M100: 0 | N100: 410.75625 | O100: 0 | P100: 0 | Q100: 23958.64246 | R100: 29828.82222 | S100: 59343.14398
A101: 3 | E101: E | G101: 14124.03211 | H101: 9200.226409 | I101: 2219.634267 | J101: 2225.625825 | K101: 0 | L101: 0 | M101: 0 | N101: 410.75625 | O101: 0 | P101: 1648.547356 | Q101: 23958.64246 | R101: 29828.82222 | S101: 59343.14398
A102: 3 | E102: F | G102: 26091.67341 | H102: 16297.78673 | I102: 11484.54426 | J102: 5058.383325 | K102: 0 | L102: 0 | M102: 0 | N102: 410.75625 | O102: 0 | P102: 0 | Q102: 23958.64246 | R102: 29828.82222 | S102: 59343.14398
A103: 4 | D103: =E45 -> 2027 | E103: D | G103: 6945.326991 | H103: 6055.978365 | I103: 5841.00201 | J103: 3142.004575 | K103: 0 | L103: 0 | M103: 0 | N103: 410.75625 | O103: 0 | P103: 0 | Q103: 22395.06819 | R103: 27205.17641 | S103: 54521.53341
A104: 4 | E104: E | G104: 11451.8132 | H104: 9200.226409 | I104: 2241.83061 | J104: 2225.625825 | K104: 0 | L104: 0 | M104: 0 | N104: 410.75625 | O104: 0 | P104: 1674.924114 | Q104: 22395.06819 | R104: 27205.17641 | S104: 54521.53341
A105: 4 | E105: F | G105: 21155.2174 | H105: 16297.78673 | I105: 11599.38971 | J105: 5058.383325 | K105: 0 | L105: 0 | M105: 0 | N105: 410.75625 | O105: 0 | P105: 0 | Q105: 22395.06819 | R105: 27205.17641 | S105: 54521.53341
A106: 5 | D106: =E46 -> 2028 | E106: D | G106: 5631.294709 | H106: 6055.978365 | I106: 5898.653177 | J106: 3142.004575 | K106: 0 | L106: 0 | M106: 0 | N106: 410.75625 | O106: 0 | P106: 0 | Q106: 21138.68708 | R106: 25087.74933 | S106: 50635.03202
A107: 5 | E107: E | G107: =SUMIFS(G$15:G$86,$D$15:$D$86,$A107,$A$15:$A$86,$E107) -> 9285.169032 | H107: 9200.226409 | I107: 2264.248916 | J107: 2225.625825 | K107: 0 | L107: 0 | M107: 0 | N107: 410.75625 | O107: 0 | P107: 1701.722899 | Q107: 21138.68708 | R107: 25087.74933 | S107: 50635.03202
A108: 5 | E108: F | G108: 17152.72211 | H108: 16297.78673 | I108: 11715.3836 | J108: 5058.383325 | K108: 0 | L108: 0 | M108: 0 | N108: 410.75625 | O108: 0 | P108: 0 | Q108: 21138.68708 | R108: 25087.74933 | S108: 50635.03202
A109: 6 | D109: =E47 -> 2029 | E109: D | G109: 4565.872873 | H109: 6055.978365 | I109: 5956.880856 | J109: 3142.004575 | K109: 0 | L109: 0 | M109: 0 | N109: 410.75625 | O109: 0 | P109: 0 | Q109: 20131.49292 | R109: 23380.89694 | S109: 47506.94908
A110: 6 | E110: E | G110: 7528.446582 | H110: 9200.226409 | I110: 2286.891405 | J110: 2225.625825 | K110: 0 | L110: 0 | M110: 0 | N110: 410.75625 | O110: 0 | P110: 1728.950466 | Q110: 20131.49292 | R110: 23380.89694 | S110: 47506.94908
A111: 6 | E111: F | G111: 13907.48533 | H111: 16297.78673 | I111: 11832.53744 | J111: 5058.383325 | K111: 0 | L111: 0 | M111: 0 | N111: 410.75625 | O111: 0 | P111: 0 | Q111: 20131.49292 | R111: 23380.89694 | S111: 47506.94908
A112: 7 | D112: =E48 -> 2030 | E112: D | G112: 19365.70417 | H112: 6055.978365 | I112: 6015.690812 | J112: 3142.004575 | K112: 0 | L112: 0 | M112: 0 | N112: 410.75625 | O112: 0 | P112: 0 | Q112: 34990.13417 | R112: 40704.61444 | S112: 64306.80047
A113: 7 | E113: E | G113: 24801.63196 | H113: 9200.226409 | I113: 2309.760319 | J113: 2225.625825 | K113: 0 | L113: 0 | M113: 0 | N113: 410.75625 | O113: 0 | P113: 1756.613673 | Q113: 34990.13417 | R113: 40704.61444 | S113: 64306.80047
A114: 7 | E114: F | G114: 30589.01135 | H114: 16297.78673 | I114: 11950.86281 | J114: 5058.383325 | K114: 0 | L114: 0 | M114: 0 | N114: 410.75625 | O114: 0 | P114: 0 | Q114: 34990.13417 | R114: 40704.61444 | S114: 64306.80047
A115: 8 | D115: =E49 -> 2031 | E115: D | G115: 15972.31709 | H115: 6055.978365 | I115: 6075.088867 | J115: 3142.004575 | K115: 0 | L115: 0 | M115: 0 | N115: 410.75625 | O115: 0 | P115: 0 | Q115: 31656.14515 | R115: 36409.91147 | S115: 59066.29972
A116: 8 | E116: E | G116: 20455.72557 | H116: 9200.226409 | I116: 2332.857922 | J116: 2225.625825 | K116: 0 | L116: 0 | M116: 0 | N116: 410.75625 | O116: 0 | P116: 1784.719492 | Q116: 31656.14515 | R116: 36409.91147 | S116: 59066.29972
A117: 8 | E117: F | G117: 25229.00197 | H117: 16297.78673 | I117: 12070.37144 | J117: 5058.383325 | K117: 0 | L117: 0 | M117: 0 | N117: 410.75625 | O117: 0 | P117: 0 | Q117: 31656.14515 | R117: 36409.91147 | S117: 59066.29972
A118: 9 | D118: =E50 -> 2032 | E118: D | G118: 12950.40894 | H118: 6055.978365 | I118: 6135.080903 | J118: 3142.004575 | K118: 0 | L118: 0 | M118: 0 | N118: 410.75625 | O118: 0 | P118: 0 | Q118: 28694.22903 | R118: 32591.64175 | S118: 54413.76193
A119: 9 | E119: E | G119: 16585.57176 | H119: 9200.226409 | I119: 2356.186502 | J119: 2225.625825 | K119: 0 | L119: 0 | M119: 0 | N119: 410.75625 | O119: 0 | P119: 1813.275004 | Q119: 28694.22903 | R119: 32591.64175 | S119: 54413.76193
A120: 9 | E120: F | G120: 20455.76047 | H120: 16297.78673 | I120: 12191.07516 | J120: 5058.383325 | K120: 0 | L120: 0 | M120: 0 | N120: 410.75625 | O120: 0 | P120: 0 | Q120: 28694.22903 | R120: 32591.64175 | S120: 54413.76193
A121: 10 | D121: =E51 -> 2033 | E121: D | G121: 10500.23554 | H121: 6055.978365 | I121: 6195.672859 | J121: 3142.004575 | K121: 0 | L121: 0 | M121: 0 | N121: 410.75625 | O121: 0 | P121: 0 | Q121: 26304.64759 | R121: 29506.28216 | S121: 50665.51227
A122: 10 | E122: E | G122: 13447.6379 | H122: 9200.226409 | I122: 2379.748367 | J122: 2225.625825 | K122: 0 | L122: 0 | M122: 0 | N122: 410.75625 | O122: 0 | P122: 1842.287404 | Q122: 26304.64759 | R122: 29506.28216 | S122: 50665.51227
A123: 10 | E123: F | G123: =SUMIFS(G$15:G$86,$D$15:$D$86,$A123,$A$15:$A$86,$E123) -> 16585.60005 | H123: 16297.78673 | I123: 12312.98591 | J123: 5058.383325 | K123: 0 | L123: 0 | M123: 0 | N123: 410.75625 | O123: 0 | P123: 0 | Q123: 26304.64759 | R123: 29506.28216 | S123: 50665.51227
A124: 11 | D124: =E52 -> 2034 | E124: D | G124: 8513.626634 | H124: 6055.978365 | I124: 6256.870735 | J124: 3142.004575 | K124: 0 | L124: 0 | M124: 0 | N124: 410.75625 | O124: 0 | P124: 0 | Q124: 24379.23656 | R124: 27015.30881 | S124: 47650.70292
A125: 11 | E125: E | G125: 10903.39048 | H125: 9200.226409 | I125: 2403.54585 | J125: 2225.625825 | K125: 0 | L125: 0 | M125: 0 | N125: 410.75625 | O125: 0 | P125: 1871.764003 | Q125: 24379.23656 | R125: 27015.30881 | S125: 47650.70292
A126: 11 | E126: F | G126: 13447.66085 | H126: 16297.78673 | I126: 12436.11577 | J126: 5058.383325 | K126: 0 | L126: 0 | M126: 0 | N126: 410.75625 | O126: 0 | P126: 0 | Q126: 24379.23656 | R126: 27015.30881 | S126: 47650.70292
A127: 12 | D127: =E53 -> 2035 | E127: D | G127: 6902.877386 | H127: 6055.978365 | I127: 6318.680589 | J127: 3142.004575 | K127: 0 | L127: 0 | M127: 0 | N127: 410.75625 | O127: 0 | P127: 0 | Q127: 22830.29716 | R127: 25006.40804 | S127: 45230.81231
A128: 12 | E128: E | G128: 8840.506025 | H128: 9200.226409 | I128: 2427.581309 | J128: 2225.625825 | K128: 0 | L128: 0 | M128: 0 | N128: 410.75625 | O128: 0 | P128: 1901.712227 | Q128: 22830.29716 | R128: 25006.40804 | S128: 45230.81231
A129: 12 | E129: F | G129: 10903.40908 | H129: 16297.78673 | I129: 12560.47692 | J129: 5058.383325 | K129: 0 | L129: 0 | M129: 0 | N129: 410.75625 | O129: 0 | P129: 0 | Q129: 22830.29716 | R129: 25006.40804 | S129: 45230.81231
A130: 13 | D130: =E54 -> 2036 | E130: D | G130: 5596.876425 | H130: 6055.978365 | I130: 6381.108542 | J130: 3142.004575 | K130: 0 | L130: 0 | M130: 0 | N130: 410.75625 | O130: 0 | P130: 0 | Q130: 21586.72416 | R130: 23388.51753 | S130: 43293.52911
A131: 13 | E131: E | G131: 7167.912306 | H131: 9200.226409 | I131: 2451.857122 | J131: 2225.625825 | K131: 0 | L131: 0 | M131: 0 | N131: 410.75625 | O131: 0 | P131: 1932.139622 | Q131: 21586.72416 | R131: 23388.51753 | S131: 43293.52911
A132: 13 | E132: F | G132: 8840.521107 | H132: 16297.78673 | I132: 12686.08169 | J132: 5058.383325 | K132: 0 | L132: 0 | M132: 0 | N132: 410.75625 | O132: 0 | P132: 0 | Q132: 21586.72416 | R132: 23388.51753 | S132: 43293.52911
A133: 14 | D133: =E55 -> 2037 | E133: D | G133: 19928.97258 | H133: 6055.978365 | I133: 6444.160775 | J133: 3142.004575 | K133: 0 | L133: 0 | M133: 0 | N133: 410.75625 | O133: 0 | P133: 0 | Q133: 35981.87254 | R133: 42724.92512 | S133: 58220.57719
A134: 14 | E134: E | G134: 26448.88709 | H134: 9200.226409 | I134: 2476.375693 | J134: 2225.625825 | K134: 0 | L134: 0 | M134: 0 | N134: 410.75625 | O134: 0 | P134: 1963.053856 | Q134: 35981.87254 | R134: 42724.92512 | S134: 58220.57719
A135: 14 | E135: F | G135: 23640.70838 | H135: 16297.78673 | I135: 12812.94251 | J135: 5058.383325 | K135: 0 | L135: 0 | M135: 0 | N135: 410.75625 | O135: 0 | P135: 0 | Q135: 35981.87254 | R135: 42724.92512 | S135: 58220.57719
A136: 15 | D136: =E56 -> 2038 | E136: D | G136: 16436.88587 | H136: 6055.978365 | I136: 6507.84353 | J136: 3142.004575 | K136: 0 | L136: 0 | M136: 0 | N136: 410.75625 | O136: 0 | P136: 0 | Q136: 32553.46859 | R136: 38146.54838 | S136: 54206.22496
A137: 15 | E137: E | G137: 21814.33773 | H137: 9200.226409 | I137: 2501.13945 | J137: 2225.625825 | K137: 0 | L137: 0 | M137: 0 | N137: 410.75625 | O137: 0 | P137: 1994.462718 | Q137: 32553.46859 | R137: 38146.54838 | S137: 54206.22496
A138: 15 | E138: F | G138: 19498.22671 | H138: 16297.78673 | I138: 12941.07193 | J138: 5058.383325 | K138: 0 | L138: 0 | M138: 0 | N138: 410.75625 | O138: 0 | P138: 0 | Q138: 32553.46859 | R138: 38146.54838 | S138: 54206.22496
A139: 16 | D139: =E57 -> 2039 | E139: D | G139: =SUMIFS(G$15:G$86,$D$15:$D$86,$A139,$A$15:$A$86,$E139) -> 13327.08288 | H139: 6055.978365 | I139: 6572.163112 | J139: 3142.004575 | K139: 0 | L139: 0 | M139: 0 | N139: 410.75625 | O139: 0 | P139: 0 | Q139: 29507.98518 | R139: 34076.27256 | S139: 50646.63739
A140: 16 | E140: E | G140: 17687.13911 | H140: 9200.226409 | I140: 2526.150845 | J140: 2225.625825 | K140: 0 | L140: 0 | M140: 0 | N140: 410.75625 | O140: 0 | P140: 2026.374121 | Q140: 29507.98518 | R140: 34076.27256 | S140: 50646.63739
A141: 16 | E141: F | G141: 15809.22843 | H141: 16297.78673 | I141: 13070.48265 | J141: 5058.383325 | K141: 0 | L141: 0 | M141: 0 | N141: 410.75625 | O141: 0 | P141: 0 | Q141: 29507.98518 | R141: 34076.27256 | S141: 50646.63739
A142: 17 | D142: =E58 -> 2040 | E142: D | G142: 10805.64405 | H142: 6055.978365 | I142: 6637.12589 | J142: 3142.004575 | K142: 0 | L142: 0 | M142: 0 | N142: 410.75625 | O142: 0 | P142: 0 | Q142: 27051.50913 | R142: 30787.6094 | S142: 47786.28989
A143: 17 | E143: E | G143: 14340.79245 | H143: 9200.226409 | I143: 2551.412353 | J143: 2225.625825 | K143: 0 | L143: 0 | M143: 0 | N143: 410.75625 | O143: 0 | P143: 2058.796107 | Q143: 27051.50913 | R143: 30787.6094 | S143: 47786.28989
A144: 17 | E144: F | G144: 12818.1761 | H144: 16297.78673 | I144: 13201.18748 | J144: 5058.383325 | K144: 0 | L144: 0 | M144: 0 | N144: 410.75625 | O144: 0 | P144: 0 | Q144: 27051.50913 | R144: 30787.6094 | S144: 47786.28989
A145: 18 | D145: =E59 -> 2041 | E145: D | G145: 8761.252894 | H145: 6055.978365 | I145: 6702.738296 | J145: 3142.004575 | K145: 0 | L145: 0 | M145: 0 | N145: 410.75625 | O145: 0 | P145: 0 | Q145: 25072.73038 | R145: 28132.83502 | S145: 45493.14637
A146: 18 | E146: E | G146: 11627.56322 | H146: 9200.226409 | I146: 2576.926477 | J146: 2225.625825 | K146: 0 | L146: 0 | M146: 0 | N146: 410.75625 | O146: 0 | P146: 2091.736845 | Q146: 25072.73038 | R146: 28132.83502 | S146: 45493.14637
A147: 18 | E147: F | G147: 10393.02071 | H147: 16297.78673 | I147: 13333.19936 | J147: 5058.383325 | K147: 0 | L147: 0 | M147: 0 | N147: 410.75625 | O147: 0 | P147: 0 | Q147: 25072.73038 | R147: 28132.83502 | S147: 45493.14637
A148: 19 | D148: =E60 -> 2042 | E148: D | G148: 7103.653598 | H148: 6055.978365 | I148: 6769.006827 | J148: 3142.004575 | K148: 0 | L148: 0 | M148: 0 | N148: 410.75625 | O148: 0 | P148: 0 | Q148: 23481.39961 | R148: 25992.1766 | S148: 43660.15414
A149: 19 | E149: E | G149: 9427.667743 | H149: 9200.226409 | I149: 2602.695741 | J149: 2225.625825 | K149: 0 | L149: 0 | M149: 0 | N149: 410.75625 | O149: 0 | P149: 2125.204634 | Q149: 23481.39961 | R149: 25992.1766 | S149: 43660.15414
A150: 19 | E150: F | G150: 8426.696483 | H150: 16297.78673 | I150: 13466.53135 | J150: 5058.383325 | K150: 0 | L150: 0 | M150: 0 | N150: 410.75625 | O150: 0 | P150: 0 | Q150: 23481.39961 | R150: 25992.1766 | S150: 43660.15414

Sheet Laadpleinkosten
A1: Basis
A2: TCO-ZET-Vracht
A3: Index | B3: Charging type | C3: Power | D3: Land type | E3: Column1 | F3: Power (kW) | G3: Depth of discharge (%) | H3: Efficiency (%) | I3: Column2 | J3: Column3 | K3: Installation costs (€) | L3: Operational costs annual (€) | M3: Own energy costs (€) | N3: External energy costs (€)
A4: 1 | B4: AC3,7 | C4: 3,7 kW | D4: Privaat | F4: 3.7 | G4: 0.8 | H4: 0.858 | K4: 270 | L4: 25 | M4: 0.205 | N4: =Charging_system_table1114[[#This Row],[Own energy costs (€)]] -> 0.205
A5: 2 | B5: AC10 | C5: 10 kW | D5: Publiek | F5: 10 | G5: 0.8 | H5: 0.902 | K5: 1620 | L5: 600 | N5: 0.3076
A6: 3 | B6: AC20 | C6: 20 kW | D6: Publiek | F6: 20 | G6: 0.8 | H6: 0.902 | K6: 1620 | L6: 1295 | N6: 0.4466
A7: 4 | B7: AC20 | C7: 20 kW | D7: Privaat | F7: 20 | G7: 0.8 | H7: 0.902 | K7: 620 | L7: 165 | M7: 0.13 | N7: =Charging_system_table1114[[#This Row],[Own energy costs (€)]] -> 0.13
A8: 5 | B8: FC50 | C8: 50 kW | D8: Publiek | F8: 50 | G8: 0.7 | H8: 0.887 | K8: 6500 | L8: 3687.5 | N8: 0.2631444444
A9: 6 | B9: FC50 | C9: 50 kW | D9: Privaat | F9: 50 | G9: 0.7 | H9: 0.887 | K9: 4000 | L9: 2812.5 | M9: 0.12 | N9: =Charging_system_table1114[[#This Row],[Own energy costs (€)]] -> 0.12
A10: 7 | B10: HPC150 | C10: 150 kW | D10: Publiek | F10: 150 | G10: 0.7 | H10: 0.887 | K10: 11625 | L10: 7962.5 | N10: 0.2587
A11: 8 | B11: HPC150 | C11: 150 kW | D11: Privaat | F11: 150 | G11: 0.7 | H11: 0.887 | K11: 11000 | L11: 3300 | M11: 0.08 | N11: =Charging_system_table1114[[#This Row],[Own energy costs (€)]] -> 0.08
A12: 9 | B12: HPC350 | C12: 350 kW | D12: Publiek | F12: 350 | G12: 0.7 | H12: 0.887 | K12: 31250 | L12: 19450 | N12: 0.2993944444
A13: 10 | B13: HPC350 | C13: 350 kW | D13: Privaat | F13: 350 | G13: 0.7 | H13: 0.887 | K13: 28000 | L13: 8400 | M13: 0.08 | N13: =Charging_system_table1114[[#This Row],[Own energy costs (€)]] -> 0.08
D15: Inputgegevens
D16: Berekende gegevens | G16: 399.6
A17: Overzicht aannames TCO/kWh prijs op diverse laadpalen
A18: Alle bedragen excl. BTW
B19: 2022-05-31
C20: AC3,7 | D20: AC11 | E20: AC22 | F20: FC50 | G20: HPC150 | H20: HPC350
C21: 3,7 kW | D21: 11 kW | E21: 22 kW | F21: 50 kW | G21: 150 kW | H21: 350 kW
C22: privaat | D22: privaat | E22: privaat | F22: privaat | G22: privaat | H22: privaat | I22: index 2022 | J22: index 2023
A23: CAPEX, Plaatsing | C23: 1x16A | D23: 3x16A | E23: 3x32A
A24: Inkoopprijs paal | B24: eenmalig | C24: =C91*$I24*$J24 -> 771.75 | D24: =D91*$I24*$J24 -> 1984.5 | E24: 2315.25 | F24: 19293.75 | G24: 57881.25 | H24: 135056.25 | I24: 1.05 | J24: 1.05 | P24: Purchase price pile
A25: Locatiebepaling, enginering, proj mgt | B25: eenmalig | C25: =C92*$I25*$J25 -> 341.172 | D25: =D92*$I25*$J25 -> 467.532 | E25: 467.532 | F25: 2021.76 | G25: 5307.12 | H25: 5307.12 | I25: 1.08 | J25: 1.17 | K25: (1) | P25: Site identification, enginering, proj mgt
A26: Civiele werken/plaatsing | B26: eenmalig | C26: =C93*$I26*$J26 -> 44.226 | D26: =D93*$I26*$J26 -> 113.724 | E26: 132.678 | F26: 8845.2 | G26: 26535.6 | H26: 61916.4 | I26: 1.08 | J26: 1.17 | K26: (1) | P26: Civil works / placement
A27: Graaf werk | B27: eenmalig | C27: =TRANSPOSE($G$74:$G$79)*$B$83 -> 723.6 | D27: 723.6 | E27: 723.6 | F27: 1447.2 | G27: 2170.8 | H27: 2894.4 | P27: Excavation work
A28: Aansluitkosten netbeheerder (!) | B28: eenmalig | C28: =C95*$I28*$J28 -> 0 | D28: =D95*$I28*$J28 -> 0 | E28: 0 | F28: 496.125 | G28: 1323 | H28: 3307.5 | I28: 1.05 | J28: 1.05 | P28: Connection costs network manager (!)
A29: Totaal | B29: eenmalig | C29: =SUM(C24:C28) -> 1880.748 | D29: =SUM(D24:D28) -> 3289.356 | E29: 3639.06 | F29: 32104.035 | G29: 93217.77 | H29: 208481.67 | P29: Total
A30: Afschrijvingstermijn | B30: jaar | C30: =$B$81 -> 10 | D30: =$B81 -> 10 | E30: 10 | F30: 10 | G30: 10 | H30: 10 | P30: Depreciation period
A31: Totaal | B31: per jaar | C31: =C29/C30 -> 188.0748 | D31: 328.9356 | E31: 363.906 | F31: 3210.4035 | G31: 9321.777 | H31: 20848.167 | P31: Total
C32: AC3,7 | D32: AC11 | E32: AC22 | F32: FC50 | G32: HPC150 | H32: HPC350
A33: OPEX, Operationele kosten
A34: Periodieke kosten netaansluiting (!) | B34: per jaar | C34: =C101*$I34*$J34 -> 0 | D34: =D101*$I34*$J34 -> 265.776 | E34: 1067.85 | F34: 2373 | G34: 2966.25 | H34: 5932.5 | I34: 1.05 | J34: 1.13 | K34: (1) | P34: Periodic grid connection costs (!)
A35: Communicatiekosten | B35: per jaar | C35: =C102*$I35*$J35 -> 11.025 | D35: 52.92 | E35: 77.175 | F35: 77.175 | G35: 77.175 | H35: 77.175 | I35: 1.05 | J35: 1.05 | P35: Communication costs
A36: Verzekeringspremie (schade) | B36: per jaar | C36: =C103*$I36*$J36 -> 31.22610406 | D36: 80.29569615 | E36: 93.67831217 | F36: 780.6526014 | G36: 2341.957804 | H36: 5464.56821 | I36: 1.07 | J36: =Indexatie!D10+1 -> 1.042259815 | P36: Insurance premium (damage)
A37: Onderhoud/reparatie | B37: per jaar | C37: =C104*$I37*$J37 -> 22.68 | D37: =D104*$I37*$J37 -> 22.68 | E37: 260.82 | F37: 992.25 | G37: 2976.75 | H37: 6945.75 | I37: 1.05 | J37: 1.08 | K37: (2) | P37: Maintenance/repair
A38: Service bij gebruikersproblemen | B38: per jaar | C38: =C105*$I38*$J38 -> 72.36 | D38: 72.36 | E38: 72.36 | F38: 144.72 | G38: 144.72 | H38: 144.72 | I38: 1.08 | J38: =D83 -> 1.34 | P38: Service in case of user problems
A39: Totaal | B39: per jaar | C39: =SUM(C34:C38) -> 137.2911041 | D39: =SUM(D34:D38) -> 494.0316961 | E39: 1571.883312 | F39: 4367.797601 | G39: 8506.852804 | H39: 18564.71321 | P39: Total
C40: AC3,7 | D40: AC11 | E40: AC22 | F40: FC50 | G40: HPC150 | H40: HPC350
A41: OPEX, Energiekosten
A42: Vergoeding leverancier (inkoop) | B42: €/kWh | C42: =$D$66 -> 0.08265289256 | D42: =$D66 -> 0.08265289256 | E42: =$D66 -> 0.08265289256 | F42: =$D66 -> 0.08265289256 | G42: =$D66 -> 0.08265289256 | H42: =$D66 -> 0.08265289256 | I42: 2022 | J42: 2023
A43: Energiebelasting | B43: €/kWh | C43: =$C66 -> 0.03942 | D43: =$C66 -> 0.03942 | E43: 0.03942 | F43: 0.03942 | G43: 0.03942 | H43: 0.03942 | I43: 2022 | J43: 2023
A44: Totaal | B44: €/kWh | C44: =SUM(C42:C43) -> 0.1220728926 | D44: 0.1220728926 | E44: 0.1220728926 | F44: 0.1220728926 | G44: 0.1220728926 | H44: 0.1220728926 | M44: (1)
M45: Zie file "aansluitkosten aanleg en periodiek"
A46: Totale kosten | B46: "vast" per jaar | C46: =C31+C39 -> 325.3659041 | D46: 822.9672961 | E46: 1935.789312 | F46: 7578.201101 | G46: 17828.6298 | H46: 39412.88021
A47: Energiekosten medium | B47: "variabel"per kWh | C47: =C44 -> 0.1220728926 | D47: =D44 -> 0.1220728926 | E47: =E44 -> 0.1220728926 | F47: =F44 -> 0.1220728926 | G47: =G44 -> 0.1220728926 | H47: =H44 -> 0.1220728926 | M47: (2)
A49: Calculatie voor één voertuig
C50: AC3,7 | D50: AC11 | E50: AC22 | F50: AC22 | G50: FC50 | H50: FC50
A51: Laadhoeveelheid per jaar (kWh/jaar)
A52: laag scenario (suboptimaal gebruik laadinfra) | B52: kWh/jaar | C52: 3000 | D52: =(C52+F52)/2 -> 7500 | E52: 4000 | F52: 12000 | G52: 30000 | H52: 35000
A53: medium | B53: kWh/jaar | C53: 7500 | D53: =(C53+F53)/2 -> 18750 | E53: 5000 | F53: 30000 | G53: 45000 | H53: 87500
A54: hoog (optimala gebruik laadinfra) | B54: kWh/jaar | C54: 12000 | D54: =(C54+F54)/2 -> 30000 | E54: 6000 | F54: 48000 | G54: 60000 | H54: 140000
A58: Laadkosten (euro/kWh) | C58: AC3,7 | D58: AC11 | E58: AC22 | F58: AC22 | G58: FC50 | H58: FC50
A60: laag scenario (suboptimaal gebruik laadinfra) | C60: =C$46/C52+C$47 -> 0.2305281939 | D60: =D$46/D52+D$47 -> 0.2318018654 | E60: 0.53045 | F60: =#REF!/F52+#REF! ->  | G60: 0.3391166667 | H60: =#REF!/H52+#REF! -> 
A61: medium | C61: =C$46/C53+C$47 -> 0.1654550131 | D61: =D$46/D53+D$47 -> 0.1659644817 | E61: 0.4466 | F61: =#REF!/F53+#REF! ->  | G61: 0.2631444444 | H61: =#REF!/H53+#REF! -> 
A62: hoog (optimala gebruik laadinfra) | C62: 0.1491867179 | D62: =D$46/D54+D$47 -> 0.1495051358 | E62: 0.3907 | F62: =#REF!/F54+#REF! ->  | G62: 0.2251583333 | H62: =#REF!/H54+#REF! -> 
B64: staffel | C64: e-belast+ODE | D64: Kale prijs | E64: Totaal | M64: Algemene loonkostenontwikkeling
A65: zone 2 | B65: 10-50 MWh | C65: 0.10046 | D65: 0.08265289256 | E65: =SUM(C65:D65) -> 0.1831128926 | F65: 2023 | G65: 45041
A66: zone 3 | B66: 50-10.000 MWh | C66: 0.03942 | D66: 0.08265289256 | E66: =SUM(C66:D66) -> 0.1220728926 | F66: 2023 | G66: 45041
A68: https://www.belastingdienst.nl/wps/wcm/connect/bldcontentnl/belastingdienst/zakelijk/overige_belastingen/belastingen_op_milieugrondslag/tarieven_milieubelastingen/tabellen_tarieven_milieubelastingen
A70: https://zakelijkeenergietarieven.nl/grootverbruik-energie/
E72: norm | G72: bij aanleg
B73: kW | C73: dagen | D73: uur/dag | E73: maxcap | G73: meters grondwerk
A74: capaciteit | B74: 3.7 | C74: 250 | D74: 12 | E74: =B74*C74*D74 -> 11100 | F74: kWh | G74: 5 | H74: meter
B75: 11 | C75: 250 | D75: 10 | E75: =B75*C75*D75 -> 27500 | F75: kWh | G75: 5 | H75: meter
B76: 22 | C76: 200 | D76: 10 | E76: =B76*C76*D76 -> 44000 | F76: kWh | G76: 5 | H76: meter
B77: 50 | C77: 250 | D77: 10 | E77: =B77*C77*D77 -> 125000 | F77: kWh | G77: 10 | H77: meter
B78: 150 | C78: 200 | D78: 8 | E78: 240000 | F78: kWh | G78: 15 | H78: meter
B79: 350 | C79: 200 | D79: 8 | E79: =B79*C79*D79 -> 560000 | F79: kWh | G79: 20 | H79: meter
A81: afschrijvingstermijn (jaar) | B81: 10 | C81: index
C82: 2022 | D82: 2023
A83: Kost per meter grondwerk | B83: =B84*C83*D83 -> 144.72 | C83: 1.08 | D83: 1.34 | E83: (1)
A84: 2021 (basis) | B84: 100
C87: AC3,7 | D87: AC11 | E87: AC22 | F87: FC50 | G87: HPC150 | H87: HPC350
C88: 3,7 kW | D88: 11 kW | E88: 22 kW | F88: 50 kW | G88: 150 kW | H88: 350 kW
C89: privaat | D89: privaat | E89: privaat | F89: privaat | G89: privaat | H89: privaat | I89: index 2022
A90: CAPEX, Plaatsing | C90: 1x16A | D90: 3x16A | E90: 3x32A
A91: Inkoopprijs paal | B91: eenmalig | C91: 700 | D91: 1800 | E91: 2100 | F91: 17500 | G91: 52500 | H91: 122500 | I91: 105
A92: Locatiebepaling, enginering, proj mgt | B92: eenmalig | C92: 270 | D92: 370 | E92: 370 | F92: 1600 | G92: 4200 | H92: 4200 | I92: 108
A93: Civiele werken/plaatsing | B93: eenmalig | C93: 35 | D93: 90 | E93: 105 | F93: 7000 | G93: 21000 | H93: 49000 | I93: 108
A94: Graaf werk | B94: eenmalig | C94: =TRANSPOSE($G$74:$G$79)*$B$83 -> 723.6 | D94: 723.6 | E94: 723.6 | F94: 1447.2 | G94: 2170.8 | H94: 2894.4 | I94: 108
A95: Aansluitkosten netbeheerder (!) | B95: eenmalig | C95: 0 | D95: 0 | E95: 0 | F95: 450 | G95: 1200 | H95: 3000 | I95: 105
A96: Totaal | B96: eenmalig | C96: =SUM(C91:C95) -> 1728.6 | D96: =SUM(D91:D95) -> 2983.6 | E96: 3298.6 | F96: 27997.2 | G96: 81070.8 | H96: 181594.4
A97: Afschrijvingstermijn | B97: jaar | C97: =$B$81 -> 10 | D97: 10 | E97: 10 | F97: 10 | G97: 10 | H97: 10 | I97: 100
A98: Totaal | B98: per jaar | C98: =C96/C97 -> 172.86 | D98: =D96/D97 -> 298.36 | E98: 329.86 | F98: 2799.72 | G98: 8107.08 | H98: 18159.44
C99: AC3,7 | D99: AC11 | E99: AC22 | F99: FC50 | G99: HPC150 | H99: HPC350
A100: OPEX, Operationele kosten
A101: Periodieke kosten netaansluiting (!) | B101: per jaar | C101: 0 | D101: 224 | E101: 900 | F101: 2000 | G101: 2500 | H101: 5000 | I101: 105
A102: Communicatiekosten | B102: per jaar | C102: 10 | D102: 48 | E102: 70 | F102: 70 | G102: 70 | H102: 70 | I102: 105
A103: Verzekeringspremie (schade) | B103: per jaar | C103: =C91*0.04 -> 28 | D103: =D91*0.04 -> 72 | E103: 84 | F103: 700 | G103: 2100 | H103: 4900 | I103: 107
A104: Onderhoud/reparatie | B104: per jaar | C104: 20 | D104: 20 | E104: 230 | F104: =F91*0.05 -> 875 | G104: =G91*0.05 -> 2625 | H104: 6125 | I104: 105
A105: Service bij gebruikersproblemen | B105: per jaar | C105: 50 | D105: 50 | E105: 50 | F105: 100 | G105: 100 | H105: 100 | I105: 108
A106: Totaal | B106: per jaar | C106: =SUM(C101:C105) -> 108 | D106: =SUM(D101:D105) -> 414 | E106: 1334 | F106: 3745 | G106: 7395 | H106: 16195
C107: AC3,7 | D107: AC11 | E107: AC22 | F107: FC50 | G107: HPC150 | H107: HPC350
A108: OPEX, Energiekosten
A109: Vergoeding leverancier (inkoop) | B109: €/kWh | C109: =$E$119 -> 0.0887 | D109: =$E$119 -> 0.0887 | E109: 0.0887 | F109: 0.0887 | G109: 0.0887 | H109: 0.0887 | I109: 2022
A110: Energiebelasting | B110: €/kWh | C110: =$D$119+$C$119 -> 0.03479 | D110: =$D$119+$C$119 -> 0.03479 | E110: 0.03479 | F110: 0.03479 | G110: 0.03479 | H110: 0.03479 | I110: 2022
A111: Totaal | B111: €/kWh | C111: =SUM(C109:C110) -> 0.12349 | D111: 0.12349 | E111: 0.12349 | F111: 0.12349 | G111: 0.12349 | H111: 0.12349
A113: Totale kosten | B113: "vast" per jaar | C113: =C98+C106 -> 280.86 | D113: 712.36 | E113: 1663.86 | F113: 6544.72 | G113: 15502.08 | H113: 34354.44
A114: Energiekosten medium | B114: "variabel"per kWh | C114: =C111 -> 0.12349 | D114: =D111 -> 0.12349 | E114: =E111 -> 0.12349 | F114: =F111 -> 0.12349 | G114: =G111 -> 0.12349 | H114: =H111 -> 0.12349
B117: staffel | C117: e-belast | D117: ODE | E117: Kale prijs | F117: Totaal
A118: zone 2 | B118: 10-50 MWh | C118: 0.04361 | D118: 0.0418 | E118: 0.0887 | F118: 0.17411 | G118: 2021
A119: zone 3 | B119: 50-10.000 MWh | C119: 0.01189 | D119: 0.0229 | E119: 0.0887 | F119: 0.12349 | G119: 2021

Sheet Config
A1: Col. No | B1: ='Read Me'!B1 -> Nederlands | C1: Nederlands | D1: English
A2: 2 | B2: =+HLOOKUP($B$1,$C$1:$D$505,$A2,0) -> J | C2: J | D2: Y | H2: =IF(Calculatie!$B$3>=4,Config!$B$3,Config!$B$2) -> J | O2: DV | P2: EV | Q2: FC
A3: =+A2+1 -> 3 | B3: N | C3: N | D3: N | H3: =IF(Calculatie!$B$3>=4,"",Config!$B$3) -> N | N3: Restwaarde | O3: =TEXT(Calculatie!B39,"€#.##0,00") -> €18.935,88 | P3: =TEXT(Calculatie!C39,"€#.##0,00") -> €32.263,21 | Q3: =TEXT(Calculatie!D39,"€#.##0,00") -> €59.600,63
A4: =+A3+1 -> 4 | B4: Opslaan | C4: Opslaan | D4: Save | H4: Speciaal voor Koeling | N4: Vermogen eigen oplaadsysteem (kW) | P4: =CONCATENATE('M1-PowerSupply'!B36," kW/u") -> 22 kW/u
A5: 5 | B5: Toegepaste waarde: | C5: Toegepaste waarde: | D5: Applied value: | N5: Capaciteit vrachtwagenbatterij (kWh) | P5: =CONCATENATE(Calculatie!C26," kWh") -> 120 kWh | Q5: =CONCATENATE(Calculatie!D26," kWh") -> 70 kWh
A6: 6 | B6: Grijs | C6: Grijs | D6: Gray | N6: Waterstof opslag tank (kg) | Q6: =CONCATENATE(Calculatie!D32," kg") -> 15 kg
A7: 7 | B7: Blauw | C7: Blauw | D7: Blue | N7: Bruto aankoopprijs | P7: =TEXT(Calculatie!C36,"€#.##0,00") -> €139.606,20 | Q7: =TEXT(Calculatie!D36,"€#.##0,00") -> €257.897,98
A8: 8 | B8: Electrolyse (netstroom) | C8: Electrolyse (netstroom) | D8: Electrolysis (grid-average) | N8: AanZET-subsidie | P8: =TEXT(Calculatie!C46,"€#.##0,00") -> €0,00 | Q8: =TEXT(Calculatie!D46,"€#.##0,00") -> €0,00
A9: 9 | B9: Electrolyse (hernieuwbare energie) | C9: Electrolyse (hernieuwbare energie) | D9: Electrolysis (renewable energy) | N9: MIA-subsidie | P9: =TEXT(Calculatie!C47,"€#.##0,00") -> €0,00 | Q9: =TEXT(Calculatie!D47,"€#.##0,00") -> €0,00
A10: 10 | B10: Naam dataset | C10: Naam dataset | D10: Dataset Name | N10: Bruto kosten inkoopoplaadsysteem | P10: =TEXT(Calculatie!C42,"€#.##0,00") -> €2.315,25
A11: 11 | B11: BASIS INVOERGEGEVENS | C11: BASIS INVOERGEGEVENS | D11: BASIC INPUT DATA | N11: Bruto kosten aanleg oplaadsysteem | O11: =TEXT(Calculatie!B40,"€#.##0,00") -> €0,00 | P11: =TEXT(Calculatie!C45,"€#.##0,00") -> €1.323,81
A12: 12 | B12: INZETGEGEVENS VOERTUIG SYSTEM | C12: INZETGEGEVENS VOERTUIG SYSTEM | D12: VEHICLE SYSTEM DEPLOYMENT DATA | N12: MIA-subsidie laadpaal | P12: =TEXT(Calculatie!C48,"€#.##0,00") -> €0,00
A13: 13 | B13: Dieselvoertuig | C13: Dieselvoertuig | D13: Diesel vehicle | N13: Basisprijs energie | O13: =TEXT(Calculatie!B72,"€#.##0,00") -> €1,55 | P13: =TEXT(Calculatie!C72,"€#.##0,00") -> €0,12 | Q13: =TEXT(Calculatie!D72,"€#.##0,00") -> €10,00
A14: 14 | B14: Elektrisch voertuig | C14: Elektrisch voertuig | D14: Electric vehicle | N14: Meerprijs tolheffing | O14: =TEXT(Calculatie!B82,"€#.##0,00") -> €0,00
A15: 15 | B15: Waterstof voertuig | C15: Waterstof voertuig | D15: Hydrogen vehicle | N15: Aandeel snelweg kilometers | O15: =CONCATENATE(Calculatie!B85*100," %") -> 75 %
A16: 16 | B16: Voertuigtype | C16: Voertuigtype | D16: Vehicle type | N16: Reparaties | O16: =TEXT(Calculatie!B107,"€#.##0") -> €500 | P16: =TEXT(Calculatie!C107,"€#.##0") -> €500 | Q16: =TEXT(Calculatie!D107,"€#.##0") -> €1.500
A17: 17 | B17: Koelmachine (J/N) | C17: Koelmachine (J/N) | D17: Cooling Unit (Y/N) | N17: =CONCATENATE('M2-Subsidie'!A4,": ",'M2-Subsidie'!C4,CHAR(10),'M2-Subsidie'!A5,": ",'M2-Subsidie'!C5,CHAR(10),'M2-Subsidie'!A6,": ",'M2-Subsidie'!C6,CHAR(10)) -> Groot: >250 fte, >€50 mil omzet Middelgroot: <250 fte, <€50 mil omzet Klein: <50 fte, <€10 mil omzet
A18: 18 | B18: Verwacht jaarkilometrage | C18: Verwacht jaarkilometrage | D18: Expected annual mileage | N18: Jaarkilometrage | O18: =TEXT(Calculatie!B5,"#.##0") -> 35.000
A19: 19 | B19: Grijze/groene elektriciciteit | C19: Grijze/groene elektriciciteit | D19: Grey/green electricity
A20: 20 | B20: Grijze/groene waterstof | C20: Grijze/groene waterstof | D20: Grey/green hydrogen
A21: 21 | B21: Rechtsvorm en belastingpercentage | C21: Rechtsvorm en belastingpercentage | D21: Legal form and tax rate
A22: 22 | B22: Basisjaar prognose | C22: Basisjaar prognose | D22: Base year forecast
A23: 23 | B23: Grootte van bedrijf | C23: Grootte van bedrijf | D23: Size of company
A24: 24 | B24: Economische levensduur [jaren] | C24: Economische levensduur [jaren] | D24: Economic life
A25: 25 | B25: Restwaarde | C25: Restwaarde | D25: Residual value
A26: 26 | B26: Productieve uren per jaar | C26: Productieve uren per jaar | D26: Productive hours per year
A27: 27 | B27: Kosten van reparaties | C27: Kosten van reparaties | D27: Cost of repairs
A28: 28 | B28: Stilstand [dagen per jaar] | C28: Stilstand [dagen per jaar] | D28: Downtime days per year
A29: 29 | B29: =+HLOOKUP($B$1,$C$1:$D$505,$A29,0) -> Vermogen eigen oplaadsysteem (kW) | C29: Vermogen eigen oplaadsysteem (kW) | D29: Power of own charging system (kW)
A30: 30 | B30: Capaciteit vrachtwagenbatterij (kWh) | C30: Capaciteit vrachtwagenbatterij (kWh) | D30: Truck battery capacity (kWh)
A31: 31 | B31: Waterstof opslag tank (kg) | C31: Waterstof opslag tank (kg) | D31: Hydrogen storage tank (kg)
A32: 32 | B32: AANKOOPPRIJS | C32: AANKOOPPRIJS | D32: PURCHASE PRICE
A33: 33 | B33: Bruto aankoopprijs | C33: Bruto aankoopprijs | D33: Gross purchase price
A34: 34 | B34: AanZET-subsidie | C34: AanZET-subsidie | D34: APPROVAL subsidy (40% surcharge)
A35: 35 | B35: MIA-subsidie | C35: MIA-subsidie | D35: MIA-subsidy
A36: 36 | B36: Netto aankoopprijs | C36: Netto aankoopprijs | D36: Net purchase price
A37: 37 | B37: Bruto kosten inkoopoplaadsysteem | C37: Bruto kosten inkoopoplaadsysteem | D37: Gross costs for purchasing charging system
A38: 38 | B38: Bruto kosten aanleg oplaadsysteem | C38: Bruto kosten aanleg oplaadsysteem | D38: Gross costs for installation of charging system
A39: 39 | B39: Netto kosten inkoop & aanleg oplaadsysteem | C39: Netto kosten inkoop & aanleg oplaadsysteem | D39: Net costs for purchase and installation of charging system
A40: 40 | B40: INKOOPPRIJS ENERGIE | C40: INKOOPPRIJS ENERGIE | D40: ENERGY PURCHASE PRICE
A41: 41 | B41: Basisprijs energie | C41: Basisprijs energie | D41: Basic energy price
A42: 42 | B42: Energiesubsidie | C42: Energiesubsidie | D42: Energy subsidy
A43: 43 | B43: Kale brandstofprijs | C43: Kale brandstofprijs | D43: Fuel price (excl. VAT)
A44: 44 | B44: Dieselaccijns | C44: Dieselaccijns | D44: Diesel excise duty
A45: 45 | B45: Totale brandstofprijs | C45: Totale brandstofprijs | D45: Total diesel price
A46: 46 | B46: Meerprijs tolheffing | C46: Meerprijs tolheffing | D46: Balance of tolls on trucks
A47: 47 | B47: Aandeel snelweg kilometers | C47: Aandeel snelweg kilometers | D47: Share of freeway kilometers
A48: 48 | B48: Vaste ZE-Voertuigheffing | C48: Vaste ZE-Voertuigheffing | D48: Fixed ZE-Vehicle levy
A49: 49 | B49: CO2 prijs | C49: CO2 prijs | D49: CO2 price
A50: 50 | B50: HBE Toepassen (J/N) | C50: HBE Toepassen (J/N) | D50: Apply HBE (Y/N)
A51: 51 | B51: Aantal HBE's | C51: Aantal HBE's | D51: Number of HBEs
A52: 52 | B52: Forfait | C52: Forfait | D52: Flat rate
A53: 53 | B53: Waarde per HBE | C53: Waarde per HBE | D53: Value per HBE
A54: 54 | B54: Totale waarde HBE's | C54: Totale waarde HBE's | D54: Total value of HBEs
A55: 55 | B55: subsidie toepassen (J/N) | C55: subsidie toepassen (J/N) | D55: Apply subsidy (Y/N)
A56: 56 | B56: Elektriciteit: euro/kWh | C56: Elektriciteit: euro/kWh | D56: Electricity: euro/kWh
A57: 57 | B57: Waterstof: euro/kg | C57: Waterstof: euro/kg | D57: Hydrogen: euro/kg
A58: 58 | B58: Dieselprijs: euro/l | C58: Dieselprijs: euro/l | D58: Dieselprice: euro/l
A59: 59 | B59: Dieselvoertuigbelastingen | C59: Dieselvoertuigbelastingen | D59: Diesel Vehicle Taxes
A60: 60 | B60: Meenemen | C60: Meenemen | D60: Include in Calculation
A61: 61 | B61: €/jaar | C61: €/jaar | D61: €/year
A62: 62 | B62: Hernieuwbare Brandstof-Eenheden (HBE's) | C62: Hernieuwbare Brandstof-Eenheden (HBE's) | D62: Renewable Fuel Units (HBEs in Dutch)
A63: 63 | B63: RESULTATEN | C63: RESULTATEN | D63: RESULTS
A64: 64 | B64: Scenario | C64: Scenario | D64: Scenario
A65: 65 | B65: Scenario technisch mogelijk (valide)/niet mogelijk | C65: Scenario technisch mogelijk (valide)/niet mogelijk | D65: Scenario technically possible (valid)/not possible
A66: 66 | B66: =+HLOOKUP($B$1,$C$1:$D$505,$A66,0) -> Eigen oplaadsysteem | C66: Eigen oplaadsysteem | D66: Own charging system
A67: =+A66+1 -> 67 | B67: Openbaar oplaadsysteem | C67: Openbaar oplaadsysteem | D67: Public charging system
A68: 68 | B68: Percentage eigen oplaadsysteem | C68: Percentage eigen oplaadsysteem | D68: Percentage of own charging system
A69: 69 | B69: Percentage extern (openbaar) oplaadsysteem | C69: Percentage extern (openbaar) oplaadsysteem | D69: Percentage of external (public) charging system
A70: 70 | B70: Totale kosten per jaar | C70: Totale kosten per jaar | D70: Total cost per year
A71: 71 | B71: Totale kosten per km | C71: Totale kosten per km | D71: Total cost per km
A72: 72 | B72: Totale kosten per uur | C72: Totale kosten per uur | D72: Total cost per hour
A73: 73 | B73: Emissies (totaal per jaar voor het geselecteerde voertuig) | C73: Emissies (totaal per jaar voor het geselecteerde voertuig) | D73: Emissions (total per year for the selected vehicle)
A74: 74 | B74: CO2 emissies (ton per jaar, WtW) | C74: CO2 emissies (ton per jaar, WtW) | D74: CO2 emissions (tons per year, WtW)
A75: 75 | B75: PM totaal (kg per jaar, TtW) | C75: PM totaal (kg per jaar, TtW) | D75: PM total (kg per year, TtW)
A76: 76 | B76: NOx (kg per jaar, TtW) | C76: NOx (kg per jaar, TtW) | D76: NOx (kg per year, TtW)
A77: 77 | B77: ONDERBOUWING KOSTENBEREKENING | C77: ONDERBOUWING KOSTENBEREKENING | D77: SUBSTANTIATION OF COST CALCULATION
A78: 78 | B78: Vaste kosten per jaar | C78: Vaste kosten per jaar | D78: Fixed costs per year
A79: 79 | B79: Wegenbelasting | C79: Wegenbelasting | D79: Road tax
A80: 80 | B80: Eurovignet | C80: Eurovignet | D80: Eurovignette
A81: 81 | B81: Rente | C81: Rente | D81: Interest
A82: 82 | B82: Verzekering | C82: Verzekering | D82: Insurance
A83: 83 | B83: Voertuigheffing | C83: Voertuigheffing | D83: Vehicle tax
A84: 84 | B84: Diverse overige voertuigkosten | C84: Diverse overige voertuigkosten | D84: Miscellaneous other vehicle costs
A85: 85 | B85: a: Totale vaste voertuigkosten per jaar | C85: a: Totale vaste voertuigkosten per jaar | D85: a: Total fixed vehicle costs per year
A86: 86 | B86: Fixed transport costs | C86: Fixed transport costs | D86: Fixed transport costs
A87: 87 | B87: Variabele kosten per jaar | C87: Variabele kosten per jaar | D87: Variable costs per year
A88: 88 | B88: Afschrijving voertuig | C88: Afschrijving voertuig | D88: Vehicle depreciation
A89: 89 | B89: Brandstofverbruik voertuig | C89: Brandstofverbruik voertuig | D89: Fuel consumption vehicle
A90: 90 | B90: Brandstofverbruik koeling | C90: Brandstofverbruik koeling | D90: Fuel consumption cooling
A91: 91 | B91: Elektriciteitsverbruik | C91: Elektriciteitsverbruik | D91: Electricity consumption
A92: 92 | B92: H2 verbruik | C92: H2 verbruik | D92: H2 consumption
A93: 93 | B93: Adblue verbruik | C93: Adblue verbruik | D93: Adblue consumption
A94: 94 | B94: Banden | C94: Banden | D94: Tires
A95: 95 | B95: Onderhoud | C95: Onderhoud | D95: Maintenance
A96: 96 | B96: Reparatie | C96: Reparatie | D96: Repair
A97: 97 | B97: Reparatie/onderhoud koelunit | C97: Reparatie/onderhoud koelunit | D97: Repair/Maintenance cooling unit
A98: 98 | B98: Verschil Tolheffing (km-tarief) | C98: Verschil Tolheffing (km-tarief) | D98: Difference Tolls (km-rate)
A99: 99 | B99: Hernieuwbare Brandstof-Eenheden | C99: Hernieuwbare Brandstof-Eenheden | D99: Renewable Fuel Units
A100: 100 | B100: Specifieke vervoerskosten | C100: Specifieke vervoerskosten | D100: Specific transport costs
A101: 101 | B101: b: Totale variabele voertuigkosten per jaar | C101: b: Totale variabele voertuigkosten per jaar | D101: b: Total variable vehicle costs per year
A102: 102 | B102: Repair, maintenance & tires | C102: Repair, maintenance & tires | D102: Repair, maintenance & tires
A103: 103 | B103: Kosten oplaadsysteem per jaar | C103: Kosten oplaadsysteem per jaar | D103: Charging system costs per year
A104: 104 | B104: Aankoop en installatie | C104: Aankoop en installatie | D104: Purchase and installation
A105: 105 | B105: Operationele kosten | C105: Operationele kosten | D105: Operational costs
A106: 106 | B106: c: Totale kosten oplaadsysteem per jaar | C106: c: Totale kosten oplaadsysteem per jaar | D106: c: Total charging system costs per year
A107: 107 | B107: Totale voertuig en oplaadsysteemkosten per jaar (a+b+c) | C107: Totale voertuig en oplaadsysteemkosten per jaar (a+b+c) | D107: Total vehicle and charging system costs per year (a+b+c)
A108: 108 | B108: Totale voertuig en oplaadsysteemkosten per km: (a+b+c)/kms per jaar | C108: Totale voertuig en oplaadsysteemkosten per km: (a+b+c)/kms per jaar | D108: Total vehicle and charging system cost per km: (a+b+c)/kms per year
A109: 109 | B109: Totale voertuig en oplaadsysteemkosten per uur (a+b+c)/uren per jaar | C109: Totale voertuig en oplaadsysteemkosten per uur (a+b+c)/uren per jaar | D109: Total vehicle and charging system costs per hour (a+b+c)/hours per year
A110: 110 | B110: Chauffeurskosten | C110: Chauffeurskosten | D110: Driver costs
A111: 111 | B111: Uurloon incl. sociale lasten | C111: Uurloon incl. sociale lasten | D111: Hourly wage incl. social security
A112: 112 | B112: Verblijfkostenvergoeding | C112: Verblijfkostenvergoeding | D112: Accommodation allowance
A113: 113 | B113: Overige kosten | C113: Overige kosten | D113: Other costs
A114: 114 | B114: d: Totale chauffeurskosten per jaar | C114: d: Totale chauffeurskosten per jaar | D114: d: Total driver costs per year
A115: 115 | B115: Totale directe kosten per jaar (a+b+c+d) | C115: Totale directe kosten per jaar (a+b+c+d) | D115: Total direct costs per year (a+b+c+d)
A116: 116 | B116: Totale directe kosten per km: (a+b+c+d)/kms per jaar | C116: Totale directe kosten per km: (a+b+c+d)/kms per jaar | D116: Total direct costs per km: (a+b+c+d)/kms per year
A117: 117 | B117: Totale directe kosten per uur (a+b+c+d)/uren per jaar | C117: Totale directe kosten per uur (a+b+c+d)/uren per jaar | D117: Total direct costs per hour (a+b+c+d)/hours per year
A118: 118 | B118: Algemene kosten (overhead) | C118: Algemene kosten (overhead) | D118: General costs (overhead)
A119: 119 | B119: Loon incl. sociale lasten | C119: Loon incl. sociale lasten | D119: Wages incl. social charges
A120: 120 | B120: Huisvesting | C120: Huisvesting | D120: Housing
A121: 121 | B121: Overig | C121: Overig | D121: Other
A122: 122 | B122: e: Totale overhead per jaar | C122: e: Totale overhead per jaar | D122: e: Total overhead per year
A123: 123 | B123: De in het TCO-Vracht gebruikte default- c.q. standaardwaarden zijn met de grootste zorg verzameld. Het betreft echter gemiddelde cijfers, de werkelijke cijfers kunnen ofwel hoger dan wel lager zijn. Hoewel veel zorg is besteed aan de correctheid van de rekenregels en de gebruikte inputdata, is Panteia of de Topsector Logistiek niet aansprakelijk te houden voor de juistheid van de rekenresultaten. | C123: De in het TCO-Vracht gebruikte default- c.q. standaardwaarden zijn met de grootste zorg verzameld. Het betreft echter gemiddelde cijfers, de werkelijke cijfers kunnen ofwel hoger dan wel lager zijn. Hoewel veel zorg is besteed aan de correctheid van de rekenregels en de gebruikte inputdata, is Panteia of de Topsector Logistiek niet aansprakelijk te houden voor de juistheid van de rekenresultaten. | D123: The default values used in TCO Freight have been compiled with the greatest care. However, these are average figures; the actual figures may be either higher or lower. Although great care was taken to ensure the correctness of the calculation rules and the input data used, Panteia or Top Sector Logistics cannot be held liable for the correctness of the calculation results.
A124: 124 | B124: Voorwoord | C124: Voorwoord | D124: Preface
A125: 125 | B125: Het kostprijsmodel “TCO-ZET-Vracht” is in opdracht van Topsector Logistiek en het Ministerie van I&W door Panteia gebouwd en wordt door haar vervolgens onderhouden. Bij de ontwikkeling van dit TCO-model is gekozen voor een open en transparante opzet. Dit betekent dat helder is welke rekenregels zijn toegepast en welke waarde van de default data als uitgangswaarde is gehanteerd. Het TCO-model wordt mede onderschreven door RAI, evofenedex en TLN. | C125: Het kostprijsmodel “TCO-ZET-Vracht” is in opdracht van Topsector Logistiek en het Ministerie van I&W door Panteia gebouwd en wordt door haar vervolgens onderhouden. Bij de ontwikkeling van dit TCO-model is gekozen voor een open en transparante opzet. Dit betekent dat helder is welke rekenregels zijn toegepast en welke waarde van de default data als uitgangswaarde is gehanteerd. Het TCO-model wordt mede onderschreven door RAI, evofenedex en TLN. | D125: The cost price model "TCO-ZET-Vracht" was built by Panteia on behalf of Top Sector Logistics and the Ministry of I&W and is subsequently maintained by it. In the development of this TCO-model an open and transparent approach has been chosen. This means that it is clear which calculation rules have been applied and which value of the default data has been used as a starting value. The TCO model is also endorsed by RAI, evofenedex and TLN.
A126: 126 | B126: Nieuw in TCO-ZET-Vracht versie 5.0 (d.d. 19-5-2023): | C126: Nieuw in TCO-ZET-Vracht versie 5.0 (d.d. 19-5-2023): | D126: New in TCO-ZET-Vracht version 5.0 (d.d. 19-5-2023):
A127: 127 | B127: De belangrijkste wijziging ten opzichte van versie 4 betreft een verlegging van het basisjaar van 2022 naar 2023. Gemeld moet worden dat het uitdagend is gebleken om voldoende onderbouwde veranderingen vast te stellen daar de (prijs-) ontwikkelingen in de energie- en transportmarkt aan sterke fluctuaties onderhevig zijn. De doorgevoerde verhoging van belangrijke posten is als volgt: - Catalogusprijs van dieselvoertuigen: + 14%. - Catalogusprijs van BEV en FCEV: + 8%. - Rentepercentage 4,23% (2022: 3,93%). - Verzekeringspercentage 3,40% (2022: 3,22%). - Dieselprijs (default): 1,55 euro/liter (incl. verlaagde accijns, excl. btw). - Elektriciteitsprijs (default): 0,12 euro/kWh (Zone 3, excl. btw). - Waarde van een HBE: 12 euro | C127: De belangrijkste wijziging ten opzichte van versie 4 betreft een verlegging van het basisjaar van 2022 naar 2023. Gemeld moet worden dat het uitdagend is gebleken om voldoende onderbouwde veranderingen vast te stellen daar de (prijs-) ontwikkelingen in de energie- en transportmarkt aan sterke fluctuaties onderhevig zijn. De doorgevoerde verhoging van belangrijke posten is als volgt: - Catalogusprijs van dieselvoertuigen: + 14%. - Catalogusprijs van BEV en FCEV: + 8%. - Rentepercentage 4,23% (2022: 3,93%). - Verzekeringspercentage 3,40% (2022: 3,22%). - Dieselprijs (default): 1,55 euro/liter (incl. verlaagde accijns, excl. btw). - Elektriciteitsprijs (default): 0,12 euro/kWh (Zone 3, excl. btw). - Waarde van een HBE: 12 euro | D127: The most important change with respect to version 2 concerns a shift of the base year from 2021 to 2022. It should be mentioned that it has proved challenging to establish sufficiently substantiated changes as the (price) developments in the energy and transport market are subject to strong fluctuations. The implemented increase in key items is as follows: - Catalog price of diesel vehicles: + 14%. - List price of BEV and FCEV: + 8%. - Interest rate 4,23% (2022: 3,93%). - Insurance rate 3,40% (2022: 3,22%). - Diesel price (default): 1,55 euros/liter (incl. reduced excise duty, excl. VAT). - Electricity price (default): 0.12 euro/kWh (Zone 3, excl. VAT). - Value of a HBE: 12 euro
A128: 128 | B128: Overige aanpassingen: - Bij FCEV wordt uitsluitend de waarde van HBE's berekend in geval van groene elektrolyse. - Ten behoeve van de berekening van de subsidiebedragen is een vraag over de bedrijfsgrootte toegevoegd. - TCO-vracht is nu beschikbaar in het Nederlands en het Engels. Om van taal te switchen kan linksboven in de readme een keuze gemaakt worden. | C128: Overige aanpassingen: - Bij FCEV wordt uitsluitend de waarde van HBE's berekend in geval van groene elektrolyse. - Ten behoeve van de berekening van de subsidiebedragen is een vraag over de bedrijfsgrootte toegevoegd. - TCO-vracht is nu beschikbaar in het Nederlands en het Engels. Om van taal te switchen kan linksboven in de readme een keuze gemaakt worden. | D128: Other adjustments: - For FCEV, the value of HBEs is calculated only in case of green electrolysis. - For the purpose of calculating subsidy amounts, a question about company size has been added. - The TCO tool is now available in both Dutch and English. To switch language use the language option at the top of the readme page.
A129: 129 | B129: Het gebruik | C129: Het gebruik | D129: Usage
A130: 130 | B130: =+HLOOKUP($B$1,$C$1:$D$505,$A130,0) -> De opzet van het TCO-Vracht is zo eenvoudig als mogelijk gehouden. Dit houdt in dat het TCO-Vracht op basis van een beperkte input reeds onderbouwde rekenresultaten produceert. Wel moet het veld “Enable Content” (soms) worden aangeklikt om gebruik te kunnen maken van voor de berekeningen noodzakelijke “Macros”. | C130: De opzet van het TCO-Vracht is zo eenvoudig als mogelijk gehouden. Dit houdt in dat het TCO-Vracht op basis van een beperkte input reeds onderbouwde rekenresultaten produceert. Wel moet het veld “Enable Content” (soms) worden aangeklikt om gebruik te kunnen maken van voor de berekeningen noodzakelijke “Macros”. | D130: The design of the TCO-Freight has been kept as simple as possible. This means that the TCO-Force already produces substantiated calculation results based on a limited input. However, the field Enable Content" must (sometimes) be clicked in order to be able to use "Macros" necessary for the calculations.
A131: =+A130+1 -> 131 | B131: Defaultwaarden | C131: Defaultwaarden | D131: Default values
A132: 132 | B132: Bij een groot aantal (input-) gegevens is in het TCO-Vracht reeds een defaultwaarde ingevuld. Deze defaultwaarde (=standaardwaarde) is gebaseerd op gegevens uit de transportwereld. Veel van deze gegevens kunnen naar eigen inzicht veranderd worden met een eigen getal door gebruik te maken van een aantal “knoppen”. Bij deze knoppen is telkens de gebruikte defaultwaarde weergegeven. Overigens, met de resetknop: “Start nieuwe berekening”, wordt teruggegaan naar de oorspronkelijke (default-) waarden. | C132: Bij een groot aantal (input-) gegevens is in het TCO-Vracht reeds een defaultwaarde ingevuld. Deze defaultwaarde (=standaardwaarde) is gebaseerd op gegevens uit de transportwereld. Veel van deze gegevens kunnen naar eigen inzicht veranderd worden met een eigen getal door gebruik te maken van een aantal “knoppen”. Bij deze knoppen is telkens de gebruikte defaultwaarde weergegeven. Overigens, met de resetknop: “Start nieuwe berekening”, wordt teruggegaan naar de oorspronkelijke (default-) waarden. | D132: For a large number of (input) data, a default value has already been entered in TCO-Freight. This default value (=standard value) is based on data from the transport world. Many of these data can be changed at one's own discretion with one's own number by using a number of buttons". The default value used is always shown with these buttons. By the way, with the reset button: "Start new calculation", the original (default) values are returned to.
A133: 133 | B133: Resultaten | C133: Resultaten | D133: Results
A134: 134 | B134: De rekenresultaten worden kolomsgewijs getoond voor telkens een elektrische, een brandstofcel en een dieselvariant van een voertuig met vergelijkbare transportkarakteristieken. De verwachte jaarkilometrage van het geselecteerde voertuig is een bepalend getal. Op basis hiervan worden niet alleen de kosten en emissies berekend maar wordt bijvoorbeeld ook een advies gegeven over optimale capaciteit van de batterij en het vermogen van het oplaadsysteem. | C134: De rekenresultaten worden kolomsgewijs getoond voor telkens een elektrische, een brandstofcel en een dieselvariant van een voertuig met vergelijkbare transportkarakteristieken. De verwachte jaarkilometrage van het geselecteerde voertuig is een bepalend getal. Op basis hiervan worden niet alleen de kosten en emissies berekend maar wordt bijvoorbeeld ook een advies gegeven over optimale capaciteit van de batterij en het vermogen van het oplaadsysteem. | D134: The calculation results are shown columnwise for each of an electric, a fuel cell and a diesel variant of a vehicle with similar transport characteristics. The expected annual mileage of the selected vehicle is a decisive figure. On this basis, not only the costs and emissions are calculated but also, for example, advice is given on the optimum capacity of the battery and the power of the charging system.
A135: 135 | B135: Emissies | C135: Emissies | D135: Emissions
A136: 136 | B136: Hoewel het een kostprijsmodel betreft, worden tevens de emissies (WtW) van een aantal vervuilende stoffen van het geselecteerde voertuig berekend. Het betreft daarbij CO2, NOx en PMx. Het ligt voor de hand dat er met (batterij of brandstofcel) elektrische voertuigen op groene stroom c.q. groene waterstof gereden wordt. Wanneer dit om een of andere reden niet mogelijk is, kan bijvoorbeeld “grijze elektriciteit” worden geselecteerd. Er wordt in dat geval gerekend met (de uitstoot van) de Nederlandse elektriciteitsmix. | C136: Hoewel het een kostprijsmodel betreft, worden tevens de emissies (WtW) van een aantal vervuilende stoffen van het geselecteerde voertuig berekend. Het betreft daarbij CO2, NOx en PMx. Het ligt voor de hand dat er met (batterij of brandstofcel) elektrische voertuigen op groene stroom c.q. groene waterstof gereden wordt. Wanneer dit om een of andere reden niet mogelijk is, kan bijvoorbeeld “grijze elektriciteit” worden geselecteerd. Er wordt in dat geval gerekend met (de uitstoot van) de Nederlandse elektriciteitsmix. | D136: Although it is a cost model, it also calculates the emissions (WtW) of a number of pollutants of the selected vehicle. This concerns CO2, NOx and PMx. It is obvious that (battery or fuel cell) electric vehicles are driven on green electricity or green hydrogen. If, for some reason, this is not possible, then grey electricity" can be selected, for example. In that case (the emissions of) the Dutch electricity mix is used.
A137: 137 | B137: Nieuwe versies | C137: Nieuwe versies | D137: New versions
A138: 138 | B138: De ontwikkelingen met betrekking tot de energietransitie volgen elkaar in een hoog tempo op. Niet alleen verandert de defaultwaarde van de inputgegevens bijvoorbeeld in de vorm van prijsdalingen, ook komen er regelmatig nieuwe voertuigklassen beschikbaar. Om te zorgen dat het TCO-Vracht zo actueel mogelijk blijft, worden er daarom periodiek updates gemaakt. Deze nieuwe versies van het model worden vervolgens gratis ter beschikking gesteld. | C138: De ontwikkelingen met betrekking tot de energietransitie volgen elkaar in een hoog tempo op. Niet alleen verandert de defaultwaarde van de inputgegevens bijvoorbeeld in de vorm van prijsdalingen, ook komen er regelmatig nieuwe voertuigklassen beschikbaar. Om te zorgen dat het TCO-Vracht zo actueel mogelijk blijft, worden er daarom periodiek updates gemaakt. Deze nieuwe versies van het model worden vervolgens gratis ter beschikking gesteld. | D138: The developments related to the energy transition follow each other in rapid succession. Not only does the default value of the input data change, for example in the form of price drops, but also new vehicle classes regularly become available. To ensure that TCO-Freight remains as current as possible, updates are therefore made periodically. These new versions of the model are then made available free of charge.
A139: 139 | B139: Disclaimer | C139: Disclaimer | D139: Disclaimer
A140: 140 | B140: Veel zorg is besteed aan de correctheid van de rekenregels en de gebruikte inputdata c.q. defaultwaarden. Panteia of de Topsector Logistiek zijn echter niet aansprakelijk te houden voor de juistheid van de rekenresultaten. Deze kunnen ofwel lager dan wel hoger zijn. | C140: Veel zorg is besteed aan de correctheid van de rekenregels en de gebruikte inputdata c.q. defaultwaarden. Panteia of de Topsector Logistiek zijn echter niet aansprakelijk te houden voor de juistheid van de rekenresultaten. Deze kunnen ofwel lager dan wel hoger zijn. | D140: Great care has been taken to ensure the correctness of the calculation rules and the input data used or default values. However, Panteia or Top Sector Logistics cannot be held liable for the accuracy of the calculation results. These can be either lower or higher.
A141: 141 | B141: Contact | C141: Contact | D141: Contact
